Workbook

Sheet WELCOME
A1: OMB control number: 0938-1146/Expiration date: 05/31/2026
B3: Welcome to the Coverage Examples Cost Sharing Calculator
B5: All insurer data entry fields are highlighted in orange.
B7: The Cost Sharing Calculator operates in two modes.
B8: Click the button that corresponds to the mode you want to use.
D10: The user enters data for an individual plan and views the results.
D12: The user loads data for multiple plans and runs the calculator.
D13: The user can then browse the results for the individual plans, save
D14: the results to an external file, or copy and paste the results for
D15: the individual plans to a separate worksheet.
B17: PRA Disclosure Statement: According to the Paperwork Reduction Act of 1995, no persons are required to respond to a collection of information unless it displays a valid OMB control number. The valid OMB control number for this information collection is 0938-1146. The time required to complete this information collection is estimated to average 0.02 hours per response, including the time to review instructions, search existing data resources, gather the data needed, and complete and review the information collection. If you have comments concerning the accuracy of the time estimate(s) or suggestions for improving this form, please write to: CMS, 7500 Security Boulevard, Attn: PRA Reports Clearance Officer, Mail Stop C4-26-05, Baltimore, Maryland 21244-1850.

Sheet MULTIPLE_PLAN_MODE
B2: Multiple Plan Mode
C3: In multiple plan mode you load data for multiple plans into the calculator.
C4: The calculator will check your plan benefit design data for errors and calculate
C5: subscriber cost sharing for each plan.
C6: After loading plan data you can browse the output and review the benefit design
C7: parameters for each plan. You can also correct any errors that were identfied
C8: and update your input data by switching to Single Plan Mode.
B11: You have three options for loading plan-level data.
B12: Select the option you want to use by clicking the appropriate button.
C14: Import data from external file. External file should reflect the plan input data worksheet, starting on Row 6.
B16: Option 2: | C16: Copy and paste data from an external file into the plan input data worksheet.
B18: Option 3: | C18: Enter data for each plan in Single Plan Mode and save the data to the input data worksheet.
D20: Click the button to the left to switch to Single Plan Mode

Sheet BENEFIT_DESIGN (hidden)
B2: Single Plan Mode | C2: Plan Selection:
B3: Enter or modify data for each plan.
B4: Data entry fields are highlighted in orange.
B6: Plan Name | C6: Plan 1
B8: Benefit category | C8: Type of cost sharing that applies | D8: Cost sharing¹ | G8: Coverage Limits | I8: OOP
D9: Benefit Deductible | E9: Co-payment | F9: Co-insurance | G9: per month | H9: per year | I9: limit applies?
B10: Inpatient Hospital Care (Facility) | C10: Not Covered
B11: Other Facility Services | C11: Not Covered
B12: Emergency Department (Facility) | C12: Not Covered
B13: Ambulance | C13: Not Covered
B14: Professional Services: Primary Care | C14: Not Covered
B15: Professional Services: Emergency Department | C15: Not Covered
B16: Professional Services: Inpatient | C16: Not Covered
B17: Professional Services: Specialist | C17: Not Covered
B18: Professional Services: Obstetric Care (Bundled) | C18: Not Covered
B19: Professional Services: Procedures & Other | C19: Not Covered
B20: Professional Services: Physical Therapy | C20: Not Covered
B21: Diagnostic Services: Radiology | C21: Not Covered
B22: Diagnostic Services: Laboratory | C22: Not Covered
B23: Prescription Drugs: Generic | C23: Not Covered
B24: Prescription Drugs: Branded | C24: Not Covered
B25: Prescription Drugs: Insulin | C25: Not Covered
B26: Over-the-counter Drugs | C26: Not Covered
B27: Preventive Services & Vaccines | C27: Not Covered
B28: Durable Medical Equipment | C28: Not Covered
B29: Medical Supplies | C29: Not Covered
B30: Over-the-counter Medical Supplies | C30: Not Covered
B31: Other Items & Services | C31: Not Covered
B32: Plan Deductible
B33: Rx Deductible
B34: Deductible C
B35: Deductible D
B36: Individual Out-of-Pocket (OOP) Limit | E36: 0
B38: Additional Options | C38: Applies? | D38: # Visits
B39: Begin Primary Care Cost-Sharing After A Set Number of Visits? | C39: No
B40: Begin Primary Care Cost-Sharing Deductible or Coinsurance After a Set Number of Copays? | C40: No
B42: ¹ The benefit-specific deductible, copayment amount, or coinsurance rate that determines consumer liability.
B43: ² Outpatient services include non-professional Emergency Department services. Professional services fall under the Professional Services benefit categories.

Sheet PLAN_INPUT_DATA (hidden)
B2: This worksheet contains the benefit parameters for multiple plans.
B3: You can copy and paste data for individual plans from an external source starting on row 8.
G6: Inpatient Hospital Care (Facility) | N6: Other Facility Services | U6: Emergency Department (Facility) | AB6: Ambulance | AI6: Professional Services: Primary Care | AP6: Professional Services: Emergency Department | AW6: Professional Services: Inpatient | BD6: Professional Services: Specialist | BK6: Professional Services: Obstetric Care (Bundled) | BR6: Professional Services: Procedures & Other | BY6: Professional Services: Physical Therapy | CF6: Diagnostic Services: Radiology | CM6: Diagnostic Services: Laboratory | CT6: Prescription Drugs: Generic | DA6: Prescription Drugs: Branded | DH6: Prescription Drugs: Insulin | DO6: Over-the-counter Drugs | DV6: Preventive Services & Vaccines | EC6: Durable Medical Equipment | EJ6: Medical Supplies | EQ6: Over-the-counter Medical Supplies | EX6: Other Items & Services | FE6: Begin Primary Care Cost-Sharing After A Set Number of Visits? | FG6: Begin Primary Care Cost-Sharing Deductible or Coinsurance After a Set Number of Copays?
A7: PLAN_ID | B7: Plan deductible | C7: Rx deductible | D7: Deductible C | E7: Deductible D | F7: OOP Limit | G7: Cost sharing Type | H7: Benefit Deductible | I7: Co-payment | J7: Co-insurance | K7: Monthly Limits | L7: Annual Limits | M7: OOP Limit Applies | N7: Cost sharing Type | O7: Benefit Deductible | P7: Co-payment | Q7: Co-insurance | R7: Monthly Limits | S7: Annual Limits | T7: OOP Limit Applies | U7: Cost sharing Type | V7: Benefit Deductible | W7: Co-payment | X7: Co-insurance | Y7: Monthly Limits | Z7: Annual Limits | AA7: OOP Limit Applies | AB7: Cost sharing Type | AC7: Benefit Deductible | AD7: Co-payment | AE7: Co-insurance | AF7: Monthly Limits | AG7: Annual Limits | AH7: OOP Limit Applies | AI7: Cost sharing Type | AJ7: Benefit Deductible | AK7: Co-payment | AL7: Co-insurance | AM7: Monthly Limits | AN7: Annual Limits | AO7: OOP Limit Applies | AP7: Cost sharing Type | AQ7: Benefit Deductible | AR7: Co-payment | AS7: Co-insurance | AT7: Monthly Limits | AU7: Annual Limits | AV7: OOP Limit Applies | AW7: Cost sharing Type | AX7: Benefit Deductible | AY7: Co-payment | AZ7: Co-insurance | BA7: Monthly Limits | BB7: Annual Limits | BC7: OOP Limit Applies | BD7: Cost sharing Type | BE7: Benefit Deductible | BF7: Co-payment | BG7: Co-insurance | BH7: Monthly Limits | BI7: Annual Limits | BJ7: OOP Limit Applies | BK7: Cost sharing Type | BL7: Benefit Deductible | BM7: Co-payment | BN7: Co-insurance | BO7: Monthly Limits | BP7: Annual Limits | BQ7: OOP Limit Applies | BR7: Cost sharing Type | BS7: Benefit Deductible | BT7: Co-payment | BU7: Co-insurance | BV7: Monthly Limits | BW7: Annual Limits | BX7: OOP Limit Applies | BY7: Cost sharing Type | BZ7: Benefit Deductible | CA7: Co-payment | CB7: Co-insurance | CC7: Monthly Limits | CD7: Annual Limits | CE7: OOP Limit Applies | CF7: Cost sharing Type | CG7: Benefit Deductible | CH7: Co-payment | CI7: Co-insurance | CJ7: Monthly Limits | CK7: Annual Limits | CL7: OOP Limit Applies | CM7: Cost sharing Type | CN7: Benefit Deductible | CO7: Co-payment | CP7: Co-insurance | CQ7: Monthly Limits | CR7: Annual Limits | CS7: OOP Limit Applies | CT7: Cost sharing Type | CU7: Benefit Deductible | CV7: Co-payment | CW7: Co-insurance | CX7: Monthly Limits | CY7: Annual Limits | CZ7: OOP Limit Applies | DA7: Cost sharing Type | DB7: Benefit Deductible | DC7: Co-payment | DD7: Co-insurance | DE7: Monthly Limits | DF7: Annual Limits | DG7: OOP Limit Applies | DH7: Cost sharing Type | DI7: Benefit Deductible | DJ7: Co-payment | DK7: Co-insurance | DL7: Monthly Limits | DM7: Annual Limits | DN7: OOP Limit Applies | DO7: Cost sharing Type | DP7: Benefit Deductible | DQ7: Co-payment | DR7: Co-insurance | DS7: Monthly Limits | DT7: Annual Limits | DU7: OOP Limit Applies | DV7: Cost sharing Type | DW7: Benefit Deductible | DX7: Co-payment | DY7: Co-insurance | DZ7: Monthly Limits | EA7: Annual Limits | EB7: OOP Limit Applies | EC7: Cost sharing Type | ED7: Benefit Deductible | EE7: Co-payment | EF7: Co-insurance | EG7: Monthly Limits | EH7: Annual Limits | EI7: OOP Limit Applies | EJ7: Cost sharing Type | EK7: Benefit Deductible | EL7: Co-payment | EM7: Co-insurance | EN7: Monthly Limits | EO7: Annual Limits | EP7: OOP Limit Applies | EQ7: Cost sharing Type | ER7: Benefit Deductible | ES7: Co-payment | ET7: Co-insurance | EU7: Monthly Limits | EV7: Annual Limits | EW7: OOP Limit Applies | EX7: Cost sharing Type | EY7: Benefit Deductible | EZ7: Co-payment | FA7: Co-insurance | FB7: Monthly Limits | FC7: Annual Limits | FD7: OOP Limit Applies | FE7: Applies? | FF7: # Visits | FG7: Applies? | FH7: # Visits
A8: Plan 1 | G8: Not Covered | N8: Not Covered | U8: Not Covered | AB8: Not Covered | AI8: Not Covered | AP8: Not Covered | AW8: Not Covered | BD8: Not Covered | BK8: Not Covered | BR8: Not Covered | BY8: Not Covered | CF8: Not Covered | CM8: Not Covered | CT8: Not Covered | DA8: Not Covered | DH8: Not Covered | DO8: Not Covered | DV8: Not Covered | EC8: Not Covered | EJ8: Not Covered | EQ8: Not Covered | EX8: Not Covered | FE8: No | FG8: No
A9: Plan 2 | G9: Not Covered | N9: Not Covered | U9: Not Covered | AB9: Not Covered | AI9: Not Covered | AP9: Not Covered | AW9: Not Covered | BD9: Not Covered | BK9: Not Covered | BR9: Not Covered | BY9: Not Covered | CF9: Not Covered | CM9: Not Covered | CT9: Not Covered | DA9: Not Covered | DH9: Not Covered | DO9: Not Covered | DV9: Not Covered | EC9: Not Covered | EJ9: Not Covered | EQ9: Not Covered | EX9: Not Covered | FE9: No | FG9: No
A10: Plan 3 | G10: Not Covered | N10: Not Covered | U10: Not Covered | AB10: Not Covered | AI10: Not Covered | AP10: Not Covered | AW10: Not Covered | BD10: Not Covered | BK10: Not Covered | BR10: Not Covered | BY10: Not Covered | CF10: Not Covered | CM10: Not Covered | CT10: Not Covered | DA10: Not Covered | DH10: Not Covered | DO10: Not Covered | DV10: Not Covered | EC10: Not Covered | EJ10: Not Covered | EQ10: Not Covered | EX10: Not Covered | FE10: No | FG10: No
A11: Plan 4 | G11: Not Covered | N11: Not Covered | U11: Not Covered | AB11: Not Covered | AI11: Not Covered | AP11: Not Covered | AW11: Not Covered | BD11: Not Covered | BK11: Not Covered | BR11: Not Covered | BY11: Not Covered | CF11: Not Covered | CM11: Not Covered | CT11: Not Covered | DA11: Not Covered | DH11: Not Covered | DO11: Not Covered | DV11: Not Covered | EC11: Not Covered | EJ11: Not Covered | EQ11: Not Covered | EX11: Not Covered | FE11: No | FG11: No
A12: Plan 5 | G12: Not Covered | N12: Not Covered | U12: Not Covered | AB12: Not Covered | AI12: Not Covered | AP12: Not Covered | AW12: Not Covered | BD12: Not Covered | BK12: Not Covered | BR12: Not Covered | BY12: Not Covered | CF12: Not Covered | CM12: Not Covered | CT12: Not Covered | DA12: Not Covered | DH12: Not Covered | DO12: Not Covered | DV12: Not Covered | EC12: Not Covered | EJ12: Not Covered | EQ12: Not Covered | EX12: Not Covered | FE12: No | FG12: No
A13: Plan 6 | G13: Not Covered | N13: Not Covered | U13: Not Covered | AB13: Not Covered | AI13: Not Covered | AP13: Not Covered | AW13: Not Covered | BD13: Not Covered | BK13: Not Covered | BR13: Not Covered | BY13: Not Covered | CF13: Not Covered | CM13: Not Covered | CT13: Not Covered | DA13: Not Covered | DH13: Not Covered | DO13: Not Covered | DV13: Not Covered | EC13: Not Covered | EJ13: Not Covered | EQ13: Not Covered | EX13: Not Covered | FE13: No | FG13: No

Sheet HelperTab (hidden)
A1: BENEFIT_DESIGN Tab | D1: Cost sharing description
A2: Total Plan Count: | B2: 6 | D2: Not Covered
A3: Current Plan: | B3: 1 | D3: No Cost Sharing
A4: Curent Plan Name: | B4: Plan 6 | D4: Plan Deductible Only
A5: BENEFIT_DESIGN Parameters Changed? | B5: FALSE | D5: Rx Deductible Only
D6: Deductible C Only
A7: RESULTS_SUMMARY Tab | D7: Deductible D Only
A8: Total Plan Count: | B8: 6 | D8: Benefit Deductible Only
A9: Current Plan: | B9: 1 | D9: Copayment Only
A10: Curent Plan Name: | B10: Plan 1 | D10: Coinsurance Only
D11: Plan Deductible + Copay
D12: Rx Deductible + Copay
D13: Deductible C + Copay
D14: Deductible D + Copay
D15: Benefit Deductible + Copay
D16: Plan Deductible + Coins
D17: Rx Deductible + Coins
D18: Deductible C + Coins
D19: Deductible D + Coins
D20: Benefit Deductible + Coins

Sheet BENEFIT_DESIGN_ERRORS (hidden)
B3: Plan Design Errors
O5: Parameters specified in plan benefit design
B6: Plan 2 | H6: Cost sharing¹ | K6: Coverage Limits | M6: OOP | O6: Cost sharing¹ | R6: Coverage Limits
B7: Benefit category | C7: Coverage type | D7: Plan Deductible | E7: Rx Deductible | F7: Deductible C | G7: Deductible D | H7: Benefit Deductible | I7: Co-payment | J7: Co-insurance | K7: per month | L7: per year | M7: limit applies? | O7: Has benefit deductible | P7: Has co-payment | Q7: Has co-insurance | R7: Has monthly limit | S7: Has annual limit | T7: Has OOP limit
B8: =BENEFIT_DESIGN!B10 -> Inpatient Hospital Care (Facility) | C8: =IF(BENEFIT_PARAMETERS!C4,FALSE,TRUE) -> FALSE | D8: =IF(BENEFIT_PARAMETERS!G4,IF(BENEFIT_PARAMETERS!C52>=0,FALSE,TRUE),IF(BENEFIT_PARAMETERS!C52=".",FALSE,TRUE)) -> FALSE | E8: =IF(BENEFIT_PARAMETERS!H4,IF(BENEFIT_PARAMETERS!D52>=0,FALSE,TRUE),IF(BENEFIT_PARAMETERS!D52=".",FALSE,TRUE)) -> FALSE | F8: =IF(BENEFIT_PARAMETERS!I4,IF(BENEFIT_PARAMETERS!E52>=0,FALSE,TRUE),IF(BENEFIT_PARAMETERS!E52=".",FALSE,TRUE)) -> FALSE | G8: =IF(BENEFIT_PARAMETERS!J4,IF(BENEFIT_PARAMETERS!F52>=0,FALSE,TRUE),IF(BENEFIT_PARAMETERS!F52=".",FALSE,TRUE)) -> FALSE | H8: =IF(BENEFIT_PARAMETERS!K4,IF(BENEFIT_PARAMETERS!H52>=0,FALSE,TRUE),IF(O8,FALSE,TRUE)) -> FALSE | I8: =IF(BENEFIT_PARAMETERS!L4,IF(BENEFIT_PARAMETERS!I52>=0,FALSE,TRUE),IF(P8,FALSE,TRUE)) -> FALSE | J8: =IF(BENEFIT_PARAMETERS!M4,IF(BENEFIT_PARAMETERS!J52>=0,FALSE,TRUE),IF(Q8,FALSE,TRUE)) -> FALSE | K8: =IF(BENEFIT_PARAMETERS!D4,IF(BENEFIT_PARAMETERS!K52="None",FALSE,IF(BENEFIT_PARAMETERS!K52>=0,FALSE,TRUE)),IF(R8,FALSE,TRUE)) -> FALSE | L8: =IF(BENEFIT_PARAMETERS!E4,IF(BENEFIT_PARAMETERS!L52="None",FALSE,IF(BENEFIT_PARAMETERS!L52>=0,FALSE,TRUE)),IF(S8,FALSE,TRUE)) -> FALSE | M8: =IF(BENEFIT_PARAMETERS!F4,IF(BENEFIT_PARAMETERS!M52="Yes",FALSE,IF(BENEFIT_PARAMETERS!M52="No",FALSE,TRUE)),IF(T8,FALSE,TRUE)) -> FALSE | O8: =ISBLANK(BENEFIT_DESIGN!D10) -> TRUE | P8: =ISBLANK(BENEFIT_DESIGN!E10) -> TRUE | Q8: =ISBLANK(BENEFIT_DESIGN!F10) -> TRUE | R8: =ISBLANK(BENEFIT_DESIGN!G10) -> TRUE | S8: =ISBLANK(BENEFIT_DESIGN!H10) -> TRUE | T8: =ISBLANK(BENEFIT_DESIGN!I10) -> TRUE
B9: =BENEFIT_DESIGN!B11 -> Other Facility Services | C9: =IF(BENEFIT_PARAMETERS!C5,FALSE,TRUE) -> FALSE | D9: =IF(BENEFIT_PARAMETERS!G5,IF(BENEFIT_PARAMETERS!C53>=0,FALSE,TRUE),IF(BENEFIT_PARAMETERS!C53=".",FALSE,TRUE)) -> FALSE | E9: =IF(BENEFIT_PARAMETERS!H5,IF(BENEFIT_PARAMETERS!D53>=0,FALSE,TRUE),IF(BENEFIT_PARAMETERS!D53=".",FALSE,TRUE)) -> FALSE | F9: =IF(BENEFIT_PARAMETERS!I5,IF(BENEFIT_PARAMETERS!E53>=0,FALSE,TRUE),IF(BENEFIT_PARAMETERS!E53=".",FALSE,TRUE)) -> FALSE | G9: =IF(BENEFIT_PARAMETERS!J5,IF(BENEFIT_PARAMETERS!F53>=0,FALSE,TRUE),IF(BENEFIT_PARAMETERS!F53=".",FALSE,TRUE)) -> FALSE | H9: =IF(BENEFIT_PARAMETERS!K5,IF(BENEFIT_PARAMETERS!H53>=0,FALSE,TRUE),IF(O9,FALSE,TRUE)) -> FALSE | I9: =IF(BENEFIT_PARAMETERS!L5,IF(BENEFIT_PARAMETERS!I53>=0,FALSE,TRUE),IF(P9,FALSE,TRUE)) -> FALSE | J9: =IF(BENEFIT_PARAMETERS!M5,IF(BENEFIT_PARAMETERS!J53>=0,FALSE,TRUE),IF(Q9,FALSE,TRUE)) -> FALSE | K9: =IF(BENEFIT_PARAMETERS!D5,IF(BENEFIT_PARAMETERS!K53="None",FALSE,IF(BENEFIT_PARAMETERS!K53>=0,FALSE,TRUE)),IF(R9,FALSE,TRUE)) -> FALSE | L9: =IF(BENEFIT_PARAMETERS!E5,IF(BENEFIT_PARAMETERS!L53="None",FALSE,IF(BENEFIT_PARAMETERS!L53>=0,FALSE,TRUE)),IF(S9,FALSE,TRUE)) -> FALSE | M9: =IF(BENEFIT_PARAMETERS!F5,IF(BENEFIT_PARAMETERS!M53="Yes",FALSE,IF(BENEFIT_PARAMETERS!M53="No",FALSE,TRUE)),IF(T9,FALSE,TRUE)) -> FALSE | O9: =ISBLANK(BENEFIT_DESIGN!D11) -> TRUE | P9: =ISBLANK(BENEFIT_DESIGN!E11) -> TRUE | Q9: =ISBLANK(BENEFIT_DESIGN!F11) -> TRUE | R9: =ISBLANK(BENEFIT_DESIGN!G11) -> TRUE | S9: =ISBLANK(BENEFIT_DESIGN!H11) -> TRUE | T9: =ISBLANK(BENEFIT_DESIGN!I11) -> TRUE
B10: =BENEFIT_DESIGN!B12 -> Emergency Department (Facility) | C10: =IF(BENEFIT_PARAMETERS!C6,FALSE,TRUE) -> FALSE | D10: =IF(BENEFIT_PARAMETERS!G6,IF(BENEFIT_PARAMETERS!C54>=0,FALSE,TRUE),IF(BENEFIT_PARAMETERS!C54=".",FALSE,TRUE)) -> FALSE | E10: =IF(BENEFIT_PARAMETERS!H6,IF(BENEFIT_PARAMETERS!D54>=0,FALSE,TRUE),IF(BENEFIT_PARAMETERS!D54=".",FALSE,TRUE)) -> FALSE | F10: =IF(BENEFIT_PARAMETERS!I6,IF(BENEFIT_PARAMETERS!E54>=0,FALSE,TRUE),IF(BENEFIT_PARAMETERS!E54=".",FALSE,TRUE)) -> FALSE | G10: =IF(BENEFIT_PARAMETERS!J6,IF(BENEFIT_PARAMETERS!F54>=0,FALSE,TRUE),IF(BENEFIT_PARAMETERS!F54=".",FALSE,TRUE)) -> FALSE | H10: =IF(BENEFIT_PARAMETERS!K6,IF(BENEFIT_PARAMETERS!H54>=0,FALSE,TRUE),IF(O10,FALSE,TRUE)) -> FALSE | I10: =IF(BENEFIT_PARAMETERS!L6,IF(BENEFIT_PARAMETERS!I54>=0,FALSE,TRUE),IF(P10,FALSE,TRUE)) -> FALSE | J10: =IF(BENEFIT_PARAMETERS!M6,IF(BENEFIT_PARAMETERS!J54>=0,FALSE,TRUE),IF(Q10,FALSE,TRUE)) -> FALSE | K10: =IF(BENEFIT_PARAMETERS!D6,IF(BENEFIT_PARAMETERS!K54="None",FALSE,IF(BENEFIT_PARAMETERS!K54>=0,FALSE,TRUE)),IF(R10,FALSE,TRUE)) -> FALSE | L10: =IF(BENEFIT_PARAMETERS!E6,IF(BENEFIT_PARAMETERS!L54="None",FALSE,IF(BENEFIT_PARAMETERS!L54>=0,FALSE,TRUE)),IF(S10,FALSE,TRUE)) -> FALSE | M10: =IF(BENEFIT_PARAMETERS!F6,IF(BENEFIT_PARAMETERS!M54="Yes",FALSE,IF(BENEFIT_PARAMETERS!M54="No",FALSE,TRUE)),IF(T10,FALSE,TRUE)) -> FALSE | O10: =ISBLANK(BENEFIT_DESIGN!D12) -> TRUE | P10: =ISBLANK(BENEFIT_DESIGN!E12) -> TRUE | Q10: =ISBLANK(BENEFIT_DESIGN!F12) -> TRUE | R10: =ISBLANK(BENEFIT_DESIGN!G12) -> TRUE | S10: =ISBLANK(BENEFIT_DESIGN!H12) -> TRUE | T10: =ISBLANK(BENEFIT_DESIGN!I12) -> TRUE
B11: =BENEFIT_DESIGN!B13 -> Ambulance | C11: =IF(BENEFIT_PARAMETERS!C7,FALSE,TRUE) -> FALSE | D11: =IF(BENEFIT_PARAMETERS!G7,IF(BENEFIT_PARAMETERS!C55>=0,FALSE,TRUE),IF(BENEFIT_PARAMETERS!C55=".",FALSE,TRUE)) -> FALSE | E11: =IF(BENEFIT_PARAMETERS!H7,IF(BENEFIT_PARAMETERS!D55>=0,FALSE,TRUE),IF(BENEFIT_PARAMETERS!D55=".",FALSE,TRUE)) -> FALSE | F11: =IF(BENEFIT_PARAMETERS!I7,IF(BENEFIT_PARAMETERS!E55>=0,FALSE,TRUE),IF(BENEFIT_PARAMETERS!E55=".",FALSE,TRUE)) -> FALSE | G11: =IF(BENEFIT_PARAMETERS!J7,IF(BENEFIT_PARAMETERS!F55>=0,FALSE,TRUE),IF(BENEFIT_PARAMETERS!F55=".",FALSE,TRUE)) -> FALSE | H11: =IF(BENEFIT_PARAMETERS!K7,IF(BENEFIT_PARAMETERS!H55>=0,FALSE,TRUE),IF(O11,FALSE,TRUE)) -> FALSE | I11: =IF(BENEFIT_PARAMETERS!L7,IF(BENEFIT_PARAMETERS!I55>=0,FALSE,TRUE),IF(P11,FALSE,TRUE)) -> FALSE | J11: =IF(BENEFIT_PARAMETERS!M7,IF(BENEFIT_PARAMETERS!J55>=0,FALSE,TRUE),IF(Q11,FALSE,TRUE)) -> FALSE | K11: =IF(BENEFIT_PARAMETERS!D7,IF(BENEFIT_PARAMETERS!K55="None",FALSE,IF(BENEFIT_PARAMETERS!K55>=0,FALSE,TRUE)),IF(R11,FALSE,TRUE)) -> FALSE | L11: =IF(BENEFIT_PARAMETERS!E7,IF(BENEFIT_PARAMETERS!L55="None",FALSE,IF(BENEFIT_PARAMETERS!L55>=0,FALSE,TRUE)),IF(S11,FALSE,TRUE)) -> FALSE | M11: =IF(BENEFIT_PARAMETERS!F7,IF(BENEFIT_PARAMETERS!M55="Yes",FALSE,IF(BENEFIT_PARAMETERS!M55="No",FALSE,TRUE)),IF(T11,FALSE,TRUE)) -> FALSE | O11: =ISBLANK(BENEFIT_DESIGN!D13) -> TRUE | P11: =ISBLANK(BENEFIT_DESIGN!E13) -> TRUE | Q11: =ISBLANK(BENEFIT_DESIGN!F13) -> TRUE | R11: =ISBLANK(BENEFIT_DESIGN!G13) -> TRUE | S11: =ISBLANK(BENEFIT_DESIGN!H13) -> TRUE | T11: =ISBLANK(BENEFIT_DESIGN!I13) -> TRUE
B12: =BENEFIT_DESIGN!B14 -> Professional Services: Primary Care | C12: =IF(BENEFIT_PARAMETERS!C8,FALSE,TRUE) -> FALSE | D12: =IF(BENEFIT_PARAMETERS!G8,IF(BENEFIT_PARAMETERS!C56>=0,FALSE,TRUE),IF(BENEFIT_PARAMETERS!C56=".",FALSE,TRUE)) -> FALSE | E12: =IF(BENEFIT_PARAMETERS!H8,IF(BENEFIT_PARAMETERS!D56>=0,FALSE,TRUE),IF(BENEFIT_PARAMETERS!D56=".",FALSE,TRUE)) -> FALSE | F12: =IF(BENEFIT_PARAMETERS!I8,IF(BENEFIT_PARAMETERS!E56>=0,FALSE,TRUE),IF(BENEFIT_PARAMETERS!E56=".",FALSE,TRUE)) -> FALSE | G12: =IF(BENEFIT_PARAMETERS!J8,IF(BENEFIT_PARAMETERS!F56>=0,FALSE,TRUE),IF(BENEFIT_PARAMETERS!F56=".",FALSE,TRUE)) -> FALSE | H12: =IF(BENEFIT_PARAMETERS!K8,IF(BENEFIT_PARAMETERS!H56>=0,FALSE,TRUE),IF(O12,FALSE,TRUE)) -> FALSE | I12: =IF(OR(BENEFIT_PARAMETERS!L8,BENEFIT_PARAMETERS!C77="Yes"),IF(BENEFIT_PARAMETERS!I56>=0,FALSE,TRUE),IF(P12,FALSE,TRUE)) -> FALSE | J12: =IF(BENEFIT_PARAMETERS!M8,IF(BENEFIT_PARAMETERS!J56>=0,FALSE,TRUE),IF(Q12,FALSE,TRUE)) -> FALSE | K12: =IF(BENEFIT_PARAMETERS!D8,IF(BENEFIT_PARAMETERS!K56="None",FALSE,IF(BENEFIT_PARAMETERS!K56>=0,FALSE,TRUE)),IF(R12,FALSE,TRUE)) -> FALSE | L12: =IF(BENEFIT_PARAMETERS!E8,IF(BENEFIT_PARAMETERS!L56="None",FALSE,IF(BENEFIT_PARAMETERS!L56>=0,FALSE,TRUE)),IF(S12,FALSE,TRUE)) -> FALSE | M12: =IF(BENEFIT_PARAMETERS!F8,IF(BENEFIT_PARAMETERS!M56="Yes",FALSE,IF(BENEFIT_PARAMETERS!M56="No",FALSE,TRUE)),IF(T12,FALSE,TRUE)) -> FALSE | O12: =ISBLANK(BENEFIT_DESIGN!D14) -> TRUE | P12: =ISBLANK(BENEFIT_DESIGN!E14) -> TRUE | Q12: =ISBLANK(BENEFIT_DESIGN!F14) -> TRUE | R12: =ISBLANK(BENEFIT_DESIGN!G14) -> TRUE | S12: =ISBLANK(BENEFIT_DESIGN!H14) -> TRUE | T12: =ISBLANK(BENEFIT_DESIGN!I14) -> TRUE
B13: =BENEFIT_DESIGN!B15 -> Professional Services: Emergency Department | C13: =IF(BENEFIT_PARAMETERS!C9,FALSE,TRUE) -> FALSE | D13: =IF(BENEFIT_PARAMETERS!G9,IF(BENEFIT_PARAMETERS!C57>=0,FALSE,TRUE),IF(BENEFIT_PARAMETERS!C57=".",FALSE,TRUE)) -> FALSE | E13: =IF(BENEFIT_PARAMETERS!H9,IF(BENEFIT_PARAMETERS!D57>=0,FALSE,TRUE),IF(BENEFIT_PARAMETERS!D57=".",FALSE,TRUE)) -> FALSE | F13: =IF(BENEFIT_PARAMETERS!I9,IF(BENEFIT_PARAMETERS!E57>=0,FALSE,TRUE),IF(BENEFIT_PARAMETERS!E57=".",FALSE,TRUE)) -> FALSE | G13: =IF(BENEFIT_PARAMETERS!J9,IF(BENEFIT_PARAMETERS!F57>=0,FALSE,TRUE),IF(BENEFIT_PARAMETERS!F57=".",FALSE,TRUE)) -> FALSE | H13: =IF(BENEFIT_PARAMETERS!K9,IF(BENEFIT_PARAMETERS!H57>=0,FALSE,TRUE),IF(O13,FALSE,TRUE)) -> FALSE | I13: =IF(BENEFIT_PARAMETERS!L9,IF(BENEFIT_PARAMETERS!I57>=0,FALSE,TRUE),IF(P13,FALSE,TRUE)) -> FALSE | J13: =IF(BENEFIT_PARAMETERS!M9,IF(BENEFIT_PARAMETERS!J57>=0,FALSE,TRUE),IF(Q13,FALSE,TRUE)) -> FALSE | K13: =IF(BENEFIT_PARAMETERS!D9,IF(BENEFIT_PARAMETERS!K57="None",FALSE,IF(BENEFIT_PARAMETERS!K57>=0,FALSE,TRUE)),IF(R13,FALSE,TRUE)) -> FALSE | L13: =IF(BENEFIT_PARAMETERS!E9,IF(BENEFIT_PARAMETERS!L57="None",FALSE,IF(BENEFIT_PARAMETERS!L57>=0,FALSE,TRUE)),IF(S13,FALSE,TRUE)) -> FALSE | M13: =IF(BENEFIT_PARAMETERS!F9,IF(BENEFIT_PARAMETERS!M57="Yes",FALSE,IF(BENEFIT_PARAMETERS!M57="No",FALSE,TRUE)),IF(T13,FALSE,TRUE)) -> FALSE | O13: =ISBLANK(BENEFIT_DESIGN!D15) -> TRUE | P13: =ISBLANK(BENEFIT_DESIGN!E15) -> TRUE | Q13: =ISBLANK(BENEFIT_DESIGN!F15) -> TRUE | R13: =ISBLANK(BENEFIT_DESIGN!G15) -> TRUE | S13: =ISBLANK(BENEFIT_DESIGN!H15) -> TRUE | T13: =ISBLANK(BENEFIT_DESIGN!I15) -> TRUE
B14: =BENEFIT_DESIGN!B17 -> Professional Services: Specialist | C14: =IF(BENEFIT_PARAMETERS!C11,FALSE,TRUE) -> FALSE | D14: =IF(BENEFIT_PARAMETERS!G11,IF(BENEFIT_PARAMETERS!C59>=0,FALSE,TRUE),IF(BENEFIT_PARAMETERS!C59=".",FALSE,TRUE)) -> FALSE | E14: =IF(BENEFIT_PARAMETERS!H11,IF(BENEFIT_PARAMETERS!D59>=0,FALSE,TRUE),IF(BENEFIT_PARAMETERS!D59=".",FALSE,TRUE)) -> FALSE | F14: =IF(BENEFIT_PARAMETERS!I11,IF(BENEFIT_PARAMETERS!E59>=0,FALSE,TRUE),IF(BENEFIT_PARAMETERS!E59=".",FALSE,TRUE)) -> FALSE | G14: =IF(BENEFIT_PARAMETERS!J11,IF(BENEFIT_PARAMETERS!F59>=0,FALSE,TRUE),IF(BENEFIT_PARAMETERS!F59=".",FALSE,TRUE)) -> FALSE | H14: =IF(BENEFIT_PARAMETERS!K11,IF(BENEFIT_PARAMETERS!H59>=0,FALSE,TRUE),IF(O14,FALSE,TRUE)) -> FALSE | I14: =IF(BENEFIT_PARAMETERS!L11,IF(BENEFIT_PARAMETERS!I59>=0,FALSE,TRUE),IF(P14,FALSE,TRUE)) -> FALSE | J14: =IF(BENEFIT_PARAMETERS!M11,IF(BENEFIT_PARAMETERS!J59>=0,FALSE,TRUE),IF(Q14,FALSE,TRUE)) -> FALSE | K14: =IF(BENEFIT_PARAMETERS!D11,IF(BENEFIT_PARAMETERS!K59="None",FALSE,IF(BENEFIT_PARAMETERS!K59>=0,FALSE,TRUE)),IF(R14,FALSE,TRUE)) -> FALSE | L14: =IF(BENEFIT_PARAMETERS!E11,IF(BENEFIT_PARAMETERS!L59="None",FALSE,IF(BENEFIT_PARAMETERS!L59>=0,FALSE,TRUE)),IF(S14,FALSE,TRUE)) -> FALSE | M14: =IF(BENEFIT_PARAMETERS!F11,IF(BENEFIT_PARAMETERS!M59="Yes",FALSE,IF(BENEFIT_PARAMETERS!M59="No",FALSE,TRUE)),IF(T14,FALSE,TRUE)) -> FALSE | O14: =ISBLANK(BENEFIT_DESIGN!D17) -> TRUE | P14: =ISBLANK(BENEFIT_DESIGN!E17) -> TRUE | Q14: =ISBLANK(BENEFIT_DESIGN!F17) -> TRUE | R14: =ISBLANK(BENEFIT_DESIGN!G17) -> TRUE | S14: =ISBLANK(BENEFIT_DESIGN!H17) -> TRUE | T14: =ISBLANK(BENEFIT_DESIGN!I17) -> TRUE
B15: =BENEFIT_DESIGN!B18 -> Professional Services: Obstetric Care (Bundled) | C15: =IF(BENEFIT_PARAMETERS!C12,FALSE,TRUE) -> FALSE | D15: =IF(BENEFIT_PARAMETERS!G12,IF(BENEFIT_PARAMETERS!C60>=0,FALSE,TRUE),IF(BENEFIT_PARAMETERS!C60=".",FALSE,TRUE)) -> FALSE | E15: =IF(BENEFIT_PARAMETERS!H12,IF(BENEFIT_PARAMETERS!D60>=0,FALSE,TRUE),IF(BENEFIT_PARAMETERS!D60=".",FALSE,TRUE)) -> FALSE | F15: =IF(BENEFIT_PARAMETERS!I12,IF(BENEFIT_PARAMETERS!E60>=0,FALSE,TRUE),IF(BENEFIT_PARAMETERS!E60=".",FALSE,TRUE)) -> FALSE | G15: =IF(BENEFIT_PARAMETERS!J12,IF(BENEFIT_PARAMETERS!F60>=0,FALSE,TRUE),IF(BENEFIT_PARAMETERS!F60=".",FALSE,TRUE)) -> FALSE | H15: =IF(BENEFIT_PARAMETERS!K12,IF(BENEFIT_PARAMETERS!H60>=0,FALSE,TRUE),IF(O15,FALSE,TRUE)) -> FALSE | I15: =IF(BENEFIT_PARAMETERS!L12,IF(BENEFIT_PARAMETERS!I60>=0,FALSE,TRUE),IF(P15,FALSE,TRUE)) -> FALSE | J15: =IF(BENEFIT_PARAMETERS!M12,IF(BENEFIT_PARAMETERS!J60>=0,FALSE,TRUE),IF(Q15,FALSE,TRUE)) -> FALSE | K15: =IF(BENEFIT_PARAMETERS!D12,IF(BENEFIT_PARAMETERS!K60="None",FALSE,IF(BENEFIT_PARAMETERS!K60>=0,FALSE,TRUE)),IF(R15,FALSE,TRUE)) -> FALSE | L15: =IF(BENEFIT_PARAMETERS!E12,IF(BENEFIT_PARAMETERS!L60="None",FALSE,IF(BENEFIT_PARAMETERS!L60>=0,FALSE,TRUE)),IF(S15,FALSE,TRUE)) -> FALSE | M15: =IF(BENEFIT_PARAMETERS!F12,IF(BENEFIT_PARAMETERS!M60="Yes",FALSE,IF(BENEFIT_PARAMETERS!M60="No",FALSE,TRUE)),IF(T15,FALSE,TRUE)) -> FALSE | O15: =ISBLANK(BENEFIT_DESIGN!D18) -> TRUE | P15: =ISBLANK(BENEFIT_DESIGN!E18) -> TRUE | Q15: =ISBLANK(BENEFIT_DESIGN!F18) -> TRUE | R15: =ISBLANK(BENEFIT_DESIGN!G18) -> TRUE | S15: =ISBLANK(BENEFIT_DESIGN!H18) -> TRUE | T15: =ISBLANK(BENEFIT_DESIGN!I18) -> TRUE
B16: =BENEFIT_DESIGN!B19 -> Professional Services: Procedures & Other | C16: =IF(BENEFIT_PARAMETERS!C13,FALSE,TRUE) -> FALSE | D16: =IF(BENEFIT_PARAMETERS!G13,IF(BENEFIT_PARAMETERS!C61>=0,FALSE,TRUE),IF(BENEFIT_PARAMETERS!C61=".",FALSE,TRUE)) -> FALSE | E16: =IF(BENEFIT_PARAMETERS!H13,IF(BENEFIT_PARAMETERS!D61>=0,FALSE,TRUE),IF(BENEFIT_PARAMETERS!D61=".",FALSE,TRUE)) -> FALSE | F16: =IF(BENEFIT_PARAMETERS!I13,IF(BENEFIT_PARAMETERS!E61>=0,FALSE,TRUE),IF(BENEFIT_PARAMETERS!E61=".",FALSE,TRUE)) -> FALSE | G16: =IF(BENEFIT_PARAMETERS!J13,IF(BENEFIT_PARAMETERS!F61>=0,FALSE,TRUE),IF(BENEFIT_PARAMETERS!F61=".",FALSE,TRUE)) -> FALSE | H16: =IF(BENEFIT_PARAMETERS!K13,IF(BENEFIT_PARAMETERS!H61>=0,FALSE,TRUE),IF(O16,FALSE,TRUE)) -> FALSE | I16: =IF(BENEFIT_PARAMETERS!L13,IF(BENEFIT_PARAMETERS!I61>=0,FALSE,TRUE),IF(P16,FALSE,TRUE)) -> FALSE | J16: =IF(BENEFIT_PARAMETERS!M13,IF(BENEFIT_PARAMETERS!J61>=0,FALSE,TRUE),IF(Q16,FALSE,TRUE)) -> FALSE | K16: =IF(BENEFIT_PARAMETERS!D13,IF(BENEFIT_PARAMETERS!K61="None",FALSE,IF(BENEFIT_PARAMETERS!K61>=0,FALSE,TRUE)),IF(R16,FALSE,TRUE)) -> FALSE | L16: =IF(BENEFIT_PARAMETERS!E13,IF(BENEFIT_PARAMETERS!L61="None",FALSE,IF(BENEFIT_PARAMETERS!L61>=0,FALSE,TRUE)),IF(S16,FALSE,TRUE)) -> FALSE | M16: =IF(BENEFIT_PARAMETERS!F13,IF(BENEFIT_PARAMETERS!M61="Yes",FALSE,IF(BENEFIT_PARAMETERS!M61="No",FALSE,TRUE)),IF(T16,FALSE,TRUE)) -> FALSE | O16: =ISBLANK(BENEFIT_DESIGN!D19) -> TRUE | P16: =ISBLANK(BENEFIT_DESIGN!E19) -> TRUE | Q16: =ISBLANK(BENEFIT_DESIGN!F19) -> TRUE | R16: =ISBLANK(BENEFIT_DESIGN!G19) -> TRUE | S16: =ISBLANK(BENEFIT_DESIGN!H19) -> TRUE | T16: =ISBLANK(BENEFIT_DESIGN!I19) -> TRUE
B17: =BENEFIT_DESIGN!B20 -> Professional Services: Physical Therapy | C17: =IF(BENEFIT_PARAMETERS!C14,FALSE,TRUE) -> FALSE | D17: =IF(BENEFIT_PARAMETERS!G14,IF(BENEFIT_PARAMETERS!C62>=0,FALSE,TRUE),IF(BENEFIT_PARAMETERS!C62=".",FALSE,TRUE)) -> FALSE | E17: =IF(BENEFIT_PARAMETERS!H14,IF(BENEFIT_PARAMETERS!D62>=0,FALSE,TRUE),IF(BENEFIT_PARAMETERS!D62=".",FALSE,TRUE)) -> FALSE | F17: =IF(BENEFIT_PARAMETERS!I14,IF(BENEFIT_PARAMETERS!E62>=0,FALSE,TRUE),IF(BENEFIT_PARAMETERS!E62=".",FALSE,TRUE)) -> FALSE | G17: =IF(BENEFIT_PARAMETERS!J14,IF(BENEFIT_PARAMETERS!F62>=0,FALSE,TRUE),IF(BENEFIT_PARAMETERS!F62=".",FALSE,TRUE)) -> FALSE | H17: =IF(BENEFIT_PARAMETERS!K14,IF(BENEFIT_PARAMETERS!H62>=0,FALSE,TRUE),IF(O17,FALSE,TRUE)) -> FALSE | I17: =IF(BENEFIT_PARAMETERS!L14,IF(BENEFIT_PARAMETERS!I62>=0,FALSE,TRUE),IF(P17,FALSE,TRUE)) -> FALSE | J17: =IF(BENEFIT_PARAMETERS!M14,IF(BENEFIT_PARAMETERS!J62>=0,FALSE,TRUE),IF(Q17,FALSE,TRUE)) -> FALSE | K17: =IF(BENEFIT_PARAMETERS!D14,IF(BENEFIT_PARAMETERS!K62="None",FALSE,IF(BENEFIT_PARAMETERS!K62>=0,FALSE,TRUE)),IF(R17,FALSE,TRUE)) -> FALSE | L17: =IF(BENEFIT_PARAMETERS!E14,IF(BENEFIT_PARAMETERS!L62="None",FALSE,IF(BENEFIT_PARAMETERS!L62>=0,FALSE,TRUE)),IF(S17,FALSE,TRUE)) -> FALSE | M17: =IF(BENEFIT_PARAMETERS!F14,IF(BENEFIT_PARAMETERS!M62="Yes",FALSE,IF(BENEFIT_PARAMETERS!M62="No",FALSE,TRUE)),IF(T17,FALSE,TRUE)) -> FALSE | O17: =ISBLANK(BENEFIT_DESIGN!D20) -> TRUE | P17: =ISBLANK(BENEFIT_DESIGN!E20) -> TRUE | Q17: =ISBLANK(BENEFIT_DESIGN!F20) -> TRUE | R17: =ISBLANK(BENEFIT_DESIGN!G20) -> TRUE | S17: =ISBLANK(BENEFIT_DESIGN!H20) -> TRUE | T17: =ISBLANK(BENEFIT_DESIGN!I20) -> TRUE
B18: =BENEFIT_DESIGN!B21 -> Diagnostic Services: Radiology | C18: =IF(BENEFIT_PARAMETERS!C15,FALSE,TRUE) -> FALSE | D18: =IF(BENEFIT_PARAMETERS!G15,IF(BENEFIT_PARAMETERS!C63>=0,FALSE,TRUE),IF(BENEFIT_PARAMETERS!C63=".",FALSE,TRUE)) -> FALSE | E18: =IF(BENEFIT_PARAMETERS!H15,IF(BENEFIT_PARAMETERS!D63>=0,FALSE,TRUE),IF(BENEFIT_PARAMETERS!D63=".",FALSE,TRUE)) -> FALSE | F18: =IF(BENEFIT_PARAMETERS!I15,IF(BENEFIT_PARAMETERS!E63>=0,FALSE,TRUE),IF(BENEFIT_PARAMETERS!E63=".",FALSE,TRUE)) -> FALSE | G18: =IF(BENEFIT_PARAMETERS!J15,IF(BENEFIT_PARAMETERS!F63>=0,FALSE,TRUE),IF(BENEFIT_PARAMETERS!F63=".",FALSE,TRUE)) -> FALSE | H18: =IF(BENEFIT_PARAMETERS!K15,IF(BENEFIT_PARAMETERS!H63>=0,FALSE,TRUE),IF(O18,FALSE,TRUE)) -> FALSE | I18: =IF(BENEFIT_PARAMETERS!L15,IF(BENEFIT_PARAMETERS!I63>=0,FALSE,TRUE),IF(P18,FALSE,TRUE)) -> FALSE | J18: =IF(BENEFIT_PARAMETERS!M15,IF(BENEFIT_PARAMETERS!J63>=0,FALSE,TRUE),IF(Q18,FALSE,TRUE)) -> FALSE | K18: =IF(BENEFIT_PARAMETERS!D15,IF(BENEFIT_PARAMETERS!K63="None",FALSE,IF(BENEFIT_PARAMETERS!K63>=0,FALSE,TRUE)),IF(R18,FALSE,TRUE)) -> FALSE | L18: =IF(BENEFIT_PARAMETERS!E15,IF(BENEFIT_PARAMETERS!L63="None",FALSE,IF(BENEFIT_PARAMETERS!L63>=0,FALSE,TRUE)),IF(S18,FALSE,TRUE)) -> FALSE | M18: =IF(BENEFIT_PARAMETERS!F15,IF(BENEFIT_PARAMETERS!M63="Yes",FALSE,IF(BENEFIT_PARAMETERS!M63="No",FALSE,TRUE)),IF(T18,FALSE,TRUE)) -> FALSE | O18: =ISBLANK(BENEFIT_DESIGN!D21) -> TRUE | P18: =ISBLANK(BENEFIT_DESIGN!E21) -> TRUE | Q18: =ISBLANK(BENEFIT_DESIGN!F21) -> TRUE | R18: =ISBLANK(BENEFIT_DESIGN!G21) -> TRUE | S18: =ISBLANK(BENEFIT_DESIGN!H21) -> TRUE | T18: =ISBLANK(BENEFIT_DESIGN!I21) -> TRUE
B19: =BENEFIT_DESIGN!B22 -> Diagnostic Services: Laboratory | C19: =IF(BENEFIT_PARAMETERS!C16,FALSE,TRUE) -> FALSE | D19: =IF(BENEFIT_PARAMETERS!G16,IF(BENEFIT_PARAMETERS!C64>=0,FALSE,TRUE),IF(BENEFIT_PARAMETERS!C64=".",FALSE,TRUE)) -> FALSE | E19: =IF(BENEFIT_PARAMETERS!H16,IF(BENEFIT_PARAMETERS!D64>=0,FALSE,TRUE),IF(BENEFIT_PARAMETERS!D64=".",FALSE,TRUE)) -> FALSE | F19: =IF(BENEFIT_PARAMETERS!I16,IF(BENEFIT_PARAMETERS!E64>=0,FALSE,TRUE),IF(BENEFIT_PARAMETERS!E64=".",FALSE,TRUE)) -> FALSE | G19: =IF(BENEFIT_PARAMETERS!J16,IF(BENEFIT_PARAMETERS!F64>=0,FALSE,TRUE),IF(BENEFIT_PARAMETERS!F64=".",FALSE,TRUE)) -> FALSE | H19: =IF(BENEFIT_PARAMETERS!K16,IF(BENEFIT_PARAMETERS!H64>=0,FALSE,TRUE),IF(O19,FALSE,TRUE)) -> FALSE | I19: =IF(BENEFIT_PARAMETERS!L16,IF(BENEFIT_PARAMETERS!I64>=0,FALSE,TRUE),IF(P19,FALSE,TRUE)) -> FALSE | J19: =IF(BENEFIT_PARAMETERS!M16,IF(BENEFIT_PARAMETERS!J64>=0,FALSE,TRUE),IF(Q19,FALSE,TRUE)) -> FALSE | K19: =IF(BENEFIT_PARAMETERS!D16,IF(BENEFIT_PARAMETERS!K64="None",FALSE,IF(BENEFIT_PARAMETERS!K64>=0,FALSE,TRUE)),IF(R19,FALSE,TRUE)) -> FALSE | L19: =IF(BENEFIT_PARAMETERS!E16,IF(BENEFIT_PARAMETERS!L64="None",FALSE,IF(BENEFIT_PARAMETERS!L64>=0,FALSE,TRUE)),IF(S19,FALSE,TRUE)) -> FALSE | M19: =IF(BENEFIT_PARAMETERS!F16,IF(BENEFIT_PARAMETERS!M64="Yes",FALSE,IF(BENEFIT_PARAMETERS!M64="No",FALSE,TRUE)),IF(T19,FALSE,TRUE)) -> FALSE | O19: =ISBLANK(BENEFIT_DESIGN!D22) -> TRUE | P19: =ISBLANK(BENEFIT_DESIGN!E22) -> TRUE | Q19: =ISBLANK(BENEFIT_DESIGN!F22) -> TRUE | R19: =ISBLANK(BENEFIT_DESIGN!G22) -> TRUE | S19: =ISBLANK(BENEFIT_DESIGN!H22) -> TRUE | T19: =ISBLANK(BENEFIT_DESIGN!I22) -> TRUE
B20: =BENEFIT_DESIGN!B23 -> Prescription Drugs: Generic | C20: =IF(BENEFIT_PARAMETERS!C17,FALSE,TRUE) -> FALSE | D20: =IF(BENEFIT_PARAMETERS!G17,IF(BENEFIT_PARAMETERS!C65>=0,FALSE,TRUE),IF(BENEFIT_PARAMETERS!C65=".",FALSE,TRUE)) -> FALSE | E20: =IF(BENEFIT_PARAMETERS!H17,IF(BENEFIT_PARAMETERS!D65>=0,FALSE,TRUE),IF(BENEFIT_PARAMETERS!D65=".",FALSE,TRUE)) -> FALSE | F20: =IF(BENEFIT_PARAMETERS!I17,IF(BENEFIT_PARAMETERS!E65>=0,FALSE,TRUE),IF(BENEFIT_PARAMETERS!E65=".",FALSE,TRUE)) -> FALSE | G20: =IF(BENEFIT_PARAMETERS!J17,IF(BENEFIT_PARAMETERS!F65>=0,FALSE,TRUE),IF(BENEFIT_PARAMETERS!F65=".",FALSE,TRUE)) -> FALSE | H20: =IF(BENEFIT_PARAMETERS!K17,IF(BENEFIT_PARAMETERS!H65>=0,FALSE,TRUE),IF(O20,FALSE,TRUE)) -> FALSE | I20: =IF(BENEFIT_PARAMETERS!L17,IF(BENEFIT_PARAMETERS!I65>=0,FALSE,TRUE),IF(P20,FALSE,TRUE)) -> FALSE | J20: =IF(BENEFIT_PARAMETERS!M17,IF(BENEFIT_PARAMETERS!J65>=0,FALSE,TRUE),IF(Q20,FALSE,TRUE)) -> FALSE | K20: =IF(BENEFIT_PARAMETERS!D17,IF(BENEFIT_PARAMETERS!K65="None",FALSE,IF(BENEFIT_PARAMETERS!K65>=0,FALSE,TRUE)),IF(R20,FALSE,TRUE)) -> FALSE | L20: =IF(BENEFIT_PARAMETERS!E17,IF(BENEFIT_PARAMETERS!L65="None",FALSE,IF(BENEFIT_PARAMETERS!L65>=0,FALSE,TRUE)),IF(S20,FALSE,TRUE)) -> FALSE | M20: =IF(BENEFIT_PARAMETERS!F17,IF(BENEFIT_PARAMETERS!M65="Yes",FALSE,IF(BENEFIT_PARAMETERS!M65="No",FALSE,TRUE)),IF(T20,FALSE,TRUE)) -> FALSE | O20: =ISBLANK(BENEFIT_DESIGN!D23) -> TRUE | P20: =ISBLANK(BENEFIT_DESIGN!E23) -> TRUE | Q20: =ISBLANK(BENEFIT_DESIGN!F23) -> TRUE | R20: =ISBLANK(BENEFIT_DESIGN!G23) -> TRUE | S20: =ISBLANK(BENEFIT_DESIGN!H23) -> TRUE | T20: =ISBLANK(BENEFIT_DESIGN!I23) -> TRUE
B21: =BENEFIT_DESIGN!B24 -> Prescription Drugs: Branded | C21: =IF(BENEFIT_PARAMETERS!C18,FALSE,TRUE) -> FALSE | D21: =IF(BENEFIT_PARAMETERS!G18,IF(BENEFIT_PARAMETERS!C66>=0,FALSE,TRUE),IF(BENEFIT_PARAMETERS!C66=".",FALSE,TRUE)) -> FALSE | E21: =IF(BENEFIT_PARAMETERS!H18,IF(BENEFIT_PARAMETERS!D66>=0,FALSE,TRUE),IF(BENEFIT_PARAMETERS!D66=".",FALSE,TRUE)) -> FALSE | F21: =IF(BENEFIT_PARAMETERS!I18,IF(BENEFIT_PARAMETERS!E66>=0,FALSE,TRUE),IF(BENEFIT_PARAMETERS!E66=".",FALSE,TRUE)) -> FALSE | G21: =IF(BENEFIT_PARAMETERS!J18,IF(BENEFIT_PARAMETERS!F66>=0,FALSE,TRUE),IF(BENEFIT_PARAMETERS!F66=".",FALSE,TRUE)) -> FALSE | H21: =IF(BENEFIT_PARAMETERS!K18,IF(BENEFIT_PARAMETERS!H66>=0,FALSE,TRUE),IF(O21,FALSE,TRUE)) -> FALSE | I21: =IF(BENEFIT_PARAMETERS!L18,IF(BENEFIT_PARAMETERS!I66>=0,FALSE,TRUE),IF(P21,FALSE,TRUE)) -> FALSE | J21: =IF(BENEFIT_PARAMETERS!M18,IF(BENEFIT_PARAMETERS!J66>=0,FALSE,TRUE),IF(Q21,FALSE,TRUE)) -> FALSE | K21: =IF(BENEFIT_PARAMETERS!D18,IF(BENEFIT_PARAMETERS!K66="None",FALSE,IF(BENEFIT_PARAMETERS!K66>=0,FALSE,TRUE)),IF(R21,FALSE,TRUE)) -> FALSE | L21: =IF(BENEFIT_PARAMETERS!E18,IF(BENEFIT_PARAMETERS!L66="None",FALSE,IF(BENEFIT_PARAMETERS!L66>=0,FALSE,TRUE)),IF(S21,FALSE,TRUE)) -> FALSE | M21: =IF(BENEFIT_PARAMETERS!F18,IF(BENEFIT_PARAMETERS!M66="Yes",FALSE,IF(BENEFIT_PARAMETERS!M66="No",FALSE,TRUE)),IF(T21,FALSE,TRUE)) -> FALSE | O21: =ISBLANK(BENEFIT_DESIGN!D24) -> TRUE | P21: =ISBLANK(BENEFIT_DESIGN!E24) -> TRUE | Q21: =ISBLANK(BENEFIT_DESIGN!F24) -> TRUE | R21: =ISBLANK(BENEFIT_DESIGN!G24) -> TRUE | S21: =ISBLANK(BENEFIT_DESIGN!H24) -> TRUE | T21: =ISBLANK(BENEFIT_DESIGN!I24) -> TRUE
B22: =BENEFIT_DESIGN!B25 -> Prescription Drugs: Insulin | C22: =IF(BENEFIT_PARAMETERS!C19,FALSE,TRUE) -> FALSE | D22: =IF(BENEFIT_PARAMETERS!G19,IF(BENEFIT_PARAMETERS!C67>=0,FALSE,TRUE),IF(BENEFIT_PARAMETERS!C67=".",FALSE,TRUE)) -> FALSE | E22: =IF(BENEFIT_PARAMETERS!H19,IF(BENEFIT_PARAMETERS!D67>=0,FALSE,TRUE),IF(BENEFIT_PARAMETERS!D67=".",FALSE,TRUE)) -> FALSE | F22: =IF(BENEFIT_PARAMETERS!I19,IF(BENEFIT_PARAMETERS!E67>=0,FALSE,TRUE),IF(BENEFIT_PARAMETERS!E67=".",FALSE,TRUE)) -> FALSE | G22: =IF(BENEFIT_PARAMETERS!J19,IF(BENEFIT_PARAMETERS!F67>=0,FALSE,TRUE),IF(BENEFIT_PARAMETERS!F67=".",FALSE,TRUE)) -> FALSE | H22: =IF(BENEFIT_PARAMETERS!K19,IF(BENEFIT_PARAMETERS!H67>=0,FALSE,TRUE),IF(O22,FALSE,TRUE)) -> FALSE | I22: =IF(BENEFIT_PARAMETERS!L19,IF(BENEFIT_PARAMETERS!I67>=0,FALSE,TRUE),IF(P22,FALSE,TRUE)) -> FALSE | J22: =IF(BENEFIT_PARAMETERS!M19,IF(BENEFIT_PARAMETERS!J67>=0,FALSE,TRUE),IF(Q22,FALSE,TRUE)) -> FALSE | K22: =IF(BENEFIT_PARAMETERS!D19,IF(BENEFIT_PARAMETERS!K67="None",FALSE,IF(BENEFIT_PARAMETERS!K67>=0,FALSE,TRUE)),IF(R22,FALSE,TRUE)) -> FALSE | L22: =IF(BENEFIT_PARAMETERS!E19,IF(BENEFIT_PARAMETERS!L67="None",FALSE,IF(BENEFIT_PARAMETERS!L67>=0,FALSE,TRUE)),IF(S22,FALSE,TRUE)) -> FALSE | M22: =IF(BENEFIT_PARAMETERS!F19,IF(BENEFIT_PARAMETERS!M67="Yes",FALSE,IF(BENEFIT_PARAMETERS!M67="No",FALSE,TRUE)),IF(T22,FALSE,TRUE)) -> FALSE | O22: =ISBLANK(BENEFIT_DESIGN!D25) -> TRUE | P22: =ISBLANK(BENEFIT_DESIGN!E25) -> TRUE | Q22: =ISBLANK(BENEFIT_DESIGN!F25) -> TRUE | R22: =ISBLANK(BENEFIT_DESIGN!G25) -> TRUE | S22: =ISBLANK(BENEFIT_DESIGN!H25) -> TRUE | T22: =ISBLANK(BENEFIT_DESIGN!I25) -> TRUE
B23: =BENEFIT_DESIGN!B26 -> Over-the-counter Drugs | C23: =IF(BENEFIT_PARAMETERS!C20,FALSE,TRUE) -> FALSE | D23: =IF(BENEFIT_PARAMETERS!G20,IF(BENEFIT_PARAMETERS!C68>=0,FALSE,TRUE),IF(BENEFIT_PARAMETERS!C68=".",FALSE,TRUE)) -> FALSE | E23: =IF(BENEFIT_PARAMETERS!H20,IF(BENEFIT_PARAMETERS!D68>=0,FALSE,TRUE),IF(BENEFIT_PARAMETERS!D68=".",FALSE,TRUE)) -> FALSE | F23: =IF(BENEFIT_PARAMETERS!I20,IF(BENEFIT_PARAMETERS!E68>=0,FALSE,TRUE),IF(BENEFIT_PARAMETERS!E68=".",FALSE,TRUE)) -> FALSE | G23: =IF(BENEFIT_PARAMETERS!J20,IF(BENEFIT_PARAMETERS!F68>=0,FALSE,TRUE),IF(BENEFIT_PARAMETERS!F68=".",FALSE,TRUE)) -> FALSE | H23: =IF(BENEFIT_PARAMETERS!K20,IF(BENEFIT_PARAMETERS!H68>=0,FALSE,TRUE),IF(O23,FALSE,TRUE)) -> FALSE | I23: =IF(BENEFIT_PARAMETERS!L20,IF(BENEFIT_PARAMETERS!I68>=0,FALSE,TRUE),IF(P23,FALSE,TRUE)) -> FALSE | J23: =IF(BENEFIT_PARAMETERS!M20,IF(BENEFIT_PARAMETERS!J68>=0,FALSE,TRUE),IF(Q23,FALSE,TRUE)) -> FALSE | K23: =IF(BENEFIT_PARAMETERS!D20,IF(BENEFIT_PARAMETERS!K68="None",FALSE,IF(BENEFIT_PARAMETERS!K68>=0,FALSE,TRUE)),IF(R23,FALSE,TRUE)) -> FALSE | L23: =IF(BENEFIT_PARAMETERS!E20,IF(BENEFIT_PARAMETERS!L68="None",FALSE,IF(BENEFIT_PARAMETERS!L68>=0,FALSE,TRUE)),IF(S23,FALSE,TRUE)) -> FALSE | M23: =IF(BENEFIT_PARAMETERS!F20,IF(BENEFIT_PARAMETERS!M68="Yes",FALSE,IF(BENEFIT_PARAMETERS!M68="No",FALSE,TRUE)),IF(T23,FALSE,TRUE)) -> FALSE | O23: =ISBLANK(BENEFIT_DESIGN!D26) -> TRUE | P23: =ISBLANK(BENEFIT_DESIGN!E26) -> TRUE | Q23: =ISBLANK(BENEFIT_DESIGN!F26) -> TRUE | R23: =ISBLANK(BENEFIT_DESIGN!G26) -> TRUE | S23: =ISBLANK(BENEFIT_DESIGN!H26) -> TRUE | T23: =ISBLANK(BENEFIT_DESIGN!I26) -> TRUE
B24: =BENEFIT_DESIGN!B27 -> Preventive Services & Vaccines | C24: =IF(BENEFIT_PARAMETERS!C21,FALSE,TRUE) -> FALSE | D24: =IF(BENEFIT_PARAMETERS!G21,IF(BENEFIT_PARAMETERS!C69>=0,FALSE,TRUE),IF(BENEFIT_PARAMETERS!C69=".",FALSE,TRUE)) -> FALSE | E24: =IF(BENEFIT_PARAMETERS!H21,IF(BENEFIT_PARAMETERS!D69>=0,FALSE,TRUE),IF(BENEFIT_PARAMETERS!D69=".",FALSE,TRUE)) -> FALSE | F24: =IF(BENEFIT_PARAMETERS!I21,IF(BENEFIT_PARAMETERS!E69>=0,FALSE,TRUE),IF(BENEFIT_PARAMETERS!E69=".",FALSE,TRUE)) -> FALSE | G24: =IF(BENEFIT_PARAMETERS!J21,IF(BENEFIT_PARAMETERS!F69>=0,FALSE,TRUE),IF(BENEFIT_PARAMETERS!F69=".",FALSE,TRUE)) -> FALSE | H24: =IF(BENEFIT_PARAMETERS!K21,IF(BENEFIT_PARAMETERS!H69>=0,FALSE,TRUE),IF(O24,FALSE,TRUE)) -> FALSE | I24: =IF(BENEFIT_PARAMETERS!L21,IF(BENEFIT_PARAMETERS!I69>=0,FALSE,TRUE),IF(P24,FALSE,TRUE)) -> FALSE | J24: =IF(BENEFIT_PARAMETERS!M21,IF(BENEFIT_PARAMETERS!J69>=0,FALSE,TRUE),IF(Q24,FALSE,TRUE)) -> FALSE | K24: =IF(BENEFIT_PARAMETERS!D21,IF(BENEFIT_PARAMETERS!K69="None",FALSE,IF(BENEFIT_PARAMETERS!K69>=0,FALSE,TRUE)),IF(R24,FALSE,TRUE)) -> FALSE | L24: =IF(BENEFIT_PARAMETERS!E21,IF(BENEFIT_PARAMETERS!L69="None",FALSE,IF(BENEFIT_PARAMETERS!L69>=0,FALSE,TRUE)),IF(S24,FALSE,TRUE)) -> FALSE | M24: =IF(BENEFIT_PARAMETERS!F21,IF(BENEFIT_PARAMETERS!M69="Yes",FALSE,IF(BENEFIT_PARAMETERS!M69="No",FALSE,TRUE)),IF(T24,FALSE,TRUE)) -> FALSE | O24: =ISBLANK(BENEFIT_DESIGN!D27) -> TRUE | P24: =ISBLANK(BENEFIT_DESIGN!E27) -> TRUE | Q24: =ISBLANK(BENEFIT_DESIGN!F27) -> TRUE | R24: =ISBLANK(BENEFIT_DESIGN!G27) -> TRUE | S24: =ISBLANK(BENEFIT_DESIGN!H27) -> TRUE | T24: =ISBLANK(BENEFIT_DESIGN!I27) -> TRUE
B25: =BENEFIT_DESIGN!B28 -> Durable Medical Equipment | C25: =IF(BENEFIT_PARAMETERS!C22,FALSE,TRUE) -> FALSE | D25: =IF(BENEFIT_PARAMETERS!G22,IF(BENEFIT_PARAMETERS!C70>=0,FALSE,TRUE),IF(BENEFIT_PARAMETERS!C70=".",FALSE,TRUE)) -> FALSE | E25: =IF(BENEFIT_PARAMETERS!H22,IF(BENEFIT_PARAMETERS!D70>=0,FALSE,TRUE),IF(BENEFIT_PARAMETERS!D70=".",FALSE,TRUE)) -> FALSE | F25: =IF(BENEFIT_PARAMETERS!I22,IF(BENEFIT_PARAMETERS!E70>=0,FALSE,TRUE),IF(BENEFIT_PARAMETERS!E70=".",FALSE,TRUE)) -> FALSE | G25: =IF(BENEFIT_PARAMETERS!J22,IF(BENEFIT_PARAMETERS!F70>=0,FALSE,TRUE),IF(BENEFIT_PARAMETERS!F70=".",FALSE,TRUE)) -> FALSE | H25: =IF(BENEFIT_PARAMETERS!K22,IF(BENEFIT_PARAMETERS!H70>=0,FALSE,TRUE),IF(O25,FALSE,TRUE)) -> FALSE | I25: =IF(BENEFIT_PARAMETERS!L22,IF(BENEFIT_PARAMETERS!I70>=0,FALSE,TRUE),IF(P25,FALSE,TRUE)) -> FALSE | J25: =IF(BENEFIT_PARAMETERS!M22,IF(BENEFIT_PARAMETERS!J70>=0,FALSE,TRUE),IF(Q25,FALSE,TRUE)) -> FALSE | K25: =IF(BENEFIT_PARAMETERS!D22,IF(BENEFIT_PARAMETERS!K70="None",FALSE,IF(BENEFIT_PARAMETERS!K70>=0,FALSE,TRUE)),IF(R25,FALSE,TRUE)) -> FALSE | L25: =IF(BENEFIT_PARAMETERS!E22,IF(BENEFIT_PARAMETERS!L70="None",FALSE,IF(BENEFIT_PARAMETERS!L70>=0,FALSE,TRUE)),IF(S25,FALSE,TRUE)) -> FALSE | M25: =IF(BENEFIT_PARAMETERS!F22,IF(BENEFIT_PARAMETERS!M70="Yes",FALSE,IF(BENEFIT_PARAMETERS!M70="No",FALSE,TRUE)),IF(T25,FALSE,TRUE)) -> FALSE | O25: =ISBLANK(BENEFIT_DESIGN!D28) -> TRUE | P25: =ISBLANK(BENEFIT_DESIGN!E28) -> TRUE | Q25: =ISBLANK(BENEFIT_DESIGN!F28) -> TRUE | R25: =ISBLANK(BENEFIT_DESIGN!G28) -> TRUE | S25: =ISBLANK(BENEFIT_DESIGN!H28) -> TRUE | T25: =ISBLANK(BENEFIT_DESIGN!I28) -> TRUE
B26: =BENEFIT_DESIGN!B29 -> Medical Supplies | C26: =IF(BENEFIT_PARAMETERS!C23,FALSE,TRUE) -> FALSE | D26: =IF(BENEFIT_PARAMETERS!G23,IF(BENEFIT_PARAMETERS!C71>=0,FALSE,TRUE),IF(BENEFIT_PARAMETERS!C71=".",FALSE,TRUE)) -> FALSE | E26: =IF(BENEFIT_PARAMETERS!H23,IF(BENEFIT_PARAMETERS!D71>=0,FALSE,TRUE),IF(BENEFIT_PARAMETERS!D71=".",FALSE,TRUE)) -> FALSE | F26: =IF(BENEFIT_PARAMETERS!I23,IF(BENEFIT_PARAMETERS!E71>=0,FALSE,TRUE),IF(BENEFIT_PARAMETERS!E71=".",FALSE,TRUE)) -> FALSE | G26: =IF(BENEFIT_PARAMETERS!J23,IF(BENEFIT_PARAMETERS!F71>=0,FALSE,TRUE),IF(BENEFIT_PARAMETERS!F71=".",FALSE,TRUE)) -> FALSE | H26: =IF(BENEFIT_PARAMETERS!K23,IF(BENEFIT_PARAMETERS!H71>=0,FALSE,TRUE),IF(O26,FALSE,TRUE)) -> FALSE | I26: =IF(BENEFIT_PARAMETERS!L23,IF(BENEFIT_PARAMETERS!I71>=0,FALSE,TRUE),IF(P26,FALSE,TRUE)) -> FALSE | J26: =IF(BENEFIT_PARAMETERS!M23,IF(BENEFIT_PARAMETERS!J71>=0,FALSE,TRUE),IF(Q26,FALSE,TRUE)) -> FALSE | K26: =IF(BENEFIT_PARAMETERS!D23,IF(BENEFIT_PARAMETERS!K71="None",FALSE,IF(BENEFIT_PARAMETERS!K71>=0,FALSE,TRUE)),IF(R26,FALSE,TRUE)) -> FALSE | L26: =IF(BENEFIT_PARAMETERS!E23,IF(BENEFIT_PARAMETERS!L71="None",FALSE,IF(BENEFIT_PARAMETERS!L71>=0,FALSE,TRUE)),IF(S26,FALSE,TRUE)) -> FALSE | M26: =IF(BENEFIT_PARAMETERS!F23,IF(BENEFIT_PARAMETERS!M71="Yes",FALSE,IF(BENEFIT_PARAMETERS!M71="No",FALSE,TRUE)),IF(T26,FALSE,TRUE)) -> FALSE | O26: =ISBLANK(BENEFIT_DESIGN!D29) -> TRUE | P26: =ISBLANK(BENEFIT_DESIGN!E29) -> TRUE | Q26: =ISBLANK(BENEFIT_DESIGN!F29) -> TRUE | R26: =ISBLANK(BENEFIT_DESIGN!G29) -> TRUE | S26: =ISBLANK(BENEFIT_DESIGN!H29) -> TRUE | T26: =ISBLANK(BENEFIT_DESIGN!I29) -> TRUE
B27: =BENEFIT_DESIGN!B30 -> Over-the-counter Medical Supplies | C27: =IF(BENEFIT_PARAMETERS!C24,FALSE,TRUE) -> FALSE | D27: =IF(BENEFIT_PARAMETERS!G24,IF(BENEFIT_PARAMETERS!C72>=0,FALSE,TRUE),IF(BENEFIT_PARAMETERS!C72=".",FALSE,TRUE)) -> FALSE | E27: =IF(BENEFIT_PARAMETERS!H24,IF(BENEFIT_PARAMETERS!D72>=0,FALSE,TRUE),IF(BENEFIT_PARAMETERS!D72=".",FALSE,TRUE)) -> FALSE | F27: =IF(BENEFIT_PARAMETERS!I24,IF(BENEFIT_PARAMETERS!E72>=0,FALSE,TRUE),IF(BENEFIT_PARAMETERS!E72=".",FALSE,TRUE)) -> FALSE | G27: =IF(BENEFIT_PARAMETERS!J24,IF(BENEFIT_PARAMETERS!F72>=0,FALSE,TRUE),IF(BENEFIT_PARAMETERS!F72=".",FALSE,TRUE)) -> FALSE | H27: =IF(BENEFIT_PARAMETERS!K24,IF(BENEFIT_PARAMETERS!H72>=0,FALSE,TRUE),IF(O27,FALSE,TRUE)) -> FALSE | I27: =IF(BENEFIT_PARAMETERS!L24,IF(BENEFIT_PARAMETERS!I72>=0,FALSE,TRUE),IF(P27,FALSE,TRUE)) -> FALSE | J27: =IF(BENEFIT_PARAMETERS!M24,IF(BENEFIT_PARAMETERS!J72>=0,FALSE,TRUE),IF(Q27,FALSE,TRUE)) -> FALSE | K27: =IF(BENEFIT_PARAMETERS!D24,IF(BENEFIT_PARAMETERS!K72="None",FALSE,IF(BENEFIT_PARAMETERS!K72>=0,FALSE,TRUE)),IF(R27,FALSE,TRUE)) -> FALSE | L27: =IF(BENEFIT_PARAMETERS!E24,IF(BENEFIT_PARAMETERS!L72="None",FALSE,IF(BENEFIT_PARAMETERS!L72>=0,FALSE,TRUE)),IF(S27,FALSE,TRUE)) -> FALSE | M27: =IF(BENEFIT_PARAMETERS!F24,IF(BENEFIT_PARAMETERS!M72="Yes",FALSE,IF(BENEFIT_PARAMETERS!M72="No",FALSE,TRUE)),IF(T27,FALSE,TRUE)) -> FALSE | O27: =ISBLANK(BENEFIT_DESIGN!D30) -> TRUE | P27: =ISBLANK(BENEFIT_DESIGN!E30) -> TRUE | Q27: =ISBLANK(BENEFIT_DESIGN!F30) -> TRUE | R27: =ISBLANK(BENEFIT_DESIGN!G30) -> TRUE | S27: =ISBLANK(BENEFIT_DESIGN!H30) -> TRUE | T27: =ISBLANK(BENEFIT_DESIGN!I30) -> TRUE
B28: =BENEFIT_DESIGN!B31 -> Other Items & Services | C28: =IF(BENEFIT_PARAMETERS!C25,FALSE,TRUE) -> FALSE | D28: =IF(BENEFIT_PARAMETERS!G25,IF(BENEFIT_PARAMETERS!C73>=0,FALSE,TRUE),IF(BENEFIT_PARAMETERS!C73=".",FALSE,TRUE)) -> FALSE | E28: =IF(BENEFIT_PARAMETERS!H25,IF(BENEFIT_PARAMETERS!D73>=0,FALSE,TRUE),IF(BENEFIT_PARAMETERS!D73=".",FALSE,TRUE)) -> FALSE | F28: =IF(BENEFIT_PARAMETERS!I25,IF(BENEFIT_PARAMETERS!E73>=0,FALSE,TRUE),IF(BENEFIT_PARAMETERS!E73=".",FALSE,TRUE)) -> FALSE | G28: =IF(BENEFIT_PARAMETERS!J25,IF(BENEFIT_PARAMETERS!F73>=0,FALSE,TRUE),IF(BENEFIT_PARAMETERS!F73=".",FALSE,TRUE)) -> FALSE | H28: =IF(BENEFIT_PARAMETERS!K25,IF(BENEFIT_PARAMETERS!H73>=0,FALSE,TRUE),IF(O28,FALSE,TRUE)) -> FALSE | I28: =IF(BENEFIT_PARAMETERS!L25,IF(BENEFIT_PARAMETERS!I73>=0,FALSE,TRUE),IF(P28,FALSE,TRUE)) -> FALSE | J28: =IF(BENEFIT_PARAMETERS!M25,IF(BENEFIT_PARAMETERS!J73>=0,FALSE,TRUE),IF(Q28,FALSE,TRUE)) -> FALSE | K28: =IF(BENEFIT_PARAMETERS!D25,IF(BENEFIT_PARAMETERS!K73="None",FALSE,IF(BENEFIT_PARAMETERS!K73>=0,FALSE,TRUE)),IF(R28,FALSE,TRUE)) -> FALSE | L28: =IF(BENEFIT_PARAMETERS!E25,IF(BENEFIT_PARAMETERS!L73="None",FALSE,IF(BENEFIT_PARAMETERS!L73>=0,FALSE,TRUE)),IF(S28,FALSE,TRUE)) -> FALSE | M28: =IF(BENEFIT_PARAMETERS!F25,IF(BENEFIT_PARAMETERS!M73="Yes",FALSE,IF(BENEFIT_PARAMETERS!M73="No",FALSE,TRUE)),IF(T28,FALSE,TRUE)) -> FALSE | O28: =ISBLANK(BENEFIT_DESIGN!D31) -> TRUE | P28: =ISBLANK(BENEFIT_DESIGN!E31) -> TRUE | Q28: =ISBLANK(BENEFIT_DESIGN!F31) -> TRUE | R28: =ISBLANK(BENEFIT_DESIGN!G31) -> TRUE | S28: =ISBLANK(BENEFIT_DESIGN!H31) -> TRUE | T28: =ISBLANK(BENEFIT_DESIGN!I31) -> TRUE
B29: =BENEFIT_DESIGN!B32 -> Plan Deductible | C29: =IF(BENEFIT_PARAMETERS!G26,IF(BENEFIT_DESIGN!C32>=0,FALSE,TRUE),IF(ISBLANK(BENEFIT_DESIGN!C32),FALSE,TRUE)) -> FALSE
B30: =BENEFIT_DESIGN!B33 -> Rx Deductible | C30: =IF(BENEFIT_PARAMETERS!H26,IF(BENEFIT_DESIGN!C33>=0,FALSE,TRUE),IF(ISBLANK(BENEFIT_DESIGN!C33),FALSE,TRUE)) -> FALSE
B31: =BENEFIT_DESIGN!B34 -> Deductible C | C31: =IF(BENEFIT_PARAMETERS!I26,IF(BENEFIT_DESIGN!C34>=0,FALSE,TRUE),IF(ISBLANK(BENEFIT_DESIGN!C34),FALSE,TRUE)) -> FALSE
B32: =BENEFIT_DESIGN!B35 -> Deductible D | C32: =IF(BENEFIT_PARAMETERS!J26,IF(BENEFIT_DESIGN!C35>=0,FALSE,TRUE),IF(ISBLANK(BENEFIT_DESIGN!C35),FALSE,TRUE)) -> FALSE
B33: =BENEFIT_DESIGN!B36 -> Individual Out-of-Pocket (OOP) Limit | C33: =IF(BENEFIT_PARAMETERS!F26,IF(BENEFIT_DESIGN!C36>=0,FALSE,TRUE),IF(ISBLANK(BENEFIT_DESIGN!C36),FALSE,TRUE)) -> FALSE | I33: 0 | P33: 0
B35: Additional Options | C35: Applies? | D35: # Visits | O35: Applies? | P35: # Visits
B36: Begin Primary Care Cost-Sharing After A Set Number of Visits? | C36: =IF(BENEFIT_PARAMETERS!B76,OR(BENEFIT_PARAMETERS!C76="Yes",BENEFIT_PARAMETERS!C76="No")=FALSE,NOT(BENEFIT_DESIGN_ERRORS!O36)) -> FALSE | D36: =IF(BENEFIT_PARAMETERS!C76="Yes",IF(BENEFIT_PARAMETERS!D76>=0,FALSE,TRUE),NOT(BENEFIT_DESIGN_ERRORS!P36)) -> FALSE | O36: =BENEFIT_DESIGN!C39="No" -> TRUE | P36: =ISBLANK(BENEFIT_DESIGN!D39) -> TRUE
B37: Begin Primary Care Cost-Sharing Deductible or Coinsurance After a Set Number of Copays? | C37: =IF(BENEFIT_PARAMETERS!B77,OR(BENEFIT_PARAMETERS!C77="Yes",BENEFIT_PARAMETERS!C77="No")=FALSE,NOT(BENEFIT_DESIGN_ERRORS!O37)) -> FALSE | D37: =IF(BENEFIT_PARAMETERS!C77="Yes",IF(BENEFIT_PARAMETERS!D77>=0,FALSE,TRUE),NOT(BENEFIT_DESIGN_ERRORS!P37)) -> FALSE | I37: 0 | O37: =BENEFIT_DESIGN!C40="No" -> TRUE | P37: =ISBLANK(BENEFIT_DESIGN!D40) -> TRUE
B39: Errors exist | C39: =IF(COUNTIF(C8:M37,TRUE)=0,FALSE,TRUE) -> FALSE | D39: =IF(COUNTIF(D8:D28,TRUE)=0,FALSE,TRUE) -> FALSE | E39: =IF(COUNTIF(E8:E28,TRUE)=0,FALSE,TRUE) -> FALSE | F39: FALSE | G39: FALSE | H39: FALSE | I39: FALSE | J39: FALSE | K39: FALSE | L39: FALSE | M39: FALSE | P39: 0

Sheet BENEFIT_PARAMETERS (hidden)
A2: Coverage Table
A3: Benefit category | B3: Cost Sharing Type | C3: Coverage type valid | D3: Monthly limit valid | E3: Annual limit valid | F3: OOP limit valid | G3: uses plan deductible | H3: uses rx deductible | I3: uses deductible C | J3: uses deductible D | K3: uses benefit deductible | L3: uses copayment | M3: uses coinsurance
A4: =BENEFIT_DESIGN!B10 -> Inpatient Hospital Care (Facility) | B4: =BENEFIT_DESIGN!C10 -> Not Covered | C4: =IFERROR(IF(MATCH($B4,$A$30:$A$48,0)>0,TRUE,FALSE),FALSE) -> TRUE | D4: =IFERROR(IF(MATCH($B4,$A$30:$A$48,0)>1,TRUE,FALSE),FALSE) -> FALSE | E4: =$D4 -> FALSE | F4: FALSE | G4: =IFERROR(VLOOKUP($B4,$A$30:$H$48,MATCH(G$3,$A$29:$H$29,0),FALSE),FALSE) -> FALSE | H4: =IFERROR(VLOOKUP($B4,$A$30:$H$48,MATCH(H$3,$A$29:$H$29,0),FALSE),FALSE) -> FALSE | I4: FALSE | J4: FALSE | K4: FALSE | L4: FALSE | M4: FALSE
A5: =BENEFIT_DESIGN!B11 -> Other Facility Services | B5: =BENEFIT_DESIGN!C11 -> Not Covered | C5: =IFERROR(IF(MATCH($B5,$A$30:$A$48,0)>0,TRUE,FALSE),FALSE) -> TRUE | D5: =IFERROR(IF(MATCH($B5,$A$30:$A$48,0)>1,TRUE,FALSE),FALSE) -> FALSE | E5: FALSE | F5: FALSE | G5: =IFERROR(VLOOKUP($B5,$A$30:$H$48,MATCH(G$3,$A$29:$H$29,0),FALSE),FALSE) -> FALSE | H5: FALSE | I5: FALSE | J5: FALSE | K5: FALSE | L5: FALSE | M5: FALSE
A6: =BENEFIT_DESIGN!B12 -> Emergency Department (Facility) | B6: =BENEFIT_DESIGN!C12 -> Not Covered | C6: TRUE | D6: FALSE | E6: FALSE | F6: FALSE | G6: FALSE | H6: FALSE | I6: FALSE | J6: FALSE | K6: FALSE | L6: FALSE | M6: FALSE
A7: =BENEFIT_DESIGN!B13 -> Ambulance | B7: =BENEFIT_DESIGN!C13 -> Not Covered | C7: TRUE | D7: FALSE | E7: FALSE | F7: FALSE | G7: FALSE | H7: FALSE | I7: FALSE | J7: FALSE | K7: FALSE | L7: FALSE | M7: FALSE
A8: =BENEFIT_DESIGN!B14 -> Professional Services: Primary Care | B8: =BENEFIT_DESIGN!C14 -> Not Covered | C8: TRUE | D8: FALSE | E8: FALSE | F8: FALSE | G8: FALSE | H8: FALSE | I8: FALSE | J8: FALSE | K8: FALSE | L8: FALSE | M8: FALSE
A9: =BENEFIT_DESIGN!B15 -> Professional Services: Emergency Department | B9: =BENEFIT_DESIGN!C15 -> Not Covered | C9: TRUE | D9: FALSE | E9: FALSE | F9: FALSE | G9: FALSE | H9: FALSE | I9: FALSE | J9: FALSE | K9: FALSE | L9: FALSE | M9: FALSE
A10: =BENEFIT_DESIGN!B16 -> Professional Services: Inpatient | B10: =BENEFIT_DESIGN!C16 -> Not Covered | C10: TRUE | D10: FALSE | E10: FALSE | F10: FALSE | G10: FALSE | H10: FALSE | I10: FALSE | J10: FALSE | K10: FALSE | L10: FALSE | M10: FALSE
A11: =BENEFIT_DESIGN!B17 -> Professional Services: Specialist | B11: =BENEFIT_DESIGN!C17 -> Not Covered | C11: TRUE | D11: FALSE | E11: FALSE | F11: FALSE | G11: FALSE | H11: FALSE | I11: FALSE | J11: FALSE | K11: FALSE | L11: FALSE | M11: FALSE
A12: =BENEFIT_DESIGN!B18 -> Professional Services: Obstetric Care (Bundled) | B12: =BENEFIT_DESIGN!C18 -> Not Covered | C12: TRUE | D12: FALSE | E12: FALSE | F12: FALSE | G12: FALSE | H12: FALSE | I12: FALSE | J12: FALSE | K12: FALSE | L12: FALSE | M12: FALSE
A13: =BENEFIT_DESIGN!B19 -> Professional Services: Procedures & Other | B13: =BENEFIT_DESIGN!C19 -> Not Covered | C13: TRUE | D13: FALSE | E13: FALSE | F13: FALSE | G13: FALSE | H13: FALSE | I13: FALSE | J13: FALSE | K13: FALSE | L13: FALSE | M13: FALSE
A14: =BENEFIT_DESIGN!B20 -> Professional Services: Physical Therapy | B14: =BENEFIT_DESIGN!C20 -> Not Covered | C14: TRUE | D14: FALSE | E14: FALSE | F14: FALSE | G14: FALSE | H14: FALSE | I14: FALSE | J14: FALSE | K14: FALSE | L14: FALSE | M14: FALSE
A15: =BENEFIT_DESIGN!B21 -> Diagnostic Services: Radiology | B15: =BENEFIT_DESIGN!C21 -> Not Covered | C15: TRUE | D15: FALSE | E15: FALSE | F15: FALSE | G15: FALSE | H15: FALSE | I15: FALSE | J15: FALSE | K15: FALSE | L15: FALSE | M15: FALSE
A16: =BENEFIT_DESIGN!B22 -> Diagnostic Services: Laboratory | B16: =BENEFIT_DESIGN!C22 -> Not Covered | C16: TRUE | D16: FALSE | E16: FALSE | F16: FALSE | G16: FALSE | H16: FALSE | I16: FALSE | J16: FALSE | K16: FALSE | L16: FALSE | M16: FALSE
A17: =BENEFIT_DESIGN!B23 -> Prescription Drugs: Generic | B17: =BENEFIT_DESIGN!C23 -> Not Covered | C17: TRUE | D17: FALSE | E17: FALSE | F17: FALSE | G17: FALSE | H17: FALSE | I17: FALSE | J17: FALSE | K17: FALSE | L17: FALSE | M17: FALSE
A18: =BENEFIT_DESIGN!B24 -> Prescription Drugs: Branded | B18: =BENEFIT_DESIGN!C24 -> Not Covered | C18: TRUE | D18: FALSE | E18: FALSE | F18: FALSE | G18: FALSE | H18: FALSE | I18: FALSE | J18: FALSE | K18: FALSE | L18: FALSE | M18: FALSE
A19: =BENEFIT_DESIGN!B25 -> Prescription Drugs: Insulin | B19: =BENEFIT_DESIGN!C25 -> Not Covered | C19: TRUE | D19: FALSE | E19: FALSE | F19: FALSE | G19: FALSE | H19: FALSE | I19: FALSE | J19: FALSE | K19: FALSE | L19: FALSE | M19: FALSE
A20: =BENEFIT_DESIGN!B26 -> Over-the-counter Drugs | B20: =BENEFIT_DESIGN!C26 -> Not Covered | C20: TRUE | D20: FALSE | E20: FALSE | F20: FALSE | G20: FALSE | H20: FALSE | I20: FALSE | J20: FALSE | K20: FALSE | L20: FALSE | M20: FALSE
A21: =BENEFIT_DESIGN!B27 -> Preventive Services & Vaccines | B21: =BENEFIT_DESIGN!C27 -> Not Covered | C21: TRUE | D21: FALSE | E21: FALSE | F21: FALSE | G21: FALSE | H21: FALSE | I21: FALSE | J21: FALSE | K21: FALSE | L21: FALSE | M21: FALSE
A22: =BENEFIT_DESIGN!B28 -> Durable Medical Equipment | B22: =BENEFIT_DESIGN!C28 -> Not Covered | C22: TRUE | D22: FALSE | E22: FALSE | F22: FALSE | G22: FALSE | H22: FALSE | I22: FALSE | J22: FALSE | K22: FALSE | L22: FALSE | M22: FALSE
A23: =BENEFIT_DESIGN!B29 -> Medical Supplies | B23: =BENEFIT_DESIGN!C29 -> Not Covered | C23: TRUE | D23: FALSE | E23: FALSE | F23: FALSE | G23: FALSE | H23: FALSE | I23: FALSE | J23: FALSE | K23: FALSE | L23: FALSE | M23: FALSE
A24: =BENEFIT_DESIGN!B30 -> Over-the-counter Medical Supplies | B24: =BENEFIT_DESIGN!C30 -> Not Covered | C24: TRUE | D24: FALSE | E24: FALSE | F24: FALSE | G24: FALSE | H24: FALSE | I24: FALSE | J24: FALSE | K24: FALSE | L24: FALSE | M24: FALSE
A25: =BENEFIT_DESIGN!B31 -> Other Items & Services | B25: =BENEFIT_DESIGN!C31 -> Not Covered | C25: TRUE | D25: FALSE | E25: FALSE | F25: FALSE | G25: FALSE | H25: FALSE | I25: FALSE | J25: FALSE | K25: FALSE | L25: FALSE | M25: FALSE
F26: =COUNTIF(F4:F25,TRUE)>0 -> FALSE | G26: =COUNTIF(G4:G25,TRUE)>0 -> FALSE | H26: =COUNTIF(H4:H25,TRUE)>0 -> FALSE | I26: =COUNTIF(I4:I25,TRUE)>0 -> FALSE | J26: =COUNTIF(J4:J25,TRUE)>0 -> FALSE
A28: Coverage Options Table
A29: Cost sharing description | B29: uses plan deductible | C29: uses rx deductible | D29: uses deductible C | E29: uses deductible D | F29: uses benefit deductible | G29: uses copayment | H29: uses coinsurance
A30: Not Covered | B30: FALSE | C30: FALSE | D30: FALSE | E30: FALSE | F30: FALSE | G30: FALSE | H30: FALSE
A31: No Cost Sharing | B31: FALSE | C31: FALSE | D31: FALSE | E31: FALSE | F31: FALSE | G31: FALSE | H31: FALSE
A32: =BENEFIT_DESIGN!$B$32&" Only" -> Plan Deductible Only | B32: TRUE | C32: FALSE | D32: FALSE | E32: FALSE | F32: FALSE | G32: FALSE | H32: FALSE
A33: =BENEFIT_DESIGN!$B$33&" Only" -> Rx Deductible Only | B33: FALSE | C33: TRUE | D33: FALSE | E33: FALSE | F33: FALSE | G33: FALSE | H33: FALSE
A34: =BENEFIT_DESIGN!$B$34&" Only" -> Deductible C Only | B34: FALSE | C34: FALSE | D34: TRUE | E34: FALSE | F34: FALSE | G34: FALSE | H34: FALSE
A35: =BENEFIT_DESIGN!$B$35&" Only" -> Deductible D Only | B35: FALSE | C35: FALSE | D35: FALSE | E35: TRUE | F35: FALSE | G35: FALSE | H35: FALSE
A36: Benefit Deductible Only | B36: FALSE | C36: FALSE | D36: FALSE | E36: FALSE | F36: TRUE | G36: FALSE | H36: FALSE
A37: Copayment Only | B37: FALSE | C37: FALSE | D37: FALSE | E37: FALSE | F37: FALSE | G37: TRUE | H37: FALSE
A38: Coinsurance Only | B38: FALSE | C38: FALSE | D38: FALSE | E38: FALSE | F38: FALSE | G38: FALSE | H38: TRUE
A39: =BENEFIT_DESIGN!$B$32&" + Copay" -> Plan Deductible + Copay | B39: TRUE | C39: FALSE | D39: FALSE | E39: FALSE | F39: FALSE | G39: TRUE | H39: FALSE
A40: =BENEFIT_DESIGN!$B$33&" + Copay" -> Rx Deductible + Copay | B40: FALSE | C40: TRUE | D40: FALSE | E40: FALSE | F40: FALSE | G40: TRUE | H40: FALSE
A41: =BENEFIT_DESIGN!$B$34&" + Copay" -> Deductible C + Copay | B41: FALSE | C41: FALSE | D41: TRUE | E41: FALSE | F41: FALSE | G41: TRUE | H41: FALSE
A42: =BENEFIT_DESIGN!$B$35&" + Copay" -> Deductible D + Copay | B42: FALSE | C42: FALSE | D42: FALSE | E42: TRUE | F42: FALSE | G42: TRUE | H42: FALSE
A43: Benefit Deductible + Copay | B43: FALSE | C43: FALSE | D43: FALSE | E43: FALSE | F43: TRUE | G43: TRUE | H43: FALSE
A44: =BENEFIT_DESIGN!$B$32&" + Coins" -> Plan Deductible + Coins | B44: TRUE | C44: FALSE | D44: FALSE | E44: FALSE | F44: FALSE | G44: FALSE | H44: TRUE
A45: =BENEFIT_DESIGN!$B$33&" + Coins" -> Rx Deductible + Coins | B45: FALSE | C45: TRUE | D45: FALSE | E45: FALSE | F45: FALSE | G45: FALSE | H45: TRUE
A46: =BENEFIT_DESIGN!$B$34&" + Coins" -> Deductible C + Coins | B46: FALSE | C46: FALSE | D46: TRUE | E46: FALSE | F46: FALSE | G46: FALSE | H46: TRUE
A47: =BENEFIT_DESIGN!$B$35&" + Coins" -> Deductible D + Coins | B47: FALSE | C47: FALSE | D47: FALSE | E47: TRUE | F47: FALSE | G47: FALSE | H47: TRUE
A48: Benefit Deductible + Coins | B48: FALSE | C48: FALSE | D48: FALSE | E48: FALSE | F48: TRUE | G48: FALSE | H48: TRUE
A50: Plan Parameters
A51: Benefit category | B51: Cost Sharing Type | C51: Plan deductible | D51: Rx deductible | E51: Optional Deductible C | F51: Optional Deductible D | G51: Out of Pocket Limit | H51: Benefit deductible | I51: Copayment | J51: Coinsurance | K51: Coverage Limit per Month | L51: Coverage Limit per Year | M51: OOP limit applies | N51: Maternity Spending | O51: Diabetes Spending | P51: Foot Fracture Spending
A52: =BENEFIT_DESIGN!B10 -> Inpatient Hospital Care (Facility) | B52: =BENEFIT_DESIGN!C10 -> Not Covered | C52: =IF(AND(G4,ISNUMBER(BENEFIT_DESIGN!$C$32)),BENEFIT_DESIGN!$C$32,".") -> . | D52: =IF(AND(H4,ISNUMBER(BENEFIT_DESIGN!$C$33)),BENEFIT_DESIGN!$C$33,".") -> . | E52: =IF(AND(I4,ISNUMBER(BENEFIT_DESIGN!$C$34)),BENEFIT_DESIGN!$C$34,".") -> . | F52: =IF(AND(J4,ISNUMBER(BENEFIT_DESIGN!$C$35)),BENEFIT_DESIGN!$C$35,".") -> . | G52: =IF(AND(F4,OR(ISNUMBER(BENEFIT_DESIGN!$C$36),BENEFIT_DESIGN!$C$36="None")),BENEFIT_DESIGN!$C$36,".") -> . | H52: =IF(AND(K4,ISNUMBER(BENEFIT_DESIGN!D10)),BENEFIT_DESIGN!D10,".") -> . | I52: =IF(AND(L4,ISNUMBER(BENEFIT_DESIGN!E10)),BENEFIT_DESIGN!E10,".") -> . | J52: =IF(AND(M4,ISNUMBER(BENEFIT_DESIGN!F10)),BENEFIT_DESIGN!F10,".") -> . | K52: =IF(AND(D4,OR(ISNUMBER(BENEFIT_DESIGN!G10),UPPER(BENEFIT_DESIGN!G10)="NONE")),BENEFIT_DESIGN!G10,".") -> . | L52: =IF(AND(E4,OR(ISNUMBER(BENEFIT_DESIGN!H10),UPPER(BENEFIT_DESIGN!H10)="NONE")),BENEFIT_DESIGN!H10,".") -> . | M52: =IF(AND(F4,OR(UPPER(BENEFIT_DESIGN!I10)="YES",UPPER(BENEFIT_DESIGN!I10)="NO")),BENEFIT_DESIGN!I10,".") -> . | N52: =VLOOKUP(A52,MATERNITY_SUMMARY!$B$6:$E$27,4,0)>0 -> TRUE | O52: =VLOOKUP(A52,DIABETES_SUMMARY!$B$6:$E$27,4,0)>0 -> FALSE | P52: =VLOOKUP(A52,FRACTURE_SUMMARY!$B$6:$E$27,4,0)>0 -> FALSE
A53: =BENEFIT_DESIGN!B11 -> Other Facility Services | B53: =BENEFIT_DESIGN!C11 -> Not Covered | C53: =IF(AND(G5,ISNUMBER(BENEFIT_DESIGN!$C$32)),BENEFIT_DESIGN!$C$32,".") -> . | D53: =IF(AND(H5,ISNUMBER(BENEFIT_DESIGN!$C$33)),BENEFIT_DESIGN!$C$33,".") -> . | E53: =IF(AND(I5,ISNUMBER(BENEFIT_DESIGN!$C$34)),BENEFIT_DESIGN!$C$34,".") -> . | F53: =IF(AND(J5,ISNUMBER(BENEFIT_DESIGN!$C$35)),BENEFIT_DESIGN!$C$35,".") -> . | G53: =IF(AND(F5,OR(ISNUMBER(BENEFIT_DESIGN!$C$36),BENEFIT_DESIGN!$C$36="None")),BENEFIT_DESIGN!$C$36,".") -> . | H53: =IF(AND(K5,ISNUMBER(BENEFIT_DESIGN!D11)),BENEFIT_DESIGN!D11,".") -> . | I53: =IF(AND(L5,ISNUMBER(BENEFIT_DESIGN!E11)),BENEFIT_DESIGN!E11,".") -> . | J53: =IF(AND(M5,ISNUMBER(BENEFIT_DESIGN!F11)),BENEFIT_DESIGN!F11,".") -> . | K53: =IF(AND(D5,OR(ISNUMBER(BENEFIT_DESIGN!G11),UPPER(BENEFIT_DESIGN!G11)="NONE")),BENEFIT_DESIGN!G11,".") -> . | L53: =IF(AND(E5,OR(ISNUMBER(BENEFIT_DESIGN!H11),UPPER(BENEFIT_DESIGN!H11)="NONE")),BENEFIT_DESIGN!H11,".") -> . | M53: =IF(AND(F5,OR(UPPER(BENEFIT_DESIGN!I11)="YES",UPPER(BENEFIT_DESIGN!I11)="NO")),BENEFIT_DESIGN!I11,".") -> . | N53: =VLOOKUP(A53,MATERNITY_SUMMARY!$B$6:$E$27,4,0)>0 -> FALSE | O53: =VLOOKUP(A53,DIABETES_SUMMARY!$B$6:$E$27,4,0)>0 -> FALSE | P53: =VLOOKUP(A53,FRACTURE_SUMMARY!$B$6:$E$27,4,0)>0 -> TRUE
A54: =BENEFIT_DESIGN!B12 -> Emergency Department (Facility) | B54: =BENEFIT_DESIGN!C12 -> Not Covered | C54: =IF(AND(G6,ISNUMBER(BENEFIT_DESIGN!$C$32)),BENEFIT_DESIGN!$C$32,".") -> . | D54: =IF(AND(H6,ISNUMBER(BENEFIT_DESIGN!$C$33)),BENEFIT_DESIGN!$C$33,".") -> . | E54: =IF(AND(I6,ISNUMBER(BENEFIT_DESIGN!$C$34)),BENEFIT_DESIGN!$C$34,".") -> . | F54: =IF(AND(J6,ISNUMBER(BENEFIT_DESIGN!$C$35)),BENEFIT_DESIGN!$C$35,".") -> . | G54: =IF(AND(F6,OR(ISNUMBER(BENEFIT_DESIGN!$C$36),BENEFIT_DESIGN!$C$36="None")),BENEFIT_DESIGN!$C$36,".") -> . | H54: =IF(AND(K6,ISNUMBER(BENEFIT_DESIGN!D12)),BENEFIT_DESIGN!D12,".") -> . | I54: =IF(AND(L6,ISNUMBER(BENEFIT_DESIGN!E12)),BENEFIT_DESIGN!E12,".") -> . | J54: =IF(AND(M6,ISNUMBER(BENEFIT_DESIGN!F12)),BENEFIT_DESIGN!F12,".") -> . | K54: =IF(AND(D6,OR(ISNUMBER(BENEFIT_DESIGN!G12),UPPER(BENEFIT_DESIGN!G12)="NONE")),BENEFIT_DESIGN!G12,".") -> . | L54: =IF(AND(E6,OR(ISNUMBER(BENEFIT_DESIGN!H12),UPPER(BENEFIT_DESIGN!H12)="NONE")),BENEFIT_DESIGN!H12,".") -> . | M54: =IF(AND(F6,OR(UPPER(BENEFIT_DESIGN!I12)="YES",UPPER(BENEFIT_DESIGN!I12)="NO")),BENEFIT_DESIGN!I12,".") -> . | N54: =VLOOKUP(A54,MATERNITY_SUMMARY!$B$6:$E$27,4,0)>0 -> FALSE | O54: =VLOOKUP(A54,DIABETES_SUMMARY!$B$6:$E$27,4,0)>0 -> FALSE | P54: =VLOOKUP(A54,FRACTURE_SUMMARY!$B$6:$E$27,4,0)>0 -> TRUE
A55: =BENEFIT_DESIGN!B13 -> Ambulance | B55: =BENEFIT_DESIGN!C13 -> Not Covered | C55: =IF(AND(G7,ISNUMBER(BENEFIT_DESIGN!$C$32)),BENEFIT_DESIGN!$C$32,".") -> . | D55: =IF(AND(H7,ISNUMBER(BENEFIT_DESIGN!$C$33)),BENEFIT_DESIGN!$C$33,".") -> . | E55: =IF(AND(I7,ISNUMBER(BENEFIT_DESIGN!$C$34)),BENEFIT_DESIGN!$C$34,".") -> . | F55: =IF(AND(J7,ISNUMBER(BENEFIT_DESIGN!$C$35)),BENEFIT_DESIGN!$C$35,".") -> . | G55: =IF(AND(F7,OR(ISNUMBER(BENEFIT_DESIGN!$C$36),BENEFIT_DESIGN!$C$36="None")),BENEFIT_DESIGN!$C$36,".") -> . | H55: =IF(AND(K7,ISNUMBER(BENEFIT_DESIGN!D13)),BENEFIT_DESIGN!D13,".") -> . | I55: =IF(AND(L7,ISNUMBER(BENEFIT_DESIGN!E13)),BENEFIT_DESIGN!E13,".") -> . | J55: =IF(AND(M7,ISNUMBER(BENEFIT_DESIGN!F13)),BENEFIT_DESIGN!F13,".") -> . | K55: =IF(AND(D7,OR(ISNUMBER(BENEFIT_DESIGN!G13),UPPER(BENEFIT_DESIGN!G13)="NONE")),BENEFIT_DESIGN!G13,".") -> . | L55: =IF(AND(E7,OR(ISNUMBER(BENEFIT_DESIGN!H13),UPPER(BENEFIT_DESIGN!H13)="NONE")),BENEFIT_DESIGN!H13,".") -> . | M55: =IF(AND(F7,OR(UPPER(BENEFIT_DESIGN!I13)="YES",UPPER(BENEFIT_DESIGN!I13)="NO")),BENEFIT_DESIGN!I13,".") -> . | N55: =VLOOKUP(A55,MATERNITY_SUMMARY!$B$6:$E$27,4,0)>0 -> FALSE | O55: =VLOOKUP(A55,DIABETES_SUMMARY!$B$6:$E$27,4,0)>0 -> FALSE | P55: =VLOOKUP(A55,FRACTURE_SUMMARY!$B$6:$E$27,4,0)>0 -> TRUE
A56: =BENEFIT_DESIGN!B14 -> Professional Services: Primary Care | B56: =BENEFIT_DESIGN!C14 -> Not Covered | C56: =IF(AND(G8,ISNUMBER(BENEFIT_DESIGN!$C$32)),BENEFIT_DESIGN!$C$32,".") -> . | D56: =IF(AND(H8,ISNUMBER(BENEFIT_DESIGN!$C$33)),BENEFIT_DESIGN!$C$33,".") -> . | E56: =IF(AND(I8,ISNUMBER(BENEFIT_DESIGN!$C$34)),BENEFIT_DESIGN!$C$34,".") -> . | F56: =IF(AND(J8,ISNUMBER(BENEFIT_DESIGN!$C$35)),BENEFIT_DESIGN!$C$35,".") -> . | G56: =IF(AND(F8,OR(ISNUMBER(BENEFIT_DESIGN!$C$36),BENEFIT_DESIGN!$C$36="None")),BENEFIT_DESIGN!$C$36,".") -> . | H56: =IF(AND(K8,ISNUMBER(BENEFIT_DESIGN!D14)),BENEFIT_DESIGN!D14,".") -> . | I56: =IF(AND(OR(L8,C77="Yes"),ISNUMBER(BENEFIT_DESIGN!E14)),BENEFIT_DESIGN!E14,".") -> . | J56: =IF(AND(M8,ISNUMBER(BENEFIT_DESIGN!F14)),BENEFIT_DESIGN!F14,".") -> . | K56: =IF(AND(D8,OR(ISNUMBER(BENEFIT_DESIGN!G14),UPPER(BENEFIT_DESIGN!G14)="NONE")),BENEFIT_DESIGN!G14,".") -> . | L56: =IF(AND(E8,OR(ISNUMBER(BENEFIT_DESIGN!H14),UPPER(BENEFIT_DESIGN!H14)="NONE")),BENEFIT_DESIGN!H14,".") -> . | M56: =IF(AND(F8,OR(UPPER(BENEFIT_DESIGN!I14)="YES",UPPER(BENEFIT_DESIGN!I14)="NO")),BENEFIT_DESIGN!I14,".") -> . | N56: =VLOOKUP(A56,MATERNITY_SUMMARY!$B$6:$E$27,4,0)>0 -> FALSE | O56: =VLOOKUP(A56,DIABETES_SUMMARY!$B$6:$E$27,4,0)>0 -> TRUE | P56: =VLOOKUP(A56,FRACTURE_SUMMARY!$B$6:$E$27,4,0)>0 -> FALSE
A57: =BENEFIT_DESIGN!B15 -> Professional Services: Emergency Department | B57: =BENEFIT_DESIGN!C15 -> Not Covered | C57: =IF(AND(G9,ISNUMBER(BENEFIT_DESIGN!$C$32)),BENEFIT_DESIGN!$C$32,".") -> . | D57: =IF(AND(H9,ISNUMBER(BENEFIT_DESIGN!$C$33)),BENEFIT_DESIGN!$C$33,".") -> . | E57: =IF(AND(I9,ISNUMBER(BENEFIT_DESIGN!$C$34)),BENEFIT_DESIGN!$C$34,".") -> . | F57: =IF(AND(J9,ISNUMBER(BENEFIT_DESIGN!$C$35)),BENEFIT_DESIGN!$C$35,".") -> . | G57: =IF(AND(F9,OR(ISNUMBER(BENEFIT_DESIGN!$C$36),BENEFIT_DESIGN!$C$36="None")),BENEFIT_DESIGN!$C$36,".") -> . | H57: =IF(AND(K9,ISNUMBER(BENEFIT_DESIGN!D15)),BENEFIT_DESIGN!D15,".") -> . | I57: =IF(AND(L9,ISNUMBER(BENEFIT_DESIGN!E15)),BENEFIT_DESIGN!E15,".") -> . | J57: =IF(AND(M9,ISNUMBER(BENEFIT_DESIGN!F15)),BENEFIT_DESIGN!F15,".") -> . | K57: =IF(AND(D9,OR(ISNUMBER(BENEFIT_DESIGN!G15),UPPER(BENEFIT_DESIGN!G15)="NONE")),BENEFIT_DESIGN!G15,".") -> . | L57: =IF(AND(E9,OR(ISNUMBER(BENEFIT_DESIGN!H15),UPPER(BENEFIT_DESIGN!H15)="NONE")),BENEFIT_DESIGN!H15,".") -> . | M57: =IF(AND(F9,OR(UPPER(BENEFIT_DESIGN!I15)="YES",UPPER(BENEFIT_DESIGN!I15)="NO")),BENEFIT_DESIGN!I15,".") -> . | N57: =VLOOKUP(A57,MATERNITY_SUMMARY!$B$6:$E$27,4,0)>0 -> FALSE | O57: =VLOOKUP(A57,DIABETES_SUMMARY!$B$6:$E$27,4,0)>0 -> FALSE | P57: =VLOOKUP(A57,FRACTURE_SUMMARY!$B$6:$E$27,4,0)>0 -> TRUE
A58: =BENEFIT_DESIGN!B16 -> Professional Services: Inpatient | B58: =BENEFIT_DESIGN!C16 -> Not Covered | C58: =IF(AND(G10,ISNUMBER(BENEFIT_DESIGN!$C$32)),BENEFIT_DESIGN!$C$32,".") -> . | D58: =IF(AND(H10,ISNUMBER(BENEFIT_DESIGN!$C$33)),BENEFIT_DESIGN!$C$33,".") -> . | E58: =IF(AND(I10,ISNUMBER(BENEFIT_DESIGN!$C$34)),BENEFIT_DESIGN!$C$34,".") -> . | F58: =IF(AND(J10,ISNUMBER(BENEFIT_DESIGN!$C$35)),BENEFIT_DESIGN!$C$35,".") -> . | G58: =IF(AND(F10,OR(ISNUMBER(BENEFIT_DESIGN!$C$36),BENEFIT_DESIGN!$C$36="None")),BENEFIT_DESIGN!$C$36,".") -> . | H58: =IF(AND(K10,ISNUMBER(BENEFIT_DESIGN!D16)),BENEFIT_DESIGN!D16,".") -> . | I58: =IF(AND(L10,ISNUMBER(BENEFIT_DESIGN!E16)),BENEFIT_DESIGN!E16,".") -> . | J58: =IF(AND(M10,ISNUMBER(BENEFIT_DESIGN!F16)),BENEFIT_DESIGN!F16,".") -> . | K58: =IF(AND(D10,OR(ISNUMBER(BENEFIT_DESIGN!G16),UPPER(BENEFIT_DESIGN!G16)="NONE")),BENEFIT_DESIGN!G16,".") -> . | L58: =IF(AND(E10,OR(ISNUMBER(BENEFIT_DESIGN!H16),UPPER(BENEFIT_DESIGN!H16)="NONE")),BENEFIT_DESIGN!H16,".") -> . | M58: =IF(AND(F10,OR(UPPER(BENEFIT_DESIGN!I16)="YES",UPPER(BENEFIT_DESIGN!I16)="NO")),BENEFIT_DESIGN!I16,".") -> . | N58: =VLOOKUP(A58,MATERNITY_SUMMARY!$B$6:$E$27,4,0)>0 -> TRUE | O58: =VLOOKUP(A58,DIABETES_SUMMARY!$B$6:$E$27,4,0)>0 -> FALSE | P58: =VLOOKUP(A58,FRACTURE_SUMMARY!$B$6:$E$27,4,0)>0 -> FALSE
A59: =BENEFIT_DESIGN!B17 -> Professional Services: Specialist | B59: =BENEFIT_DESIGN!C17 -> Not Covered | C59: =IF(AND(G11,ISNUMBER(BENEFIT_DESIGN!$C$32)),BENEFIT_DESIGN!$C$32,".") -> . | D59: =IF(AND(H11,ISNUMBER(BENEFIT_DESIGN!$C$33)),BENEFIT_DESIGN!$C$33,".") -> . | E59: =IF(AND(I11,ISNUMBER(BENEFIT_DESIGN!$C$34)),BENEFIT_DESIGN!$C$34,".") -> . | F59: =IF(AND(J11,ISNUMBER(BENEFIT_DESIGN!$C$35)),BENEFIT_DESIGN!$C$35,".") -> . | G59: =IF(AND(F11,OR(ISNUMBER(BENEFIT_DESIGN!$C$36),BENEFIT_DESIGN!$C$36="None")),BENEFIT_DESIGN!$C$36,".") -> . | H59: =IF(AND(K11,ISNUMBER(BENEFIT_DESIGN!D17)),BENEFIT_DESIGN!D17,".") -> . | I59: =IF(AND(L11,ISNUMBER(BENEFIT_DESIGN!E17)),BENEFIT_DESIGN!E17,".") -> . | J59: =IF(AND(M11,ISNUMBER(BENEFIT_DESIGN!F17)),BENEFIT_DESIGN!F17,".") -> . | K59: =IF(AND(D11,OR(ISNUMBER(BENEFIT_DESIGN!G17),UPPER(BENEFIT_DESIGN!G17)="NONE")),BENEFIT_DESIGN!G17,".") -> . | L59: =IF(AND(E11,OR(ISNUMBER(BENEFIT_DESIGN!H17),UPPER(BENEFIT_DESIGN!H17)="NONE")),BENEFIT_DESIGN!H17,".") -> . | M59: =IF(AND(F11,OR(UPPER(BENEFIT_DESIGN!I17)="YES",UPPER(BENEFIT_DESIGN!I17)="NO")),BENEFIT_DESIGN!I17,".") -> . | N59: =VLOOKUP(A59,MATERNITY_SUMMARY!$B$6:$E$27,4,0)>0 -> FALSE | O59: =VLOOKUP(A59,DIABETES_SUMMARY!$B$6:$E$27,4,0)>0 -> TRUE | P59: =VLOOKUP(A59,FRACTURE_SUMMARY!$B$6:$E$27,4,0)>0 -> TRUE
A60: =BENEFIT_DESIGN!B18 -> Professional Services: Obstetric Care (Bundled) | B60: =BENEFIT_DESIGN!C18 -> Not Covered | C60: =IF(AND(G12,ISNUMBER(BENEFIT_DESIGN!$C$32)),BENEFIT_DESIGN!$C$32,".") -> . | D60: =IF(AND(H12,ISNUMBER(BENEFIT_DESIGN!$C$33)),BENEFIT_DESIGN!$C$33,".") -> . | E60: =IF(AND(I12,ISNUMBER(BENEFIT_DESIGN!$C$34)),BENEFIT_DESIGN!$C$34,".") -> . | F60: =IF(AND(J12,ISNUMBER(BENEFIT_DESIGN!$C$35)),BENEFIT_DESIGN!$C$35,".") -> . | G60: =IF(AND(F12,OR(ISNUMBER(BENEFIT_DESIGN!$C$36),BENEFIT_DESIGN!$C$36="None")),BENEFIT_DESIGN!$C$36,".") -> . | H60: =IF(AND(K12,ISNUMBER(BENEFIT_DESIGN!D18)),BENEFIT_DESIGN!D18,".") -> . | I60: =IF(AND(L12,ISNUMBER(BENEFIT_DESIGN!E18)),BENEFIT_DESIGN!E18,".") -> . | J60: =IF(AND(M12,ISNUMBER(BENEFIT_DESIGN!F18)),BENEFIT_DESIGN!F18,".") -> . | K60: =IF(AND(D12,OR(ISNUMBER(BENEFIT_DESIGN!G18),UPPER(BENEFIT_DESIGN!G18)="NONE")),BENEFIT_DESIGN!G18,".") -> . | L60: =IF(AND(E12,OR(ISNUMBER(BENEFIT_DESIGN!H18),UPPER(BENEFIT_DESIGN!H18)="NONE")),BENEFIT_DESIGN!H18,".") -> . | M60: =IF(AND(F12,OR(UPPER(BENEFIT_DESIGN!I18)="YES",UPPER(BENEFIT_DESIGN!I18)="NO")),BENEFIT_DESIGN!I18,".") -> . | N60: =VLOOKUP(A60,MATERNITY_SUMMARY!$B$6:$E$27,4,0)>0 -> TRUE | O60: =VLOOKUP(A60,DIABETES_SUMMARY!$B$6:$E$27,4,0)>0 -> FALSE | P60: =VLOOKUP(A60,FRACTURE_SUMMARY!$B$6:$E$27,4,0)>0 -> FALSE
A61: =BENEFIT_DESIGN!B19 -> Professional Services: Procedures & Other | B61: =BENEFIT_DESIGN!C19 -> Not Covered | C61: =IF(AND(G13,ISNUMBER(BENEFIT_DESIGN!$C$32)),BENEFIT_DESIGN!$C$32,".") -> . | D61: =IF(AND(H13,ISNUMBER(BENEFIT_DESIGN!$C$33)),BENEFIT_DESIGN!$C$33,".") -> . | E61: =IF(AND(I13,ISNUMBER(BENEFIT_DESIGN!$C$34)),BENEFIT_DESIGN!$C$34,".") -> . | F61: =IF(AND(J13,ISNUMBER(BENEFIT_DESIGN!$C$35)),BENEFIT_DESIGN!$C$35,".") -> . | G61: =IF(AND(F13,OR(ISNUMBER(BENEFIT_DESIGN!$C$36),BENEFIT_DESIGN!$C$36="None")),BENEFIT_DESIGN!$C$36,".") -> . | H61: =IF(AND(K13,ISNUMBER(BENEFIT_DESIGN!D19)),BENEFIT_DESIGN!D19,".") -> . | I61: =IF(AND(L13,ISNUMBER(BENEFIT_DESIGN!E19)),BENEFIT_DESIGN!E19,".") -> . | J61: =IF(AND(M13,ISNUMBER(BENEFIT_DESIGN!F19)),BENEFIT_DESIGN!F19,".") -> . | K61: =IF(AND(D13,OR(ISNUMBER(BENEFIT_DESIGN!G19),UPPER(BENEFIT_DESIGN!G19)="NONE")),BENEFIT_DESIGN!G19,".") -> . | L61: =IF(AND(E13,OR(ISNUMBER(BENEFIT_DESIGN!H19),UPPER(BENEFIT_DESIGN!H19)="NONE")),BENEFIT_DESIGN!H19,".") -> . | M61: =IF(AND(F13,OR(UPPER(BENEFIT_DESIGN!I19)="YES",UPPER(BENEFIT_DESIGN!I19)="NO")),BENEFIT_DESIGN!I19,".") -> . | N61: =VLOOKUP(A61,MATERNITY_SUMMARY!$B$6:$E$27,4,0)>0 -> FALSE | O61: =VLOOKUP(A61,DIABETES_SUMMARY!$B$6:$E$27,4,0)>0 -> FALSE | P61: =VLOOKUP(A61,FRACTURE_SUMMARY!$B$6:$E$27,4,0)>0 -> FALSE
A62: =BENEFIT_DESIGN!B20 -> Professional Services: Physical Therapy | B62: =BENEFIT_DESIGN!C20 -> Not Covered | C62: =IF(AND(G14,ISNUMBER(BENEFIT_DESIGN!$C$32)),BENEFIT_DESIGN!$C$32,".") -> . | D62: =IF(AND(H14,ISNUMBER(BENEFIT_DESIGN!$C$33)),BENEFIT_DESIGN!$C$33,".") -> . | E62: =IF(AND(I14,ISNUMBER(BENEFIT_DESIGN!$C$34)),BENEFIT_DESIGN!$C$34,".") -> . | F62: =IF(AND(J14,ISNUMBER(BENEFIT_DESIGN!$C$35)),BENEFIT_DESIGN!$C$35,".") -> . | G62: =IF(AND(F14,OR(ISNUMBER(BENEFIT_DESIGN!$C$36),BENEFIT_DESIGN!$C$36="None")),BENEFIT_DESIGN!$C$36,".") -> . | H62: =IF(AND(K14,ISNUMBER(BENEFIT_DESIGN!D20)),BENEFIT_DESIGN!D20,".") -> . | I62: =IF(AND(L14,ISNUMBER(BENEFIT_DESIGN!E20)),BENEFIT_DESIGN!E20,".") -> . | J62: =IF(AND(M14,ISNUMBER(BENEFIT_DESIGN!F20)),BENEFIT_DESIGN!F20,".") -> . | K62: =IF(AND(D14,OR(ISNUMBER(BENEFIT_DESIGN!G20),UPPER(BENEFIT_DESIGN!G20)="NONE")),BENEFIT_DESIGN!G20,".") -> . | L62: =IF(AND(E14,OR(ISNUMBER(BENEFIT_DESIGN!H20),UPPER(BENEFIT_DESIGN!H20)="NONE")),BENEFIT_DESIGN!H20,".") -> . | M62: =IF(AND(F14,OR(UPPER(BENEFIT_DESIGN!I20)="YES",UPPER(BENEFIT_DESIGN!I20)="NO")),BENEFIT_DESIGN!I20,".") -> . | N62: =VLOOKUP(A62,MATERNITY_SUMMARY!$B$6:$E$27,4,0)>0 -> FALSE | O62: =VLOOKUP(A62,DIABETES_SUMMARY!$B$6:$E$27,4,0)>0 -> FALSE | P62: =VLOOKUP(A62,FRACTURE_SUMMARY!$B$6:$E$27,4,0)>0 -> TRUE
A63: =BENEFIT_DESIGN!B21 -> Diagnostic Services: Radiology | B63: =BENEFIT_DESIGN!C21 -> Not Covered | C63: =IF(AND(G15,ISNUMBER(BENEFIT_DESIGN!$C$32)),BENEFIT_DESIGN!$C$32,".") -> . | D63: =IF(AND(H15,ISNUMBER(BENEFIT_DESIGN!$C$33)),BENEFIT_DESIGN!$C$33,".") -> . | E63: =IF(AND(I15,ISNUMBER(BENEFIT_DESIGN!$C$34)),BENEFIT_DESIGN!$C$34,".") -> . | F63: =IF(AND(J15,ISNUMBER(BENEFIT_DESIGN!$C$35)),BENEFIT_DESIGN!$C$35,".") -> . | G63: =IF(AND(F15,OR(ISNUMBER(BENEFIT_DESIGN!$C$36),BENEFIT_DESIGN!$C$36="None")),BENEFIT_DESIGN!$C$36,".") -> . | H63: =IF(AND(K15,ISNUMBER(BENEFIT_DESIGN!D21)),BENEFIT_DESIGN!D21,".") -> . | I63: =IF(AND(L15,ISNUMBER(BENEFIT_DESIGN!E21)),BENEFIT_DESIGN!E21,".") -> . | J63: =IF(AND(M15,ISNUMBER(BENEFIT_DESIGN!F21)),BENEFIT_DESIGN!F21,".") -> . | K63: =IF(AND(D15,OR(ISNUMBER(BENEFIT_DESIGN!G21),UPPER(BENEFIT_DESIGN!G21)="NONE")),BENEFIT_DESIGN!G21,".") -> . | L63: =IF(AND(E15,OR(ISNUMBER(BENEFIT_DESIGN!H21),UPPER(BENEFIT_DESIGN!H21)="NONE")),BENEFIT_DESIGN!H21,".") -> . | M63: =IF(AND(F15,OR(UPPER(BENEFIT_DESIGN!I21)="YES",UPPER(BENEFIT_DESIGN!I21)="NO")),BENEFIT_DESIGN!I21,".") -> . | N63: =VLOOKUP(A63,MATERNITY_SUMMARY!$B$6:$E$27,4,0)>0 -> TRUE | O63: =VLOOKUP(A63,DIABETES_SUMMARY!$B$6:$E$27,4,0)>0 -> FALSE | P63: =VLOOKUP(A63,FRACTURE_SUMMARY!$B$6:$E$27,4,0)>0 -> TRUE
A64: =BENEFIT_DESIGN!B22 -> Diagnostic Services: Laboratory | B64: =BENEFIT_DESIGN!C22 -> Not Covered | C64: =IF(AND(G16,ISNUMBER(BENEFIT_DESIGN!$C$32)),BENEFIT_DESIGN!$C$32,".") -> . | D64: =IF(AND(H16,ISNUMBER(BENEFIT_DESIGN!$C$33)),BENEFIT_DESIGN!$C$33,".") -> . | E64: =IF(AND(I16,ISNUMBER(BENEFIT_DESIGN!$C$34)),BENEFIT_DESIGN!$C$34,".") -> . | F64: =IF(AND(J16,ISNUMBER(BENEFIT_DESIGN!$C$35)),BENEFIT_DESIGN!$C$35,".") -> . | G64: =IF(AND(F16,OR(ISNUMBER(BENEFIT_DESIGN!$C$36),BENEFIT_DESIGN!$C$36="None")),BENEFIT_DESIGN!$C$36,".") -> . | H64: =IF(AND(K16,ISNUMBER(BENEFIT_DESIGN!D22)),BENEFIT_DESIGN!D22,".") -> . | I64: =IF(AND(L16,ISNUMBER(BENEFIT_DESIGN!E22)),BENEFIT_DESIGN!E22,".") -> . | J64: =IF(AND(M16,ISNUMBER(BENEFIT_DESIGN!F22)),BENEFIT_DESIGN!F22,".") -> . | K64: =IF(AND(D16,OR(ISNUMBER(BENEFIT_DESIGN!G22),UPPER(BENEFIT_DESIGN!G22)="NONE")),BENEFIT_DESIGN!G22,".") -> . | L64: =IF(AND(E16,OR(ISNUMBER(BENEFIT_DESIGN!H22),UPPER(BENEFIT_DESIGN!H22)="NONE")),BENEFIT_DESIGN!H22,".") -> . | M64: =IF(AND(F16,OR(UPPER(BENEFIT_DESIGN!I22)="YES",UPPER(BENEFIT_DESIGN!I22)="NO")),BENEFIT_DESIGN!I22,".") -> . | N64: =VLOOKUP(A64,MATERNITY_SUMMARY!$B$6:$E$27,4,0)>0 -> TRUE | O64: =VLOOKUP(A64,DIABETES_SUMMARY!$B$6:$E$27,4,0)>0 -> TRUE | P64: =VLOOKUP(A64,FRACTURE_SUMMARY!$B$6:$E$27,4,0)>0 -> FALSE
A65: =BENEFIT_DESIGN!B23 -> Prescription Drugs: Generic | B65: =BENEFIT_DESIGN!C23 -> Not Covered | C65: =IF(AND(G17,ISNUMBER(BENEFIT_DESIGN!$C$32)),BENEFIT_DESIGN!$C$32,".") -> . | D65: =IF(AND(H17,ISNUMBER(BENEFIT_DESIGN!$C$33)),BENEFIT_DESIGN!$C$33,".") -> . | E65: =IF(AND(I17,ISNUMBER(BENEFIT_DESIGN!$C$34)),BENEFIT_DESIGN!$C$34,".") -> . | F65: =IF(AND(J17,ISNUMBER(BENEFIT_DESIGN!$C$35)),BENEFIT_DESIGN!$C$35,".") -> . | G65: =IF(AND(F17,OR(ISNUMBER(BENEFIT_DESIGN!$C$36),BENEFIT_DESIGN!$C$36="None")),BENEFIT_DESIGN!$C$36,".") -> . | H65: =IF(AND(K17,ISNUMBER(BENEFIT_DESIGN!D23)),BENEFIT_DESIGN!D23,".") -> . | I65: =IF(AND(L17,ISNUMBER(BENEFIT_DESIGN!E23)),BENEFIT_DESIGN!E23,".") -> . | J65: =IF(AND(M17,ISNUMBER(BENEFIT_DESIGN!F23)),BENEFIT_DESIGN!F23,".") -> . | K65: =IF(AND(D17,OR(ISNUMBER(BENEFIT_DESIGN!G23),UPPER(BENEFIT_DESIGN!G23)="NONE")),BENEFIT_DESIGN!G23,".") -> . | L65: =IF(AND(E17,OR(ISNUMBER(BENEFIT_DESIGN!H23),UPPER(BENEFIT_DESIGN!H23)="NONE")),BENEFIT_DESIGN!H23,".") -> . | M65: =IF(AND(F17,OR(UPPER(BENEFIT_DESIGN!I23)="YES",UPPER(BENEFIT_DESIGN!I23)="NO")),BENEFIT_DESIGN!I23,".") -> . | N65: =VLOOKUP(A65,MATERNITY_SUMMARY!$B$6:$E$27,4,0)>0 -> TRUE | O65: =VLOOKUP(A65,DIABETES_SUMMARY!$B$6:$E$27,4,0)>0 -> TRUE | P65: =VLOOKUP(A65,FRACTURE_SUMMARY!$B$6:$E$27,4,0)>0 -> TRUE
A66: =BENEFIT_DESIGN!B24 -> Prescription Drugs: Branded | B66: =BENEFIT_DESIGN!C24 -> Not Covered | C66: =IF(AND(G18,ISNUMBER(BENEFIT_DESIGN!$C$32)),BENEFIT_DESIGN!$C$32,".") -> . | D66: =IF(AND(H18,ISNUMBER(BENEFIT_DESIGN!$C$33)),BENEFIT_DESIGN!$C$33,".") -> . | E66: =IF(AND(I18,ISNUMBER(BENEFIT_DESIGN!$C$34)),BENEFIT_DESIGN!$C$34,".") -> . | F66: =IF(AND(J18,ISNUMBER(BENEFIT_DESIGN!$C$35)),BENEFIT_DESIGN!$C$35,".") -> . | G66: =IF(AND(F18,OR(ISNUMBER(BENEFIT_DESIGN!$C$36),BENEFIT_DESIGN!$C$36="None")),BENEFIT_DESIGN!$C$36,".") -> . | H66: =IF(AND(K18,ISNUMBER(BENEFIT_DESIGN!D24)),BENEFIT_DESIGN!D24,".") -> . | I66: =IF(AND(L18,ISNUMBER(BENEFIT_DESIGN!E24)),BENEFIT_DESIGN!E24,".") -> . | J66: =IF(AND(M18,ISNUMBER(BENEFIT_DESIGN!F24)),BENEFIT_DESIGN!F24,".") -> . | K66: =IF(AND(D18,OR(ISNUMBER(BENEFIT_DESIGN!G24),UPPER(BENEFIT_DESIGN!G24)="NONE")),BENEFIT_DESIGN!G24,".") -> . | L66: =IF(AND(E18,OR(ISNUMBER(BENEFIT_DESIGN!H24),UPPER(BENEFIT_DESIGN!H24)="NONE")),BENEFIT_DESIGN!H24,".") -> . | M66: =IF(AND(F18,OR(UPPER(BENEFIT_DESIGN!I24)="YES",UPPER(BENEFIT_DESIGN!I24)="NO")),BENEFIT_DESIGN!I24,".") -> . | N66: =VLOOKUP(A66,MATERNITY_SUMMARY!$B$6:$E$27,4,0)>0 -> FALSE | O66: =VLOOKUP(A66,DIABETES_SUMMARY!$B$6:$E$27,4,0)>0 -> FALSE | P66: =VLOOKUP(A66,FRACTURE_SUMMARY!$B$6:$E$27,4,0)>0 -> FALSE
A67: =BENEFIT_DESIGN!B25 -> Prescription Drugs: Insulin | B67: =BENEFIT_DESIGN!C25 -> Not Covered | C67: =IF(AND(G19,ISNUMBER(BENEFIT_DESIGN!$C$32)),BENEFIT_DESIGN!$C$32,".") -> . | D67: =IF(AND(H19,ISNUMBER(BENEFIT_DESIGN!$C$33)),BENEFIT_DESIGN!$C$33,".") -> . | E67: =IF(AND(I19,ISNUMBER(BENEFIT_DESIGN!$C$34)),BENEFIT_DESIGN!$C$34,".") -> . | F67: =IF(AND(J19,ISNUMBER(BENEFIT_DESIGN!$C$35)),BENEFIT_DESIGN!$C$35,".") -> . | G67: =IF(AND(F19,OR(ISNUMBER(BENEFIT_DESIGN!$C$36),BENEFIT_DESIGN!$C$36="None")),BENEFIT_DESIGN!$C$36,".") -> . | H67: =IF(AND(K19,ISNUMBER(BENEFIT_DESIGN!D25)),BENEFIT_DESIGN!D25,".") -> . | I67: =IF(AND(L19,ISNUMBER(BENEFIT_DESIGN!E25)),BENEFIT_DESIGN!E25,".") -> . | J67: =IF(AND(M19,ISNUMBER(BENEFIT_DESIGN!F25)),BENEFIT_DESIGN!F25,".") -> . | K67: =IF(AND(D19,OR(ISNUMBER(BENEFIT_DESIGN!G25),UPPER(BENEFIT_DESIGN!G25)="NONE")),BENEFIT_DESIGN!G25,".") -> . | L67: =IF(AND(E19,OR(ISNUMBER(BENEFIT_DESIGN!H25),UPPER(BENEFIT_DESIGN!H25)="NONE")),BENEFIT_DESIGN!H25,".") -> . | M67: =IF(AND(F19,OR(UPPER(BENEFIT_DESIGN!I25)="YES",UPPER(BENEFIT_DESIGN!I25)="NO")),BENEFIT_DESIGN!I25,".") -> . | N67: =VLOOKUP(A67,MATERNITY_SUMMARY!$B$6:$E$27,4,0)>0 -> FALSE | O67: =VLOOKUP(A67,DIABETES_SUMMARY!$B$6:$E$27,4,0)>0 -> TRUE | P67: =VLOOKUP(A67,FRACTURE_SUMMARY!$B$6:$E$27,4,0)>0 -> FALSE
A68: =BENEFIT_DESIGN!B26 -> Over-the-counter Drugs | B68: =BENEFIT_DESIGN!C26 -> Not Covered | C68: =IF(AND(G20,ISNUMBER(BENEFIT_DESIGN!$C$32)),BENEFIT_DESIGN!$C$32,".") -> . | D68: =IF(AND(H20,ISNUMBER(BENEFIT_DESIGN!$C$33)),BENEFIT_DESIGN!$C$33,".") -> . | E68: =IF(AND(I20,ISNUMBER(BENEFIT_DESIGN!$C$34)),BENEFIT_DESIGN!$C$34,".") -> . | F68: =IF(AND(J20,ISNUMBER(BENEFIT_DESIGN!$C$35)),BENEFIT_DESIGN!$C$35,".") -> . | G68: =IF(AND(F20,OR(ISNUMBER(BENEFIT_DESIGN!$C$36),BENEFIT_DESIGN!$C$36="None")),BENEFIT_DESIGN!$C$36,".") -> . | H68: =IF(AND(K20,ISNUMBER(BENEFIT_DESIGN!D26)),BENEFIT_DESIGN!D26,".") -> . | I68: =IF(AND(L20,ISNUMBER(BENEFIT_DESIGN!E26)),BENEFIT_DESIGN!E26,".") -> . | J68: =IF(AND(M20,ISNUMBER(BENEFIT_DESIGN!F26)),BENEFIT_DESIGN!F26,".") -> . | K68: =IF(AND(D20,OR(ISNUMBER(BENEFIT_DESIGN!G26),UPPER(BENEFIT_DESIGN!G26)="NONE")),BENEFIT_DESIGN!G26,".") -> . | L68: =IF(AND(E20,OR(ISNUMBER(BENEFIT_DESIGN!H26),UPPER(BENEFIT_DESIGN!H26)="NONE")),BENEFIT_DESIGN!H26,".") -> . | M68: =IF(AND(F20,OR(UPPER(BENEFIT_DESIGN!I26)="YES",UPPER(BENEFIT_DESIGN!I26)="NO")),BENEFIT_DESIGN!I26,".") -> . | N68: =VLOOKUP(A68,MATERNITY_SUMMARY!$B$6:$E$27,4,0)>0 -> TRUE | O68: =VLOOKUP(A68,DIABETES_SUMMARY!$B$6:$E$27,4,0)>0 -> TRUE | P68: =VLOOKUP(A68,FRACTURE_SUMMARY!$B$6:$E$27,4,0)>0 -> FALSE
A69: =BENEFIT_DESIGN!B27 -> Preventive Services & Vaccines | B69: =BENEFIT_DESIGN!C27 -> Not Covered | C69: =IF(AND(G21,ISNUMBER(BENEFIT_DESIGN!$C$32)),BENEFIT_DESIGN!$C$32,".") -> . | D69: =IF(AND(H21,ISNUMBER(BENEFIT_DESIGN!$C$33)),BENEFIT_DESIGN!$C$33,".") -> . | E69: =IF(AND(I21,ISNUMBER(BENEFIT_DESIGN!$C$34)),BENEFIT_DESIGN!$C$34,".") -> . | F69: =IF(AND(J21,ISNUMBER(BENEFIT_DESIGN!$C$35)),BENEFIT_DESIGN!$C$35,".") -> . | G69: =IF(AND(F21,OR(ISNUMBER(BENEFIT_DESIGN!$C$36),BENEFIT_DESIGN!$C$36="None")),BENEFIT_DESIGN!$C$36,".") -> . | H69: =IF(AND(K21,ISNUMBER(BENEFIT_DESIGN!D27)),BENEFIT_DESIGN!D27,".") -> . | I69: =IF(AND(L21,ISNUMBER(BENEFIT_DESIGN!E27)),BENEFIT_DESIGN!E27,".") -> . | J69: =IF(AND(M21,ISNUMBER(BENEFIT_DESIGN!F27)),BENEFIT_DESIGN!F27,".") -> . | K69: =IF(AND(D21,OR(ISNUMBER(BENEFIT_DESIGN!G27),UPPER(BENEFIT_DESIGN!G27)="NONE")),BENEFIT_DESIGN!G27,".") -> . | L69: =IF(AND(E21,OR(ISNUMBER(BENEFIT_DESIGN!H27),UPPER(BENEFIT_DESIGN!H27)="NONE")),BENEFIT_DESIGN!H27,".") -> . | M69: =IF(AND(F21,OR(UPPER(BENEFIT_DESIGN!I27)="YES",UPPER(BENEFIT_DESIGN!I27)="NO")),BENEFIT_DESIGN!I27,".") -> . | N69: =VLOOKUP(A69,MATERNITY_SUMMARY!$B$6:$E$27,4,0)>0 -> TRUE | O69: =VLOOKUP(A69,DIABETES_SUMMARY!$B$6:$E$27,4,0)>0 -> TRUE | P69: =VLOOKUP(A69,FRACTURE_SUMMARY!$B$6:$E$27,4,0)>0 -> FALSE
A70: =BENEFIT_DESIGN!B28 -> Durable Medical Equipment | B70: =BENEFIT_DESIGN!C28 -> Not Covered | C70: =IF(AND(G22,ISNUMBER(BENEFIT_DESIGN!$C$32)),BENEFIT_DESIGN!$C$32,".") -> . | D70: =IF(AND(H22,ISNUMBER(BENEFIT_DESIGN!$C$33)),BENEFIT_DESIGN!$C$33,".") -> . | E70: =IF(AND(I22,ISNUMBER(BENEFIT_DESIGN!$C$34)),BENEFIT_DESIGN!$C$34,".") -> . | F70: =IF(AND(J22,ISNUMBER(BENEFIT_DESIGN!$C$35)),BENEFIT_DESIGN!$C$35,".") -> . | G70: =IF(AND(F22,OR(ISNUMBER(BENEFIT_DESIGN!$C$36),BENEFIT_DESIGN!$C$36="None")),BENEFIT_DESIGN!$C$36,".") -> . | H70: =IF(AND(K22,ISNUMBER(BENEFIT_DESIGN!D28)),BENEFIT_DESIGN!D28,".") -> . | I70: =IF(AND(L22,ISNUMBER(BENEFIT_DESIGN!E28)),BENEFIT_DESIGN!E28,".") -> . | J70: =IF(AND(M22,ISNUMBER(BENEFIT_DESIGN!F28)),BENEFIT_DESIGN!F28,".") -> . | K70: =IF(AND(D22,OR(ISNUMBER(BENEFIT_DESIGN!G28),UPPER(BENEFIT_DESIGN!G28)="NONE")),BENEFIT_DESIGN!G28,".") -> . | L70: =IF(AND(E22,OR(ISNUMBER(BENEFIT_DESIGN!H28),UPPER(BENEFIT_DESIGN!H28)="NONE")),BENEFIT_DESIGN!H28,".") -> . | M70: =IF(AND(F22,OR(UPPER(BENEFIT_DESIGN!I28)="YES",UPPER(BENEFIT_DESIGN!I28)="NO")),BENEFIT_DESIGN!I28,".") -> . | N70: =VLOOKUP(A70,MATERNITY_SUMMARY!$B$6:$E$27,4,0)>0 -> FALSE | O70: =VLOOKUP(A70,DIABETES_SUMMARY!$B$6:$E$27,4,0)>0 -> FALSE | P70: =VLOOKUP(A70,FRACTURE_SUMMARY!$B$6:$E$27,4,0)>0 -> TRUE
A71: =BENEFIT_DESIGN!B29 -> Medical Supplies | B71: =BENEFIT_DESIGN!C29 -> Not Covered | C71: =IF(AND(G23,ISNUMBER(BENEFIT_DESIGN!$C$32)),BENEFIT_DESIGN!$C$32,".") -> . | D71: =IF(AND(H23,ISNUMBER(BENEFIT_DESIGN!$C$33)),BENEFIT_DESIGN!$C$33,".") -> . | E71: =IF(AND(I23,ISNUMBER(BENEFIT_DESIGN!$C$34)),BENEFIT_DESIGN!$C$34,".") -> . | F71: =IF(AND(J23,ISNUMBER(BENEFIT_DESIGN!$C$35)),BENEFIT_DESIGN!$C$35,".") -> . | G71: =IF(AND(F23,OR(ISNUMBER(BENEFIT_DESIGN!$C$36),BENEFIT_DESIGN!$C$36="None")),BENEFIT_DESIGN!$C$36,".") -> . | H71: =IF(AND(K23,ISNUMBER(BENEFIT_DESIGN!D29)),BENEFIT_DESIGN!D29,".") -> . | I71: =IF(AND(L23,ISNUMBER(BENEFIT_DESIGN!E29)),BENEFIT_DESIGN!E29,".") -> . | J71: =IF(AND(M23,ISNUMBER(BENEFIT_DESIGN!F29)),BENEFIT_DESIGN!F29,".") -> . | K71: =IF(AND(D23,OR(ISNUMBER(BENEFIT_DESIGN!G29),UPPER(BENEFIT_DESIGN!G29)="NONE")),BENEFIT_DESIGN!G29,".") -> . | L71: =IF(AND(E23,OR(ISNUMBER(BENEFIT_DESIGN!H29),UPPER(BENEFIT_DESIGN!H29)="NONE")),BENEFIT_DESIGN!H29,".") -> . | M71: =IF(AND(F23,OR(UPPER(BENEFIT_DESIGN!I29)="YES",UPPER(BENEFIT_DESIGN!I29)="NO")),BENEFIT_DESIGN!I29,".") -> . | N71: =VLOOKUP(A71,MATERNITY_SUMMARY!$B$6:$E$27,4,0)>0 -> FALSE | O71: =VLOOKUP(A71,DIABETES_SUMMARY!$B$6:$E$27,4,0)>0 -> TRUE | P71: =VLOOKUP(A71,FRACTURE_SUMMARY!$B$6:$E$27,4,0)>0 -> FALSE
A72: =BENEFIT_DESIGN!B30 -> Over-the-counter Medical Supplies | B72: =BENEFIT_DESIGN!C30 -> Not Covered | C72: =IF(AND(G24,ISNUMBER(BENEFIT_DESIGN!$C$32)),BENEFIT_DESIGN!$C$32,".") -> . | D72: =IF(AND(H24,ISNUMBER(BENEFIT_DESIGN!$C$33)),BENEFIT_DESIGN!$C$33,".") -> . | E72: =IF(AND(I24,ISNUMBER(BENEFIT_DESIGN!$C$34)),BENEFIT_DESIGN!$C$34,".") -> . | F72: =IF(AND(J24,ISNUMBER(BENEFIT_DESIGN!$C$35)),BENEFIT_DESIGN!$C$35,".") -> . | G72: =IF(AND(F24,OR(ISNUMBER(BENEFIT_DESIGN!$C$36),BENEFIT_DESIGN!$C$36="None")),BENEFIT_DESIGN!$C$36,".") -> . | H72: =IF(AND(K24,ISNUMBER(BENEFIT_DESIGN!D30)),BENEFIT_DESIGN!D30,".") -> . | I72: =IF(AND(L24,ISNUMBER(BENEFIT_DESIGN!E30)),BENEFIT_DESIGN!E30,".") -> . | J72: =IF(AND(M24,ISNUMBER(BENEFIT_DESIGN!F30)),BENEFIT_DESIGN!F30,".") -> . | K72: =IF(AND(D24,OR(ISNUMBER(BENEFIT_DESIGN!G30),UPPER(BENEFIT_DESIGN!G30)="NONE")),BENEFIT_DESIGN!G30,".") -> . | L72: =IF(AND(E24,OR(ISNUMBER(BENEFIT_DESIGN!H30),UPPER(BENEFIT_DESIGN!H30)="NONE")),BENEFIT_DESIGN!H30,".") -> . | M72: =IF(AND(F24,OR(UPPER(BENEFIT_DESIGN!I30)="YES",UPPER(BENEFIT_DESIGN!I30)="NO")),BENEFIT_DESIGN!I30,".") -> . | N72: =VLOOKUP(A72,MATERNITY_SUMMARY!$B$6:$E$27,4,0)>0 -> FALSE | O72: =VLOOKUP(A72,DIABETES_SUMMARY!$B$6:$E$27,4,0)>0 -> FALSE | P72: =VLOOKUP(A72,FRACTURE_SUMMARY!$B$6:$E$27,4,0)>0 -> FALSE
A73: =BENEFIT_DESIGN!B31 -> Other Items & Services | B73: =BENEFIT_DESIGN!C31 -> Not Covered | C73: =IF(AND(G25,ISNUMBER(BENEFIT_DESIGN!$C$32)),BENEFIT_DESIGN!$C$32,".") -> . | D73: =IF(AND(H25,ISNUMBER(BENEFIT_DESIGN!$C$33)),BENEFIT_DESIGN!$C$33,".") -> . | E73: =IF(AND(I25,ISNUMBER(BENEFIT_DESIGN!$C$34)),BENEFIT_DESIGN!$C$34,".") -> . | F73: =IF(AND(J25,ISNUMBER(BENEFIT_DESIGN!$C$35)),BENEFIT_DESIGN!$C$35,".") -> . | G73: =IF(AND(F25,OR(ISNUMBER(BENEFIT_DESIGN!$C$36),BENEFIT_DESIGN!$C$36="None")),BENEFIT_DESIGN!$C$36,".") -> . | H73: =IF(AND(K25,ISNUMBER(BENEFIT_DESIGN!D31)),BENEFIT_DESIGN!D31,".") -> . | I73: =IF(AND(L25,ISNUMBER(BENEFIT_DESIGN!E31)),BENEFIT_DESIGN!E31,".") -> . | J73: =IF(AND(M25,ISNUMBER(BENEFIT_DESIGN!F31)),BENEFIT_DESIGN!F31,".") -> . | K73: =IF(AND(D25,OR(ISNUMBER(BENEFIT_DESIGN!G31),UPPER(BENEFIT_DESIGN!G31)="NONE")),BENEFIT_DESIGN!G31,".") -> . | L73: =IF(AND(E25,OR(ISNUMBER(BENEFIT_DESIGN!H31),UPPER(BENEFIT_DESIGN!H31)="NONE")),BENEFIT_DESIGN!H31,".") -> . | M73: =IF(AND(F25,OR(UPPER(BENEFIT_DESIGN!I31)="YES",UPPER(BENEFIT_DESIGN!I31)="NO")),BENEFIT_DESIGN!I31,".") -> . | N73: =VLOOKUP(A73,MATERNITY_SUMMARY!$B$6:$E$27,4,0)>0 -> FALSE | O73: =VLOOKUP(A73,DIABETES_SUMMARY!$B$6:$E$27,4,0)>0 -> FALSE | P73: =VLOOKUP(A73,FRACTURE_SUMMARY!$B$6:$E$27,4,0)>0 -> FALSE
A75: Additional Options | B75: Can Option apply? | C75: Applies? | D75: # Visits | M75: Spending when Plan Deduct Applies? | N75: =SUM(ISNUMBER($C$52:$C$73)*(N52:N73))>0 -> FALSE | O75: =SUM(ISNUMBER($C$52:$C$73)*(O52:O73))>0 -> FALSE | P75: =SUM(ISNUMBER($C$52:$C$73)*(P52:P73))>0 -> FALSE
A76: Begin Primary Care Cost-Sharing After A Set Number of Visits? | B76: =VLOOKUP("Professional Services: Primary Care",$A$51:$B$73,2,FALSE)<>"Not Covered" -> FALSE | C76: =IF(B76,BENEFIT_DESIGN!C39,".") -> . | D76: =IF(AND(B76,C76),BENEFIT_DESIGN!D39,".") -> . | M76: Spending when Rx Deduct Applies? | N76: =SUM(ISNUMBER($D$52:$D$73)*(N52:N73))>0 -> FALSE | O76: =SUM(ISNUMBER($D$52:$D$73)*(O52:O73))>0 -> FALSE | P76: =SUM(ISNUMBER($D$52:$D$73)*(P52:P73))>0 -> FALSE
A77: Begin Primary Care Cost-Sharing Deductible or Coinsurance After a Set Number of Copays? | B77: =VLOOKUP("Professional Services: Primary Care",$A$51:$B$73,2,FALSE)<>"Not Covered" -> FALSE | C77: =IF(B77,BENEFIT_DESIGN!C40,".") -> . | D77: =IF(AND(B77,C77),BENEFIT_DESIGN!D40,".") -> . | M77: Spending when Deduct C Applies? | N77: =SUM(ISNUMBER($E$52:$E$73)*(N52:N73))>0 -> FALSE | O77: =SUM(ISNUMBER($E$52:$E$73)*(O52:O73))>0 -> FALSE | P77: =SUM(ISNUMBER($E$52:$E$73)*(P52:P73))>0 -> FALSE
M78: Spending when Deduct D Applies? | N78: =SUM(ISNUMBER($F$52:$F$73)*(N52:N73))>0 -> FALSE | O78: =SUM(ISNUMBER($F$52:$F$73)*(O52:O73))>0 -> FALSE | P78: =SUM(ISNUMBER($F$52:$F$73)*(P52:P73))>0 -> FALSE
M79: Total Benefit Deductible In Categories with Spending | N79: =SUM(IFERROR($H$52:$H$73*N52:N73,0)) -> 0 | O79: =SUM(IFERROR($H$52:$H$73*O52:O73,0)) -> 0 | P79: =SUM(IFERROR($H$52:$H$73*P52:P73,0)) -> 0
M80: Sum of Applicable Deductibles | N80: =N75*BENEFIT_DESIGN!$C$32+N76*BENEFIT_DESIGN!$C$33+N77*BENEFIT_DESIGN!$C$34+N78*BENEFIT_DESIGN!$C$35+N79 -> 0 | O80: =O75*BENEFIT_DESIGN!$C$32+O76*BENEFIT_DESIGN!$C$33+O77*BENEFIT_DESIGN!$C$34+O78*BENEFIT_DESIGN!$C$35+O79 -> 0 | P80: =P75*BENEFIT_DESIGN!$C$32+P76*BENEFIT_DESIGN!$C$33+P77*BENEFIT_DESIGN!$C$34+P78*BENEFIT_DESIGN!$C$35+P79 -> 0

Sheet PLAN_OUTPUT_DATA (hidden)
B2: This worksheet saves the results for the plans listed on the PLAN_OUTPUT_DATA worksheet.
B3: You can update the output by clicking on the button to the left.
B4: After the output data have been recalculated the RESULTS_SUMMARY worksheet will be displayed.
B6: Maternity Example | H6: Diabetes Example | N6: Foot Fracture Example
A7: PLAN_ID | B7: PLAN_PAYS | C7: SUBSCRIBER_PAYS | D7: SUBSCRIBER_DEDUC | E7: SUBSCRIBER_COPAY | F7: SUBSCRIBER_COINS | G7: SUBSCRIBER_EXCL | H7: PLAN_PAYS | I7: SUBSCRIBER_PAYS | J7: SUBSCRIBER_DEDUC | K7: SUBSCRIBER_COPAY | L7: SUBSCRIBER_COINS | M7: SUBSCRIBER_EXCL | N7: PLAN_PAYS | O7: SUBSCRIBER_PAYS | P7: SUBSCRIBER_DEDUC | Q7: SUBSCRIBER_COPAY | R7: SUBSCRIBER_COINS | S7: SUBSCRIBER_EXCL
A8: Plan 1 | B8: 0 | C8: 12700 | D8: 0 | E8: 0 | F8: 0 | G8: 12700 | H8: 0 | I8: 5600 | J8: 0 | K8: 0 | L8: 0 | M8: 5600 | N8: 0 | O8: 2800 | P8: 0 | Q8: 0 | R8: 0 | S8: 2800
A9: Plan 2 | B9: 0 | C9: 12700 | D9: 0 | E9: 0 | F9: 0 | G9: 12700 | H9: 0 | I9: 5600 | J9: 0 | K9: 0 | L9: 0 | M9: 5600 | N9: 0 | O9: 2800 | P9: 0 | Q9: 0 | R9: 0 | S9: 2800
A10: Plan 3 | B10: 0 | C10: 12700 | D10: 0 | E10: 0 | F10: 0 | G10: 12700 | H10: 0 | I10: 5600 | J10: 0 | K10: 0 | L10: 0 | M10: 5600 | N10: 0 | O10: 2800 | P10: 0 | Q10: 0 | R10: 0 | S10: 2800
A11: Plan 4 | B11: 0 | C11: 12700 | D11: 0 | E11: 0 | F11: 0 | G11: 12700 | H11: 0 | I11: 5600 | J11: 0 | K11: 0 | L11: 0 | M11: 5600 | N11: 0 | O11: 2800 | P11: 0 | Q11: 0 | R11: 0 | S11: 2800
A12: Plan 5 | B12: 0 | C12: 12700 | D12: 0 | E12: 0 | F12: 0 | G12: 12700 | H12: 0 | I12: 5600 | J12: 0 | K12: 0 | L12: 0 | M12: 5600 | N12: 0 | O12: 2800 | P12: 0 | Q12: 0 | R12: 0 | S12: 2800
A13: Plan 6 | B13: 0 | C13: 12700 | D13: 0 | E13: 0 | F13: 0 | G13: 12700 | H13: 0 | I13: 5600 | J13: 0 | K13: 0 | L13: 0 | M13: 5600 | N13: 0 | O13: 2800 | P13: 0 | Q13: 0 | R13: 0 | S13: 2800

Sheet RESULTS_SUMMARY (hidden)
F2: Summary of Subscriber & Plan Payments
D4: Select Plan:
F6: ="Summary for "&nrCBPlanNameRS -> Summary for Plan 1
B8: Maternity Example | G8: Diabetes Type 2 Example
C10: Plan Pays*: | D10: 0 | H10: Plan Pays*: | I10: 0
C13: Patient Pays**: | D13: 12700 | H13: Patient Pays**: | I13: 5600
C14: Deductibles | D14: 0 | H14: Deductibles | I14: 0
C15: Copayments | D15: 0 | H15: Copayments | I15: 0
C16: Coinsurance | D16: 0 | H16: Coinsurance | I16: 0
C17: Exclusions & Limits | D17: 12700 | H17: Exclusions & Limits | I17: 5600
B22: Foot Fracture Example
C24: Plan Pays*: | D24: 0
C27: Patient Pays**: | D27: 2800
C28: Deductibles | D28: 0
C29: Copayments | D29: 0
C30: Coinsurance | D30: 0
C31: Exclusions & Limits | D31: 2800
B36: *Note: Plan Pays Amount will display as empty if the amount is negative due to rounding. **Note: Patient Pays Amount is capped at the individual out of pocket limit. Total Amounts may not add up due to rounding.

Sheet MATERNITY_SUMMARY (hidden)
B2: Maternity Example: Summary of Subscriber and Plan Payments
B4: =nrCBPlanNameRS -> Plan 1 | C4: Allowed Amount | D4: Plan Payment | E4: Subscriber pays:
B5: Benefit category | C5: Allowed Amount (unrounded) | E5: Total subscriber payment | F5: Subscriber-paid deductible | G5: Subscriber-paid copayment | H5: Subscriber-paid coinsurance | I5: Non-covered and exclusions
B6: =BENEFIT_DESIGN!B10 -> Inpatient Hospital Care (Facility) | C6: =SUMIFS(MATERNITY_TIMELINE!AllowedAmt,MATERNITY_TIMELINE!BenefitCategory,$B6) -> 7060.58 | D6: =SUMIFS(MATERNITY_TIMELINE!PlanPaymentAmt,MATERNITY_TIMELINE!BenefitCategory,$B6) -> 0 | E6: =SUM(F6:I6) -> 7060.58 | F6: =SUMIFS(MATERNITY_TIMELINE!SubscriberPayDeduc,MATERNITY_TIMELINE!BenefitCategory,$B6) -> 0 | G6: =SUMIFS(MATERNITY_TIMELINE!SubscriberPayCopay,MATERNITY_TIMELINE!BenefitCategory,$B6) -> 0 | H6: =SUMIFS(MATERNITY_TIMELINE!SubscriberPayCoins,MATERNITY_TIMELINE!BenefitCategory,$B6) -> 0 | I6: =SUMIFS(MATERNITY_TIMELINE!SubscriberPayNonCov,MATERNITY_TIMELINE!BenefitCategory,$B6)+SUMIFS(MATERNITY_TIMELINE!SubscriberPayExclusion,MATERNITY_TIMELINE!BenefitCategory,$B6) -> 7060.58
B7: =BENEFIT_DESIGN!B11 -> Other Facility Services | C7: =SUMIFS(MATERNITY_TIMELINE!AllowedAmt,MATERNITY_TIMELINE!BenefitCategory,$B7) -> 0 | D7: =SUMIFS(MATERNITY_TIMELINE!PlanPaymentAmt,MATERNITY_TIMELINE!BenefitCategory,$B7) -> 0 | E7: 0 | F7: =SUMIFS(MATERNITY_TIMELINE!SubscriberPayDeduc,MATERNITY_TIMELINE!BenefitCategory,$B7) -> 0 | G7: =SUMIFS(MATERNITY_TIMELINE!SubscriberPayCopay,MATERNITY_TIMELINE!BenefitCategory,$B7) -> 0 | H7: =SUMIFS(MATERNITY_TIMELINE!SubscriberPayCoins,MATERNITY_TIMELINE!BenefitCategory,$B7) -> 0 | I7: =SUMIFS(MATERNITY_TIMELINE!SubscriberPayNonCov,MATERNITY_TIMELINE!BenefitCategory,$B7)+SUMIFS(MATERNITY_TIMELINE!SubscriberPayExclusion,MATERNITY_TIMELINE!BenefitCategory,$B7) -> 0
B8: =BENEFIT_DESIGN!B12 -> Emergency Department (Facility) | C8: =SUMIFS(MATERNITY_TIMELINE!AllowedAmt,MATERNITY_TIMELINE!BenefitCategory,$B8) -> 0 | D8: =SUMIFS(MATERNITY_TIMELINE!PlanPaymentAmt,MATERNITY_TIMELINE!BenefitCategory,$B8) -> 0 | E8: 0 | F8: =SUMIFS(MATERNITY_TIMELINE!SubscriberPayDeduc,MATERNITY_TIMELINE!BenefitCategory,$B8) -> 0 | G8: =SUMIFS(MATERNITY_TIMELINE!SubscriberPayCopay,MATERNITY_TIMELINE!BenefitCategory,$B8) -> 0 | H8: =SUMIFS(MATERNITY_TIMELINE!SubscriberPayCoins,MATERNITY_TIMELINE!BenefitCategory,$B8) -> 0 | I8: =SUMIFS(MATERNITY_TIMELINE!SubscriberPayNonCov,MATERNITY_TIMELINE!BenefitCategory,$B8)+SUMIFS(MATERNITY_TIMELINE!SubscriberPayExclusion,MATERNITY_TIMELINE!BenefitCategory,$B8) -> 0
B9: =BENEFIT_DESIGN!B13 -> Ambulance | C9: =SUMIFS(MATERNITY_TIMELINE!AllowedAmt,MATERNITY_TIMELINE!BenefitCategory,$B9) -> 0 | D9: =SUMIFS(MATERNITY_TIMELINE!PlanPaymentAmt,MATERNITY_TIMELINE!BenefitCategory,$B9) -> 0 | E9: 0 | F9: =SUMIFS(MATERNITY_TIMELINE!SubscriberPayDeduc,MATERNITY_TIMELINE!BenefitCategory,$B9) -> 0 | G9: =SUMIFS(MATERNITY_TIMELINE!SubscriberPayCopay,MATERNITY_TIMELINE!BenefitCategory,$B9) -> 0 | H9: =SUMIFS(MATERNITY_TIMELINE!SubscriberPayCoins,MATERNITY_TIMELINE!BenefitCategory,$B9) -> 0 | I9: =SUMIFS(MATERNITY_TIMELINE!SubscriberPayNonCov,MATERNITY_TIMELINE!BenefitCategory,$B9)+SUMIFS(MATERNITY_TIMELINE!SubscriberPayExclusion,MATERNITY_TIMELINE!BenefitCategory,$B9) -> 0
B10: =BENEFIT_DESIGN!B14 -> Professional Services: Primary Care | C10: =SUMIFS(MATERNITY_TIMELINE!AllowedAmt,MATERNITY_TIMELINE!BenefitCategory,$B10) -> 0 | D10: =SUMIFS(MATERNITY_TIMELINE!PlanPaymentAmt,MATERNITY_TIMELINE!BenefitCategory,$B10) -> 0 | E10: 0 | F10: =SUMIFS(MATERNITY_TIMELINE!SubscriberPayDeduc,MATERNITY_TIMELINE!BenefitCategory,$B10) -> 0 | G10: =SUMIFS(MATERNITY_TIMELINE!SubscriberPayCopay,MATERNITY_TIMELINE!BenefitCategory,$B10) -> 0 | H10: =SUMIFS(MATERNITY_TIMELINE!SubscriberPayCoins,MATERNITY_TIMELINE!BenefitCategory,$B10) -> 0 | I10: =SUMIFS(MATERNITY_TIMELINE!SubscriberPayNonCov,MATERNITY_TIMELINE!BenefitCategory,$B10)+SUMIFS(MATERNITY_TIMELINE!SubscriberPayExclusion,MATERNITY_TIMELINE!BenefitCategory,$B10) -> 0
B11: =BENEFIT_DESIGN!B15 -> Professional Services: Emergency Department | C11: =SUMIFS(MATERNITY_TIMELINE!AllowedAmt,MATERNITY_TIMELINE!BenefitCategory,$B11) -> 0 | D11: =SUMIFS(MATERNITY_TIMELINE!PlanPaymentAmt,MATERNITY_TIMELINE!BenefitCategory,$B11) -> 0 | E11: 0 | F11: =SUMIFS(MATERNITY_TIMELINE!SubscriberPayDeduc,MATERNITY_TIMELINE!BenefitCategory,$B11) -> 0 | G11: =SUMIFS(MATERNITY_TIMELINE!SubscriberPayCopay,MATERNITY_TIMELINE!BenefitCategory,$B11) -> 0 | H11: =SUMIFS(MATERNITY_TIMELINE!SubscriberPayCoins,MATERNITY_TIMELINE!BenefitCategory,$B11) -> 0 | I11: =SUMIFS(MATERNITY_TIMELINE!SubscriberPayNonCov,MATERNITY_TIMELINE!BenefitCategory,$B11)+SUMIFS(MATERNITY_TIMELINE!SubscriberPayExclusion,MATERNITY_TIMELINE!BenefitCategory,$B11) -> 0
B12: =BENEFIT_DESIGN!B16 -> Professional Services: Inpatient | C12: =SUMIFS(MATERNITY_TIMELINE!AllowedAmt,MATERNITY_TIMELINE!BenefitCategory,$B12) -> 1399.34 | D12: =SUMIFS(MATERNITY_TIMELINE!PlanPaymentAmt,MATERNITY_TIMELINE!BenefitCategory,$B12) -> 0 | E12: =SUM(F12:I12) -> 1399.34 | F12: =SUMIFS(MATERNITY_TIMELINE!SubscriberPayDeduc,MATERNITY_TIMELINE!BenefitCategory,$B12) -> 0 | G12: =SUMIFS(MATERNITY_TIMELINE!SubscriberPayCopay,MATERNITY_TIMELINE!BenefitCategory,$B12) -> 0 | H12: =SUMIFS(MATERNITY_TIMELINE!SubscriberPayCoins,MATERNITY_TIMELINE!BenefitCategory,$B12) -> 0 | I12: =SUMIFS(MATERNITY_TIMELINE!SubscriberPayNonCov,MATERNITY_TIMELINE!BenefitCategory,$B12)+SUMIFS(MATERNITY_TIMELINE!SubscriberPayExclusion,MATERNITY_TIMELINE!BenefitCategory,$B12) -> 1399.34
B13: =BENEFIT_DESIGN!B17 -> Professional Services: Specialist | C13: =SUMIFS(MATERNITY_TIMELINE!AllowedAmt,MATERNITY_TIMELINE!BenefitCategory,$B13) -> 0 | D13: =SUMIFS(MATERNITY_TIMELINE!PlanPaymentAmt,MATERNITY_TIMELINE!BenefitCategory,$B13) -> 0 | E13: 0 | F13: =SUMIFS(MATERNITY_TIMELINE!SubscriberPayDeduc,MATERNITY_TIMELINE!BenefitCategory,$B13) -> 0 | G13: =SUMIFS(MATERNITY_TIMELINE!SubscriberPayCopay,MATERNITY_TIMELINE!BenefitCategory,$B13) -> 0 | H13: =SUMIFS(MATERNITY_TIMELINE!SubscriberPayCoins,MATERNITY_TIMELINE!BenefitCategory,$B13) -> 0 | I13: =SUMIFS(MATERNITY_TIMELINE!SubscriberPayNonCov,MATERNITY_TIMELINE!BenefitCategory,$B13)+SUMIFS(MATERNITY_TIMELINE!SubscriberPayExclusion,MATERNITY_TIMELINE!BenefitCategory,$B13) -> 0
B14: =BENEFIT_DESIGN!B18 -> Professional Services: Obstetric Care (Bundled) | C14: =SUMIFS(MATERNITY_TIMELINE!AllowedAmt,MATERNITY_TIMELINE!BenefitCategory,$B14) -> 2609.93 | D14: =SUMIFS(MATERNITY_TIMELINE!PlanPaymentAmt,MATERNITY_TIMELINE!BenefitCategory,$B14) -> 0 | E14: 2609.93 | F14: =SUMIFS(MATERNITY_TIMELINE!SubscriberPayDeduc,MATERNITY_TIMELINE!BenefitCategory,$B14) -> 0 | G14: =SUMIFS(MATERNITY_TIMELINE!SubscriberPayCopay,MATERNITY_TIMELINE!BenefitCategory,$B14) -> 0 | H14: =SUMIFS(MATERNITY_TIMELINE!SubscriberPayCoins,MATERNITY_TIMELINE!BenefitCategory,$B14) -> 0 | I14: =SUMIFS(MATERNITY_TIMELINE!SubscriberPayNonCov,MATERNITY_TIMELINE!BenefitCategory,$B14)+SUMIFS(MATERNITY_TIMELINE!SubscriberPayExclusion,MATERNITY_TIMELINE!BenefitCategory,$B14) -> 2609.93
B15: =BENEFIT_DESIGN!B19 -> Professional Services: Procedures & Other | C15: =SUMIFS(MATERNITY_TIMELINE!AllowedAmt,MATERNITY_TIMELINE!BenefitCategory,$B15) -> 0 | D15: =SUMIFS(MATERNITY_TIMELINE!PlanPaymentAmt,MATERNITY_TIMELINE!BenefitCategory,$B15) -> 0 | E15: 0 | F15: =SUMIFS(MATERNITY_TIMELINE!SubscriberPayDeduc,MATERNITY_TIMELINE!BenefitCategory,$B15) -> 0 | G15: =SUMIFS(MATERNITY_TIMELINE!SubscriberPayCopay,MATERNITY_TIMELINE!BenefitCategory,$B15) -> 0 | H15: =SUMIFS(MATERNITY_TIMELINE!SubscriberPayCoins,MATERNITY_TIMELINE!BenefitCategory,$B15) -> 0 | I15: =SUMIFS(MATERNITY_TIMELINE!SubscriberPayNonCov,MATERNITY_TIMELINE!BenefitCategory,$B15)+SUMIFS(MATERNITY_TIMELINE!SubscriberPayExclusion,MATERNITY_TIMELINE!BenefitCategory,$B15) -> 0
B16: =BENEFIT_DESIGN!B20 -> Professional Services: Physical Therapy | C16: =SUMIFS(MATERNITY_TIMELINE!AllowedAmt,MATERNITY_TIMELINE!BenefitCategory,$B16) -> 0 | D16: =SUMIFS(MATERNITY_TIMELINE!PlanPaymentAmt,MATERNITY_TIMELINE!BenefitCategory,$B16) -> 0 | E16: 0 | F16: =SUMIFS(MATERNITY_TIMELINE!SubscriberPayDeduc,MATERNITY_TIMELINE!BenefitCategory,$B16) -> 0 | G16: =SUMIFS(MATERNITY_TIMELINE!SubscriberPayCopay,MATERNITY_TIMELINE!BenefitCategory,$B16) -> 0 | H16: =SUMIFS(MATERNITY_TIMELINE!SubscriberPayCoins,MATERNITY_TIMELINE!BenefitCategory,$B16) -> 0 | I16: =SUMIFS(MATERNITY_TIMELINE!SubscriberPayNonCov,MATERNITY_TIMELINE!BenefitCategory,$B16)+SUMIFS(MATERNITY_TIMELINE!SubscriberPayExclusion,MATERNITY_TIMELINE!BenefitCategory,$B16) -> 0
B17: =BENEFIT_DESIGN!B21 -> Diagnostic Services: Radiology | C17: =SUMIFS(MATERNITY_TIMELINE!AllowedAmt,MATERNITY_TIMELINE!BenefitCategory,$B17) -> 343.41 | D17: =SUMIFS(MATERNITY_TIMELINE!PlanPaymentAmt,MATERNITY_TIMELINE!BenefitCategory,$B17) -> 0 | E17: 343.41 | F17: =SUMIFS(MATERNITY_TIMELINE!SubscriberPayDeduc,MATERNITY_TIMELINE!BenefitCategory,$B17) -> 0 | G17: =SUMIFS(MATERNITY_TIMELINE!SubscriberPayCopay,MATERNITY_TIMELINE!BenefitCategory,$B17) -> 0 | H17: =SUMIFS(MATERNITY_TIMELINE!SubscriberPayCoins,MATERNITY_TIMELINE!BenefitCategory,$B17) -> 0 | I17: =SUMIFS(MATERNITY_TIMELINE!SubscriberPayNonCov,MATERNITY_TIMELINE!BenefitCategory,$B17)+SUMIFS(MATERNITY_TIMELINE!SubscriberPayExclusion,MATERNITY_TIMELINE!BenefitCategory,$B17) -> 343.41
B18: =BENEFIT_DESIGN!B22 -> Diagnostic Services: Laboratory | C18: =SUMIFS(MATERNITY_TIMELINE!AllowedAmt,MATERNITY_TIMELINE!BenefitCategory,$B18) -> 1153.24 | D18: =SUMIFS(MATERNITY_TIMELINE!PlanPaymentAmt,MATERNITY_TIMELINE!BenefitCategory,$B18) -> 0 | E18: 1153.24 | F18: =SUMIFS(MATERNITY_TIMELINE!SubscriberPayDeduc,MATERNITY_TIMELINE!BenefitCategory,$B18) -> 0 | G18: =SUMIFS(MATERNITY_TIMELINE!SubscriberPayCopay,MATERNITY_TIMELINE!BenefitCategory,$B18) -> 0 | H18: =SUMIFS(MATERNITY_TIMELINE!SubscriberPayCoins,MATERNITY_TIMELINE!BenefitCategory,$B18) -> 0 | I18: =SUMIFS(MATERNITY_TIMELINE!SubscriberPayNonCov,MATERNITY_TIMELINE!BenefitCategory,$B18)+SUMIFS(MATERNITY_TIMELINE!SubscriberPayExclusion,MATERNITY_TIMELINE!BenefitCategory,$B18) -> 1153.24
B19: =BENEFIT_DESIGN!B23 -> Prescription Drugs: Generic | C19: =SUMIFS(MATERNITY_TIMELINE!AllowedAmt,MATERNITY_TIMELINE!BenefitCategory,$B19) -> 10.57 | D19: =SUMIFS(MATERNITY_TIMELINE!PlanPaymentAmt,MATERNITY_TIMELINE!BenefitCategory,$B19) -> 0 | E19: 10.57 | F19: =SUMIFS(MATERNITY_TIMELINE!SubscriberPayDeduc,MATERNITY_TIMELINE!BenefitCategory,$B19) -> 0 | G19: =SUMIFS(MATERNITY_TIMELINE!SubscriberPayCopay,MATERNITY_TIMELINE!BenefitCategory,$B19) -> 0 | H19: =SUMIFS(MATERNITY_TIMELINE!SubscriberPayCoins,MATERNITY_TIMELINE!BenefitCategory,$B19) -> 0 | I19: =SUMIFS(MATERNITY_TIMELINE!SubscriberPayNonCov,MATERNITY_TIMELINE!BenefitCategory,$B19)+SUMIFS(MATERNITY_TIMELINE!SubscriberPayExclusion,MATERNITY_TIMELINE!BenefitCategory,$B19) -> 10.57
B20: =BENEFIT_DESIGN!B24 -> Prescription Drugs: Branded | C20: =SUMIFS(MATERNITY_TIMELINE!AllowedAmt,MATERNITY_TIMELINE!BenefitCategory,$B20) -> 0 | D20: =SUMIFS(MATERNITY_TIMELINE!PlanPaymentAmt,MATERNITY_TIMELINE!BenefitCategory,$B20) -> 0 | E20: 0 | F20: =SUMIFS(MATERNITY_TIMELINE!SubscriberPayDeduc,MATERNITY_TIMELINE!BenefitCategory,$B20) -> 0 | G20: =SUMIFS(MATERNITY_TIMELINE!SubscriberPayCopay,MATERNITY_TIMELINE!BenefitCategory,$B20) -> 0 | H20: =SUMIFS(MATERNITY_TIMELINE!SubscriberPayCoins,MATERNITY_TIMELINE!BenefitCategory,$B20) -> 0 | I20: =SUMIFS(MATERNITY_TIMELINE!SubscriberPayNonCov,MATERNITY_TIMELINE!BenefitCategory,$B20)+SUMIFS(MATERNITY_TIMELINE!SubscriberPayExclusion,MATERNITY_TIMELINE!BenefitCategory,$B20) -> 0
B21: =BENEFIT_DESIGN!B25 -> Prescription Drugs: Insulin | C21: =SUMIFS(MATERNITY_TIMELINE!AllowedAmt,MATERNITY_TIMELINE!BenefitCategory,$B21) -> 0 | D21: =SUMIFS(MATERNITY_TIMELINE!PlanPaymentAmt,MATERNITY_TIMELINE!BenefitCategory,$B21) -> 0 | E21: =SUM(F21:I21) -> 0 | F21: =SUMIFS(MATERNITY_TIMELINE!SubscriberPayDeduc,MATERNITY_TIMELINE!BenefitCategory,$B21) -> 0 | G21: =SUMIFS(MATERNITY_TIMELINE!SubscriberPayCopay,MATERNITY_TIMELINE!BenefitCategory,$B21) -> 0 | H21: =SUMIFS(MATERNITY_TIMELINE!SubscriberPayCoins,MATERNITY_TIMELINE!BenefitCategory,$B21) -> 0 | I21: =SUMIFS(MATERNITY_TIMELINE!SubscriberPayNonCov,MATERNITY_TIMELINE!BenefitCategory,$B21)+SUMIFS(MATERNITY_TIMELINE!SubscriberPayExclusion,MATERNITY_TIMELINE!BenefitCategory,$B21) -> 0
B22: =BENEFIT_DESIGN!B26 -> Over-the-counter Drugs | C22: =SUMIFS(MATERNITY_TIMELINE!AllowedAmt,MATERNITY_TIMELINE!BenefitCategory,$B22) -> 61.02 | D22: =SUMIFS(MATERNITY_TIMELINE!PlanPaymentAmt,MATERNITY_TIMELINE!BenefitCategory,$B22) -> 0 | E22: 61.02 | F22: =SUMIFS(MATERNITY_TIMELINE!SubscriberPayDeduc,MATERNITY_TIMELINE!BenefitCategory,$B22) -> 0 | G22: =SUMIFS(MATERNITY_TIMELINE!SubscriberPayCopay,MATERNITY_TIMELINE!BenefitCategory,$B22) -> 0 | H22: =SUMIFS(MATERNITY_TIMELINE!SubscriberPayCoins,MATERNITY_TIMELINE!BenefitCategory,$B22) -> 0 | I22: =SUMIFS(MATERNITY_TIMELINE!SubscriberPayNonCov,MATERNITY_TIMELINE!BenefitCategory,$B22)+SUMIFS(MATERNITY_TIMELINE!SubscriberPayExclusion,MATERNITY_TIMELINE!BenefitCategory,$B22) -> 61.02
B23: =BENEFIT_DESIGN!B27 -> Preventive Services & Vaccines | C23: =SUMIFS(MATERNITY_TIMELINE!AllowedAmt,MATERNITY_TIMELINE!BenefitCategory,$B23) -> 48.76 | D23: =SUMIFS(MATERNITY_TIMELINE!PlanPaymentAmt,MATERNITY_TIMELINE!BenefitCategory,$B23) -> 0 | E23: 48.76 | F23: =SUMIFS(MATERNITY_TIMELINE!SubscriberPayDeduc,MATERNITY_TIMELINE!BenefitCategory,$B23) -> 0 | G23: =SUMIFS(MATERNITY_TIMELINE!SubscriberPayCopay,MATERNITY_TIMELINE!BenefitCategory,$B23) -> 0 | H23: =SUMIFS(MATERNITY_TIMELINE!SubscriberPayCoins,MATERNITY_TIMELINE!BenefitCategory,$B23) -> 0 | I23: =SUMIFS(MATERNITY_TIMELINE!SubscriberPayNonCov,MATERNITY_TIMELINE!BenefitCategory,$B23)+SUMIFS(MATERNITY_TIMELINE!SubscriberPayExclusion,MATERNITY_TIMELINE!BenefitCategory,$B23) -> 48.76
B24: =BENEFIT_DESIGN!B28 -> Durable Medical Equipment | C24: =SUMIFS(MATERNITY_TIMELINE!AllowedAmt,MATERNITY_TIMELINE!BenefitCategory,$B24) -> 0 | D24: =SUMIFS(MATERNITY_TIMELINE!PlanPaymentAmt,MATERNITY_TIMELINE!BenefitCategory,$B24) -> 0 | E24: 0 | F24: =SUMIFS(MATERNITY_TIMELINE!SubscriberPayDeduc,MATERNITY_TIMELINE!BenefitCategory,$B24) -> 0 | G24: =SUMIFS(MATERNITY_TIMELINE!SubscriberPayCopay,MATERNITY_TIMELINE!BenefitCategory,$B24) -> 0 | H24: =SUMIFS(MATERNITY_TIMELINE!SubscriberPayCoins,MATERNITY_TIMELINE!BenefitCategory,$B24) -> 0 | I24: =SUMIFS(MATERNITY_TIMELINE!SubscriberPayNonCov,MATERNITY_TIMELINE!BenefitCategory,$B24)+SUMIFS(MATERNITY_TIMELINE!SubscriberPayExclusion,MATERNITY_TIMELINE!BenefitCategory,$B24) -> 0
B25: =BENEFIT_DESIGN!B29 -> Medical Supplies | C25: =SUMIFS(MATERNITY_TIMELINE!AllowedAmt,MATERNITY_TIMELINE!BenefitCategory,$B25) -> 0 | D25: =SUMIFS(MATERNITY_TIMELINE!PlanPaymentAmt,MATERNITY_TIMELINE!BenefitCategory,$B25) -> 0 | E25: 0 | F25: =SUMIFS(MATERNITY_TIMELINE!SubscriberPayDeduc,MATERNITY_TIMELINE!BenefitCategory,$B25) -> 0 | G25: =SUMIFS(MATERNITY_TIMELINE!SubscriberPayCopay,MATERNITY_TIMELINE!BenefitCategory,$B25) -> 0 | H25: =SUMIFS(MATERNITY_TIMELINE!SubscriberPayCoins,MATERNITY_TIMELINE!BenefitCategory,$B25) -> 0 | I25: =SUMIFS(MATERNITY_TIMELINE!SubscriberPayNonCov,MATERNITY_TIMELINE!BenefitCategory,$B25)+SUMIFS(MATERNITY_TIMELINE!SubscriberPayExclusion,MATERNITY_TIMELINE!BenefitCategory,$B25) -> 0
B26: =BENEFIT_DESIGN!B30 -> Over-the-counter Medical Supplies | C26: =SUMIFS(MATERNITY_TIMELINE!AllowedAmt,MATERNITY_TIMELINE!BenefitCategory,$B26) -> 0 | D26: =SUMIFS(MATERNITY_TIMELINE!PlanPaymentAmt,MATERNITY_TIMELINE!BenefitCategory,$B26) -> 0 | E26: 0 | F26: =SUMIFS(MATERNITY_TIMELINE!SubscriberPayDeduc,MATERNITY_TIMELINE!BenefitCategory,$B26) -> 0 | G26: =SUMIFS(MATERNITY_TIMELINE!SubscriberPayCopay,MATERNITY_TIMELINE!BenefitCategory,$B26) -> 0 | H26: =SUMIFS(MATERNITY_TIMELINE!SubscriberPayCoins,MATERNITY_TIMELINE!BenefitCategory,$B26) -> 0 | I26: =SUMIFS(MATERNITY_TIMELINE!SubscriberPayNonCov,MATERNITY_TIMELINE!BenefitCategory,$B26)+SUMIFS(MATERNITY_TIMELINE!SubscriberPayExclusion,MATERNITY_TIMELINE!BenefitCategory,$B26) -> 0
B27: =BENEFIT_DESIGN!B31 -> Other Items & Services | C27: =SUMIFS(MATERNITY_TIMELINE!AllowedAmt,MATERNITY_TIMELINE!BenefitCategory,$B27) -> 0 | D27: =SUMIFS(MATERNITY_TIMELINE!PlanPaymentAmt,MATERNITY_TIMELINE!BenefitCategory,$B27) -> 0 | E27: 0 | F27: =SUMIFS(MATERNITY_TIMELINE!SubscriberPayDeduc,MATERNITY_TIMELINE!BenefitCategory,$B27) -> 0 | G27: =SUMIFS(MATERNITY_TIMELINE!SubscriberPayCopay,MATERNITY_TIMELINE!BenefitCategory,$B27) -> 0 | H27: =SUMIFS(MATERNITY_TIMELINE!SubscriberPayCoins,MATERNITY_TIMELINE!BenefitCategory,$B27) -> 0 | I27: =SUMIFS(MATERNITY_TIMELINE!SubscriberPayNonCov,MATERNITY_TIMELINE!BenefitCategory,$B27)+SUMIFS(MATERNITY_TIMELINE!SubscriberPayExclusion,MATERNITY_TIMELINE!BenefitCategory,$B27) -> 0
B28: Total (unrounded) | C28: =SUM(C6:C27) -> 12686.85 | D28: =IFERROR(IF(BENEFIT_DESIGN_ERRORS!$C$39,"ERROR",SUM(D6:D27)),"ERROR") -> 0 | E28: =IFERROR(IF(BENEFIT_DESIGN_ERRORS!$C$39,"ERROR",SUM(E6:E27)),"ERROR") -> 12686.85 | F28: =IFERROR(IF(BENEFIT_DESIGN_ERRORS!$C$39,"ERROR",SUM(F6:F27)),"ERROR") -> 0 | G28: =IFERROR(IF(BENEFIT_DESIGN_ERRORS!$C$39,"ERROR",SUM(G6:G27)),"ERROR") -> 0 | H28: =IFERROR(IF(BENEFIT_DESIGN_ERRORS!$C$39,"ERROR",SUM(H6:H27)),"ERROR") -> 0 | I28: =IFERROR(IF(BENEFIT_DESIGN_ERRORS!$C$39,"ERROR",SUM(I6:I27)),"ERROR") -> 12686.85
B29: Total (rounded) | C29: =MROUND(C28,IF(C28>=100,100,10)) -> 12700 | D29: =IFERROR(C29-E29,"ERROR") -> 0 | E29: =IFERROR(IF(BENEFIT_DESIGN_ERRORS!$C$39,"ERROR",MIN(SUM(F29:H29),BENEFIT_DESIGN!C36)+I29),"ERROR") -> 12700 | F29: =IFERROR( IF(BENEFIT_DESIGN_ERRORS!$C$39,"ERROR", MIN( MROUND(F28,IF(F28>=100,100,10)), BENEFIT_PARAMETERS!$N$80) ),"ERROR") -> 0 | G29: =IFERROR(IF(BENEFIT_DESIGN_ERRORS!$C$39,"ERROR",MROUND(G28,IF(G28>=100,100,10))),"ERROR") -> 0 | H29: =IFERROR(IF(BENEFIT_DESIGN_ERRORS!$C$39,"ERROR",MROUND(H28,IF(H28>=100,100,10))),"ERROR") -> 0 | I29: =IFERROR(IF(BENEFIT_DESIGN_ERRORS!$C$39,"ERROR",MROUND(I28,IF(I28>=100,100,10))),"ERROR") -> 12700

Sheet MATERNITY_LINE_ITEM (hidden)
A1: Item or Service Code | B1: Diagnosis Code (ICD-10) | C1: CPT©, HCPCS, or Other Billing Code | D1: Provider Type | E1: Benefit Category | F1: Description | G1: Allowed Amount | H1: Notes | I1: Valid Benefit Category | J1: Timeline Count
A2: 1 | C2: 228298150 | D2: Pharmacy Retail | E2: Prescription Drugs: Generic | F2: Oxycodone/APAP 5mg/325mg (Rx) [1 pill Q6H PRN; 30 pills] | G2: 6.8 | I2: =IF(ISERROR(VLOOKUP(E2,BenefitCategoryList,1,FALSE)),FALSE,TRUE) -> TRUE | J2: =COUNTIF(MATERNITY_TIMELINE!ServiceCode,A2) -> 1
A3: 2 | C3: 53746046605 | D3: Pharmacy Retail | E3: Prescription Drugs: Generic | F3: Ibuprofen 800mg (Rx) [1 pill Q8H PRN; 30 pills] | G3: 3.77 | I3: TRUE | J3: =COUNTIF(MATERNITY_TIMELINE!ServiceCode,A3) -> 1
A4: 5 | B4: O80, Z370 | C4: 1967 | D4: Anesthesiology | E4: Professional Services: Inpatient | F4: Anesth/analg vag delivery | G4: 1399.34 | I4: TRUE | J4: =COUNTIF(MATERNITY_TIMELINE!ServiceCode,A4) -> 1
A5: 6 | B5: O80, Z370 | C5: 59400 | D5: OBGYN | E5: Professional Services: Obstetric Care (Bundled) | F5: Obstetrical Care | G5: 2609.93 | H5: 59400 - Global OB package description/code | I5: TRUE | J5: =COUNTIF(MATERNITY_TIMELINE!ServiceCode,A5) -> 1
A6: 7 | C6: 51991045757 | D6: Pharmacy Retail | E6: Over-the-counter Drugs | F6: Polyethylene Glycol 3350 [1 dose / 17 GM daily] | G6: 15.1 | I6: TRUE | J6: =COUNTIF(MATERNITY_TIMELINE!ServiceCode,A6) -> 1
A7: 8 | C7: 44946104501 | D7: Pharmacy Retail | E7: Over-the-counter Drugs | F7: Prenatal Vitamins (OTC - Bottle of 100) [1 pill daily; 30 pills/month] | G7: 11.48 | I7: TRUE | J7: =COUNTIF(MATERNITY_TIMELINE!ServiceCode,A7) -> 4
A8: 10 | B8: Z23 | C8: 90471 | D8: OBGYN | E8: Preventive Services & Vaccines | F8: Immunization Admin | G8: 28.56 | I8: TRUE | J8: =COUNTIF(MATERNITY_TIMELINE!ServiceCode,A8) -> 1
A9: 11 | B9: Z23 | C9: 90656 | D9: OBGYN | E9: Preventive Services & Vaccines | F9: Flu Vaccine N0 Preserv 3 & > | G9: 20.2 | I9: TRUE | J9: =COUNTIF(MATERNITY_TIMELINE!ServiceCode,A9) -> 1
A10: 12 | B10: Z3400 | C10: 36415 | D10: OBGYN | E10: Diagnostic Services: Laboratory | F10: Routine Venipuncture | G10: 5.3 | H10: Cystic fibrosis screen | I10: TRUE | J10: =COUNTIF(MATERNITY_TIMELINE!ServiceCode,A10) -> 3
A11: 13 | B11: Z3400 | C11: 76805 | D11: Radiology | E11: Diagnostic Services: Radiology | F11: OB US >/= 14 WKS SNGL FETUS | G11: 209.73 | I11: TRUE | J11: =COUNTIF(MATERNITY_TIMELINE!ServiceCode,A11) -> 1
A12: 14 | B12: Z3400 | C12: 80055 | D12: OBGYN | E12: Diagnostic Services: Laboratory | F12: Obstetric Panel | G12: 56.04 | H12: 80055 - Global OB panel code | I12: TRUE | J12: =COUNTIF(MATERNITY_TIMELINE!ServiceCode,A12) -> 1
A13: 15 | B13: Z3400 | C13: 82105 | D13: OBGYN | E13: Diagnostic Services: Laboratory | F13: Alpha-fetoprotein serum | G13: 23.21 | H13: Maternal serum quad screen | I13: TRUE | J13: =COUNTIF(MATERNITY_TIMELINE!ServiceCode,A13) -> 1
A14: 16 | B14: Z3400 | C14: 82677 | D14: OBGYN | E14: Diagnostic Services: Laboratory | F14: Assay of estriol | G14: 28.67 | H14: Maternal serum quad screen | I14: TRUE | J14: =COUNTIF(MATERNITY_TIMELINE!ServiceCode,A14) -> 1
A15: 17 | B15: Z3400 | C15: 82947 | D15: OBGYN | E15: Diagnostic Services: Laboratory | F15: Assay Glucose Blood Quant | G15: 8.21 | I15: TRUE | J15: =COUNTIF(MATERNITY_TIMELINE!ServiceCode,A15) -> 1
A16: 18 | B16: Z3400 | C16: 82950 | D16: OBGYN | E16: Diagnostic Services: Laboratory | F16: Glucose Test | G16: 10.03 | I16: TRUE | J16: =COUNTIF(MATERNITY_TIMELINE!ServiceCode,A16) -> 1
A17: 25 | B17: Z3400 | C17: 84702 | D17: OBGYN | E17: Diagnostic Services: Laboratory | F17: Chorionic gonadotropin test | G17: 24.94 | H17: Maternal serum quad screen | I17: TRUE | J17: =COUNTIF(MATERNITY_TIMELINE!ServiceCode,A17) -> 1
A18: 26 | B18: Z3400 | C18: 85025 | D18: OBGYN | E18: Diagnostic Services: Laboratory | F18: Complete cbc w/auto diff wbc | G18: 13.99 | I18: TRUE | J18: =COUNTIF(MATERNITY_TIMELINE!ServiceCode,A18) -> 1
A19: 27 | B19: Z3400 | C19: 86336 | D19: OBGYN | E19: Diagnostic Services: Laboratory | F19: Inhibin A | G19: 21.67 | H19: Maternal serum quad screen | I19: TRUE | J19: =COUNTIF(MATERNITY_TIMELINE!ServiceCode,A19) -> 1
A20: 28 | B20: Z3400 | C20: 86701 | D20: OBGYN | E20: Diagnostic Services: Laboratory | F20: HIV-1 | G20: 17.37 | I20: TRUE | J20: =COUNTIF(MATERNITY_TIMELINE!ServiceCode,A20) -> 1
A21: 29 | B21: Z3400 | C21: 87653 | D21: OBGYN | E21: Diagnostic Services: Laboratory | F21: Strep B DNA Amp Probe | G21: 61.22 | I21: TRUE | J21: =COUNTIF(MATERNITY_TIMELINE!ServiceCode,A21) -> 1
A22: 30 | B22: Z3400 | C22: 87801 | D22: OBGYN | E22: Diagnostic Services: Laboratory | F22: Detect agnt mult dna ampli | G22: 119.67 | H22: Gonorrhea / Chlamydia screen | I22: TRUE | J22: =COUNTIF(MATERNITY_TIMELINE!ServiceCode,A22) -> 1
A23: 31 | B23: Z3400 | C23: 88175 | D23: OBGYN | E23: Diagnostic Services: Laboratory | F23: Cytopath c/v auto fluid redo | G23: 36.94 | H23: Pap smear | I23: TRUE | J23: =COUNTIF(MATERNITY_TIMELINE!ServiceCode,A23) -> 1
A24: 32 | B24: Z3400 | C24: 59400 | D24: OBGYN | E24: Professional Services: Obstetric Care (Bundled) | F24: Office/Outpatient Visit Est | H24: Bundled into 6 | I24: TRUE | J24: =COUNTIF(MATERNITY_TIMELINE!ServiceCode,A24) -> 14
A25: 33 | B25: Z392 | C25: 59400 | D25: OBGYN | E25: Professional Services: Obstetric Care (Bundled) | F25: Office/Outpatient Visit Est | H25: Post partum visit; Bundled into 6 | I25: TRUE | J25: =COUNTIF(MATERNITY_TIMELINE!ServiceCode,A25) -> 1
A26: 34 | B26: Z3800 | C26: 775 | D26: Inpatient Facility | E26: Inpatient Hospital Care (Facility) | F26: Vaginal delivery w/o complicating diagnoses | G26: 7060.58 | I26: TRUE | J26: =COUNTIF(MATERNITY_TIMELINE!ServiceCode,A26) -> 1
A27: 35 | B27: Z3201 | C27: 81025 | D27: OBGYN | E27: Diagnostic Services: Laboratory | F27: Urine Pregnancy Test | G27: 9.86 | I27: TRUE | J27: =COUNTIF(MATERNITY_TIMELINE!ServiceCode,A27) -> 1
A28: 37 | B28: Z3400 | C28: 81220 | D28: OBGYN | E28: Diagnostic Services: Laboratory | F28: CFTR gene analysis, common variants | G28: 595.43 | I28: TRUE | J28: =COUNTIF(MATERNITY_TIMELINE!ServiceCode,A28) -> 1
A29: 41 | B29: Z3400 | C29: 76815 | D29: Radiology | E29: Diagnostic Services: Radiology | F29: Ultrasound of pregnant uterus, 1 or more fetus(es) | G29: 133.68 | I29: TRUE | J29: =COUNTIF(MATERNITY_TIMELINE!ServiceCode,A29) -> 1
A30: 42 | B30: Z3400 | C30: 87086 | D30: OBGYN | E30: Diagnostic Services: Laboratory | F30: Urine culture/colony count | G30: 13.12 | I30: TRUE | J30: =COUNTIF(MATERNITY_TIMELINE!ServiceCode,A30) -> 1
A31: 43 | B31: Z3400 | C31: 81001 | D31: OBGYN | E31: Diagnostic Services: Laboratory | F31: Urinalysis auto w/scope | G31: 8.67 | I31: TRUE | J31: =COUNTIF(MATERNITY_TIMELINE!ServiceCode,A31) -> 1
A32: 44 | B32: Z3400 | C32: 87491 | D32: OBGYN | E32: Diagnostic Services: Laboratory | F32: Chylmd trach dna amp probe | G32: 44.48 | I32: TRUE | J32: =COUNTIF(MATERNITY_TIMELINE!ServiceCode,A32) -> 1
A33: 45 | B33: Z3400 | C33: 87591 | D33: OBGYN | E33: Diagnostic Services: Laboratory | F33: N.gonorrhoeae dna amp prob | G33: 43.82 | I33: TRUE | J33: =COUNTIF(MATERNITY_TIMELINE!ServiceCode,A33) -> 1

Sheet DIABETES_SUMMARY (hidden)
B2: Type 2 Diabetes Example: Summary of Subscriber and Plan Payments
B4: =nrCBPlanNameRS -> Plan 1 | C4: Allowed Amount | D4: Plan Payment | E4: Subscriber pays:
B5: Benefit category | E5: Total subscriber payment | F5: Subscriber-paid deductible | G5: Subscriber-paid copayment | H5: Subscriber-paid coinsurance | I5: Non-covered and exclusions
B6: =BENEFIT_DESIGN!B10 -> Inpatient Hospital Care (Facility) | C6: =SUMIFS(DIABETES_TIMELINE!AllowedAmt,DIABETES_TIMELINE!BenefitCategory,$B6) -> 0 | D6: =SUMIFS(DIABETES_TIMELINE!PlanPaymentAmt,DIABETES_TIMELINE!BenefitCategory,$B6) -> 0 | E6: =SUM(F6:I6) -> 0 | F6: =SUMIFS(DIABETES_TIMELINE!SubscriberPayDeduc,DIABETES_TIMELINE!BenefitCategory,$B6) -> 0 | G6: =SUMIFS(DIABETES_TIMELINE!SubscriberPayCopay,DIABETES_TIMELINE!BenefitCategory,$B6) -> 0 | H6: =SUMIFS(DIABETES_TIMELINE!SubscriberPayCoins,DIABETES_TIMELINE!BenefitCategory,$B6) -> 0 | I6: =SUMIFS(DIABETES_TIMELINE!SubscriberPayNonCov,DIABETES_TIMELINE!BenefitCategory,$B6)+SUMIFS(DIABETES_TIMELINE!SubscriberPayExclusion,DIABETES_TIMELINE!BenefitCategory,$B6) -> 0
B7: =BENEFIT_DESIGN!B11 -> Other Facility Services | C7: =SUMIFS(DIABETES_TIMELINE!AllowedAmt,DIABETES_TIMELINE!BenefitCategory,$B7) -> 0 | D7: =SUMIFS(DIABETES_TIMELINE!PlanPaymentAmt,DIABETES_TIMELINE!BenefitCategory,$B7) -> 0 | E7: =SUM(F7:I7) -> 0 | F7: =SUMIFS(DIABETES_TIMELINE!SubscriberPayDeduc,DIABETES_TIMELINE!BenefitCategory,$B7) -> 0 | G7: =SUMIFS(DIABETES_TIMELINE!SubscriberPayCopay,DIABETES_TIMELINE!BenefitCategory,$B7) -> 0 | H7: =SUMIFS(DIABETES_TIMELINE!SubscriberPayCoins,DIABETES_TIMELINE!BenefitCategory,$B7) -> 0 | I7: =SUMIFS(DIABETES_TIMELINE!SubscriberPayNonCov,DIABETES_TIMELINE!BenefitCategory,$B7)+SUMIFS(DIABETES_TIMELINE!SubscriberPayExclusion,DIABETES_TIMELINE!BenefitCategory,$B7) -> 0
B8: =BENEFIT_DESIGN!B12 -> Emergency Department (Facility) | C8: =SUMIFS(DIABETES_TIMELINE!AllowedAmt,DIABETES_TIMELINE!BenefitCategory,$B8) -> 0 | D8: =SUMIFS(DIABETES_TIMELINE!PlanPaymentAmt,DIABETES_TIMELINE!BenefitCategory,$B8) -> 0 | E8: 0 | F8: =SUMIFS(DIABETES_TIMELINE!SubscriberPayDeduc,DIABETES_TIMELINE!BenefitCategory,$B8) -> 0 | G8: =SUMIFS(DIABETES_TIMELINE!SubscriberPayCopay,DIABETES_TIMELINE!BenefitCategory,$B8) -> 0 | H8: =SUMIFS(DIABETES_TIMELINE!SubscriberPayCoins,DIABETES_TIMELINE!BenefitCategory,$B8) -> 0 | I8: =SUMIFS(DIABETES_TIMELINE!SubscriberPayNonCov,DIABETES_TIMELINE!BenefitCategory,$B8)+SUMIFS(DIABETES_TIMELINE!SubscriberPayExclusion,DIABETES_TIMELINE!BenefitCategory,$B8) -> 0
B9: =BENEFIT_DESIGN!B13 -> Ambulance | C9: =SUMIFS(DIABETES_TIMELINE!AllowedAmt,DIABETES_TIMELINE!BenefitCategory,$B9) -> 0 | D9: =SUMIFS(DIABETES_TIMELINE!PlanPaymentAmt,DIABETES_TIMELINE!BenefitCategory,$B9) -> 0 | E9: 0 | F9: =SUMIFS(DIABETES_TIMELINE!SubscriberPayDeduc,DIABETES_TIMELINE!BenefitCategory,$B9) -> 0 | G9: =SUMIFS(DIABETES_TIMELINE!SubscriberPayCopay,DIABETES_TIMELINE!BenefitCategory,$B9) -> 0 | H9: =SUMIFS(DIABETES_TIMELINE!SubscriberPayCoins,DIABETES_TIMELINE!BenefitCategory,$B9) -> 0 | I9: =SUMIFS(DIABETES_TIMELINE!SubscriberPayNonCov,DIABETES_TIMELINE!BenefitCategory,$B9)+SUMIFS(DIABETES_TIMELINE!SubscriberPayExclusion,DIABETES_TIMELINE!BenefitCategory,$B9) -> 0
B10: =BENEFIT_DESIGN!B14 -> Professional Services: Primary Care | C10: =SUMIFS(DIABETES_TIMELINE!AllowedAmt,DIABETES_TIMELINE!BenefitCategory,$B10) -> 716.1 | D10: =SUMIFS(DIABETES_TIMELINE!PlanPaymentAmt,DIABETES_TIMELINE!BenefitCategory,$B10) -> 0 | E10: 716.1 | F10: =SUMIFS(DIABETES_TIMELINE!SubscriberPayDeduc,DIABETES_TIMELINE!BenefitCategory,$B10) -> 0 | G10: =SUMIFS(DIABETES_TIMELINE!SubscriberPayCopay,DIABETES_TIMELINE!BenefitCategory,$B10) -> 0 | H10: =SUMIFS(DIABETES_TIMELINE!SubscriberPayCoins,DIABETES_TIMELINE!BenefitCategory,$B10) -> 0 | I10: =SUMIFS(DIABETES_TIMELINE!SubscriberPayNonCov,DIABETES_TIMELINE!BenefitCategory,$B10)+SUMIFS(DIABETES_TIMELINE!SubscriberPayExclusion,DIABETES_TIMELINE!BenefitCategory,$B10) -> 716.1
B11: =BENEFIT_DESIGN!B15 -> Professional Services: Emergency Department | C11: =SUMIFS(DIABETES_TIMELINE!AllowedAmt,DIABETES_TIMELINE!BenefitCategory,$B11) -> 0 | D11: =SUMIFS(DIABETES_TIMELINE!PlanPaymentAmt,DIABETES_TIMELINE!BenefitCategory,$B11) -> 0 | E11: 0 | F11: =SUMIFS(DIABETES_TIMELINE!SubscriberPayDeduc,DIABETES_TIMELINE!BenefitCategory,$B11) -> 0 | G11: =SUMIFS(DIABETES_TIMELINE!SubscriberPayCopay,DIABETES_TIMELINE!BenefitCategory,$B11) -> 0 | H11: =SUMIFS(DIABETES_TIMELINE!SubscriberPayCoins,DIABETES_TIMELINE!BenefitCategory,$B11) -> 0 | I11: =SUMIFS(DIABETES_TIMELINE!SubscriberPayNonCov,DIABETES_TIMELINE!BenefitCategory,$B11)+SUMIFS(DIABETES_TIMELINE!SubscriberPayExclusion,DIABETES_TIMELINE!BenefitCategory,$B11) -> 0
B12: =BENEFIT_DESIGN!B16 -> Professional Services: Inpatient | C12: =SUMIFS(DIABETES_TIMELINE!AllowedAmt,DIABETES_TIMELINE!BenefitCategory,$B12) -> 0 | D12: =SUMIFS(DIABETES_TIMELINE!PlanPaymentAmt,DIABETES_TIMELINE!BenefitCategory,$B12) -> 0 | E12: =SUM(F12:I12) -> 0 | F12: =SUMIFS(DIABETES_TIMELINE!SubscriberPayDeduc,DIABETES_TIMELINE!BenefitCategory,$B12) -> 0 | G12: =SUMIFS(DIABETES_TIMELINE!SubscriberPayCopay,DIABETES_TIMELINE!BenefitCategory,$B12) -> 0 | H12: =SUMIFS(DIABETES_TIMELINE!SubscriberPayCoins,DIABETES_TIMELINE!BenefitCategory,$B12) -> 0 | I12: =SUMIFS(DIABETES_TIMELINE!SubscriberPayNonCov,DIABETES_TIMELINE!BenefitCategory,$B12)+SUMIFS(DIABETES_TIMELINE!SubscriberPayExclusion,DIABETES_TIMELINE!BenefitCategory,$B12) -> 0
B13: =BENEFIT_DESIGN!B17 -> Professional Services: Specialist | C13: =SUMIFS(DIABETES_TIMELINE!AllowedAmt,DIABETES_TIMELINE!BenefitCategory,$B13) -> 300.74 | D13: =SUMIFS(DIABETES_TIMELINE!PlanPaymentAmt,DIABETES_TIMELINE!BenefitCategory,$B13) -> 0 | E13: 300.74 | F13: =SUMIFS(DIABETES_TIMELINE!SubscriberPayDeduc,DIABETES_TIMELINE!BenefitCategory,$B13) -> 0 | G13: =SUMIFS(DIABETES_TIMELINE!SubscriberPayCopay,DIABETES_TIMELINE!BenefitCategory,$B13) -> 0 | H13: =SUMIFS(DIABETES_TIMELINE!SubscriberPayCoins,DIABETES_TIMELINE!BenefitCategory,$B13) -> 0 | I13: =SUMIFS(DIABETES_TIMELINE!SubscriberPayNonCov,DIABETES_TIMELINE!BenefitCategory,$B13)+SUMIFS(DIABETES_TIMELINE!SubscriberPayExclusion,DIABETES_TIMELINE!BenefitCategory,$B13) -> 300.74
B14: =BENEFIT_DESIGN!B18 -> Professional Services: Obstetric Care (Bundled) | C14: =SUMIFS(DIABETES_TIMELINE!AllowedAmt,DIABETES_TIMELINE!BenefitCategory,$B14) -> 0 | D14: =SUMIFS(DIABETES_TIMELINE!PlanPaymentAmt,DIABETES_TIMELINE!BenefitCategory,$B14) -> 0 | E14: 0 | F14: =SUMIFS(DIABETES_TIMELINE!SubscriberPayDeduc,DIABETES_TIMELINE!BenefitCategory,$B14) -> 0 | G14: =SUMIFS(DIABETES_TIMELINE!SubscriberPayCopay,DIABETES_TIMELINE!BenefitCategory,$B14) -> 0 | H14: =SUMIFS(DIABETES_TIMELINE!SubscriberPayCoins,DIABETES_TIMELINE!BenefitCategory,$B14) -> 0 | I14: =SUMIFS(DIABETES_TIMELINE!SubscriberPayNonCov,DIABETES_TIMELINE!BenefitCategory,$B14)+SUMIFS(DIABETES_TIMELINE!SubscriberPayExclusion,DIABETES_TIMELINE!BenefitCategory,$B14) -> 0
B15: =BENEFIT_DESIGN!B19 -> Professional Services: Procedures & Other | C15: =SUMIFS(DIABETES_TIMELINE!AllowedAmt,DIABETES_TIMELINE!BenefitCategory,$B15) -> 0 | D15: =SUMIFS(DIABETES_TIMELINE!PlanPaymentAmt,DIABETES_TIMELINE!BenefitCategory,$B15) -> 0 | E15: 0 | F15: =SUMIFS(DIABETES_TIMELINE!SubscriberPayDeduc,DIABETES_TIMELINE!BenefitCategory,$B15) -> 0 | G15: =SUMIFS(DIABETES_TIMELINE!SubscriberPayCopay,DIABETES_TIMELINE!BenefitCategory,$B15) -> 0 | H15: =SUMIFS(DIABETES_TIMELINE!SubscriberPayCoins,DIABETES_TIMELINE!BenefitCategory,$B15) -> 0 | I15: =SUMIFS(DIABETES_TIMELINE!SubscriberPayNonCov,DIABETES_TIMELINE!BenefitCategory,$B15)+SUMIFS(DIABETES_TIMELINE!SubscriberPayExclusion,DIABETES_TIMELINE!BenefitCategory,$B15) -> 0
B16: =BENEFIT_DESIGN!B20 -> Professional Services: Physical Therapy | C16: =SUMIFS(DIABETES_TIMELINE!AllowedAmt,DIABETES_TIMELINE!BenefitCategory,$B16) -> 0 | D16: =SUMIFS(DIABETES_TIMELINE!PlanPaymentAmt,DIABETES_TIMELINE!BenefitCategory,$B16) -> 0 | E16: 0 | F16: =SUMIFS(DIABETES_TIMELINE!SubscriberPayDeduc,DIABETES_TIMELINE!BenefitCategory,$B16) -> 0 | G16: =SUMIFS(DIABETES_TIMELINE!SubscriberPayCopay,DIABETES_TIMELINE!BenefitCategory,$B16) -> 0 | H16: =SUMIFS(DIABETES_TIMELINE!SubscriberPayCoins,DIABETES_TIMELINE!BenefitCategory,$B16) -> 0 | I16: =SUMIFS(DIABETES_TIMELINE!SubscriberPayNonCov,DIABETES_TIMELINE!BenefitCategory,$B16)+SUMIFS(DIABETES_TIMELINE!SubscriberPayExclusion,DIABETES_TIMELINE!BenefitCategory,$B16) -> 0
B17: =BENEFIT_DESIGN!B21 -> Diagnostic Services: Radiology | C17: =SUMIFS(DIABETES_TIMELINE!AllowedAmt,DIABETES_TIMELINE!BenefitCategory,$B17) -> 0 | D17: =SUMIFS(DIABETES_TIMELINE!PlanPaymentAmt,DIABETES_TIMELINE!BenefitCategory,$B17) -> 0 | E17: 0 | F17: =SUMIFS(DIABETES_TIMELINE!SubscriberPayDeduc,DIABETES_TIMELINE!BenefitCategory,$B17) -> 0 | G17: =SUMIFS(DIABETES_TIMELINE!SubscriberPayCopay,DIABETES_TIMELINE!BenefitCategory,$B17) -> 0 | H17: =SUMIFS(DIABETES_TIMELINE!SubscriberPayCoins,DIABETES_TIMELINE!BenefitCategory,$B17) -> 0 | I17: =SUMIFS(DIABETES_TIMELINE!SubscriberPayNonCov,DIABETES_TIMELINE!BenefitCategory,$B17)+SUMIFS(DIABETES_TIMELINE!SubscriberPayExclusion,DIABETES_TIMELINE!BenefitCategory,$B17) -> 0
B18: =BENEFIT_DESIGN!B22 -> Diagnostic Services: Laboratory | C18: =SUMIFS(DIABETES_TIMELINE!AllowedAmt,DIABETES_TIMELINE!BenefitCategory,$B18) -> 122.48 | D18: =SUMIFS(DIABETES_TIMELINE!PlanPaymentAmt,DIABETES_TIMELINE!BenefitCategory,$B18) -> 0 | E18: 122.48 | F18: =SUMIFS(DIABETES_TIMELINE!SubscriberPayDeduc,DIABETES_TIMELINE!BenefitCategory,$B18) -> 0 | G18: =SUMIFS(DIABETES_TIMELINE!SubscriberPayCopay,DIABETES_TIMELINE!BenefitCategory,$B18) -> 0 | H18: =SUMIFS(DIABETES_TIMELINE!SubscriberPayCoins,DIABETES_TIMELINE!BenefitCategory,$B18) -> 0 | I18: =SUMIFS(DIABETES_TIMELINE!SubscriberPayNonCov,DIABETES_TIMELINE!BenefitCategory,$B18)+SUMIFS(DIABETES_TIMELINE!SubscriberPayExclusion,DIABETES_TIMELINE!BenefitCategory,$B18) -> 122.48
B19: =BENEFIT_DESIGN!B23 -> Prescription Drugs: Generic | C19: =SUMIFS(DIABETES_TIMELINE!AllowedAmt,DIABETES_TIMELINE!BenefitCategory,$B19) -> 365.36 | D19: =SUMIFS(DIABETES_TIMELINE!PlanPaymentAmt,DIABETES_TIMELINE!BenefitCategory,$B19) -> 0 | E19: 365.36 | F19: =SUMIFS(DIABETES_TIMELINE!SubscriberPayDeduc,DIABETES_TIMELINE!BenefitCategory,$B19) -> 0 | G19: =SUMIFS(DIABETES_TIMELINE!SubscriberPayCopay,DIABETES_TIMELINE!BenefitCategory,$B19) -> 0 | H19: =SUMIFS(DIABETES_TIMELINE!SubscriberPayCoins,DIABETES_TIMELINE!BenefitCategory,$B19) -> 0 | I19: =SUMIFS(DIABETES_TIMELINE!SubscriberPayNonCov,DIABETES_TIMELINE!BenefitCategory,$B19)+SUMIFS(DIABETES_TIMELINE!SubscriberPayExclusion,DIABETES_TIMELINE!BenefitCategory,$B19) -> 365.36
B20: =BENEFIT_DESIGN!B24 -> Prescription Drugs: Branded | C20: =SUMIFS(DIABETES_TIMELINE!AllowedAmt,DIABETES_TIMELINE!BenefitCategory,$B20) -> 0 | D20: =SUMIFS(DIABETES_TIMELINE!PlanPaymentAmt,DIABETES_TIMELINE!BenefitCategory,$B20) -> 0 | E20: 0 | F20: =SUMIFS(DIABETES_TIMELINE!SubscriberPayDeduc,DIABETES_TIMELINE!BenefitCategory,$B20) -> 0 | G20: =SUMIFS(DIABETES_TIMELINE!SubscriberPayCopay,DIABETES_TIMELINE!BenefitCategory,$B20) -> 0 | H20: =SUMIFS(DIABETES_TIMELINE!SubscriberPayCoins,DIABETES_TIMELINE!BenefitCategory,$B20) -> 0 | I20: =SUMIFS(DIABETES_TIMELINE!SubscriberPayNonCov,DIABETES_TIMELINE!BenefitCategory,$B20)+SUMIFS(DIABETES_TIMELINE!SubscriberPayExclusion,DIABETES_TIMELINE!BenefitCategory,$B20) -> 0
B21: =BENEFIT_DESIGN!B25 -> Prescription Drugs: Insulin | C21: =SUMIFS(DIABETES_TIMELINE!AllowedAmt,DIABETES_TIMELINE!BenefitCategory,$B21) -> 3124.81 | D21: =SUMIFS(DIABETES_TIMELINE!PlanPaymentAmt,DIABETES_TIMELINE!BenefitCategory,$B21) -> 0 | E21: =SUM(F21:I21) -> 3124.81 | F21: =SUMIFS(DIABETES_TIMELINE!SubscriberPayDeduc,DIABETES_TIMELINE!BenefitCategory,$B21) -> 0 | G21: =SUMIFS(DIABETES_TIMELINE!SubscriberPayCopay,DIABETES_TIMELINE!BenefitCategory,$B21) -> 0 | H21: =SUMIFS(DIABETES_TIMELINE!SubscriberPayCoins,DIABETES_TIMELINE!BenefitCategory,$B21) -> 0 | I21: =SUMIFS(DIABETES_TIMELINE!SubscriberPayNonCov,DIABETES_TIMELINE!BenefitCategory,$B21)+SUMIFS(DIABETES_TIMELINE!SubscriberPayExclusion,DIABETES_TIMELINE!BenefitCategory,$B21) -> 3124.81
B22: =BENEFIT_DESIGN!B26 -> Over-the-counter Drugs | C22: =SUMIFS(DIABETES_TIMELINE!AllowedAmt,DIABETES_TIMELINE!BenefitCategory,$B22) -> 22.35 | D22: =SUMIFS(DIABETES_TIMELINE!PlanPaymentAmt,DIABETES_TIMELINE!BenefitCategory,$B22) -> 0 | E22: 22.35 | F22: =SUMIFS(DIABETES_TIMELINE!SubscriberPayDeduc,DIABETES_TIMELINE!BenefitCategory,$B22) -> 0 | G22: =SUMIFS(DIABETES_TIMELINE!SubscriberPayCopay,DIABETES_TIMELINE!BenefitCategory,$B22) -> 0 | H22: =SUMIFS(DIABETES_TIMELINE!SubscriberPayCoins,DIABETES_TIMELINE!BenefitCategory,$B22) -> 0 | I22: =SUMIFS(DIABETES_TIMELINE!SubscriberPayNonCov,DIABETES_TIMELINE!BenefitCategory,$B22)+SUMIFS(DIABETES_TIMELINE!SubscriberPayExclusion,DIABETES_TIMELINE!BenefitCategory,$B22) -> 22.35
B23: =BENEFIT_DESIGN!B27 -> Preventive Services & Vaccines | C23: =SUMIFS(DIABETES_TIMELINE!AllowedAmt,DIABETES_TIMELINE!BenefitCategory,$B23) -> 158.95 | D23: =SUMIFS(DIABETES_TIMELINE!PlanPaymentAmt,DIABETES_TIMELINE!BenefitCategory,$B23) -> 0 | E23: 158.95 | F23: =SUMIFS(DIABETES_TIMELINE!SubscriberPayDeduc,DIABETES_TIMELINE!BenefitCategory,$B23) -> 0 | G23: =SUMIFS(DIABETES_TIMELINE!SubscriberPayCopay,DIABETES_TIMELINE!BenefitCategory,$B23) -> 0 | H23: =SUMIFS(DIABETES_TIMELINE!SubscriberPayCoins,DIABETES_TIMELINE!BenefitCategory,$B23) -> 0 | I23: =SUMIFS(DIABETES_TIMELINE!SubscriberPayNonCov,DIABETES_TIMELINE!BenefitCategory,$B23)+SUMIFS(DIABETES_TIMELINE!SubscriberPayExclusion,DIABETES_TIMELINE!BenefitCategory,$B23) -> 158.95
B24: =BENEFIT_DESIGN!B28 -> Durable Medical Equipment | C24: =SUMIFS(DIABETES_TIMELINE!AllowedAmt,DIABETES_TIMELINE!BenefitCategory,$B24) -> 0 | D24: =SUMIFS(DIABETES_TIMELINE!PlanPaymentAmt,DIABETES_TIMELINE!BenefitCategory,$B24) -> 0 | E24: 0 | F24: =SUMIFS(DIABETES_TIMELINE!SubscriberPayDeduc,DIABETES_TIMELINE!BenefitCategory,$B24) -> 0 | G24: =SUMIFS(DIABETES_TIMELINE!SubscriberPayCopay,DIABETES_TIMELINE!BenefitCategory,$B24) -> 0 | H24: =SUMIFS(DIABETES_TIMELINE!SubscriberPayCoins,DIABETES_TIMELINE!BenefitCategory,$B24) -> 0 | I24: =SUMIFS(DIABETES_TIMELINE!SubscriberPayNonCov,DIABETES_TIMELINE!BenefitCategory,$B24)+SUMIFS(DIABETES_TIMELINE!SubscriberPayExclusion,DIABETES_TIMELINE!BenefitCategory,$B24) -> 0
B25: =BENEFIT_DESIGN!B29 -> Medical Supplies | C25: =SUMIFS(DIABETES_TIMELINE!AllowedAmt,DIABETES_TIMELINE!BenefitCategory,$B25) -> 790.34 | D25: =SUMIFS(DIABETES_TIMELINE!PlanPaymentAmt,DIABETES_TIMELINE!BenefitCategory,$B25) -> 0 | E25: 790.34 | F25: =SUMIFS(DIABETES_TIMELINE!SubscriberPayDeduc,DIABETES_TIMELINE!BenefitCategory,$B25) -> 0 | G25: =SUMIFS(DIABETES_TIMELINE!SubscriberPayCopay,DIABETES_TIMELINE!BenefitCategory,$B25) -> 0 | H25: =SUMIFS(DIABETES_TIMELINE!SubscriberPayCoins,DIABETES_TIMELINE!BenefitCategory,$B25) -> 0 | I25: =SUMIFS(DIABETES_TIMELINE!SubscriberPayNonCov,DIABETES_TIMELINE!BenefitCategory,$B25)+SUMIFS(DIABETES_TIMELINE!SubscriberPayExclusion,DIABETES_TIMELINE!BenefitCategory,$B25) -> 790.34
B26: =BENEFIT_DESIGN!B30 -> Over-the-counter Medical Supplies | C26: =SUMIFS(DIABETES_TIMELINE!AllowedAmt,DIABETES_TIMELINE!BenefitCategory,$B26) -> 0 | D26: =SUMIFS(DIABETES_TIMELINE!PlanPaymentAmt,DIABETES_TIMELINE!BenefitCategory,$B26) -> 0 | E26: 0 | F26: =SUMIFS(DIABETES_TIMELINE!SubscriberPayDeduc,DIABETES_TIMELINE!BenefitCategory,$B26) -> 0 | G26: =SUMIFS(DIABETES_TIMELINE!SubscriberPayCopay,DIABETES_TIMELINE!BenefitCategory,$B26) -> 0 | H26: =SUMIFS(DIABETES_TIMELINE!SubscriberPayCoins,DIABETES_TIMELINE!BenefitCategory,$B26) -> 0 | I26: =SUMIFS(DIABETES_TIMELINE!SubscriberPayNonCov,DIABETES_TIMELINE!BenefitCategory,$B26)+SUMIFS(DIABETES_TIMELINE!SubscriberPayExclusion,DIABETES_TIMELINE!BenefitCategory,$B26) -> 0
B27: =BENEFIT_DESIGN!B31 -> Other Items & Services | C27: =SUMIFS(DIABETES_TIMELINE!AllowedAmt,DIABETES_TIMELINE!BenefitCategory,$B27) -> 0 | D27: =SUMIFS(DIABETES_TIMELINE!PlanPaymentAmt,DIABETES_TIMELINE!BenefitCategory,$B27) -> 0 | E27: 0 | F27: =SUMIFS(DIABETES_TIMELINE!SubscriberPayDeduc,DIABETES_TIMELINE!BenefitCategory,$B27) -> 0 | G27: =SUMIFS(DIABETES_TIMELINE!SubscriberPayCopay,DIABETES_TIMELINE!BenefitCategory,$B27) -> 0 | H27: =SUMIFS(DIABETES_TIMELINE!SubscriberPayCoins,DIABETES_TIMELINE!BenefitCategory,$B27) -> 0 | I27: =SUMIFS(DIABETES_TIMELINE!SubscriberPayNonCov,DIABETES_TIMELINE!BenefitCategory,$B27)+SUMIFS(DIABETES_TIMELINE!SubscriberPayExclusion,DIABETES_TIMELINE!BenefitCategory,$B27) -> 0
B28: Total (unrounded) | C28: =SUM(C6:C27) -> 5601.13 | D28: =IFERROR(IF(BENEFIT_DESIGN_ERRORS!$C$39,"ERROR",SUM(D6:D27)),"ERROR") -> 0 | E28: =IFERROR(IF(BENEFIT_DESIGN_ERRORS!$C$39,"ERROR",SUM(E6:E27)),"ERROR") -> 5601.13 | F28: =IFERROR(IF(BENEFIT_DESIGN_ERRORS!$C$39,"ERROR",SUM(F6:F27)),"ERROR") -> 0 | G28: =IFERROR(IF(BENEFIT_DESIGN_ERRORS!$C$39,"ERROR",SUM(G6:G27)),"ERROR") -> 0 | H28: =IFERROR(IF(BENEFIT_DESIGN_ERRORS!$C$39,"ERROR",SUM(H6:H27)),"ERROR") -> 0 | I28: =IFERROR(IF(BENEFIT_DESIGN_ERRORS!$C$39,"ERROR",SUM(I6:I27)),"ERROR") -> 5601.13
B29: Total (rounded) | C29: =MROUND(C28,IF(C28>=100,100,10)) -> 5600 | D29: =IFERROR(C29-E29,"ERROR") -> 0 | E29: =IFERROR(IF(BENEFIT_DESIGN_ERRORS!$C$39,"ERROR",MIN(SUM(F29:H29),BENEFIT_DESIGN!C36)+I29),"ERROR") -> 5600 | F29: =IFERROR( IF(BENEFIT_DESIGN_ERRORS!$C$39,"ERROR", MIN( MROUND(F28,IF(F28>=100,100,10)), BENEFIT_PARAMETERS!$O$80) ),"ERROR") -> 0 | G29: =IFERROR(IF(BENEFIT_DESIGN_ERRORS!$C$39,"ERROR",MROUND(G28,IF(G28>=100,100,10))),"ERROR") -> 0 | H29: =IFERROR(IF(BENEFIT_DESIGN_ERRORS!$C$39,"ERROR",MROUND(H28,IF(H28>=100,100,10))),"ERROR") -> 0 | I29: =IFERROR(IF(BENEFIT_DESIGN_ERRORS!$C$39,"ERROR",MROUND(I28,IF(I28>=100,100,10))),"ERROR") -> 5600

Sheet MATERNITY_TIMELINE (hidden)
CB1: =COUNTIF(CB4:CB53,FALSE)=0 -> TRUE
H2: Phase 1: Determine Covered Amount | K2: Phase 2: Apply OOP Limit | O2: Phase 3a: Apply Special cost sharing - Begin Primary Care cost-sharing after a set number of visits? | U2: Phase 3b: Apply special cost sharing: Begin primary care cost sharing deductible or coinsurance after a set number of copays? | AD2: Phase 4: Apply monthly/annual limit | AN2: Phase 5: Plan deductible | AR2: Phase 5: Rx deductible | AV2: Phase 5: Optional deductible C | AZ2: Phase 5: Optional deductible D | BD2: Phase 5: Benefit deductible | BH2: Phase 5 Summary | BJ2: Phase 6: Apply copay and coinsurance | BS2: Phase 7: Calculate total subscriber pays | BV2: Phase 8: Summarize payments by payer and phase category
A3: Claim number | B3: Date | C3: Calendar Month | D3: Item or Service Code | E3: Description | F3: Benefit Category | G3: Cost-sharing type | H3: Allowed amount | I3: Service Not covered | J3: Remaining Covered Amount | K3: OPL Valid? | L3: OPL applies | M3: OPL | N3: Remaining OPL after previous subscriber payments | O3: Primary Care Visit? | P3: Begin Primary Care Cost-Sharing After A Set Number of Visits? | Q3: # Visits | R3: Primary Care Prior Use | S3: Visit Covered at 100% by plan | T3: Remaining Covered Amount | U3: Primary Care Visit? | V3: Begin Primary Care Cost-Sharing Deductible or Coinsurance After a Set Number of Copays? | W3: # Visits | X3: Primary Care Prior Copay Paid | Y3: Copay Value | Z3: Subscriber-Paid Copay | AA3: Plan Paid | AB3: Remaining OPL | AC3: Remaining Covered Amount | AD3: Monthly Limit Valid? | AE3: Monthly limit | AF3: Prior use (month) | AG3: Not Covered because monthly limit exceeded | AH3: Annual Limit Valid? | AI3: Annual limit | AJ3: Prior use (annual) | AK3: Not Covered because use limit exceeded | AL3: Total Not Covered because use limit exceeded | AM3: Covered amount | AN3: Uses Plan deductible? | AO3: Plan Deductible | AP3: Remaining plan deductible after previous subscriber payments | AQ3: subscriber pays toward plan deductible | AR3: Uses rx deductible? | AS3: Rx Deductible | AT3: Remaining Rx deductible after previous subscriber payments | AU3: subscriber pays toward Rx deductible | AV3: Uses deductible C? | AW3: Deductible C | AX3: Remaining deductible C after previous subscriber payments | AY3: subscriber pays toward deductible C | AZ3: Uses deductible D? | BA3: Deductible D | BB3: Remaining deductible D after previous subscriber payments | BC3: subscriber pays toward deductible D | BD3: Uses benefit deductible? | BE3: Benefit deductible | BF3: Remaining benefit deductible after previous subcriber payments | BG3: subscriber pays toward benefit deductible | BH3: subscriber pays toward any deductible | BI3: Subscriber-paid deductible after applying OPL | BJ3: Remaining OPL | BK3: Covered amount remaining after deductibles | BL3: Uses Copay? | BM3: Copay Value | BN3: Copay Paid | BO3: Uses Coinsurance? | BP3: Coinsurance Value | BQ3: Coinsurance Paid | BR3: Subscriber-paid costsharing after OPL | BS3: Remaining OPL | BT3: Allowed amount after copayment or coinsurance | BU3: Total subscriber payment After OPL | BV3: plan payment | BW3: Service Not covered | BX3: Exclusions | BY3: Subscriber-paid deductible | BZ3: Subscriber-paid copayment | CA3: Subscriber-paid coinsurance | CB3: Allowable Charge ChkSum
A4: 1 | B4: 2016-01-07 | C4: 1 | D4: 8 | E4: =VLOOKUP(ServiceCode,MaternityFeeSchedule,6,FALSE) -> Prenatal Vitamins (OTC - Bottle of 100) [1 pill daily; 30 pills/month] | F4: =VLOOKUP(ServiceCode,MaternityFeeSchedule,5,FALSE) -> Over-the-counter Drugs | G4: =VLOOKUP(BenefitCategory,BenefitDesignTable,COLUMN(BenefitCostSharing),FALSE) -> Not Covered | H4: =VLOOKUP(D4,MaternityFeeSchedule,7,FALSE) -> 11.48 | I4: =IF(G4="Not Covered",H4,0) -> 11.48 | J4: =H4-I4 -> 0 | K4: =VLOOKUP(F4,nrCoverageTable,COLUMN(nrOOPLimitValid),FALSE) -> FALSE | L4: =IF(K4,VLOOKUP(F4,BenefitDesignTable,COLUMN(BenefitOOPLimitApplies),FALSE),"No") -> No | M4: =VLOOKUP(F4,BenefitDesignTable,COLUMN(OPLimit),FALSE) -> . | N4: =IFERROR(IF(AND(L4="Yes",ISNUMBER(M4)),MAX(0,M4-SUMIFS(BU$3:BU3,L$3:L3,"Yes")),IF(OR(L4="No",M4="None"),"N/A","ERR")),"ERR") -> N/A | O4: =IF(F4="Professional Services: Primary Care",TRUE, FALSE) -> FALSE | P4: =IF(O4,BENEFIT_PARAMETERS!$C$76,"N/A") -> N/A | Q4: =IF(P4="Yes", BENEFIT_PARAMETERS!$D$76,"N/A") -> N/A | R4: =IF(O4,COUNTIFS(BenefitCategory,"Professional Services: Primary Care",ClaimNumber,"<"&A4),"N/A") -> N/A | S4: =IF(P4="Yes",IF(R4<Q4,MIN(J4,N4),0),0) -> 0 | T4: =J4-S4 -> 0 | U4: =IF(F4="Professional Services: Primary Care",TRUE, FALSE) -> FALSE | V4: =IF(O4,BENEFIT_PARAMETERS!$C$77,"N/A") -> N/A | W4: =IF(V4="Yes", BENEFIT_PARAMETERS!$D$77,"N/A") -> N/A | X4: =IF(O4,COUNTIF(Z$3:Z3,">0"),"N/A") -> N/A | Y4: =IF(V4="Yes",VLOOKUP("Professional Services: Primary Care",BenefitDesignTable,COLUMN(BenefitCopay),FALSE),"N/A") -> N/A | Z4: =IF(AND(V4="Yes",U4=TRUE,X4<W4), MIN(Y4,T4,N4),"N/A") -> N/A | AA4: =IF(Z4="N/A",0,T4-Z4) -> 0 | AB4: =IF(L4="Yes",IF(Z4="N/A",N4,N4-Z4),"N/A") -> N/A | AC4: =IF(Z4="N/A",T4,0) -> 0 | AD4: =VLOOKUP(F4,nrCoverageTable,COLUMN(nrMonthlyLimitValid),FALSE) -> FALSE | AE4: =IF(AD4,VLOOKUP(F4,BenefitDesignTable,COLUMN(BenefitLimithMonth),FALSE),".") -> . | AF4: =COUNTIFS(ServiceCode,D4,ClaimMonth,C4,ClaimNumber,"<"&A4) -> 0 | AG4: =IF(AD4,IF(OR(AE4="None",ISNUMBER(AE4)),IF(AF4>=AE4,H4,0),"ERR"),"N/A") -> N/A | AH4: =VLOOKUP(F4,nrCoverageTable,COLUMN(nrAnnualLimitValid),FALSE) -> FALSE | AI4: =IF(AH4,VLOOKUP(F4,BenefitDesignTable,COLUMN(BenefitLimitAnnual),FALSE),".") -> . | AJ4: =COUNTIFS(ServiceCode,D4,ClaimNumber,"<"&A4) -> 0 | AK4: =IF(AH4,IF(OR(AI4="None",ISNUMBER(AI4)),IF(AJ4>=AI4,H4,0),"ERR"),"N/A") -> N/A | AL4: =IF(OR(AG4="ERR",AK4="ERR"),"ERR",MAX(AG4,AK4)) -> 0 | AM4: =IFERROR(AC4-AL4,"ERR") -> 0 | AN4: =VLOOKUP(F4,nrCoverageTable,COLUMN(nrUsesPlanDeduct),FALSE) -> FALSE | AO4: =IF(AN4,VLOOKUP(F4,BenefitDesignTable,COLUMN(PlanDeductible),FALSE),"N/A") -> N/A | AP4: =IF(AND(ISNUMBER(AO4),AN4=TRUE),MAX(0,AO4-SUMIFS($AM$3:$AM3,AN$3:AN3,TRUE)),IF(AND(AN4=TRUE,ISNUMBER(AO4)=FALSE),"ERR","N/A")) -> N/A | AQ4: =IF(ISNUMBER(AP4),MIN($AM4,AP4),"N/A") -> N/A | AR4: =VLOOKUP(F4,nrCoverageTable,COLUMN(nrUsesRxDeduct),FALSE) -> FALSE | AS4: =IF(AR4,VLOOKUP(F4,BenefitDesignTable,COLUMN(RxDeductible),FALSE),"N/A") -> N/A | AT4: =IF(AND(AR4=TRUE,ISNUMBER(AS4)),MAX(0,AS4-SUMIFS($AM$3:$AM3,AR$3:AR3,TRUE)),IF(AND(AR4=TRUE,ISNUMBER(AS4)=FALSE),"ERR","N/A")) -> N/A | AU4: =IF(ISNUMBER(AT4),MIN($AM4,AT4),"N/A") -> N/A | AV4: =VLOOKUP(F4,nrCoverageTable,COLUMN(nrUsesDeductC),FALSE) -> FALSE | AW4: =IF(AV4,VLOOKUP(F4,BenefitDesignTable,COLUMN(OptDeductibleC),FALSE),"N/A") -> N/A | AX4: =IF(AND(AV4=TRUE,ISNUMBER(AW4)),MAX(0,AW4-SUMIFS($AM$3:$AM3,AV$3:AV3,TRUE)),IF(AND(AV4=TRUE,ISNUMBER(AW4)=FALSE),"ERR","N/A")) -> N/A | AY4: =IF(ISNUMBER(AX4),MIN($AM4,AX4),"N/A") -> N/A | AZ4: =VLOOKUP(F4,nrCoverageTable,COLUMN(nrUsesDeductD),FALSE) -> FALSE | BA4: =IF(AZ4,VLOOKUP(F4,BenefitDesignTable,COLUMN(OptDeductibleD),FALSE),"N/A") -> N/A | BB4: =IF(AND(AZ4=TRUE,ISNUMBER(BA4)),MAX(0,BA4-SUMIFS($AM$3:$AM3,AZ$3:AZ3,TRUE)),IF(AND(AZ4=TRUE,ISNUMBER(BA4)=FALSE),"ERR","N/A")) -> N/A | BC4: =IF(ISNUMBER(BB4),MIN($AM4,BB4),"N/A") -> N/A | BD4: =VLOOKUP(F4,nrCoverageTable,COLUMN(nrUsesBenDeduct),FALSE) -> FALSE | BE4: =IF(BD4,VLOOKUP(F4,BenefitDesignTable,COLUMN(BenefitDeductible),FALSE),"N/A") -> N/A | BF4: =IF(AND(BD4=TRUE,ISNUMBER(BE4)=TRUE),MAX(0,BE4-SUMIFS(AM$3:AM3,BD$3:BD3,TRUE,F$3:F3,F4)),IF(AND(BD4=TRUE,ISNUMBER(BE4)=FALSE),"ERR","N/A")) -> N/A | BG4: =IF(ISNUMBER(BF4),MIN($AM4,BF4),"N/A") -> N/A | BH4: =SUM(AQ4,AU4,AY4,BC4,BG4) -> 0 | BI4: =IF(OR(AB4="ERR",BH4="ERR"),"ERR",MIN(BH4,AB4)) -> 0 | BJ4: =IF(AND(L4="Yes",ISNUMBER(M4)),IF(OR(BI4="ERR",AB4="ERR"),"ERR",MAX($AB4-BI4,0)),"N/A") -> N/A | BK4: =IF(OR(BI4="ERR",AM4="ERR"),"ERR",MAX(0,AM4-BI4)) -> 0 | BL4: =VLOOKUP(F4,nrCoverageTable,COLUMN(nrUsesCopay),FALSE) -> FALSE | BM4: =IF(BL4,VLOOKUP(F4,BenefitDesignTable,COLUMN(BenefitCopay),FALSE),"N/A") -> N/A | BN4: =IF(BK4="ERR","ERR",IF(AND(BL4=TRUE,ISNUMBER(BM4)),MIN(BK4,BM4,BJ4),IF(AND(BL4=TRUE,ISNUMBER(BM4)=FALSE),"ERR","N/A"))) -> N/A | BO4: =VLOOKUP(F4,nrCoverageTable,COLUMN(nrUsesCoins),FALSE) -> FALSE | BP4: =IF(BO4,VLOOKUP(F4,BenefitDesignTable,COLUMN(BenefitCoins),FALSE),"N/A") -> N/A | BQ4: =IF(BK4="ERR","ERR",IF(AND(BO4=TRUE,ISNUMBER(BP4)=TRUE),MIN(BJ4,BK4*BP4),IF(AND(BO4=TRUE,ISNUMBER(BP4)=FALSE),"ERR","N/A"))) -> N/A | BR4: =IF(OR(BJ4="ERR",BN4="ERR",BQ4="ERR"),"ERR",MIN(BJ4,SUM(BN4,BQ4))) -> 0 | BS4: =IF(AND(L4="Yes",ISNUMBER(M4)),IF(OR(BJ4="ERR",BR4="ERR"),"ERR",MAX(BJ4-BR4,0)),"N/A") -> N/A | BT4: =IF(OR(BK4="ERR",BR4="ERR"),"ERR",MAX(BK4-BR4,0)) -> 0 | BU4: =IF(OR(BI4="ERR",BR4="ERR"),"ERR",SUM(BI4,BR4,Z4)) -> 0 | BV4: =IF(OR(AM4="ERR",BU4="ERR"),"ERR",MAX(S4+AA4+AM4-BI4-BR4,0)) -> 0 | BW4: =I4 -> 11.48 | BX4: =IF(OR(AG4="ERR",AK4="ERR"),"ERR",SUM(AG4,AK4)) -> 0 | BY4: =BI4 -> 0 | BZ4: =IF(V4="Yes",IF(Z4="N/A",0,Z4),0)+IF(BL4,BN4,0) -> 0 | CA4: =IF(BO4,BQ4,0) -> 0 | CB4: =SUM(BV4:CA4)=H4 -> TRUE
A5: 2 | B5: 2016-04-01 | C5: 4 | D5: 14 | E5: Obstetric Panel | F5: Diagnostic Services: Laboratory | G5: Not Covered | H5: 56.04 | I5: 56.04 | J5: 0 | K5: FALSE | L5: No | M5: . | N5: =IFERROR(IF(AND(L5="Yes",ISNUMBER(M5)),MAX(0,M5-SUMIFS(BU$3:BU4,L$3:L4,"Yes")),IF(OR(L5="No",M5="None"),"N/A","ERR")),"ERR") -> N/A | O5: =IF(F5="Professional Services: Primary Care",TRUE, FALSE) -> FALSE | P5: =IF(O5,BENEFIT_PARAMETERS!$C$76,"N/A") -> N/A | Q5: =IF(P5="Yes", BENEFIT_PARAMETERS!$D$76,"N/A") -> N/A | R5: N/A | S5: =IF(P5="Yes",IF(R5<Q5,MIN(J5,N5),0),0) -> 0 | T5: 0 | U5: =IF(F5="Professional Services: Primary Care",TRUE, FALSE) -> FALSE | V5: =IF(O5,BENEFIT_PARAMETERS!$C$77,"N/A") -> N/A | W5: =IF(V5="Yes", BENEFIT_PARAMETERS!$D$77,"N/A") -> N/A | X5: =IF(O5,COUNTIF(Z$3:Z4,">0"),"N/A") -> N/A | Y5: N/A | Z5: =IF(AND(V5="Yes",U5=TRUE,X5<W5), MIN(Y5,T5,N5),"N/A") -> N/A | AA5: =IF(Z5="N/A",0,T5-Z5) -> 0 | AB5: N/A | AC5: =IF(Z5="N/A",T5,0) -> 0 | AD5: FALSE | AE5: . | AF5: 0 | AG5: N/A | AH5: FALSE | AI5: . | AJ5: 0 | AK5: N/A | AL5: =IF(OR(AG5="ERR",AK5="ERR"),"ERR",MAX(AG5,AK5)) -> 0 | AM5: =IFERROR(AC5-AL5,"ERR") -> 0 | AN5: FALSE | AO5: N/A | AP5: =IF(AND(ISNUMBER(AO5),AN5=TRUE),MAX(0,AO5-SUMIFS($AM$3:$AM4,AN$3:AN4,TRUE)),IF(AND(AN5=TRUE,ISNUMBER(AO5)=FALSE),"ERR","N/A")) -> N/A | AQ5: N/A | AR5: FALSE | AS5: N/A | AT5: =IF(AND(AR5=TRUE,ISNUMBER(AS5)),MAX(0,AS5-SUMIFS($AM$3:$AM4,AR$3:AR4,TRUE)),IF(AND(AR5=TRUE,ISNUMBER(AS5)=FALSE),"ERR","N/A")) -> N/A | AU5: N/A | AV5: FALSE | AW5: N/A | AX5: =IF(AND(AV5=TRUE,ISNUMBER(AW5)),MAX(0,AW5-SUMIFS($AM$3:$AM4,AV$3:AV4,TRUE)),IF(AND(AV5=TRUE,ISNUMBER(AW5)=FALSE),"ERR","N/A")) -> N/A | AY5: N/A | AZ5: FALSE | BA5: N/A | BB5: =IF(AND(AZ5=TRUE,ISNUMBER(BA5)),MAX(0,BA5-SUMIFS($AM$3:$AM4,AZ$3:AZ4,TRUE)),IF(AND(AZ5=TRUE,ISNUMBER(BA5)=FALSE),"ERR","N/A")) -> N/A | BC5: N/A | BD5: FALSE | BE5: N/A | BF5: =IF(AND(BD5=TRUE,ISNUMBER(BE5)=TRUE),MAX(0,BE5-SUMIFS(AM$3:AM4,BD$3:BD4,TRUE,F$3:F4,F5)),IF(AND(BD5=TRUE,ISNUMBER(BE5)=FALSE),"ERR","N/A")) -> N/A | BG5: N/A | BH5: 0 | BI5: =IF(OR(AB5="ERR",BH5="ERR"),"ERR",MIN(BH5,AB5)) -> 0 | BJ5: =IF(AND(L5="Yes",ISNUMBER(M5)),IF(OR(BI5="ERR",AB5="ERR"),"ERR",MAX($AB5-BI5,0)),"N/A") -> N/A | BK5: 0 | BL5: FALSE | BM5: N/A | BN5: =IF(BK5="ERR","ERR",IF(AND(BL5=TRUE,ISNUMBER(BM5)),MIN(BK5,BM5,BJ5),IF(AND(BL5=TRUE,ISNUMBER(BM5)=FALSE),"ERR","N/A"))) -> N/A | BO5: FALSE | BP5: N/A | BQ5: =IF(BK5="ERR","ERR",IF(AND(BO5=TRUE,ISNUMBER(BP5)=TRUE),MIN(BJ5,BK5*BP5),IF(AND(BO5=TRUE,ISNUMBER(BP5)=FALSE),"ERR","N/A"))) -> N/A | BR5: =IF(OR(BJ5="ERR",BN5="ERR",BQ5="ERR"),"ERR",MIN(BJ5,SUM(BN5,BQ5))) -> 0 | BS5: =IF(AND(L5="Yes",ISNUMBER(M5)),IF(OR(BJ5="ERR",BR5="ERR"),"ERR",MAX(BJ5-BR5,0)),"N/A") -> N/A | BT5: =IF(OR(BK5="ERR",BR5="ERR"),"ERR",MAX(BK5-BR5,0)) -> 0 | BU5: =IF(OR(BI5="ERR",BR5="ERR"),"ERR",SUM(BI5,BR5,Z5)) -> 0 | BV5: =IF(OR(AM5="ERR",BU5="ERR"),"ERR",MAX(S5+AA5+AM5-BI5-BR5,0)) -> 0 | BW5: 56.04 | BX5: 0 | BY5: =BI5 -> 0 | BZ5: 0 | CA5: =IF(BO5,BQ5,0) -> 0 | CB5: TRUE
A6: 3 | B6: 2016-04-01 | C6: 4 | D6: 30 | E6: Detect agnt mult dna ampli | F6: Diagnostic Services: Laboratory | G6: Not Covered | H6: 119.67 | I6: 119.67 | J6: 0 | K6: FALSE | L6: No | M6: . | N6: =IFERROR(IF(AND(L6="Yes",ISNUMBER(M6)),MAX(0,M6-SUMIFS(BU$3:BU5,L$3:L5,"Yes")),IF(OR(L6="No",M6="None"),"N/A","ERR")),"ERR") -> N/A | O6: FALSE | P6: =IF(O6,BENEFIT_PARAMETERS!$C$76,"N/A") -> N/A | Q6: =IF(P6="Yes", BENEFIT_PARAMETERS!$D$76,"N/A") -> N/A | R6: N/A | S6: 0 | T6: 0 | U6: FALSE | V6: =IF(O6,BENEFIT_PARAMETERS!$C$77,"N/A") -> N/A | W6: =IF(V6="Yes", BENEFIT_PARAMETERS!$D$77,"N/A") -> N/A | X6: =IF(O6,COUNTIF(Z$3:Z5,">0"),"N/A") -> N/A | Y6: N/A | Z6: N/A | AA6: 0 | AB6: N/A | AC6: 0 | AD6: FALSE | AE6: . | AF6: 0 | AG6: N/A | AH6: FALSE | AI6: . | AJ6: 0 | AK6: N/A | AL6: 0 | AM6: 0 | AN6: FALSE | AO6: N/A | AP6: =IF(AND(ISNUMBER(AO6),AN6=TRUE),MAX(0,AO6-SUMIFS($AM$3:$AM5,AN$3:AN5,TRUE)),IF(AND(AN6=TRUE,ISNUMBER(AO6)=FALSE),"ERR","N/A")) -> N/A | AQ6: N/A | AR6: FALSE | AS6: N/A | AT6: =IF(AND(AR6=TRUE,ISNUMBER(AS6)),MAX(0,AS6-SUMIFS($AM$3:$AM5,AR$3:AR5,TRUE)),IF(AND(AR6=TRUE,ISNUMBER(AS6)=FALSE),"ERR","N/A")) -> N/A | AU6: N/A | AV6: FALSE | AW6: N/A | AX6: =IF(AND(AV6=TRUE,ISNUMBER(AW6)),MAX(0,AW6-SUMIFS($AM$3:$AM5,AV$3:AV5,TRUE)),IF(AND(AV6=TRUE,ISNUMBER(AW6)=FALSE),"ERR","N/A")) -> N/A | AY6: N/A | AZ6: FALSE | BA6: N/A | BB6: =IF(AND(AZ6=TRUE,ISNUMBER(BA6)),MAX(0,BA6-SUMIFS($AM$3:$AM5,AZ$3:AZ5,TRUE)),IF(AND(AZ6=TRUE,ISNUMBER(BA6)=FALSE),"ERR","N/A")) -> N/A | BC6: N/A | BD6: FALSE | BE6: N/A | BF6: =IF(AND(BD6=TRUE,ISNUMBER(BE6)=TRUE),MAX(0,BE6-SUMIFS(AM$3:AM5,BD$3:BD5,TRUE,F$3:F5,F6)),IF(AND(BD6=TRUE,ISNUMBER(BE6)=FALSE),"ERR","N/A")) -> N/A | BG6: N/A | BH6: 0 | BI6: 0 | BJ6: N/A | BK6: 0 | BL6: FALSE | BM6: N/A | BN6: N/A | BO6: FALSE | BP6: N/A | BQ6: N/A | BR6: 0 | BS6: N/A | BT6: 0 | BU6: 0 | BV6: 0 | BW6: 119.67 | BX6: 0 | BY6: 0 | BZ6: 0 | CA6: 0 | CB6: TRUE
A7: 4 | B7: 2016-04-01 | C7: 4 | D7: 31 | E7: Cytopath c/v auto fluid redo | F7: Diagnostic Services: Laboratory | G7: Not Covered | H7: 36.94 | I7: 36.94 | J7: 0 | K7: FALSE | L7: No | M7: . | N7: =IFERROR(IF(AND(L7="Yes",ISNUMBER(M7)),MAX(0,M7-SUMIFS(BU$3:BU6,L$3:L6,"Yes")),IF(OR(L7="No",M7="None"),"N/A","ERR")),"ERR") -> N/A | O7: FALSE | P7: =IF(O7,BENEFIT_PARAMETERS!$C$76,"N/A") -> N/A | Q7: =IF(P7="Yes", BENEFIT_PARAMETERS!$D$76,"N/A") -> N/A | R7: N/A | S7: 0 | T7: 0 | U7: FALSE | V7: =IF(O7,BENEFIT_PARAMETERS!$C$77,"N/A") -> N/A | W7: =IF(V7="Yes", BENEFIT_PARAMETERS!$D$77,"N/A") -> N/A | X7: =IF(O7,COUNTIF(Z$3:Z6,">0"),"N/A") -> N/A | Y7: N/A | Z7: N/A | AA7: 0 | AB7: N/A | AC7: 0 | AD7: FALSE | AE7: . | AF7: 0 | AG7: N/A | AH7: FALSE | AI7: . | AJ7: 0 | AK7: N/A | AL7: 0 | AM7: 0 | AN7: FALSE | AO7: N/A | AP7: =IF(AND(ISNUMBER(AO7),AN7=TRUE),MAX(0,AO7-SUMIFS($AM$3:$AM6,AN$3:AN6,TRUE)),IF(AND(AN7=TRUE,ISNUMBER(AO7)=FALSE),"ERR","N/A")) -> N/A | AQ7: N/A | AR7: FALSE | AS7: N/A | AT7: =IF(AND(AR7=TRUE,ISNUMBER(AS7)),MAX(0,AS7-SUMIFS($AM$3:$AM6,AR$3:AR6,TRUE)),IF(AND(AR7=TRUE,ISNUMBER(AS7)=FALSE),"ERR","N/A")) -> N/A | AU7: N/A | AV7: FALSE | AW7: N/A | AX7: =IF(AND(AV7=TRUE,ISNUMBER(AW7)),MAX(0,AW7-SUMIFS($AM$3:$AM6,AV$3:AV6,TRUE)),IF(AND(AV7=TRUE,ISNUMBER(AW7)=FALSE),"ERR","N/A")) -> N/A | AY7: N/A | AZ7: FALSE | BA7: N/A | BB7: =IF(AND(AZ7=TRUE,ISNUMBER(BA7)),MAX(0,BA7-SUMIFS($AM$3:$AM6,AZ$3:AZ6,TRUE)),IF(AND(AZ7=TRUE,ISNUMBER(BA7)=FALSE),"ERR","N/A")) -> N/A | BC7: N/A | BD7: FALSE | BE7: N/A | BF7: =IF(AND(BD7=TRUE,ISNUMBER(BE7)=TRUE),MAX(0,BE7-SUMIFS(AM$3:AM6,BD$3:BD6,TRUE,F$3:F6,F7)),IF(AND(BD7=TRUE,ISNUMBER(BE7)=FALSE),"ERR","N/A")) -> N/A | BG7: N/A | BH7: 0 | BI7: 0 | BJ7: N/A | BK7: 0 | BL7: FALSE | BM7: N/A | BN7: N/A | BO7: FALSE | BP7: N/A | BQ7: N/A | BR7: 0 | BS7: N/A | BT7: 0 | BU7: 0 | BV7: 0 | BW7: 36.94 | BX7: 0 | BY7: 0 | BZ7: 0 | CA7: 0 | CB7: TRUE
A8: 5 | B8: 2016-04-01 | C8: 4 | D8: 28 | E8: HIV-1 | F8: Diagnostic Services: Laboratory | G8: Not Covered | H8: 17.37 | I8: 17.37 | J8: 0 | K8: FALSE | L8: No | M8: . | N8: =IFERROR(IF(AND(L8="Yes",ISNUMBER(M8)),MAX(0,M8-SUMIFS(BU$3:BU7,L$3:L7,"Yes")),IF(OR(L8="No",M8="None"),"N/A","ERR")),"ERR") -> N/A | O8: FALSE | P8: =IF(O8,BENEFIT_PARAMETERS!$C$76,"N/A") -> N/A | Q8: =IF(P8="Yes", BENEFIT_PARAMETERS!$D$76,"N/A") -> N/A | R8: N/A | S8: 0 | T8: 0 | U8: FALSE | V8: =IF(O8,BENEFIT_PARAMETERS!$C$77,"N/A") -> N/A | W8: =IF(V8="Yes", BENEFIT_PARAMETERS!$D$77,"N/A") -> N/A | X8: =IF(O8,COUNTIF(Z$3:Z7,">0"),"N/A") -> N/A | Y8: N/A | Z8: N/A | AA8: 0 | AB8: N/A | AC8: 0 | AD8: FALSE | AE8: . | AF8: 0 | AG8: N/A | AH8: FALSE | AI8: . | AJ8: 0 | AK8: N/A | AL8: 0 | AM8: 0 | AN8: FALSE | AO8: N/A | AP8: =IF(AND(ISNUMBER(AO8),AN8=TRUE),MAX(0,AO8-SUMIFS($AM$3:$AM7,AN$3:AN7,TRUE)),IF(AND(AN8=TRUE,ISNUMBER(AO8)=FALSE),"ERR","N/A")) -> N/A | AQ8: N/A | AR8: FALSE | AS8: N/A | AT8: =IF(AND(AR8=TRUE,ISNUMBER(AS8)),MAX(0,AS8-SUMIFS($AM$3:$AM7,AR$3:AR7,TRUE)),IF(AND(AR8=TRUE,ISNUMBER(AS8)=FALSE),"ERR","N/A")) -> N/A | AU8: N/A | AV8: FALSE | AW8: N/A | AX8: =IF(AND(AV8=TRUE,ISNUMBER(AW8)),MAX(0,AW8-SUMIFS($AM$3:$AM7,AV$3:AV7,TRUE)),IF(AND(AV8=TRUE,ISNUMBER(AW8)=FALSE),"ERR","N/A")) -> N/A | AY8: N/A | AZ8: FALSE | BA8: N/A | BB8: =IF(AND(AZ8=TRUE,ISNUMBER(BA8)),MAX(0,BA8-SUMIFS($AM$3:$AM7,AZ$3:AZ7,TRUE)),IF(AND(AZ8=TRUE,ISNUMBER(BA8)=FALSE),"ERR","N/A")) -> N/A | BC8: N/A | BD8: FALSE | BE8: N/A | BF8: =IF(AND(BD8=TRUE,ISNUMBER(BE8)=TRUE),MAX(0,BE8-SUMIFS(AM$3:AM7,BD$3:BD7,TRUE,F$3:F7,F8)),IF(AND(BD8=TRUE,ISNUMBER(BE8)=FALSE),"ERR","N/A")) -> N/A | BG8: N/A | BH8: 0 | BI8: 0 | BJ8: N/A | BK8: 0 | BL8: FALSE | BM8: N/A | BN8: N/A | BO8: FALSE | BP8: N/A | BQ8: N/A | BR8: 0 | BS8: N/A | BT8: 0 | BU8: 0 | BV8: 0 | BW8: 17.37 | BX8: 0 | BY8: 0 | BZ8: 0 | CA8: 0 | CB8: TRUE
A9: 6 | B9: 2016-04-01 | C9: 4 | D9: 12 | E9: Routine Venipuncture | F9: Diagnostic Services: Laboratory | G9: Not Covered | H9: 5.3 | I9: 5.3 | J9: 0 | K9: FALSE | L9: No | M9: . | N9: =IFERROR(IF(AND(L9="Yes",ISNUMBER(M9)),MAX(0,M9-SUMIFS(BU$3:BU8,L$3:L8,"Yes")),IF(OR(L9="No",M9="None"),"N/A","ERR")),"ERR") -> N/A | O9: FALSE | P9: =IF(O9,BENEFIT_PARAMETERS!$C$76,"N/A") -> N/A | Q9: =IF(P9="Yes", BENEFIT_PARAMETERS!$D$76,"N/A") -> N/A | R9: N/A | S9: 0 | T9: 0 | U9: FALSE | V9: =IF(O9,BENEFIT_PARAMETERS!$C$77,"N/A") -> N/A | W9: =IF(V9="Yes", BENEFIT_PARAMETERS!$D$77,"N/A") -> N/A | X9: =IF(O9,COUNTIF(Z$3:Z8,">0"),"N/A") -> N/A | Y9: N/A | Z9: N/A | AA9: 0 | AB9: N/A | AC9: 0 | AD9: FALSE | AE9: . | AF9: 0 | AG9: N/A | AH9: FALSE | AI9: . | AJ9: 0 | AK9: N/A | AL9: 0 | AM9: 0 | AN9: FALSE | AO9: N/A | AP9: =IF(AND(ISNUMBER(AO9),AN9=TRUE),MAX(0,AO9-SUMIFS($AM$3:$AM8,AN$3:AN8,TRUE)),IF(AND(AN9=TRUE,ISNUMBER(AO9)=FALSE),"ERR","N/A")) -> N/A | AQ9: N/A | AR9: FALSE | AS9: N/A | AT9: =IF(AND(AR9=TRUE,ISNUMBER(AS9)),MAX(0,AS9-SUMIFS($AM$3:$AM8,AR$3:AR8,TRUE)),IF(AND(AR9=TRUE,ISNUMBER(AS9)=FALSE),"ERR","N/A")) -> N/A | AU9: N/A | AV9: FALSE | AW9: N/A | AX9: =IF(AND(AV9=TRUE,ISNUMBER(AW9)),MAX(0,AW9-SUMIFS($AM$3:$AM8,AV$3:AV8,TRUE)),IF(AND(AV9=TRUE,ISNUMBER(AW9)=FALSE),"ERR","N/A")) -> N/A | AY9: N/A | AZ9: FALSE | BA9: N/A | BB9: =IF(AND(AZ9=TRUE,ISNUMBER(BA9)),MAX(0,BA9-SUMIFS($AM$3:$AM8,AZ$3:AZ8,TRUE)),IF(AND(AZ9=TRUE,ISNUMBER(BA9)=FALSE),"ERR","N/A")) -> N/A | BC9: N/A | BD9: FALSE | BE9: N/A | BF9: =IF(AND(BD9=TRUE,ISNUMBER(BE9)=TRUE),MAX(0,BE9-SUMIFS(AM$3:AM8,BD$3:BD8,TRUE,F$3:F8,F9)),IF(AND(BD9=TRUE,ISNUMBER(BE9)=FALSE),"ERR","N/A")) -> N/A | BG9: N/A | BH9: 0 | BI9: 0 | BJ9: N/A | BK9: 0 | BL9: FALSE | BM9: N/A | BN9: N/A | BO9: FALSE | BP9: N/A | BQ9: N/A | BR9: 0 | BS9: N/A | BT9: 0 | BU9: 0 | BV9: 0 | BW9: 5.3 | BX9: 0 | BY9: 0 | BZ9: 0 | CA9: 0 | CB9: TRUE
A10: 7 | B10: 2016-04-01 | C10: 4 | D10: 35 | E10: Urine Pregnancy Test | F10: Diagnostic Services: Laboratory | G10: Not Covered | H10: 9.86 | I10: 9.86 | J10: 0 | K10: FALSE | L10: No | M10: . | N10: =IFERROR(IF(AND(L10="Yes",ISNUMBER(M10)),MAX(0,M10-SUMIFS(BU$3:BU9,L$3:L9,"Yes")),IF(OR(L10="No",M10="None"),"N/A","ERR")),"ERR") -> N/A | O10: FALSE | P10: =IF(O10,BENEFIT_PARAMETERS!$C$76,"N/A") -> N/A | Q10: =IF(P10="Yes", BENEFIT_PARAMETERS!$D$76,"N/A") -> N/A | R10: N/A | S10: 0 | T10: 0 | U10: FALSE | V10: =IF(O10,BENEFIT_PARAMETERS!$C$77,"N/A") -> N/A | W10: =IF(V10="Yes", BENEFIT_PARAMETERS!$D$77,"N/A") -> N/A | X10: =IF(O10,COUNTIF(Z$3:Z9,">0"),"N/A") -> N/A | Y10: N/A | Z10: N/A | AA10: 0 | AB10: N/A | AC10: 0 | AD10: FALSE | AE10: . | AF10: 0 | AG10: N/A | AH10: FALSE | AI10: . | AJ10: 0 | AK10: N/A | AL10: 0 | AM10: 0 | AN10: FALSE | AO10: N/A | AP10: =IF(AND(ISNUMBER(AO10),AN10=TRUE),MAX(0,AO10-SUMIFS($AM$3:$AM9,AN$3:AN9,TRUE)),IF(AND(AN10=TRUE,ISNUMBER(AO10)=FALSE),"ERR","N/A")) -> N/A | AQ10: N/A | AR10: FALSE | AS10: N/A | AT10: =IF(AND(AR10=TRUE,ISNUMBER(AS10)),MAX(0,AS10-SUMIFS($AM$3:$AM9,AR$3:AR9,TRUE)),IF(AND(AR10=TRUE,ISNUMBER(AS10)=FALSE),"ERR","N/A")) -> N/A | AU10: N/A | AV10: FALSE | AW10: N/A | AX10: =IF(AND(AV10=TRUE,ISNUMBER(AW10)),MAX(0,AW10-SUMIFS($AM$3:$AM9,AV$3:AV9,TRUE)),IF(AND(AV10=TRUE,ISNUMBER(AW10)=FALSE),"ERR","N/A")) -> N/A | AY10: N/A | AZ10: FALSE | BA10: N/A | BB10: =IF(AND(AZ10=TRUE,ISNUMBER(BA10)),MAX(0,BA10-SUMIFS($AM$3:$AM9,AZ$3:AZ9,TRUE)),IF(AND(AZ10=TRUE,ISNUMBER(BA10)=FALSE),"ERR","N/A")) -> N/A | BC10: N/A | BD10: FALSE | BE10: N/A | BF10: =IF(AND(BD10=TRUE,ISNUMBER(BE10)=TRUE),MAX(0,BE10-SUMIFS(AM$3:AM9,BD$3:BD9,TRUE,F$3:F9,F10)),IF(AND(BD10=TRUE,ISNUMBER(BE10)=FALSE),"ERR","N/A")) -> N/A | BG10: N/A | BH10: 0 | BI10: 0 | BJ10: N/A | BK10: 0 | BL10: FALSE | BM10: N/A | BN10: N/A | BO10: FALSE | BP10: N/A | BQ10: N/A | BR10: 0 | BS10: N/A | BT10: 0 | BU10: 0 | BV10: 0 | BW10: 9.86 | BX10: 0 | BY10: 0 | BZ10: 0 | CA10: 0 | CB10: TRUE
A11: 8 | B11: 2016-04-01 | C11: 4 | D11: 6 | E11: Obstetrical Care | F11: Professional Services: Obstetric Care (Bundled) | G11: Not Covered | H11: 2609.93 | I11: 2609.93 | J11: 0 | K11: FALSE | L11: No | M11: . | N11: =IFERROR(IF(AND(L11="Yes",ISNUMBER(M11)),MAX(0,M11-SUMIFS(BU$3:BU10,L$3:L10,"Yes")),IF(OR(L11="No",M11="None"),"N/A","ERR")),"ERR") -> N/A | O11: FALSE | P11: =IF(O11,BENEFIT_PARAMETERS!$C$76,"N/A") -> N/A | Q11: =IF(P11="Yes", BENEFIT_PARAMETERS!$D$76,"N/A") -> N/A | R11: N/A | S11: 0 | T11: 0 | U11: FALSE | V11: =IF(O11,BENEFIT_PARAMETERS!$C$77,"N/A") -> N/A | W11: =IF(V11="Yes", BENEFIT_PARAMETERS!$D$77,"N/A") -> N/A | X11: =IF(O11,COUNTIF(Z$3:Z10,">0"),"N/A") -> N/A | Y11: N/A | Z11: N/A | AA11: 0 | AB11: N/A | AC11: 0 | AD11: FALSE | AE11: . | AF11: 0 | AG11: N/A | AH11: FALSE | AI11: . | AJ11: 0 | AK11: N/A | AL11: 0 | AM11: 0 | AN11: FALSE | AO11: N/A | AP11: =IF(AND(ISNUMBER(AO11),AN11=TRUE),MAX(0,AO11-SUMIFS($AM$3:$AM10,AN$3:AN10,TRUE)),IF(AND(AN11=TRUE,ISNUMBER(AO11)=FALSE),"ERR","N/A")) -> N/A | AQ11: N/A | AR11: FALSE | AS11: N/A | AT11: =IF(AND(AR11=TRUE,ISNUMBER(AS11)),MAX(0,AS11-SUMIFS($AM$3:$AM10,AR$3:AR10,TRUE)),IF(AND(AR11=TRUE,ISNUMBER(AS11)=FALSE),"ERR","N/A")) -> N/A | AU11: N/A | AV11: FALSE | AW11: N/A | AX11: =IF(AND(AV11=TRUE,ISNUMBER(AW11)),MAX(0,AW11-SUMIFS($AM$3:$AM10,AV$3:AV10,TRUE)),IF(AND(AV11=TRUE,ISNUMBER(AW11)=FALSE),"ERR","N/A")) -> N/A | AY11: N/A | AZ11: FALSE | BA11: N/A | BB11: =IF(AND(AZ11=TRUE,ISNUMBER(BA11)),MAX(0,BA11-SUMIFS($AM$3:$AM10,AZ$3:AZ10,TRUE)),IF(AND(AZ11=TRUE,ISNUMBER(BA11)=FALSE),"ERR","N/A")) -> N/A | BC11: N/A | BD11: FALSE | BE11: N/A | BF11: =IF(AND(BD11=TRUE,ISNUMBER(BE11)=TRUE),MAX(0,BE11-SUMIFS(AM$3:AM10,BD$3:BD10,TRUE,F$3:F10,F11)),IF(AND(BD11=TRUE,ISNUMBER(BE11)=FALSE),"ERR","N/A")) -> N/A | BG11: N/A | BH11: 0 | BI11: 0 | BJ11: N/A | BK11: 0 | BL11: FALSE | BM11: N/A | BN11: N/A | BO11: FALSE | BP11: N/A | BQ11: N/A | BR11: 0 | BS11: N/A | BT11: 0 | BU11: 0 | BV11: 0 | BW11: 2609.93 | BX11: 0 | BY11: 0 | BZ11: 0 | CA11: 0 | CB11: TRUE
A12: 9 | B12: 2016-04-01 | C12: 4 | D12: 42 | E12: Urine culture/colony count | F12: Diagnostic Services: Laboratory | G12: Not Covered | H12: 13.12 | I12: 13.12 | J12: 0 | K12: FALSE | L12: No | M12: . | N12: =IFERROR(IF(AND(L12="Yes",ISNUMBER(M12)),MAX(0,M12-SUMIFS(BU$3:BU11,L$3:L11,"Yes")),IF(OR(L12="No",M12="None"),"N/A","ERR")),"ERR") -> N/A | O12: FALSE | P12: =IF(O12,BENEFIT_PARAMETERS!$C$76,"N/A") -> N/A | Q12: =IF(P12="Yes", BENEFIT_PARAMETERS!$D$76,"N/A") -> N/A | R12: N/A | S12: 0 | T12: 0 | U12: FALSE | V12: =IF(O12,BENEFIT_PARAMETERS!$C$77,"N/A") -> N/A | W12: =IF(V12="Yes", BENEFIT_PARAMETERS!$D$77,"N/A") -> N/A | X12: =IF(O12,COUNTIF(Z$3:Z11,">0"),"N/A") -> N/A | Y12: N/A | Z12: N/A | AA12: 0 | AB12: N/A | AC12: 0 | AD12: FALSE | AE12: . | AF12: 0 | AG12: N/A | AH12: FALSE | AI12: . | AJ12: 0 | AK12: N/A | AL12: 0 | AM12: 0 | AN12: FALSE | AO12: N/A | AP12: =IF(AND(ISNUMBER(AO12),AN12=TRUE),MAX(0,AO12-SUMIFS($AM$3:$AM11,AN$3:AN11,TRUE)),IF(AND(AN12=TRUE,ISNUMBER(AO12)=FALSE),"ERR","N/A")) -> N/A | AQ12: N/A | AR12: FALSE | AS12: N/A | AT12: =IF(AND(AR12=TRUE,ISNUMBER(AS12)),MAX(0,AS12-SUMIFS($AM$3:$AM11,AR$3:AR11,TRUE)),IF(AND(AR12=TRUE,ISNUMBER(AS12)=FALSE),"ERR","N/A")) -> N/A | AU12: N/A | AV12: FALSE | AW12: N/A | AX12: =IF(AND(AV12=TRUE,ISNUMBER(AW12)),MAX(0,AW12-SUMIFS($AM$3:$AM11,AV$3:AV11,TRUE)),IF(AND(AV12=TRUE,ISNUMBER(AW12)=FALSE),"ERR","N/A")) -> N/A | AY12: N/A | AZ12: FALSE | BA12: N/A | BB12: =IF(AND(AZ12=TRUE,ISNUMBER(BA12)),MAX(0,BA12-SUMIFS($AM$3:$AM11,AZ$3:AZ11,TRUE)),IF(AND(AZ12=TRUE,ISNUMBER(BA12)=FALSE),"ERR","N/A")) -> N/A | BC12: N/A | BD12: FALSE | BE12: N/A | BF12: =IF(AND(BD12=TRUE,ISNUMBER(BE12)=TRUE),MAX(0,BE12-SUMIFS(AM$3:AM11,BD$3:BD11,TRUE,F$3:F11,F12)),IF(AND(BD12=TRUE,ISNUMBER(BE12)=FALSE),"ERR","N/A")) -> N/A | BG12: N/A | BH12: 0 | BI12: 0 | BJ12: N/A | BK12: 0 | BL12: FALSE | BM12: N/A | BN12: N/A | BO12: FALSE | BP12: N/A | BQ12: N/A | BR12: 0 | BS12: N/A | BT12: 0 | BU12: 0 | BV12: 0 | BW12: 13.12 | BX12: 0 | BY12: 0 | BZ12: 0 | CA12: 0 | CB12: TRUE
A13: 10 | B13: 2016-04-01 | C13: 4 | D13: 43 | E13: Urinalysis auto w/scope | F13: Diagnostic Services: Laboratory | G13: Not Covered | H13: 8.67 | I13: 8.67 | J13: 0 | K13: FALSE | L13: No | M13: . | N13: =IFERROR(IF(AND(L13="Yes",ISNUMBER(M13)),MAX(0,M13-SUMIFS(BU$3:BU12,L$3:L12,"Yes")),IF(OR(L13="No",M13="None"),"N/A","ERR")),"ERR") -> N/A | O13: FALSE | P13: =IF(O13,BENEFIT_PARAMETERS!$C$76,"N/A") -> N/A | Q13: =IF(P13="Yes", BENEFIT_PARAMETERS!$D$76,"N/A") -> N/A | R13: N/A | S13: 0 | T13: 0 | U13: FALSE | V13: =IF(O13,BENEFIT_PARAMETERS!$C$77,"N/A") -> N/A | W13: =IF(V13="Yes", BENEFIT_PARAMETERS!$D$77,"N/A") -> N/A | X13: =IF(O13,COUNTIF(Z$3:Z12,">0"),"N/A") -> N/A | Y13: N/A | Z13: N/A | AA13: 0 | AB13: N/A | AC13: 0 | AD13: FALSE | AE13: . | AF13: 0 | AG13: N/A | AH13: FALSE | AI13: . | AJ13: 0 | AK13: N/A | AL13: 0 | AM13: 0 | AN13: FALSE | AO13: N/A | AP13: =IF(AND(ISNUMBER(AO13),AN13=TRUE),MAX(0,AO13-SUMIFS($AM$3:$AM12,AN$3:AN12,TRUE)),IF(AND(AN13=TRUE,ISNUMBER(AO13)=FALSE),"ERR","N/A")) -> N/A | AQ13: N/A | AR13: FALSE | AS13: N/A | AT13: =IF(AND(AR13=TRUE,ISNUMBER(AS13)),MAX(0,AS13-SUMIFS($AM$3:$AM12,AR$3:AR12,TRUE)),IF(AND(AR13=TRUE,ISNUMBER(AS13)=FALSE),"ERR","N/A")) -> N/A | AU13: N/A | AV13: FALSE | AW13: N/A | AX13: =IF(AND(AV13=TRUE,ISNUMBER(AW13)),MAX(0,AW13-SUMIFS($AM$3:$AM12,AV$3:AV12,TRUE)),IF(AND(AV13=TRUE,ISNUMBER(AW13)=FALSE),"ERR","N/A")) -> N/A | AY13: N/A | AZ13: FALSE | BA13: N/A | BB13: =IF(AND(AZ13=TRUE,ISNUMBER(BA13)),MAX(0,BA13-SUMIFS($AM$3:$AM12,AZ$3:AZ12,TRUE)),IF(AND(AZ13=TRUE,ISNUMBER(BA13)=FALSE),"ERR","N/A")) -> N/A | BC13: N/A | BD13: FALSE | BE13: N/A | BF13: =IF(AND(BD13=TRUE,ISNUMBER(BE13)=TRUE),MAX(0,BE13-SUMIFS(AM$3:AM12,BD$3:BD12,TRUE,F$3:F12,F13)),IF(AND(BD13=TRUE,ISNUMBER(BE13)=FALSE),"ERR","N/A")) -> N/A | BG13: N/A | BH13: 0 | BI13: 0 | BJ13: N/A | BK13: 0 | BL13: FALSE | BM13: N/A | BN13: N/A | BO13: FALSE | BP13: N/A | BQ13: N/A | BR13: 0 | BS13: N/A | BT13: 0 | BU13: 0 | BV13: 0 | BW13: 8.67 | BX13: 0 | BY13: 0 | BZ13: 0 | CA13: 0 | CB13: TRUE
A14: 11 | B14: 2016-04-01 | C14: 4 | D14: 44 | E14: Chylmd trach dna amp probe | F14: Diagnostic Services: Laboratory | G14: Not Covered | H14: 44.48 | I14: 44.48 | J14: 0 | K14: FALSE | L14: No | M14: . | N14: =IFERROR(IF(AND(L14="Yes",ISNUMBER(M14)),MAX(0,M14-SUMIFS(BU$3:BU13,L$3:L13,"Yes")),IF(OR(L14="No",M14="None"),"N/A","ERR")),"ERR") -> N/A | O14: FALSE | P14: =IF(O14,BENEFIT_PARAMETERS!$C$76,"N/A") -> N/A | Q14: =IF(P14="Yes", BENEFIT_PARAMETERS!$D$76,"N/A") -> N/A | R14: N/A | S14: 0 | T14: 0 | U14: FALSE | V14: =IF(O14,BENEFIT_PARAMETERS!$C$77,"N/A") -> N/A | W14: =IF(V14="Yes", BENEFIT_PARAMETERS!$D$77,"N/A") -> N/A | X14: =IF(O14,COUNTIF(Z$3:Z13,">0"),"N/A") -> N/A | Y14: N/A | Z14: N/A | AA14: 0 | AB14: N/A | AC14: 0 | AD14: FALSE | AE14: . | AF14: 0 | AG14: N/A | AH14: FALSE | AI14: . | AJ14: 0 | AK14: N/A | AL14: 0 | AM14: 0 | AN14: FALSE | AO14: N/A | AP14: =IF(AND(ISNUMBER(AO14),AN14=TRUE),MAX(0,AO14-SUMIFS($AM$3:$AM13,AN$3:AN13,TRUE)),IF(AND(AN14=TRUE,ISNUMBER(AO14)=FALSE),"ERR","N/A")) -> N/A | AQ14: N/A | AR14: FALSE | AS14: N/A | AT14: =IF(AND(AR14=TRUE,ISNUMBER(AS14)),MAX(0,AS14-SUMIFS($AM$3:$AM13,AR$3:AR13,TRUE)),IF(AND(AR14=TRUE,ISNUMBER(AS14)=FALSE),"ERR","N/A")) -> N/A | AU14: N/A | AV14: FALSE | AW14: N/A | AX14: =IF(AND(AV14=TRUE,ISNUMBER(AW14)),MAX(0,AW14-SUMIFS($AM$3:$AM13,AV$3:AV13,TRUE)),IF(AND(AV14=TRUE,ISNUMBER(AW14)=FALSE),"ERR","N/A")) -> N/A | AY14: N/A | AZ14: FALSE | BA14: N/A | BB14: =IF(AND(AZ14=TRUE,ISNUMBER(BA14)),MAX(0,BA14-SUMIFS($AM$3:$AM13,AZ$3:AZ13,TRUE)),IF(AND(AZ14=TRUE,ISNUMBER(BA14)=FALSE),"ERR","N/A")) -> N/A | BC14: N/A | BD14: FALSE | BE14: N/A | BF14: =IF(AND(BD14=TRUE,ISNUMBER(BE14)=TRUE),MAX(0,BE14-SUMIFS(AM$3:AM13,BD$3:BD13,TRUE,F$3:F13,F14)),IF(AND(BD14=TRUE,ISNUMBER(BE14)=FALSE),"ERR","N/A")) -> N/A | BG14: N/A | BH14: 0 | BI14: 0 | BJ14: N/A | BK14: 0 | BL14: FALSE | BM14: N/A | BN14: N/A | BO14: FALSE | BP14: N/A | BQ14: N/A | BR14: 0 | BS14: N/A | BT14: 0 | BU14: 0 | BV14: 0 | BW14: 44.48 | BX14: 0 | BY14: 0 | BZ14: 0 | CA14: 0 | CB14: TRUE
A15: 12 | B15: 2016-04-01 | C15: 4 | D15: 45 | E15: N.gonorrhoeae dna amp prob | F15: Diagnostic Services: Laboratory | G15: Not Covered | H15: 43.82 | I15: 43.82 | J15: 0 | K15: FALSE | L15: No | M15: . | N15: =IFERROR(IF(AND(L15="Yes",ISNUMBER(M15)),MAX(0,M15-SUMIFS(BU$3:BU14,L$3:L14,"Yes")),IF(OR(L15="No",M15="None"),"N/A","ERR")),"ERR") -> N/A | O15: FALSE | P15: =IF(O15,BENEFIT_PARAMETERS!$C$76,"N/A") -> N/A | Q15: =IF(P15="Yes", BENEFIT_PARAMETERS!$D$76,"N/A") -> N/A | R15: N/A | S15: 0 | T15: 0 | U15: FALSE | V15: =IF(O15,BENEFIT_PARAMETERS!$C$77,"N/A") -> N/A | W15: =IF(V15="Yes", BENEFIT_PARAMETERS!$D$77,"N/A") -> N/A | X15: =IF(O15,COUNTIF(Z$3:Z14,">0"),"N/A") -> N/A | Y15: N/A | Z15: N/A | AA15: 0 | AB15: N/A | AC15: 0 | AD15: FALSE | AE15: . | AF15: 0 | AG15: N/A | AH15: FALSE | AI15: . | AJ15: 0 | AK15: N/A | AL15: 0 | AM15: 0 | AN15: FALSE | AO15: N/A | AP15: =IF(AND(ISNUMBER(AO15),AN15=TRUE),MAX(0,AO15-SUMIFS($AM$3:$AM14,AN$3:AN14,TRUE)),IF(AND(AN15=TRUE,ISNUMBER(AO15)=FALSE),"ERR","N/A")) -> N/A | AQ15: N/A | AR15: FALSE | AS15: N/A | AT15: =IF(AND(AR15=TRUE,ISNUMBER(AS15)),MAX(0,AS15-SUMIFS($AM$3:$AM14,AR$3:AR14,TRUE)),IF(AND(AR15=TRUE,ISNUMBER(AS15)=FALSE),"ERR","N/A")) -> N/A | AU15: N/A | AV15: FALSE | AW15: N/A | AX15: =IF(AND(AV15=TRUE,ISNUMBER(AW15)),MAX(0,AW15-SUMIFS($AM$3:$AM14,AV$3:AV14,TRUE)),IF(AND(AV15=TRUE,ISNUMBER(AW15)=FALSE),"ERR","N/A")) -> N/A | AY15: N/A | AZ15: FALSE | BA15: N/A | BB15: =IF(AND(AZ15=TRUE,ISNUMBER(BA15)),MAX(0,BA15-SUMIFS($AM$3:$AM14,AZ$3:AZ14,TRUE)),IF(AND(AZ15=TRUE,ISNUMBER(BA15)=FALSE),"ERR","N/A")) -> N/A | BC15: N/A | BD15: FALSE | BE15: N/A | BF15: =IF(AND(BD15=TRUE,ISNUMBER(BE15)=TRUE),MAX(0,BE15-SUMIFS(AM$3:AM14,BD$3:BD14,TRUE,F$3:F14,F15)),IF(AND(BD15=TRUE,ISNUMBER(BE15)=FALSE),"ERR","N/A")) -> N/A | BG15: N/A | BH15: 0 | BI15: 0 | BJ15: N/A | BK15: 0 | BL15: FALSE | BM15: N/A | BN15: N/A | BO15: FALSE | BP15: N/A | BQ15: N/A | BR15: 0 | BS15: N/A | BT15: 0 | BU15: 0 | BV15: 0 | BW15: 43.82 | BX15: 0 | BY15: 0 | BZ15: 0 | CA15: 0 | CB15: TRUE
A16: 13 | B16: 2016-04-07 | C16: 4 | D16: 32 | E16: Office/Outpatient Visit Est | F16: Professional Services: Obstetric Care (Bundled) | G16: Not Covered | H16: 0 | I16: 0 | J16: 0 | K16: FALSE | L16: No | M16: . | N16: =IFERROR(IF(AND(L16="Yes",ISNUMBER(M16)),MAX(0,M16-SUMIFS(BU$3:BU15,L$3:L15,"Yes")),IF(OR(L16="No",M16="None"),"N/A","ERR")),"ERR") -> N/A | O16: FALSE | P16: =IF(O16,BENEFIT_PARAMETERS!$C$76,"N/A") -> N/A | Q16: =IF(P16="Yes", BENEFIT_PARAMETERS!$D$76,"N/A") -> N/A | R16: N/A | S16: 0 | T16: 0 | U16: FALSE | V16: =IF(O16,BENEFIT_PARAMETERS!$C$77,"N/A") -> N/A | W16: =IF(V16="Yes", BENEFIT_PARAMETERS!$D$77,"N/A") -> N/A | X16: =IF(O16,COUNTIF(Z$3:Z15,">0"),"N/A") -> N/A | Y16: N/A | Z16: N/A | AA16: 0 | AB16: N/A | AC16: 0 | AD16: FALSE | AE16: . | AF16: 0 | AG16: N/A | AH16: FALSE | AI16: . | AJ16: 0 | AK16: N/A | AL16: 0 | AM16: 0 | AN16: FALSE | AO16: N/A | AP16: =IF(AND(ISNUMBER(AO16),AN16=TRUE),MAX(0,AO16-SUMIFS($AM$3:$AM15,AN$3:AN15,TRUE)),IF(AND(AN16=TRUE,ISNUMBER(AO16)=FALSE),"ERR","N/A")) -> N/A | AQ16: N/A | AR16: FALSE | AS16: N/A | AT16: =IF(AND(AR16=TRUE,ISNUMBER(AS16)),MAX(0,AS16-SUMIFS($AM$3:$AM15,AR$3:AR15,TRUE)),IF(AND(AR16=TRUE,ISNUMBER(AS16)=FALSE),"ERR","N/A")) -> N/A | AU16: N/A | AV16: FALSE | AW16: N/A | AX16: =IF(AND(AV16=TRUE,ISNUMBER(AW16)),MAX(0,AW16-SUMIFS($AM$3:$AM15,AV$3:AV15,TRUE)),IF(AND(AV16=TRUE,ISNUMBER(AW16)=FALSE),"ERR","N/A")) -> N/A | AY16: N/A | AZ16: FALSE | BA16: N/A | BB16: =IF(AND(AZ16=TRUE,ISNUMBER(BA16)),MAX(0,BA16-SUMIFS($AM$3:$AM15,AZ$3:AZ15,TRUE)),IF(AND(AZ16=TRUE,ISNUMBER(BA16)=FALSE),"ERR","N/A")) -> N/A | BC16: N/A | BD16: FALSE | BE16: N/A | BF16: =IF(AND(BD16=TRUE,ISNUMBER(BE16)=TRUE),MAX(0,BE16-SUMIFS(AM$3:AM15,BD$3:BD15,TRUE,F$3:F15,F16)),IF(AND(BD16=TRUE,ISNUMBER(BE16)=FALSE),"ERR","N/A")) -> N/A | BG16: N/A | BH16: 0 | BI16: 0 | BJ16: N/A | BK16: 0 | BL16: FALSE | BM16: N/A | BN16: N/A | BO16: FALSE | BP16: N/A | BQ16: N/A | BR16: 0 | BS16: N/A | BT16: 0 | BU16: 0 | BV16: 0 | BW16: 0 | BX16: 0 | BY16: 0 | BZ16: 0 | CA16: 0 | CB16: TRUE
A17: 14 | B17: 2016-04-07 | C17: 4 | D17: 8 | E17: Prenatal Vitamins (OTC - Bottle of 100) [1 pill daily; 30 pills/month] | F17: Over-the-counter Drugs | G17: Not Covered | H17: 11.48 | I17: 11.48 | J17: 0 | K17: FALSE | L17: No | M17: . | N17: =IFERROR(IF(AND(L17="Yes",ISNUMBER(M17)),MAX(0,M17-SUMIFS(BU$3:BU16,L$3:L16,"Yes")),IF(OR(L17="No",M17="None"),"N/A","ERR")),"ERR") -> N/A | O17: FALSE | P17: =IF(O17,BENEFIT_PARAMETERS!$C$76,"N/A") -> N/A | Q17: =IF(P17="Yes", BENEFIT_PARAMETERS!$D$76,"N/A") -> N/A | R17: N/A | S17: 0 | T17: 0 | U17: FALSE | V17: =IF(O17,BENEFIT_PARAMETERS!$C$77,"N/A") -> N/A | W17: =IF(V17="Yes", BENEFIT_PARAMETERS!$D$77,"N/A") -> N/A | X17: =IF(O17,COUNTIF(Z$3:Z16,">0"),"N/A") -> N/A | Y17: N/A | Z17: N/A | AA17: 0 | AB17: N/A | AC17: 0 | AD17: FALSE | AE17: . | AF17: 0 | AG17: N/A | AH17: FALSE | AI17: . | AJ17: 1 | AK17: N/A | AL17: 0 | AM17: 0 | AN17: FALSE | AO17: N/A | AP17: =IF(AND(ISNUMBER(AO17),AN17=TRUE),MAX(0,AO17-SUMIFS($AM$3:$AM16,AN$3:AN16,TRUE)),IF(AND(AN17=TRUE,ISNUMBER(AO17)=FALSE),"ERR","N/A")) -> N/A | AQ17: N/A | AR17: FALSE | AS17: N/A | AT17: =IF(AND(AR17=TRUE,ISNUMBER(AS17)),MAX(0,AS17-SUMIFS($AM$3:$AM16,AR$3:AR16,TRUE)),IF(AND(AR17=TRUE,ISNUMBER(AS17)=FALSE),"ERR","N/A")) -> N/A | AU17: N/A | AV17: FALSE | AW17: N/A | AX17: =IF(AND(AV17=TRUE,ISNUMBER(AW17)),MAX(0,AW17-SUMIFS($AM$3:$AM16,AV$3:AV16,TRUE)),IF(AND(AV17=TRUE,ISNUMBER(AW17)=FALSE),"ERR","N/A")) -> N/A | AY17: N/A | AZ17: FALSE | BA17: N/A | BB17: =IF(AND(AZ17=TRUE,ISNUMBER(BA17)),MAX(0,BA17-SUMIFS($AM$3:$AM16,AZ$3:AZ16,TRUE)),IF(AND(AZ17=TRUE,ISNUMBER(BA17)=FALSE),"ERR","N/A")) -> N/A | BC17: N/A | BD17: FALSE | BE17: N/A | BF17: =IF(AND(BD17=TRUE,ISNUMBER(BE17)=TRUE),MAX(0,BE17-SUMIFS(AM$3:AM16,BD$3:BD16,TRUE,F$3:F16,F17)),IF(AND(BD17=TRUE,ISNUMBER(BE17)=FALSE),"ERR","N/A")) -> N/A | BG17: N/A | BH17: 0 | BI17: 0 | BJ17: N/A | BK17: 0 | BL17: FALSE | BM17: N/A | BN17: N/A | BO17: FALSE | BP17: N/A | BQ17: N/A | BR17: 0 | BS17: N/A | BT17: 0 | BU17: 0 | BV17: 0 | BW17: 11.48 | BX17: 0 | BY17: 0 | BZ17: 0 | CA17: 0 | CB17: TRUE
A18: 15 | B18: 2016-05-27 | C18: 5 | D18: 32 | E18: Office/Outpatient Visit Est | F18: Professional Services: Obstetric Care (Bundled) | G18: Not Covered | H18: 0 | I18: 0 | J18: 0 | K18: FALSE | L18: No | M18: . | N18: =IFERROR(IF(AND(L18="Yes",ISNUMBER(M18)),MAX(0,M18-SUMIFS(BU$3:BU17,L$3:L17,"Yes")),IF(OR(L18="No",M18="None"),"N/A","ERR")),"ERR") -> N/A | O18: FALSE | P18: =IF(O18,BENEFIT_PARAMETERS!$C$76,"N/A") -> N/A | Q18: =IF(P18="Yes", BENEFIT_PARAMETERS!$D$76,"N/A") -> N/A | R18: N/A | S18: 0 | T18: 0 | U18: FALSE | V18: =IF(O18,BENEFIT_PARAMETERS!$C$77,"N/A") -> N/A | W18: =IF(V18="Yes", BENEFIT_PARAMETERS!$D$77,"N/A") -> N/A | X18: =IF(O18,COUNTIF(Z$3:Z17,">0"),"N/A") -> N/A | Y18: N/A | Z18: N/A | AA18: 0 | AB18: N/A | AC18: 0 | AD18: FALSE | AE18: . | AF18: 0 | AG18: N/A | AH18: FALSE | AI18: . | AJ18: 1 | AK18: N/A | AL18: 0 | AM18: 0 | AN18: FALSE | AO18: N/A | AP18: =IF(AND(ISNUMBER(AO18),AN18=TRUE),MAX(0,AO18-SUMIFS($AM$3:$AM17,AN$3:AN17,TRUE)),IF(AND(AN18=TRUE,ISNUMBER(AO18)=FALSE),"ERR","N/A")) -> N/A | AQ18: N/A | AR18: FALSE | AS18: N/A | AT18: =IF(AND(AR18=TRUE,ISNUMBER(AS18)),MAX(0,AS18-SUMIFS($AM$3:$AM17,AR$3:AR17,TRUE)),IF(AND(AR18=TRUE,ISNUMBER(AS18)=FALSE),"ERR","N/A")) -> N/A | AU18: N/A | AV18: FALSE | AW18: N/A | AX18: =IF(AND(AV18=TRUE,ISNUMBER(AW18)),MAX(0,AW18-SUMIFS($AM$3:$AM17,AV$3:AV17,TRUE)),IF(AND(AV18=TRUE,ISNUMBER(AW18)=FALSE),"ERR","N/A")) -> N/A | AY18: N/A | AZ18: FALSE | BA18: N/A | BB18: =IF(AND(AZ18=TRUE,ISNUMBER(BA18)),MAX(0,BA18-SUMIFS($AM$3:$AM17,AZ$3:AZ17,TRUE)),IF(AND(AZ18=TRUE,ISNUMBER(BA18)=FALSE),"ERR","N/A")) -> N/A | BC18: N/A | BD18: FALSE | BE18: N/A | BF18: =IF(AND(BD18=TRUE,ISNUMBER(BE18)=TRUE),MAX(0,BE18-SUMIFS(AM$3:AM17,BD$3:BD17,TRUE,F$3:F17,F18)),IF(AND(BD18=TRUE,ISNUMBER(BE18)=FALSE),"ERR","N/A")) -> N/A | BG18: N/A | BH18: 0 | BI18: 0 | BJ18: N/A | BK18: 0 | BL18: FALSE | BM18: N/A | BN18: N/A | BO18: FALSE | BP18: N/A | BQ18: N/A | BR18: 0 | BS18: N/A | BT18: 0 | BU18: 0 | BV18: 0 | BW18: 0 | BX18: 0 | BY18: 0 | BZ18: 0 | CA18: 0 | CB18: TRUE
A19: 16 | B19: 2016-06-24 | C19: 6 | D19: 15 | E19: Alpha-fetoprotein serum | F19: Diagnostic Services: Laboratory | G19: Not Covered | H19: 23.21 | I19: 23.21 | J19: 0 | K19: FALSE | L19: No | M19: . | N19: =IFERROR(IF(AND(L19="Yes",ISNUMBER(M19)),MAX(0,M19-SUMIFS(BU$3:BU18,L$3:L18,"Yes")),IF(OR(L19="No",M19="None"),"N/A","ERR")),"ERR") -> N/A | O19: FALSE | P19: =IF(O19,BENEFIT_PARAMETERS!$C$76,"N/A") -> N/A | Q19: =IF(P19="Yes", BENEFIT_PARAMETERS!$D$76,"N/A") -> N/A | R19: N/A | S19: 0 | T19: 0 | U19: FALSE | V19: =IF(O19,BENEFIT_PARAMETERS!$C$77,"N/A") -> N/A | W19: =IF(V19="Yes", BENEFIT_PARAMETERS!$D$77,"N/A") -> N/A | X19: =IF(O19,COUNTIF(Z$3:Z18,">0"),"N/A") -> N/A | Y19: N/A | Z19: N/A | AA19: 0 | AB19: N/A | AC19: 0 | AD19: FALSE | AE19: . | AF19: 0 | AG19: N/A | AH19: FALSE | AI19: . | AJ19: 0 | AK19: N/A | AL19: 0 | AM19: 0 | AN19: FALSE | AO19: N/A | AP19: =IF(AND(ISNUMBER(AO19),AN19=TRUE),MAX(0,AO19-SUMIFS($AM$3:$AM18,AN$3:AN18,TRUE)),IF(AND(AN19=TRUE,ISNUMBER(AO19)=FALSE),"ERR","N/A")) -> N/A | AQ19: N/A | AR19: FALSE | AS19: N/A | AT19: =IF(AND(AR19=TRUE,ISNUMBER(AS19)),MAX(0,AS19-SUMIFS($AM$3:$AM18,AR$3:AR18,TRUE)),IF(AND(AR19=TRUE,ISNUMBER(AS19)=FALSE),"ERR","N/A")) -> N/A | AU19: N/A | AV19: FALSE | AW19: N/A | AX19: =IF(AND(AV19=TRUE,ISNUMBER(AW19)),MAX(0,AW19-SUMIFS($AM$3:$AM18,AV$3:AV18,TRUE)),IF(AND(AV19=TRUE,ISNUMBER(AW19)=FALSE),"ERR","N/A")) -> N/A | AY19: N/A | AZ19: FALSE | BA19: N/A | BB19: =IF(AND(AZ19=TRUE,ISNUMBER(BA19)),MAX(0,BA19-SUMIFS($AM$3:$AM18,AZ$3:AZ18,TRUE)),IF(AND(AZ19=TRUE,ISNUMBER(BA19)=FALSE),"ERR","N/A")) -> N/A | BC19: N/A | BD19: FALSE | BE19: N/A | BF19: =IF(AND(BD19=TRUE,ISNUMBER(BE19)=TRUE),MAX(0,BE19-SUMIFS(AM$3:AM18,BD$3:BD18,TRUE,F$3:F18,F19)),IF(AND(BD19=TRUE,ISNUMBER(BE19)=FALSE),"ERR","N/A")) -> N/A | BG19: N/A | BH19: 0 | BI19: 0 | BJ19: N/A | BK19: 0 | BL19: FALSE | BM19: N/A | BN19: N/A | BO19: FALSE | BP19: N/A | BQ19: N/A | BR19: 0 | BS19: N/A | BT19: 0 | BU19: 0 | BV19: 0 | BW19: 23.21 | BX19: 0 | BY19: 0 | BZ19: 0 | CA19: 0 | CB19: TRUE
A20: 17 | B20: 2016-06-24 | C20: 6 | D20: 16 | E20: Assay of estriol | F20: Diagnostic Services: Laboratory | G20: Not Covered | H20: 28.67 | I20: 28.67 | J20: 0 | K20: FALSE | L20: No | M20: . | N20: =IFERROR(IF(AND(L20="Yes",ISNUMBER(M20)),MAX(0,M20-SUMIFS(BU$3:BU19,L$3:L19,"Yes")),IF(OR(L20="No",M20="None"),"N/A","ERR")),"ERR") -> N/A | O20: FALSE | P20: =IF(O20,BENEFIT_PARAMETERS!$C$76,"N/A") -> N/A | Q20: =IF(P20="Yes", BENEFIT_PARAMETERS!$D$76,"N/A") -> N/A | R20: N/A | S20: 0 | T20: 0 | U20: FALSE | V20: =IF(O20,BENEFIT_PARAMETERS!$C$77,"N/A") -> N/A | W20: =IF(V20="Yes", BENEFIT_PARAMETERS!$D$77,"N/A") -> N/A | X20: =IF(O20,COUNTIF(Z$3:Z19,">0"),"N/A") -> N/A | Y20: N/A | Z20: N/A | AA20: 0 | AB20: N/A | AC20: 0 | AD20: FALSE | AE20: . | AF20: 0 | AG20: N/A | AH20: FALSE | AI20: . | AJ20: 0 | AK20: N/A | AL20: 0 | AM20: 0 | AN20: FALSE | AO20: N/A | AP20: =IF(AND(ISNUMBER(AO20),AN20=TRUE),MAX(0,AO20-SUMIFS($AM$3:$AM19,AN$3:AN19,TRUE)),IF(AND(AN20=TRUE,ISNUMBER(AO20)=FALSE),"ERR","N/A")) -> N/A | AQ20: N/A | AR20: FALSE | AS20: N/A | AT20: =IF(AND(AR20=TRUE,ISNUMBER(AS20)),MAX(0,AS20-SUMIFS($AM$3:$AM19,AR$3:AR19,TRUE)),IF(AND(AR20=TRUE,ISNUMBER(AS20)=FALSE),"ERR","N/A")) -> N/A | AU20: N/A | AV20: FALSE | AW20: N/A | AX20: =IF(AND(AV20=TRUE,ISNUMBER(AW20)),MAX(0,AW20-SUMIFS($AM$3:$AM19,AV$3:AV19,TRUE)),IF(AND(AV20=TRUE,ISNUMBER(AW20)=FALSE),"ERR","N/A")) -> N/A | AY20: N/A | AZ20: FALSE | BA20: N/A | BB20: =IF(AND(AZ20=TRUE,ISNUMBER(BA20)),MAX(0,BA20-SUMIFS($AM$3:$AM19,AZ$3:AZ19,TRUE)),IF(AND(AZ20=TRUE,ISNUMBER(BA20)=FALSE),"ERR","N/A")) -> N/A | BC20: N/A | BD20: FALSE | BE20: N/A | BF20: =IF(AND(BD20=TRUE,ISNUMBER(BE20)=TRUE),MAX(0,BE20-SUMIFS(AM$3:AM19,BD$3:BD19,TRUE,F$3:F19,F20)),IF(AND(BD20=TRUE,ISNUMBER(BE20)=FALSE),"ERR","N/A")) -> N/A | BG20: N/A | BH20: 0 | BI20: 0 | BJ20: N/A | BK20: 0 | BL20: FALSE | BM20: N/A | BN20: N/A | BO20: FALSE | BP20: N/A | BQ20: N/A | BR20: 0 | BS20: N/A | BT20: 0 | BU20: 0 | BV20: 0 | BW20: 28.67 | BX20: 0 | BY20: 0 | BZ20: 0 | CA20: 0 | CB20: TRUE
A21: 18 | B21: 2016-06-24 | C21: 6 | D21: 25 | E21: Chorionic gonadotropin test | F21: Diagnostic Services: Laboratory | G21: Not Covered | H21: 24.94 | I21: 24.94 | J21: 0 | K21: FALSE | L21: No | M21: . | N21: =IFERROR(IF(AND(L21="Yes",ISNUMBER(M21)),MAX(0,M21-SUMIFS(BU$3:BU20,L$3:L20,"Yes")),IF(OR(L21="No",M21="None"),"N/A","ERR")),"ERR") -> N/A | O21: FALSE | P21: =IF(O21,BENEFIT_PARAMETERS!$C$76,"N/A") -> N/A | Q21: =IF(P21="Yes", BENEFIT_PARAMETERS!$D$76,"N/A") -> N/A | R21: N/A | S21: 0 | T21: 0 | U21: FALSE | V21: =IF(O21,BENEFIT_PARAMETERS!$C$77,"N/A") -> N/A | W21: =IF(V21="Yes", BENEFIT_PARAMETERS!$D$77,"N/A") -> N/A | X21: =IF(O21,COUNTIF(Z$3:Z20,">0"),"N/A") -> N/A | Y21: N/A | Z21: N/A | AA21: 0 | AB21: N/A | AC21: 0 | AD21: FALSE | AE21: . | AF21: 0 | AG21: N/A | AH21: FALSE | AI21: . | AJ21: 0 | AK21: N/A | AL21: 0 | AM21: 0 | AN21: FALSE | AO21: N/A | AP21: =IF(AND(ISNUMBER(AO21),AN21=TRUE),MAX(0,AO21-SUMIFS($AM$3:$AM20,AN$3:AN20,TRUE)),IF(AND(AN21=TRUE,ISNUMBER(AO21)=FALSE),"ERR","N/A")) -> N/A | AQ21: N/A | AR21: FALSE | AS21: N/A | AT21: =IF(AND(AR21=TRUE,ISNUMBER(AS21)),MAX(0,AS21-SUMIFS($AM$3:$AM20,AR$3:AR20,TRUE)),IF(AND(AR21=TRUE,ISNUMBER(AS21)=FALSE),"ERR","N/A")) -> N/A | AU21: N/A | AV21: FALSE | AW21: N/A | AX21: =IF(AND(AV21=TRUE,ISNUMBER(AW21)),MAX(0,AW21-SUMIFS($AM$3:$AM20,AV$3:AV20,TRUE)),IF(AND(AV21=TRUE,ISNUMBER(AW21)=FALSE),"ERR","N/A")) -> N/A | AY21: N/A | AZ21: FALSE | BA21: N/A | BB21: =IF(AND(AZ21=TRUE,ISNUMBER(BA21)),MAX(0,BA21-SUMIFS($AM$3:$AM20,AZ$3:AZ20,TRUE)),IF(AND(AZ21=TRUE,ISNUMBER(BA21)=FALSE),"ERR","N/A")) -> N/A | BC21: N/A | BD21: FALSE | BE21: N/A | BF21: =IF(AND(BD21=TRUE,ISNUMBER(BE21)=TRUE),MAX(0,BE21-SUMIFS(AM$3:AM20,BD$3:BD20,TRUE,F$3:F20,F21)),IF(AND(BD21=TRUE,ISNUMBER(BE21)=FALSE),"ERR","N/A")) -> N/A | BG21: N/A | BH21: 0 | BI21: 0 | BJ21: N/A | BK21: 0 | BL21: FALSE | BM21: N/A | BN21: N/A | BO21: FALSE | BP21: N/A | BQ21: N/A | BR21: 0 | BS21: N/A | BT21: 0 | BU21: 0 | BV21: 0 | BW21: 24.94 | BX21: 0 | BY21: 0 | BZ21: 0 | CA21: 0 | CB21: TRUE
A22: 19 | B22: 2016-06-24 | C22: 6 | D22: 27 | E22: Inhibin A | F22: Diagnostic Services: Laboratory | G22: Not Covered | H22: 21.67 | I22: 21.67 | J22: 0 | K22: FALSE | L22: No | M22: . | N22: =IFERROR(IF(AND(L22="Yes",ISNUMBER(M22)),MAX(0,M22-SUMIFS(BU$3:BU21,L$3:L21,"Yes")),IF(OR(L22="No",M22="None"),"N/A","ERR")),"ERR") -> N/A | O22: FALSE | P22: =IF(O22,BENEFIT_PARAMETERS!$C$76,"N/A") -> N/A | Q22: =IF(P22="Yes", BENEFIT_PARAMETERS!$D$76,"N/A") -> N/A | R22: N/A | S22: 0 | T22: 0 | U22: FALSE | V22: =IF(O22,BENEFIT_PARAMETERS!$C$77,"N/A") -> N/A | W22: =IF(V22="Yes", BENEFIT_PARAMETERS!$D$77,"N/A") -> N/A | X22: =IF(O22,COUNTIF(Z$3:Z21,">0"),"N/A") -> N/A | Y22: N/A | Z22: N/A | AA22: 0 | AB22: N/A | AC22: 0 | AD22: FALSE | AE22: . | AF22: 0 | AG22: N/A | AH22: FALSE | AI22: . | AJ22: 0 | AK22: N/A | AL22: 0 | AM22: 0 | AN22: FALSE | AO22: N/A | AP22: =IF(AND(ISNUMBER(AO22),AN22=TRUE),MAX(0,AO22-SUMIFS($AM$3:$AM21,AN$3:AN21,TRUE)),IF(AND(AN22=TRUE,ISNUMBER(AO22)=FALSE),"ERR","N/A")) -> N/A | AQ22: N/A | AR22: FALSE | AS22: N/A | AT22: =IF(AND(AR22=TRUE,ISNUMBER(AS22)),MAX(0,AS22-SUMIFS($AM$3:$AM21,AR$3:AR21,TRUE)),IF(AND(AR22=TRUE,ISNUMBER(AS22)=FALSE),"ERR","N/A")) -> N/A | AU22: N/A | AV22: FALSE | AW22: N/A | AX22: =IF(AND(AV22=TRUE,ISNUMBER(AW22)),MAX(0,AW22-SUMIFS($AM$3:$AM21,AV$3:AV21,TRUE)),IF(AND(AV22=TRUE,ISNUMBER(AW22)=FALSE),"ERR","N/A")) -> N/A | AY22: N/A | AZ22: FALSE | BA22: N/A | BB22: =IF(AND(AZ22=TRUE,ISNUMBER(BA22)),MAX(0,BA22-SUMIFS($AM$3:$AM21,AZ$3:AZ21,TRUE)),IF(AND(AZ22=TRUE,ISNUMBER(BA22)=FALSE),"ERR","N/A")) -> N/A | BC22: N/A | BD22: FALSE | BE22: N/A | BF22: =IF(AND(BD22=TRUE,ISNUMBER(BE22)=TRUE),MAX(0,BE22-SUMIFS(AM$3:AM21,BD$3:BD21,TRUE,F$3:F21,F22)),IF(AND(BD22=TRUE,ISNUMBER(BE22)=FALSE),"ERR","N/A")) -> N/A | BG22: N/A | BH22: 0 | BI22: 0 | BJ22: N/A | BK22: 0 | BL22: FALSE | BM22: N/A | BN22: N/A | BO22: FALSE | BP22: N/A | BQ22: N/A | BR22: 0 | BS22: N/A | BT22: 0 | BU22: 0 | BV22: 0 | BW22: 21.67 | BX22: 0 | BY22: 0 | BZ22: 0 | CA22: 0 | CB22: TRUE
A23: 20 | B23: 2016-06-24 | C23: 6 | D23: 37 | E23: CFTR gene analysis, common variants | F23: Diagnostic Services: Laboratory | G23: Not Covered | H23: 595.43 | I23: 595.43 | J23: 0 | K23: FALSE | L23: No | M23: . | N23: =IFERROR(IF(AND(L23="Yes",ISNUMBER(M23)),MAX(0,M23-SUMIFS(BU$3:BU22,L$3:L22,"Yes")),IF(OR(L23="No",M23="None"),"N/A","ERR")),"ERR") -> N/A | O23: FALSE | P23: =IF(O23,BENEFIT_PARAMETERS!$C$76,"N/A") -> N/A | Q23: =IF(P23="Yes", BENEFIT_PARAMETERS!$D$76,"N/A") -> N/A | R23: N/A | S23: 0 | T23: 0 | U23: FALSE | V23: =IF(O23,BENEFIT_PARAMETERS!$C$77,"N/A") -> N/A | W23: =IF(V23="Yes", BENEFIT_PARAMETERS!$D$77,"N/A") -> N/A | X23: =IF(O23,COUNTIF(Z$3:Z22,">0"),"N/A") -> N/A | Y23: N/A | Z23: N/A | AA23: 0 | AB23: N/A | AC23: 0 | AD23: FALSE | AE23: . | AF23: 0 | AG23: N/A | AH23: FALSE | AI23: . | AJ23: 0 | AK23: N/A | AL23: 0 | AM23: 0 | AN23: FALSE | AO23: N/A | AP23: =IF(AND(ISNUMBER(AO23),AN23=TRUE),MAX(0,AO23-SUMIFS($AM$3:$AM22,AN$3:AN22,TRUE)),IF(AND(AN23=TRUE,ISNUMBER(AO23)=FALSE),"ERR","N/A")) -> N/A | AQ23: N/A | AR23: FALSE | AS23: N/A | AT23: =IF(AND(AR23=TRUE,ISNUMBER(AS23)),MAX(0,AS23-SUMIFS($AM$3:$AM22,AR$3:AR22,TRUE)),IF(AND(AR23=TRUE,ISNUMBER(AS23)=FALSE),"ERR","N/A")) -> N/A | AU23: N/A | AV23: FALSE | AW23: N/A | AX23: =IF(AND(AV23=TRUE,ISNUMBER(AW23)),MAX(0,AW23-SUMIFS($AM$3:$AM22,AV$3:AV22,TRUE)),IF(AND(AV23=TRUE,ISNUMBER(AW23)=FALSE),"ERR","N/A")) -> N/A | AY23: N/A | AZ23: FALSE | BA23: N/A | BB23: =IF(AND(AZ23=TRUE,ISNUMBER(BA23)),MAX(0,BA23-SUMIFS($AM$3:$AM22,AZ$3:AZ22,TRUE)),IF(AND(AZ23=TRUE,ISNUMBER(BA23)=FALSE),"ERR","N/A")) -> N/A | BC23: N/A | BD23: FALSE | BE23: N/A | BF23: =IF(AND(BD23=TRUE,ISNUMBER(BE23)=TRUE),MAX(0,BE23-SUMIFS(AM$3:AM22,BD$3:BD22,TRUE,F$3:F22,F23)),IF(AND(BD23=TRUE,ISNUMBER(BE23)=FALSE),"ERR","N/A")) -> N/A | BG23: N/A | BH23: 0 | BI23: 0 | BJ23: N/A | BK23: 0 | BL23: FALSE | BM23: N/A | BN23: N/A | BO23: FALSE | BP23: N/A | BQ23: N/A | BR23: 0 | BS23: N/A | BT23: 0 | BU23: 0 | BV23: 0 | BW23: 595.43 | BX23: 0 | BY23: 0 | BZ23: 0 | CA23: 0 | CB23: TRUE
A24: 21 | B24: 2016-06-24 | C24: 6 | D24: 12 | E24: Routine Venipuncture | F24: Diagnostic Services: Laboratory | G24: Not Covered | H24: 5.3 | I24: 5.3 | J24: 0 | K24: FALSE | L24: No | M24: . | N24: =IFERROR(IF(AND(L24="Yes",ISNUMBER(M24)),MAX(0,M24-SUMIFS(BU$3:BU23,L$3:L23,"Yes")),IF(OR(L24="No",M24="None"),"N/A","ERR")),"ERR") -> N/A | O24: FALSE | P24: =IF(O24,BENEFIT_PARAMETERS!$C$76,"N/A") -> N/A | Q24: =IF(P24="Yes", BENEFIT_PARAMETERS!$D$76,"N/A") -> N/A | R24: N/A | S24: 0 | T24: 0 | U24: FALSE | V24: =IF(O24,BENEFIT_PARAMETERS!$C$77,"N/A") -> N/A | W24: =IF(V24="Yes", BENEFIT_PARAMETERS!$D$77,"N/A") -> N/A | X24: =IF(O24,COUNTIF(Z$3:Z23,">0"),"N/A") -> N/A | Y24: N/A | Z24: N/A | AA24: 0 | AB24: N/A | AC24: 0 | AD24: FALSE | AE24: . | AF24: 0 | AG24: N/A | AH24: FALSE | AI24: . | AJ24: 1 | AK24: N/A | AL24: 0 | AM24: 0 | AN24: FALSE | AO24: N/A | AP24: =IF(AND(ISNUMBER(AO24),AN24=TRUE),MAX(0,AO24-SUMIFS($AM$3:$AM23,AN$3:AN23,TRUE)),IF(AND(AN24=TRUE,ISNUMBER(AO24)=FALSE),"ERR","N/A")) -> N/A | AQ24: N/A | AR24: FALSE | AS24: N/A | AT24: =IF(AND(AR24=TRUE,ISNUMBER(AS24)),MAX(0,AS24-SUMIFS($AM$3:$AM23,AR$3:AR23,TRUE)),IF(AND(AR24=TRUE,ISNUMBER(AS24)=FALSE),"ERR","N/A")) -> N/A | AU24: N/A | AV24: FALSE | AW24: N/A | AX24: =IF(AND(AV24=TRUE,ISNUMBER(AW24)),MAX(0,AW24-SUMIFS($AM$3:$AM23,AV$3:AV23,TRUE)),IF(AND(AV24=TRUE,ISNUMBER(AW24)=FALSE),"ERR","N/A")) -> N/A | AY24: N/A | AZ24: FALSE | BA24: N/A | BB24: =IF(AND(AZ24=TRUE,ISNUMBER(BA24)),MAX(0,BA24-SUMIFS($AM$3:$AM23,AZ$3:AZ23,TRUE)),IF(AND(AZ24=TRUE,ISNUMBER(BA24)=FALSE),"ERR","N/A")) -> N/A | BC24: N/A | BD24: FALSE | BE24: N/A | BF24: =IF(AND(BD24=TRUE,ISNUMBER(BE24)=TRUE),MAX(0,BE24-SUMIFS(AM$3:AM23,BD$3:BD23,TRUE,F$3:F23,F24)),IF(AND(BD24=TRUE,ISNUMBER(BE24)=FALSE),"ERR","N/A")) -> N/A | BG24: N/A | BH24: 0 | BI24: 0 | BJ24: N/A | BK24: 0 | BL24: FALSE | BM24: N/A | BN24: N/A | BO24: FALSE | BP24: N/A | BQ24: N/A | BR24: 0 | BS24: N/A | BT24: 0 | BU24: 0 | BV24: 0 | BW24: 5.3 | BX24: 0 | BY24: 0 | BZ24: 0 | CA24: 0 | CB24: TRUE
A25: 22 | B25: 2016-06-24 | C25: 6 | D25: 32 | E25: Office/Outpatient Visit Est | F25: Professional Services: Obstetric Care (Bundled) | G25: Not Covered | H25: 0 | I25: 0 | J25: 0 | K25: FALSE | L25: No | M25: . | N25: =IFERROR(IF(AND(L25="Yes",ISNUMBER(M25)),MAX(0,M25-SUMIFS(BU$3:BU24,L$3:L24,"Yes")),IF(OR(L25="No",M25="None"),"N/A","ERR")),"ERR") -> N/A | O25: FALSE | P25: =IF(O25,BENEFIT_PARAMETERS!$C$76,"N/A") -> N/A | Q25: =IF(P25="Yes", BENEFIT_PARAMETERS!$D$76,"N/A") -> N/A | R25: N/A | S25: 0 | T25: 0 | U25: FALSE | V25: =IF(O25,BENEFIT_PARAMETERS!$C$77,"N/A") -> N/A | W25: =IF(V25="Yes", BENEFIT_PARAMETERS!$D$77,"N/A") -> N/A | X25: =IF(O25,COUNTIF(Z$3:Z24,">0"),"N/A") -> N/A | Y25: N/A | Z25: N/A | AA25: 0 | AB25: N/A | AC25: 0 | AD25: FALSE | AE25: . | AF25: 0 | AG25: N/A | AH25: FALSE | AI25: . | AJ25: 2 | AK25: N/A | AL25: 0 | AM25: 0 | AN25: FALSE | AO25: N/A | AP25: =IF(AND(ISNUMBER(AO25),AN25=TRUE),MAX(0,AO25-SUMIFS($AM$3:$AM24,AN$3:AN24,TRUE)),IF(AND(AN25=TRUE,ISNUMBER(AO25)=FALSE),"ERR","N/A")) -> N/A | AQ25: N/A | AR25: FALSE | AS25: N/A | AT25: =IF(AND(AR25=TRUE,ISNUMBER(AS25)),MAX(0,AS25-SUMIFS($AM$3:$AM24,AR$3:AR24,TRUE)),IF(AND(AR25=TRUE,ISNUMBER(AS25)=FALSE),"ERR","N/A")) -> N/A | AU25: N/A | AV25: FALSE | AW25: N/A | AX25: =IF(AND(AV25=TRUE,ISNUMBER(AW25)),MAX(0,AW25-SUMIFS($AM$3:$AM24,AV$3:AV24,TRUE)),IF(AND(AV25=TRUE,ISNUMBER(AW25)=FALSE),"ERR","N/A")) -> N/A | AY25: N/A | AZ25: FALSE | BA25: N/A | BB25: =IF(AND(AZ25=TRUE,ISNUMBER(BA25)),MAX(0,BA25-SUMIFS($AM$3:$AM24,AZ$3:AZ24,TRUE)),IF(AND(AZ25=TRUE,ISNUMBER(BA25)=FALSE),"ERR","N/A")) -> N/A | BC25: N/A | BD25: FALSE | BE25: N/A | BF25: =IF(AND(BD25=TRUE,ISNUMBER(BE25)=TRUE),MAX(0,BE25-SUMIFS(AM$3:AM24,BD$3:BD24,TRUE,F$3:F24,F25)),IF(AND(BD25=TRUE,ISNUMBER(BE25)=FALSE),"ERR","N/A")) -> N/A | BG25: N/A | BH25: 0 | BI25: 0 | BJ25: N/A | BK25: 0 | BL25: FALSE | BM25: N/A | BN25: N/A | BO25: FALSE | BP25: N/A | BQ25: N/A | BR25: 0 | BS25: N/A | BT25: 0 | BU25: 0 | BV25: 0 | BW25: 0 | BX25: 0 | BY25: 0 | BZ25: 0 | CA25: 0 | CB25: TRUE
A26: 23 | B26: 2016-07-06 | C26: 7 | D26: 8 | E26: Prenatal Vitamins (OTC - Bottle of 100) [1 pill daily; 30 pills/month] | F26: Over-the-counter Drugs | G26: Not Covered | H26: 11.48 | I26: 11.48 | J26: 0 | K26: FALSE | L26: No | M26: . | N26: =IFERROR(IF(AND(L26="Yes",ISNUMBER(M26)),MAX(0,M26-SUMIFS(BU$3:BU25,L$3:L25,"Yes")),IF(OR(L26="No",M26="None"),"N/A","ERR")),"ERR") -> N/A | O26: FALSE | P26: =IF(O26,BENEFIT_PARAMETERS!$C$76,"N/A") -> N/A | Q26: =IF(P26="Yes", BENEFIT_PARAMETERS!$D$76,"N/A") -> N/A | R26: N/A | S26: 0 | T26: 0 | U26: FALSE | V26: =IF(O26,BENEFIT_PARAMETERS!$C$77,"N/A") -> N/A | W26: =IF(V26="Yes", BENEFIT_PARAMETERS!$D$77,"N/A") -> N/A | X26: =IF(O26,COUNTIF(Z$3:Z25,">0"),"N/A") -> N/A | Y26: N/A | Z26: N/A | AA26: 0 | AB26: N/A | AC26: 0 | AD26: FALSE | AE26: . | AF26: 0 | AG26: N/A | AH26: FALSE | AI26: . | AJ26: 2 | AK26: N/A | AL26: 0 | AM26: 0 | AN26: FALSE | AO26: N/A | AP26: =IF(AND(ISNUMBER(AO26),AN26=TRUE),MAX(0,AO26-SUMIFS($AM$3:$AM25,AN$3:AN25,TRUE)),IF(AND(AN26=TRUE,ISNUMBER(AO26)=FALSE),"ERR","N/A")) -> N/A | AQ26: N/A | AR26: FALSE | AS26: N/A | AT26: =IF(AND(AR26=TRUE,ISNUMBER(AS26)),MAX(0,AS26-SUMIFS($AM$3:$AM25,AR$3:AR25,TRUE)),IF(AND(AR26=TRUE,ISNUMBER(AS26)=FALSE),"ERR","N/A")) -> N/A | AU26: N/A | AV26: FALSE | AW26: N/A | AX26: =IF(AND(AV26=TRUE,ISNUMBER(AW26)),MAX(0,AW26-SUMIFS($AM$3:$AM25,AV$3:AV25,TRUE)),IF(AND(AV26=TRUE,ISNUMBER(AW26)=FALSE),"ERR","N/A")) -> N/A | AY26: N/A | AZ26: FALSE | BA26: N/A | BB26: =IF(AND(AZ26=TRUE,ISNUMBER(BA26)),MAX(0,BA26-SUMIFS($AM$3:$AM25,AZ$3:AZ25,TRUE)),IF(AND(AZ26=TRUE,ISNUMBER(BA26)=FALSE),"ERR","N/A")) -> N/A | BC26: N/A | BD26: FALSE | BE26: N/A | BF26: =IF(AND(BD26=TRUE,ISNUMBER(BE26)=TRUE),MAX(0,BE26-SUMIFS(AM$3:AM25,BD$3:BD25,TRUE,F$3:F25,F26)),IF(AND(BD26=TRUE,ISNUMBER(BE26)=FALSE),"ERR","N/A")) -> N/A | BG26: N/A | BH26: 0 | BI26: 0 | BJ26: N/A | BK26: 0 | BL26: FALSE | BM26: N/A | BN26: N/A | BO26: FALSE | BP26: N/A | BQ26: N/A | BR26: 0 | BS26: N/A | BT26: 0 | BU26: 0 | BV26: 0 | BW26: 11.48 | BX26: 0 | BY26: 0 | BZ26: 0 | CA26: 0 | CB26: TRUE
A27: 24 | B27: 2016-07-22 | C27: 7 | D27: 32 | E27: Office/Outpatient Visit Est | F27: Professional Services: Obstetric Care (Bundled) | G27: Not Covered | H27: 0 | I27: 0 | J27: 0 | K27: FALSE | L27: No | M27: . | N27: =IFERROR(IF(AND(L27="Yes",ISNUMBER(M27)),MAX(0,M27-SUMIFS(BU$3:BU26,L$3:L26,"Yes")),IF(OR(L27="No",M27="None"),"N/A","ERR")),"ERR") -> N/A | O27: FALSE | P27: =IF(O27,BENEFIT_PARAMETERS!$C$76,"N/A") -> N/A | Q27: =IF(P27="Yes", BENEFIT_PARAMETERS!$D$76,"N/A") -> N/A | R27: N/A | S27: 0 | T27: 0 | U27: FALSE | V27: =IF(O27,BENEFIT_PARAMETERS!$C$77,"N/A") -> N/A | W27: =IF(V27="Yes", BENEFIT_PARAMETERS!$D$77,"N/A") -> N/A | X27: =IF(O27,COUNTIF(Z$3:Z26,">0"),"N/A") -> N/A | Y27: N/A | Z27: N/A | AA27: 0 | AB27: N/A | AC27: 0 | AD27: FALSE | AE27: . | AF27: 0 | AG27: N/A | AH27: FALSE | AI27: . | AJ27: 3 | AK27: N/A | AL27: 0 | AM27: 0 | AN27: FALSE | AO27: N/A | AP27: =IF(AND(ISNUMBER(AO27),AN27=TRUE),MAX(0,AO27-SUMIFS($AM$3:$AM26,AN$3:AN26,TRUE)),IF(AND(AN27=TRUE,ISNUMBER(AO27)=FALSE),"ERR","N/A")) -> N/A | AQ27: N/A | AR27: FALSE | AS27: N/A | AT27: =IF(AND(AR27=TRUE,ISNUMBER(AS27)),MAX(0,AS27-SUMIFS($AM$3:$AM26,AR$3:AR26,TRUE)),IF(AND(AR27=TRUE,ISNUMBER(AS27)=FALSE),"ERR","N/A")) -> N/A | AU27: N/A | AV27: FALSE | AW27: N/A | AX27: =IF(AND(AV27=TRUE,ISNUMBER(AW27)),MAX(0,AW27-SUMIFS($AM$3:$AM26,AV$3:AV26,TRUE)),IF(AND(AV27=TRUE,ISNUMBER(AW27)=FALSE),"ERR","N/A")) -> N/A | AY27: N/A | AZ27: FALSE | BA27: N/A | BB27: =IF(AND(AZ27=TRUE,ISNUMBER(BA27)),MAX(0,BA27-SUMIFS($AM$3:$AM26,AZ$3:AZ26,TRUE)),IF(AND(AZ27=TRUE,ISNUMBER(BA27)=FALSE),"ERR","N/A")) -> N/A | BC27: N/A | BD27: FALSE | BE27: N/A | BF27: =IF(AND(BD27=TRUE,ISNUMBER(BE27)=TRUE),MAX(0,BE27-SUMIFS(AM$3:AM26,BD$3:BD26,TRUE,F$3:F26,F27)),IF(AND(BD27=TRUE,ISNUMBER(BE27)=FALSE),"ERR","N/A")) -> N/A | BG27: N/A | BH27: 0 | BI27: 0 | BJ27: N/A | BK27: 0 | BL27: FALSE | BM27: N/A | BN27: N/A | BO27: FALSE | BP27: N/A | BQ27: N/A | BR27: 0 | BS27: N/A | BT27: 0 | BU27: 0 | BV27: 0 | BW27: 0 | BX27: 0 | BY27: 0 | BZ27: 0 | CA27: 0 | CB27: TRUE
A28: 25 | B28: 2016-07-22 | C28: 7 | D28: 13 | E28: OB US >/= 14 WKS SNGL FETUS | F28: Diagnostic Services: Radiology | G28: Not Covered | H28: 209.73 | I28: 209.73 | J28: 0 | K28: FALSE | L28: No | M28: . | N28: =IFERROR(IF(AND(L28="Yes",ISNUMBER(M28)),MAX(0,M28-SUMIFS(BU$3:BU27,L$3:L27,"Yes")),IF(OR(L28="No",M28="None"),"N/A","ERR")),"ERR") -> N/A | O28: FALSE | P28: =IF(O28,BENEFIT_PARAMETERS!$C$76,"N/A") -> N/A | Q28: =IF(P28="Yes", BENEFIT_PARAMETERS!$D$76,"N/A") -> N/A | R28: N/A | S28: 0 | T28: 0 | U28: FALSE | V28: =IF(O28,BENEFIT_PARAMETERS!$C$77,"N/A") -> N/A | W28: =IF(V28="Yes", BENEFIT_PARAMETERS!$D$77,"N/A") -> N/A | X28: =IF(O28,COUNTIF(Z$3:Z27,">0"),"N/A") -> N/A | Y28: N/A | Z28: N/A | AA28: 0 | AB28: N/A | AC28: 0 | AD28: FALSE | AE28: . | AF28: 0 | AG28: N/A | AH28: FALSE | AI28: . | AJ28: 0 | AK28: N/A | AL28: 0 | AM28: 0 | AN28: FALSE | AO28: N/A | AP28: =IF(AND(ISNUMBER(AO28),AN28=TRUE),MAX(0,AO28-SUMIFS($AM$3:$AM27,AN$3:AN27,TRUE)),IF(AND(AN28=TRUE,ISNUMBER(AO28)=FALSE),"ERR","N/A")) -> N/A | AQ28: N/A | AR28: FALSE | AS28: N/A | AT28: =IF(AND(AR28=TRUE,ISNUMBER(AS28)),MAX(0,AS28-SUMIFS($AM$3:$AM27,AR$3:AR27,TRUE)),IF(AND(AR28=TRUE,ISNUMBER(AS28)=FALSE),"ERR","N/A")) -> N/A | AU28: N/A | AV28: FALSE | AW28: N/A | AX28: =IF(AND(AV28=TRUE,ISNUMBER(AW28)),MAX(0,AW28-SUMIFS($AM$3:$AM27,AV$3:AV27,TRUE)),IF(AND(AV28=TRUE,ISNUMBER(AW28)=FALSE),"ERR","N/A")) -> N/A | AY28: N/A | AZ28: FALSE | BA28: N/A | BB28: =IF(AND(AZ28=TRUE,ISNUMBER(BA28)),MAX(0,BA28-SUMIFS($AM$3:$AM27,AZ$3:AZ27,TRUE)),IF(AND(AZ28=TRUE,ISNUMBER(BA28)=FALSE),"ERR","N/A")) -> N/A | BC28: N/A | BD28: FALSE | BE28: N/A | BF28: =IF(AND(BD28=TRUE,ISNUMBER(BE28)=TRUE),MAX(0,BE28-SUMIFS(AM$3:AM27,BD$3:BD27,TRUE,F$3:F27,F28)),IF(AND(BD28=TRUE,ISNUMBER(BE28)=FALSE),"ERR","N/A")) -> N/A | BG28: N/A | BH28: 0 | BI28: 0 | BJ28: N/A | BK28: 0 | BL28: FALSE | BM28: N/A | BN28: N/A | BO28: FALSE | BP28: N/A | BQ28: N/A | BR28: 0 | BS28: N/A | BT28: 0 | BU28: 0 | BV28: 0 | BW28: 209.73 | BX28: 0 | BY28: 0 | BZ28: 0 | CA28: 0 | CB28: TRUE
A29: 26 | B29: 2016-08-19 | C29: 8 | D29: 32 | E29: Office/Outpatient Visit Est | F29: Professional Services: Obstetric Care (Bundled) | G29: Not Covered | H29: 0 | I29: 0 | J29: 0 | K29: FALSE | L29: No | M29: . | N29: =IFERROR(IF(AND(L29="Yes",ISNUMBER(M29)),MAX(0,M29-SUMIFS(BU$3:BU28,L$3:L28,"Yes")),IF(OR(L29="No",M29="None"),"N/A","ERR")),"ERR") -> N/A | O29: FALSE | P29: =IF(O29,BENEFIT_PARAMETERS!$C$76,"N/A") -> N/A | Q29: =IF(P29="Yes", BENEFIT_PARAMETERS!$D$76,"N/A") -> N/A | R29: N/A | S29: 0 | T29: 0 | U29: FALSE | V29: =IF(O29,BENEFIT_PARAMETERS!$C$77,"N/A") -> N/A | W29: =IF(V29="Yes", BENEFIT_PARAMETERS!$D$77,"N/A") -> N/A | X29: =IF(O29,COUNTIF(Z$3:Z28,">0"),"N/A") -> N/A | Y29: N/A | Z29: N/A | AA29: 0 | AB29: N/A | AC29: 0 | AD29: FALSE | AE29: . | AF29: 0 | AG29: N/A | AH29: FALSE | AI29: . | AJ29: 4 | AK29: N/A | AL29: 0 | AM29: 0 | AN29: FALSE | AO29: N/A | AP29: =IF(AND(ISNUMBER(AO29),AN29=TRUE),MAX(0,AO29-SUMIFS($AM$3:$AM28,AN$3:AN28,TRUE)),IF(AND(AN29=TRUE,ISNUMBER(AO29)=FALSE),"ERR","N/A")) -> N/A | AQ29: N/A | AR29: FALSE | AS29: N/A | AT29: =IF(AND(AR29=TRUE,ISNUMBER(AS29)),MAX(0,AS29-SUMIFS($AM$3:$AM28,AR$3:AR28,TRUE)),IF(AND(AR29=TRUE,ISNUMBER(AS29)=FALSE),"ERR","N/A")) -> N/A | AU29: N/A | AV29: FALSE | AW29: N/A | AX29: =IF(AND(AV29=TRUE,ISNUMBER(AW29)),MAX(0,AW29-SUMIFS($AM$3:$AM28,AV$3:AV28,TRUE)),IF(AND(AV29=TRUE,ISNUMBER(AW29)=FALSE),"ERR","N/A")) -> N/A | AY29: N/A | AZ29: FALSE | BA29: N/A | BB29: =IF(AND(AZ29=TRUE,ISNUMBER(BA29)),MAX(0,BA29-SUMIFS($AM$3:$AM28,AZ$3:AZ28,TRUE)),IF(AND(AZ29=TRUE,ISNUMBER(BA29)=FALSE),"ERR","N/A")) -> N/A | BC29: N/A | BD29: FALSE | BE29: N/A | BF29: =IF(AND(BD29=TRUE,ISNUMBER(BE29)=TRUE),MAX(0,BE29-SUMIFS(AM$3:AM28,BD$3:BD28,TRUE,F$3:F28,F29)),IF(AND(BD29=TRUE,ISNUMBER(BE29)=FALSE),"ERR","N/A")) -> N/A | BG29: N/A | BH29: 0 | BI29: 0 | BJ29: N/A | BK29: 0 | BL29: FALSE | BM29: N/A | BN29: N/A | BO29: FALSE | BP29: N/A | BQ29: N/A | BR29: 0 | BS29: N/A | BT29: 0 | BU29: 0 | BV29: 0 | BW29: 0 | BX29: 0 | BY29: 0 | BZ29: 0 | CA29: 0 | CB29: TRUE
A30: 27 | B30: 2016-09-16 | C30: 9 | D30: 17 | E30: Assay Glucose Blood Quant | F30: Diagnostic Services: Laboratory | G30: Not Covered | H30: 8.21 | I30: 8.21 | J30: 0 | K30: FALSE | L30: No | M30: . | N30: =IFERROR(IF(AND(L30="Yes",ISNUMBER(M30)),MAX(0,M30-SUMIFS(BU$3:BU29,L$3:L29,"Yes")),IF(OR(L30="No",M30="None"),"N/A","ERR")),"ERR") -> N/A | O30: FALSE | P30: =IF(O30,BENEFIT_PARAMETERS!$C$76,"N/A") -> N/A | Q30: =IF(P30="Yes", BENEFIT_PARAMETERS!$D$76,"N/A") -> N/A | R30: N/A | S30: 0 | T30: 0 | U30: FALSE | V30: =IF(O30,BENEFIT_PARAMETERS!$C$77,"N/A") -> N/A | W30: =IF(V30="Yes", BENEFIT_PARAMETERS!$D$77,"N/A") -> N/A | X30: =IF(O30,COUNTIF(Z$3:Z29,">0"),"N/A") -> N/A | Y30: N/A | Z30: N/A | AA30: 0 | AB30: N/A | AC30: 0 | AD30: FALSE | AE30: . | AF30: 0 | AG30: N/A | AH30: FALSE | AI30: . | AJ30: 0 | AK30: N/A | AL30: 0 | AM30: 0 | AN30: FALSE | AO30: N/A | AP30: =IF(AND(ISNUMBER(AO30),AN30=TRUE),MAX(0,AO30-SUMIFS($AM$3:$AM29,AN$3:AN29,TRUE)),IF(AND(AN30=TRUE,ISNUMBER(AO30)=FALSE),"ERR","N/A")) -> N/A | AQ30: N/A | AR30: FALSE | AS30: N/A | AT30: =IF(AND(AR30=TRUE,ISNUMBER(AS30)),MAX(0,AS30-SUMIFS($AM$3:$AM29,AR$3:AR29,TRUE)),IF(AND(AR30=TRUE,ISNUMBER(AS30)=FALSE),"ERR","N/A")) -> N/A | AU30: N/A | AV30: FALSE | AW30: N/A | AX30: =IF(AND(AV30=TRUE,ISNUMBER(AW30)),MAX(0,AW30-SUMIFS($AM$3:$AM29,AV$3:AV29,TRUE)),IF(AND(AV30=TRUE,ISNUMBER(AW30)=FALSE),"ERR","N/A")) -> N/A | AY30: N/A | AZ30: FALSE | BA30: N/A | BB30: =IF(AND(AZ30=TRUE,ISNUMBER(BA30)),MAX(0,BA30-SUMIFS($AM$3:$AM29,AZ$3:AZ29,TRUE)),IF(AND(AZ30=TRUE,ISNUMBER(BA30)=FALSE),"ERR","N/A")) -> N/A | BC30: N/A | BD30: FALSE | BE30: N/A | BF30: =IF(AND(BD30=TRUE,ISNUMBER(BE30)=TRUE),MAX(0,BE30-SUMIFS(AM$3:AM29,BD$3:BD29,TRUE,F$3:F29,F30)),IF(AND(BD30=TRUE,ISNUMBER(BE30)=FALSE),"ERR","N/A")) -> N/A | BG30: N/A | BH30: 0 | BI30: 0 | BJ30: N/A | BK30: 0 | BL30: FALSE | BM30: N/A | BN30: N/A | BO30: FALSE | BP30: N/A | BQ30: N/A | BR30: 0 | BS30: N/A | BT30: 0 | BU30: 0 | BV30: 0 | BW30: 8.21 | BX30: 0 | BY30: 0 | BZ30: 0 | CA30: 0 | CB30: TRUE
A31: 28 | B31: 2016-09-16 | C31: 9 | D31: 26 | E31: Complete cbc w/auto diff wbc | F31: Diagnostic Services: Laboratory | G31: Not Covered | H31: 13.99 | I31: 13.99 | J31: 0 | K31: FALSE | L31: No | M31: . | N31: =IFERROR(IF(AND(L31="Yes",ISNUMBER(M31)),MAX(0,M31-SUMIFS(BU$3:BU30,L$3:L30,"Yes")),IF(OR(L31="No",M31="None"),"N/A","ERR")),"ERR") -> N/A | O31: FALSE | P31: =IF(O31,BENEFIT_PARAMETERS!$C$76,"N/A") -> N/A | Q31: =IF(P31="Yes", BENEFIT_PARAMETERS!$D$76,"N/A") -> N/A | R31: N/A | S31: 0 | T31: 0 | U31: FALSE | V31: =IF(O31,BENEFIT_PARAMETERS!$C$77,"N/A") -> N/A | W31: =IF(V31="Yes", BENEFIT_PARAMETERS!$D$77,"N/A") -> N/A | X31: =IF(O31,COUNTIF(Z$3:Z30,">0"),"N/A") -> N/A | Y31: N/A | Z31: N/A | AA31: 0 | AB31: N/A | AC31: 0 | AD31: FALSE | AE31: . | AF31: 0 | AG31: N/A | AH31: FALSE | AI31: . | AJ31: 0 | AK31: N/A | AL31: 0 | AM31: 0 | AN31: FALSE | AO31: N/A | AP31: =IF(AND(ISNUMBER(AO31),AN31=TRUE),MAX(0,AO31-SUMIFS($AM$3:$AM30,AN$3:AN30,TRUE)),IF(AND(AN31=TRUE,ISNUMBER(AO31)=FALSE),"ERR","N/A")) -> N/A | AQ31: N/A | AR31: FALSE | AS31: N/A | AT31: =IF(AND(AR31=TRUE,ISNUMBER(AS31)),MAX(0,AS31-SUMIFS($AM$3:$AM30,AR$3:AR30,TRUE)),IF(AND(AR31=TRUE,ISNUMBER(AS31)=FALSE),"ERR","N/A")) -> N/A | AU31: N/A | AV31: FALSE | AW31: N/A | AX31: =IF(AND(AV31=TRUE,ISNUMBER(AW31)),MAX(0,AW31-SUMIFS($AM$3:$AM30,AV$3:AV30,TRUE)),IF(AND(AV31=TRUE,ISNUMBER(AW31)=FALSE),"ERR","N/A")) -> N/A | AY31: N/A | AZ31: FALSE | BA31: N/A | BB31: =IF(AND(AZ31=TRUE,ISNUMBER(BA31)),MAX(0,BA31-SUMIFS($AM$3:$AM30,AZ$3:AZ30,TRUE)),IF(AND(AZ31=TRUE,ISNUMBER(BA31)=FALSE),"ERR","N/A")) -> N/A | BC31: N/A | BD31: FALSE | BE31: N/A | BF31: =IF(AND(BD31=TRUE,ISNUMBER(BE31)=TRUE),MAX(0,BE31-SUMIFS(AM$3:AM30,BD$3:BD30,TRUE,F$3:F30,F31)),IF(AND(BD31=TRUE,ISNUMBER(BE31)=FALSE),"ERR","N/A")) -> N/A | BG31: N/A | BH31: 0 | BI31: 0 | BJ31: N/A | BK31: 0 | BL31: FALSE | BM31: N/A | BN31: N/A | BO31: FALSE | BP31: N/A | BQ31: N/A | BR31: 0 | BS31: N/A | BT31: 0 | BU31: 0 | BV31: 0 | BW31: 13.99 | BX31: 0 | BY31: 0 | BZ31: 0 | CA31: 0 | CB31: TRUE
A32: 29 | B32: 2016-09-16 | C32: 9 | D32: 18 | E32: Glucose Test | F32: Diagnostic Services: Laboratory | G32: Not Covered | H32: 10.03 | I32: 10.03 | J32: 0 | K32: FALSE | L32: No | M32: . | N32: =IFERROR(IF(AND(L32="Yes",ISNUMBER(M32)),MAX(0,M32-SUMIFS(BU$3:BU31,L$3:L31,"Yes")),IF(OR(L32="No",M32="None"),"N/A","ERR")),"ERR") -> N/A | O32: FALSE | P32: =IF(O32,BENEFIT_PARAMETERS!$C$76,"N/A") -> N/A | Q32: =IF(P32="Yes", BENEFIT_PARAMETERS!$D$76,"N/A") -> N/A | R32: N/A | S32: 0 | T32: 0 | U32: FALSE | V32: =IF(O32,BENEFIT_PARAMETERS!$C$77,"N/A") -> N/A | W32: =IF(V32="Yes", BENEFIT_PARAMETERS!$D$77,"N/A") -> N/A | X32: =IF(O32,COUNTIF(Z$3:Z31,">0"),"N/A") -> N/A | Y32: N/A | Z32: N/A | AA32: 0 | AB32: N/A | AC32: 0 | AD32: FALSE | AE32: . | AF32: 0 | AG32: N/A | AH32: FALSE | AI32: . | AJ32: 0 | AK32: N/A | AL32: 0 | AM32: 0 | AN32: FALSE | AO32: N/A | AP32: =IF(AND(ISNUMBER(AO32),AN32=TRUE),MAX(0,AO32-SUMIFS($AM$3:$AM31,AN$3:AN31,TRUE)),IF(AND(AN32=TRUE,ISNUMBER(AO32)=FALSE),"ERR","N/A")) -> N/A | AQ32: N/A | AR32: FALSE | AS32: N/A | AT32: =IF(AND(AR32=TRUE,ISNUMBER(AS32)),MAX(0,AS32-SUMIFS($AM$3:$AM31,AR$3:AR31,TRUE)),IF(AND(AR32=TRUE,ISNUMBER(AS32)=FALSE),"ERR","N/A")) -> N/A | AU32: N/A | AV32: FALSE | AW32: N/A | AX32: =IF(AND(AV32=TRUE,ISNUMBER(AW32)),MAX(0,AW32-SUMIFS($AM$3:$AM31,AV$3:AV31,TRUE)),IF(AND(AV32=TRUE,ISNUMBER(AW32)=FALSE),"ERR","N/A")) -> N/A | AY32: N/A | AZ32: FALSE | BA32: N/A | BB32: =IF(AND(AZ32=TRUE,ISNUMBER(BA32)),MAX(0,BA32-SUMIFS($AM$3:$AM31,AZ$3:AZ31,TRUE)),IF(AND(AZ32=TRUE,ISNUMBER(BA32)=FALSE),"ERR","N/A")) -> N/A | BC32: N/A | BD32: FALSE | BE32: N/A | BF32: =IF(AND(BD32=TRUE,ISNUMBER(BE32)=TRUE),MAX(0,BE32-SUMIFS(AM$3:AM31,BD$3:BD31,TRUE,F$3:F31,F32)),IF(AND(BD32=TRUE,ISNUMBER(BE32)=FALSE),"ERR","N/A")) -> N/A | BG32: N/A | BH32: 0 | BI32: 0 | BJ32: N/A | BK32: 0 | BL32: FALSE | BM32: N/A | BN32: N/A | BO32: FALSE | BP32: N/A | BQ32: N/A | BR32: 0 | BS32: N/A | BT32: 0 | BU32: 0 | BV32: 0 | BW32: 10.03 | BX32: 0 | BY32: 0 | BZ32: 0 | CA32: 0 | CB32: TRUE
A33: 30 | B33: 2016-09-16 | C33: 9 | D33: 12 | E33: =VLOOKUP(ServiceCode,MaternityFeeSchedule,6,FALSE) -> Routine Venipuncture | F33: =VLOOKUP(ServiceCode,MaternityFeeSchedule,5,FALSE) -> Diagnostic Services: Laboratory | G33: =VLOOKUP(BenefitCategory,BenefitDesignTable,COLUMN(BenefitCostSharing),FALSE) -> Not Covered | H33: =VLOOKUP(D33,MaternityFeeSchedule,7,FALSE) -> 5.3 | I33: =IF(G33="Not Covered",H33,0) -> 5.3 | J33: =H33-I33 -> 0 | K33: =VLOOKUP(F33,nrCoverageTable,COLUMN(nrOOPLimitValid),FALSE) -> FALSE | L33: =IF(K33,VLOOKUP(F33,BenefitDesignTable,COLUMN(BenefitOOPLimitApplies),FALSE),"No") -> No | M33: =VLOOKUP(F33,BenefitDesignTable,COLUMN(OPLimit),FALSE) -> . | N33: =IFERROR(IF(AND(L33="Yes",ISNUMBER(M33)),MAX(0,M33-SUMIFS(BU$3:BU32,L$3:L32,"Yes")),IF(OR(L33="No",M33="None"),"N/A","ERR")),"ERR") -> N/A | O33: FALSE | P33: =IF(O33,BENEFIT_PARAMETERS!$C$76,"N/A") -> N/A | Q33: =IF(P33="Yes", BENEFIT_PARAMETERS!$D$76,"N/A") -> N/A | R33: N/A | S33: 0 | T33: =J33-S33 -> 0 | U33: FALSE | V33: =IF(O33,BENEFIT_PARAMETERS!$C$77,"N/A") -> N/A | W33: =IF(V33="Yes", BENEFIT_PARAMETERS!$D$77,"N/A") -> N/A | X33: =IF(O33,COUNTIF(Z$3:Z32,">0"),"N/A") -> N/A | Y33: =IF(V33="Yes",VLOOKUP("Professional Services: Primary Care",BenefitDesignTable,COLUMN(BenefitCopay),FALSE),"N/A") -> N/A | Z33: N/A | AA33: 0 | AB33: =IF(L33="Yes",IF(Z33="N/A",N33,N33-Z33),"N/A") -> N/A | AC33: 0 | AD33: =VLOOKUP(F33,nrCoverageTable,COLUMN(nrMonthlyLimitValid),FALSE) -> FALSE | AE33: =IF(AD33,VLOOKUP(F33,BenefitDesignTable,COLUMN(BenefitLimithMonth),FALSE),".") -> . | AF33: =COUNTIFS(ServiceCode,D33,ClaimMonth,C33,ClaimNumber,"<"&A33) -> 0 | AG33: =IF(AD33,IF(OR(AE33="None",ISNUMBER(AE33)),IF(AF33>=AE33,H33,0),"ERR"),"N/A") -> N/A | AH33: =VLOOKUP(F33,nrCoverageTable,COLUMN(nrAnnualLimitValid),FALSE) -> FALSE | AI33: =IF(AH33,VLOOKUP(F33,BenefitDesignTable,COLUMN(BenefitLimitAnnual),FALSE),".") -> . | AJ33: =COUNTIFS(ServiceCode,D33,ClaimNumber,"<"&A33) -> 2 | AK33: =IF(AH33,IF(OR(AI33="None",ISNUMBER(AI33)),IF(AJ33>=AI33,H33,0),"ERR"),"N/A") -> N/A | AL33: 0 | AM33: 0 | AN33: =VLOOKUP(F33,nrCoverageTable,COLUMN(nrUsesPlanDeduct),FALSE) -> FALSE | AO33: =IF(AN33,VLOOKUP(F33,BenefitDesignTable,COLUMN(PlanDeductible),FALSE),"N/A") -> N/A | AP33: =IF(AND(ISNUMBER(AO33),AN33=TRUE),MAX(0,AO33-SUMIFS($AM$3:$AM32,AN$3:AN32,TRUE)),IF(AND(AN33=TRUE,ISNUMBER(AO33)=FALSE),"ERR","N/A")) -> N/A | AQ33: =IF(ISNUMBER(AP33),MIN($AM33,AP33),"N/A") -> N/A | AR33: =VLOOKUP(F33,nrCoverageTable,COLUMN(nrUsesRxDeduct),FALSE) -> FALSE | AS33: =IF(AR33,VLOOKUP(F33,BenefitDesignTable,COLUMN(RxDeductible),FALSE),"N/A") -> N/A | AT33: =IF(AND(AR33=TRUE,ISNUMBER(AS33)),MAX(0,AS33-SUMIFS($AM$3:$AM32,AR$3:AR32,TRUE)),IF(AND(AR33=TRUE,ISNUMBER(AS33)=FALSE),"ERR","N/A")) -> N/A | AU33: =IF(ISNUMBER(AT33),MIN($AM33,AT33),"N/A") -> N/A | AV33: =VLOOKUP(F33,nrCoverageTable,COLUMN(nrUsesDeductC),FALSE) -> FALSE | AW33: =IF(AV33,VLOOKUP(F33,BenefitDesignTable,COLUMN(OptDeductibleC),FALSE),"N/A") -> N/A | AX33: =IF(AND(AV33=TRUE,ISNUMBER(AW33)),MAX(0,AW33-SUMIFS($AM$3:$AM32,AV$3:AV32,TRUE)),IF(AND(AV33=TRUE,ISNUMBER(AW33)=FALSE),"ERR","N/A")) -> N/A | AY33: =IF(ISNUMBER(AX33),MIN($AM33,AX33),"N/A") -> N/A | AZ33: =VLOOKUP(F33,nrCoverageTable,COLUMN(nrUsesDeductD),FALSE) -> FALSE | BA33: =IF(AZ33,VLOOKUP(F33,BenefitDesignTable,COLUMN(OptDeductibleD),FALSE),"N/A") -> N/A | BB33: =IF(AND(AZ33=TRUE,ISNUMBER(BA33)),MAX(0,BA33-SUMIFS($AM$3:$AM32,AZ$3:AZ32,TRUE)),IF(AND(AZ33=TRUE,ISNUMBER(BA33)=FALSE),"ERR","N/A")) -> N/A | BC33: =IF(ISNUMBER(BB33),MIN($AM33,BB33),"N/A") -> N/A | BD33: =VLOOKUP(F33,nrCoverageTable,COLUMN(nrUsesBenDeduct),FALSE) -> FALSE | BE33: =IF(BD33,VLOOKUP(F33,BenefitDesignTable,COLUMN(BenefitDeductible),FALSE),"N/A") -> N/A | BF33: =IF(AND(BD33=TRUE,ISNUMBER(BE33)=TRUE),MAX(0,BE33-SUMIFS(AM$3:AM32,BD$3:BD32,TRUE,F$3:F32,F33)),IF(AND(BD33=TRUE,ISNUMBER(BE33)=FALSE),"ERR","N/A")) -> N/A | BG33: =IF(ISNUMBER(BF33),MIN($AM33,BF33),"N/A") -> N/A | BH33: 0 | BI33: 0 | BJ33: N/A | BK33: =IF(OR(BI33="ERR",AM33="ERR"),"ERR",MAX(0,AM33-BI33)) -> 0 | BL33: =VLOOKUP(F33,nrCoverageTable,COLUMN(nrUsesCopay),FALSE) -> FALSE | BM33: =IF(BL33,VLOOKUP(F33,BenefitDesignTable,COLUMN(BenefitCopay),FALSE),"N/A") -> N/A | BN33: N/A | BO33: =VLOOKUP(F33,nrCoverageTable,COLUMN(nrUsesCoins),FALSE) -> FALSE | BP33: =IF(BO33,VLOOKUP(F33,BenefitDesignTable,COLUMN(BenefitCoins),FALSE),"N/A") -> N/A | BQ33: N/A | BR33: 0 | BS33: N/A | BT33: 0 | BU33: 0 | BV33: 0 | BW33: =I33 -> 5.3 | BX33: =IF(OR(AG33="ERR",AK33="ERR"),"ERR",SUM(AG33,AK33)) -> 0 | BY33: 0 | BZ33: 0 | CA33: 0 | CB33: =SUM(BV33:CA33)=H33 -> TRUE
A34: 31 | B34: 2016-09-16 | C34: 9 | D34: 32 | E34: Office/Outpatient Visit Est | F34: Professional Services: Obstetric Care (Bundled) | G34: Not Covered | H34: 0 | I34: 0 | J34: 0 | K34: FALSE | L34: No | M34: . | N34: =IFERROR(IF(AND(L34="Yes",ISNUMBER(M34)),MAX(0,M34-SUMIFS(BU$3:BU33,L$3:L33,"Yes")),IF(OR(L34="No",M34="None"),"N/A","ERR")),"ERR") -> N/A | O34: FALSE | P34: =IF(O34,BENEFIT_PARAMETERS!$C$76,"N/A") -> N/A | Q34: =IF(P34="Yes", BENEFIT_PARAMETERS!$D$76,"N/A") -> N/A | R34: N/A | S34: 0 | T34: 0 | U34: FALSE | V34: =IF(O34,BENEFIT_PARAMETERS!$C$77,"N/A") -> N/A | W34: =IF(V34="Yes", BENEFIT_PARAMETERS!$D$77,"N/A") -> N/A | X34: =IF(O34,COUNTIF(Z$3:Z33,">0"),"N/A") -> N/A | Y34: N/A | Z34: N/A | AA34: 0 | AB34: N/A | AC34: 0 | AD34: FALSE | AE34: . | AF34: 0 | AG34: N/A | AH34: FALSE | AI34: . | AJ34: 5 | AK34: N/A | AL34: 0 | AM34: 0 | AN34: FALSE | AO34: N/A | AP34: =IF(AND(ISNUMBER(AO34),AN34=TRUE),MAX(0,AO34-SUMIFS($AM$3:$AM33,AN$3:AN33,TRUE)),IF(AND(AN34=TRUE,ISNUMBER(AO34)=FALSE),"ERR","N/A")) -> N/A | AQ34: N/A | AR34: FALSE | AS34: N/A | AT34: =IF(AND(AR34=TRUE,ISNUMBER(AS34)),MAX(0,AS34-SUMIFS($AM$3:$AM33,AR$3:AR33,TRUE)),IF(AND(AR34=TRUE,ISNUMBER(AS34)=FALSE),"ERR","N/A")) -> N/A | AU34: N/A | AV34: FALSE | AW34: N/A | AX34: =IF(AND(AV34=TRUE,ISNUMBER(AW34)),MAX(0,AW34-SUMIFS($AM$3:$AM33,AV$3:AV33,TRUE)),IF(AND(AV34=TRUE,ISNUMBER(AW34)=FALSE),"ERR","N/A")) -> N/A | AY34: N/A | AZ34: FALSE | BA34: N/A | BB34: =IF(AND(AZ34=TRUE,ISNUMBER(BA34)),MAX(0,BA34-SUMIFS($AM$3:$AM33,AZ$3:AZ33,TRUE)),IF(AND(AZ34=TRUE,ISNUMBER(BA34)=FALSE),"ERR","N/A")) -> N/A | BC34: N/A | BD34: FALSE | BE34: N/A | BF34: =IF(AND(BD34=TRUE,ISNUMBER(BE34)=TRUE),MAX(0,BE34-SUMIFS(AM$3:AM33,BD$3:BD33,TRUE,F$3:F33,F34)),IF(AND(BD34=TRUE,ISNUMBER(BE34)=FALSE),"ERR","N/A")) -> N/A | BG34: N/A | BH34: 0 | BI34: 0 | BJ34: N/A | BK34: 0 | BL34: FALSE | BM34: N/A | BN34: N/A | BO34: FALSE | BP34: N/A | BQ34: N/A | BR34: 0 | BS34: N/A | BT34: 0 | BU34: 0 | BV34: 0 | BW34: 0 | BX34: 0 | BY34: 0 | BZ34: 0 | CA34: 0 | CB34: TRUE
A35: 32 | B35: 2016-09-16 | C35: 9 | D35: 41 | E35: Ultrasound of pregnant uterus, 1 or more fetus(es) | F35: Diagnostic Services: Radiology | G35: Not Covered | H35: 133.68 | I35: 133.68 | J35: 0 | K35: FALSE | L35: No | M35: . | N35: =IFERROR(IF(AND(L35="Yes",ISNUMBER(M35)),MAX(0,M35-SUMIFS(BU$3:BU34,L$3:L34,"Yes")),IF(OR(L35="No",M35="None"),"N/A","ERR")),"ERR") -> N/A | O35: FALSE | P35: =IF(O35,BENEFIT_PARAMETERS!$C$76,"N/A") -> N/A | Q35: =IF(P35="Yes", BENEFIT_PARAMETERS!$D$76,"N/A") -> N/A | R35: N/A | S35: 0 | T35: 0 | U35: FALSE | V35: =IF(O35,BENEFIT_PARAMETERS!$C$77,"N/A") -> N/A | W35: =IF(V35="Yes", BENEFIT_PARAMETERS!$D$77,"N/A") -> N/A | X35: =IF(O35,COUNTIF(Z$3:Z34,">0"),"N/A") -> N/A | Y35: N/A | Z35: N/A | AA35: 0 | AB35: N/A | AC35: 0 | AD35: FALSE | AE35: . | AF35: 0 | AG35: N/A | AH35: FALSE | AI35: . | AJ35: 0 | AK35: N/A | AL35: 0 | AM35: 0 | AN35: FALSE | AO35: N/A | AP35: =IF(AND(ISNUMBER(AO35),AN35=TRUE),MAX(0,AO35-SUMIFS($AM$3:$AM34,AN$3:AN34,TRUE)),IF(AND(AN35=TRUE,ISNUMBER(AO35)=FALSE),"ERR","N/A")) -> N/A | AQ35: N/A | AR35: FALSE | AS35: N/A | AT35: =IF(AND(AR35=TRUE,ISNUMBER(AS35)),MAX(0,AS35-SUMIFS($AM$3:$AM34,AR$3:AR34,TRUE)),IF(AND(AR35=TRUE,ISNUMBER(AS35)=FALSE),"ERR","N/A")) -> N/A | AU35: N/A | AV35: FALSE | AW35: N/A | AX35: =IF(AND(AV35=TRUE,ISNUMBER(AW35)),MAX(0,AW35-SUMIFS($AM$3:$AM34,AV$3:AV34,TRUE)),IF(AND(AV35=TRUE,ISNUMBER(AW35)=FALSE),"ERR","N/A")) -> N/A | AY35: N/A | AZ35: FALSE | BA35: N/A | BB35: =IF(AND(AZ35=TRUE,ISNUMBER(BA35)),MAX(0,BA35-SUMIFS($AM$3:$AM34,AZ$3:AZ34,TRUE)),IF(AND(AZ35=TRUE,ISNUMBER(BA35)=FALSE),"ERR","N/A")) -> N/A | BC35: N/A | BD35: FALSE | BE35: N/A | BF35: =IF(AND(BD35=TRUE,ISNUMBER(BE35)=TRUE),MAX(0,BE35-SUMIFS(AM$3:AM34,BD$3:BD34,TRUE,F$3:F34,F35)),IF(AND(BD35=TRUE,ISNUMBER(BE35)=FALSE),"ERR","N/A")) -> N/A | BG35: N/A | BH35: 0 | BI35: 0 | BJ35: N/A | BK35: 0 | BL35: FALSE | BM35: N/A | BN35: N/A | BO35: FALSE | BP35: N/A | BQ35: N/A | BR35: 0 | BS35: N/A | BT35: 0 | BU35: 0 | BV35: 0 | BW35: 133.68 | BX35: 0 | BY35: 0 | BZ35: 0 | CA35: 0 | CB35: TRUE
A36: 33 | B36: 2016-09-30 | C36: 9 | D36: 32 | E36: Office/Outpatient Visit Est | F36: Professional Services: Obstetric Care (Bundled) | G36: Not Covered | H36: 0 | I36: 0 | J36: 0 | K36: FALSE | L36: No | M36: . | N36: =IFERROR(IF(AND(L36="Yes",ISNUMBER(M36)),MAX(0,M36-SUMIFS(BU$3:BU35,L$3:L35,"Yes")),IF(OR(L36="No",M36="None"),"N/A","ERR")),"ERR") -> N/A | O36: FALSE | P36: =IF(O36,BENEFIT_PARAMETERS!$C$76,"N/A") -> N/A | Q36: =IF(P36="Yes", BENEFIT_PARAMETERS!$D$76,"N/A") -> N/A | R36: =IF(O36,COUNTIFS(BenefitCategory,"Professional Services: Primary Care",ClaimNumber,"<"&A36),"N/A") -> N/A | S36: 0 | T36: 0 | U36: FALSE | V36: =IF(O36,BENEFIT_PARAMETERS!$C$77,"N/A") -> N/A | W36: =IF(V36="Yes", BENEFIT_PARAMETERS!$D$77,"N/A") -> N/A | X36: =IF(O36,COUNTIF(Z$3:Z35,">0"),"N/A") -> N/A | Y36: N/A | Z36: N/A | AA36: 0 | AB36: N/A | AC36: 0 | AD36: FALSE | AE36: . | AF36: 1 | AG36: N/A | AH36: FALSE | AI36: . | AJ36: 6 | AK36: N/A | AL36: 0 | AM36: 0 | AN36: FALSE | AO36: N/A | AP36: =IF(AND(ISNUMBER(AO36),AN36=TRUE),MAX(0,AO36-SUMIFS($AM$3:$AM35,AN$3:AN35,TRUE)),IF(AND(AN36=TRUE,ISNUMBER(AO36)=FALSE),"ERR","N/A")) -> N/A | AQ36: N/A | AR36: FALSE | AS36: N/A | AT36: =IF(AND(AR36=TRUE,ISNUMBER(AS36)),MAX(0,AS36-SUMIFS($AM$3:$AM35,AR$3:AR35,TRUE)),IF(AND(AR36=TRUE,ISNUMBER(AS36)=FALSE),"ERR","N/A")) -> N/A | AU36: N/A | AV36: FALSE | AW36: N/A | AX36: =IF(AND(AV36=TRUE,ISNUMBER(AW36)),MAX(0,AW36-SUMIFS($AM$3:$AM35,AV$3:AV35,TRUE)),IF(AND(AV36=TRUE,ISNUMBER(AW36)=FALSE),"ERR","N/A")) -> N/A | AY36: N/A | AZ36: FALSE | BA36: N/A | BB36: =IF(AND(AZ36=TRUE,ISNUMBER(BA36)),MAX(0,BA36-SUMIFS($AM$3:$AM35,AZ$3:AZ35,TRUE)),IF(AND(AZ36=TRUE,ISNUMBER(BA36)=FALSE),"ERR","N/A")) -> N/A | BC36: N/A | BD36: FALSE | BE36: N/A | BF36: =IF(AND(BD36=TRUE,ISNUMBER(BE36)=TRUE),MAX(0,BE36-SUMIFS(AM$3:AM35,BD$3:BD35,TRUE,F$3:F35,F36)),IF(AND(BD36=TRUE,ISNUMBER(BE36)=FALSE),"ERR","N/A")) -> N/A | BG36: N/A | BH36: 0 | BI36: 0 | BJ36: N/A | BK36: 0 | BL36: FALSE | BM36: N/A | BN36: N/A | BO36: FALSE | BP36: N/A | BQ36: N/A | BR36: 0 | BS36: N/A | BT36: 0 | BU36: 0 | BV36: 0 | BW36: 0 | BX36: 0 | BY36: 0 | BZ36: 0 | CA36: 0 | CB36: TRUE
A37: 34 | B37: 2016-10-04 | C37: 10 | D37: 8 | E37: Prenatal Vitamins (OTC - Bottle of 100) [1 pill daily; 30 pills/month] | F37: Over-the-counter Drugs | G37: Not Covered | H37: =VLOOKUP(D37,MaternityFeeSchedule,7,FALSE) -> 11.48 | I37: =IF(G37="Not Covered",H37,0) -> 11.48 | J37: =H37-I37 -> 0 | K37: =VLOOKUP(F37,nrCoverageTable,COLUMN(nrOOPLimitValid),FALSE) -> FALSE | L37: =IF(K37,VLOOKUP(F37,BenefitDesignTable,COLUMN(BenefitOOPLimitApplies),FALSE),"No") -> No | M37: =VLOOKUP(F37,BenefitDesignTable,COLUMN(OPLimit),FALSE) -> . | N37: =IFERROR(IF(AND(L37="Yes",ISNUMBER(M37)),MAX(0,M37-SUMIFS(BU$3:BU36,L$3:L36,"Yes")),IF(OR(L37="No",M37="None"),"N/A","ERR")),"ERR") -> N/A | O37: FALSE | P37: =IF(O37,BENEFIT_PARAMETERS!$C$76,"N/A") -> N/A | Q37: =IF(P37="Yes", BENEFIT_PARAMETERS!$D$76,"N/A") -> N/A | R37: N/A | S37: =IF(P37="Yes",IF(R37<Q37,MIN(J37,N37),0),0) -> 0 | T37: =J37-S37 -> 0 | U37: FALSE | V37: =IF(O37,BENEFIT_PARAMETERS!$C$77,"N/A") -> N/A | W37: =IF(V37="Yes", BENEFIT_PARAMETERS!$D$77,"N/A") -> N/A | X37: =IF(O37,COUNTIF(Z$3:Z36,">0"),"N/A") -> N/A | Y37: =IF(V37="Yes",VLOOKUP("Professional Services: Primary Care",BenefitDesignTable,COLUMN(BenefitCopay),FALSE),"N/A") -> N/A | Z37: =IF(AND(V37="Yes",U37=TRUE,X37<W37), MIN(Y37,T37,N37),"N/A") -> N/A | AA37: =IF(Z37="N/A",0,T37-Z37) -> 0 | AB37: =IF(L37="Yes",IF(Z37="N/A",N37,N37-Z37),"N/A") -> N/A | AC37: =IF(Z37="N/A",T37,0) -> 0 | AD37: =VLOOKUP(F37,nrCoverageTable,COLUMN(nrMonthlyLimitValid),FALSE) -> FALSE | AE37: =IF(AD37,VLOOKUP(F37,BenefitDesignTable,COLUMN(BenefitLimithMonth),FALSE),".") -> . | AF37: =COUNTIFS(ServiceCode,D37,ClaimMonth,C37,ClaimNumber,"<"&A37) -> 0 | AG37: =IF(AD37,IF(OR(AE37="None",ISNUMBER(AE37)),IF(AF37>=AE37,H37,0),"ERR"),"N/A") -> N/A | AH37: =VLOOKUP(F37,nrCoverageTable,COLUMN(nrAnnualLimitValid),FALSE) -> FALSE | AI37: =IF(AH37,VLOOKUP(F37,BenefitDesignTable,COLUMN(BenefitLimitAnnual),FALSE),".") -> . | AJ37: =COUNTIFS(ServiceCode,D37,ClaimNumber,"<"&A37) -> 3 | AK37: =IF(AH37,IF(OR(AI37="None",ISNUMBER(AI37)),IF(AJ37>=AI37,H37,0),"ERR"),"N/A") -> N/A | AL37: =IF(OR(AG37="ERR",AK37="ERR"),"ERR",MAX(AG37,AK37)) -> 0 | AM37: =IFERROR(AC37-AL37,"ERR") -> 0 | AN37: =VLOOKUP(F37,nrCoverageTable,COLUMN(nrUsesPlanDeduct),FALSE) -> FALSE | AO37: =IF(AN37,VLOOKUP(F37,BenefitDesignTable,COLUMN(PlanDeductible),FALSE),"N/A") -> N/A | AP37: =IF(AND(ISNUMBER(AO37),AN37=TRUE),MAX(0,AO37-SUMIFS($AM$3:$AM36,AN$3:AN36,TRUE)),IF(AND(AN37=TRUE,ISNUMBER(AO37)=FALSE),"ERR","N/A")) -> N/A | AQ37: =IF(ISNUMBER(AP37),MIN($AM37,AP37),"N/A") -> N/A | AR37: =VLOOKUP(F37,nrCoverageTable,COLUMN(nrUsesRxDeduct),FALSE) -> FALSE | AS37: =IF(AR37,VLOOKUP(F37,BenefitDesignTable,COLUMN(RxDeductible),FALSE),"N/A") -> N/A | AT37: =IF(AND(AR37=TRUE,ISNUMBER(AS37)),MAX(0,AS37-SUMIFS($AM$3:$AM36,AR$3:AR36,TRUE)),IF(AND(AR37=TRUE,ISNUMBER(AS37)=FALSE),"ERR","N/A")) -> N/A | AU37: =IF(ISNUMBER(AT37),MIN($AM37,AT37),"N/A") -> N/A | AV37: =VLOOKUP(F37,nrCoverageTable,COLUMN(nrUsesDeductC),FALSE) -> FALSE | AW37: =IF(AV37,VLOOKUP(F37,BenefitDesignTable,COLUMN(OptDeductibleC),FALSE),"N/A") -> N/A | AX37: =IF(AND(AV37=TRUE,ISNUMBER(AW37)),MAX(0,AW37-SUMIFS($AM$3:$AM36,AV$3:AV36,TRUE)),IF(AND(AV37=TRUE,ISNUMBER(AW37)=FALSE),"ERR","N/A")) -> N/A | AY37: =IF(ISNUMBER(AX37),MIN($AM37,AX37),"N/A") -> N/A | AZ37: =VLOOKUP(F37,nrCoverageTable,COLUMN(nrUsesDeductD),FALSE) -> FALSE | BA37: =IF(AZ37,VLOOKUP(F37,BenefitDesignTable,COLUMN(OptDeductibleD),FALSE),"N/A") -> N/A | BB37: =IF(AND(AZ37=TRUE,ISNUMBER(BA37)),MAX(0,BA37-SUMIFS($AM$3:$AM36,AZ$3:AZ36,TRUE)),IF(AND(AZ37=TRUE,ISNUMBER(BA37)=FALSE),"ERR","N/A")) -> N/A | BC37: =IF(ISNUMBER(BB37),MIN($AM37,BB37),"N/A") -> N/A | BD37: =VLOOKUP(F37,nrCoverageTable,COLUMN(nrUsesBenDeduct),FALSE) -> FALSE | BE37: =IF(BD37,VLOOKUP(F37,BenefitDesignTable,COLUMN(BenefitDeductible),FALSE),"N/A") -> N/A | BF37: =IF(AND(BD37=TRUE,ISNUMBER(BE37)=TRUE),MAX(0,BE37-SUMIFS(AM$3:AM36,BD$3:BD36,TRUE,F$3:F36,F37)),IF(AND(BD37=TRUE,ISNUMBER(BE37)=FALSE),"ERR","N/A")) -> N/A | BG37: =IF(ISNUMBER(BF37),MIN($AM37,BF37),"N/A") -> N/A | BH37: =SUM(AQ37,AU37,AY37,BC37,BG37) -> 0 | BI37: =IF(OR(AB37="ERR",BH37="ERR"),"ERR",MIN(BH37,AB37)) -> 0 | BJ37: N/A | BK37: =IF(OR(BI37="ERR",AM37="ERR"),"ERR",MAX(0,AM37-BI37)) -> 0 | BL37: =VLOOKUP(F37,nrCoverageTable,COLUMN(nrUsesCopay),FALSE) -> FALSE | BM37: =IF(BL37,VLOOKUP(F37,BenefitDesignTable,COLUMN(BenefitCopay),FALSE),"N/A") -> N/A | BN37: =IF(BK37="ERR","ERR",IF(AND(BL37=TRUE,ISNUMBER(BM37)),MIN(BK37,BM37,BJ37),IF(AND(BL37=TRUE,ISNUMBER(BM37)=FALSE),"ERR","N/A"))) -> N/A | BO37: =VLOOKUP(F37,nrCoverageTable,COLUMN(nrUsesCoins),FALSE) -> FALSE | BP37: =IF(BO37,VLOOKUP(F37,BenefitDesignTable,COLUMN(BenefitCoins),FALSE),"N/A") -> N/A | BQ37: =IF(BK37="ERR","ERR",IF(AND(BO37=TRUE,ISNUMBER(BP37)=TRUE),MIN(BJ37,BK37*BP37),IF(AND(BO37=TRUE,ISNUMBER(BP37)=FALSE),"ERR","N/A"))) -> N/A | BR37: =IF(OR(BJ37="ERR",BN37="ERR",BQ37="ERR"),"ERR",MIN(BJ37,SUM(BN37,BQ37))) -> 0 | BS37: N/A | BT37: =IF(OR(BK37="ERR",BR37="ERR"),"ERR",MAX(BK37-BR37,0)) -> 0 | BU37: 0 | BV37: 0 | BW37: =I37 -> 11.48 | BX37: =IF(OR(AG37="ERR",AK37="ERR"),"ERR",SUM(AG37,AK37)) -> 0 | BY37: =BI37 -> 0 | BZ37: =IF(V37="Yes",IF(Z37="N/A",0,Z37),0)+IF(BL37,BN37,0) -> 0 | CA37: =IF(BO37,BQ37,0) -> 0 | CB37: =SUM(BV37:CA37)=H37 -> TRUE
A38: 35 | B38: 2016-10-14 | C38: 10 | D38: 32 | E38: Office/Outpatient Visit Est | F38: Professional Services: Obstetric Care (Bundled) | G38: Not Covered | H38: 0 | I38: 0 | J38: 0 | K38: FALSE | L38: No | M38: . | N38: =IFERROR(IF(AND(L38="Yes",ISNUMBER(M38)),MAX(0,M38-SUMIFS(BU$3:BU37,L$3:L37,"Yes")),IF(OR(L38="No",M38="None"),"N/A","ERR")),"ERR") -> N/A | O38: FALSE | P38: =IF(O38,BENEFIT_PARAMETERS!$C$76,"N/A") -> N/A | Q38: =IF(P38="Yes", BENEFIT_PARAMETERS!$D$76,"N/A") -> N/A | R38: N/A | S38: 0 | T38: 0 | U38: FALSE | V38: =IF(O38,BENEFIT_PARAMETERS!$C$77,"N/A") -> N/A | W38: =IF(V38="Yes", BENEFIT_PARAMETERS!$D$77,"N/A") -> N/A | X38: =IF(O38,COUNTIF(Z$3:Z37,">0"),"N/A") -> N/A | Y38: N/A | Z38: N/A | AA38: 0 | AB38: N/A | AC38: 0 | AD38: FALSE | AE38: . | AF38: 0 | AG38: N/A | AH38: FALSE | AI38: . | AJ38: 7 | AK38: N/A | AL38: 0 | AM38: 0 | AN38: FALSE | AO38: N/A | AP38: =IF(AND(ISNUMBER(AO38),AN38=TRUE),MAX(0,AO38-SUMIFS($AM$3:$AM37,AN$3:AN37,TRUE)),IF(AND(AN38=TRUE,ISNUMBER(AO38)=FALSE),"ERR","N/A")) -> N/A | AQ38: N/A | AR38: FALSE | AS38: N/A | AT38: =IF(AND(AR38=TRUE,ISNUMBER(AS38)),MAX(0,AS38-SUMIFS($AM$3:$AM37,AR$3:AR37,TRUE)),IF(AND(AR38=TRUE,ISNUMBER(AS38)=FALSE),"ERR","N/A")) -> N/A | AU38: N/A | AV38: FALSE | AW38: N/A | AX38: =IF(AND(AV38=TRUE,ISNUMBER(AW38)),MAX(0,AW38-SUMIFS($AM$3:$AM37,AV$3:AV37,TRUE)),IF(AND(AV38=TRUE,ISNUMBER(AW38)=FALSE),"ERR","N/A")) -> N/A | AY38: N/A | AZ38: FALSE | BA38: N/A | BB38: =IF(AND(AZ38=TRUE,ISNUMBER(BA38)),MAX(0,BA38-SUMIFS($AM$3:$AM37,AZ$3:AZ37,TRUE)),IF(AND(AZ38=TRUE,ISNUMBER(BA38)=FALSE),"ERR","N/A")) -> N/A | BC38: N/A | BD38: FALSE | BE38: N/A | BF38: =IF(AND(BD38=TRUE,ISNUMBER(BE38)=TRUE),MAX(0,BE38-SUMIFS(AM$3:AM37,BD$3:BD37,TRUE,F$3:F37,F38)),IF(AND(BD38=TRUE,ISNUMBER(BE38)=FALSE),"ERR","N/A")) -> N/A | BG38: N/A | BH38: 0 | BI38: 0 | BJ38: N/A | BK38: 0 | BL38: FALSE | BM38: N/A | BN38: N/A | BO38: FALSE | BP38: N/A | BQ38: N/A | BR38: 0 | BS38: N/A | BT38: 0 | BU38: 0 | BV38: 0 | BW38: 0 | BX38: 0 | BY38: 0 | BZ38: 0 | CA38: 0 | CB38: TRUE
A39: 36 | B39: 2016-10-28 | C39: 10 | D39: 29 | E39: Strep B DNA Amp Probe | F39: Diagnostic Services: Laboratory | G39: Not Covered | H39: 61.22 | I39: 61.22 | J39: 0 | K39: FALSE | L39: No | M39: . | N39: =IFERROR(IF(AND(L39="Yes",ISNUMBER(M39)),MAX(0,M39-SUMIFS(BU$3:BU38,L$3:L38,"Yes")),IF(OR(L39="No",M39="None"),"N/A","ERR")),"ERR") -> N/A | O39: FALSE | P39: =IF(O39,BENEFIT_PARAMETERS!$C$76,"N/A") -> N/A | Q39: =IF(P39="Yes", BENEFIT_PARAMETERS!$D$76,"N/A") -> N/A | R39: N/A | S39: 0 | T39: 0 | U39: FALSE | V39: =IF(O39,BENEFIT_PARAMETERS!$C$77,"N/A") -> N/A | W39: =IF(V39="Yes", BENEFIT_PARAMETERS!$D$77,"N/A") -> N/A | X39: =IF(O39,COUNTIF(Z$3:Z38,">0"),"N/A") -> N/A | Y39: N/A | Z39: N/A | AA39: 0 | AB39: N/A | AC39: 0 | AD39: FALSE | AE39: . | AF39: 0 | AG39: N/A | AH39: FALSE | AI39: . | AJ39: 0 | AK39: N/A | AL39: 0 | AM39: 0 | AN39: FALSE | AO39: N/A | AP39: =IF(AND(ISNUMBER(AO39),AN39=TRUE),MAX(0,AO39-SUMIFS($AM$3:$AM38,AN$3:AN38,TRUE)),IF(AND(AN39=TRUE,ISNUMBER(AO39)=FALSE),"ERR","N/A")) -> N/A | AQ39: N/A | AR39: FALSE | AS39: N/A | AT39: =IF(AND(AR39=TRUE,ISNUMBER(AS39)),MAX(0,AS39-SUMIFS($AM$3:$AM38,AR$3:AR38,TRUE)),IF(AND(AR39=TRUE,ISNUMBER(AS39)=FALSE),"ERR","N/A")) -> N/A | AU39: N/A | AV39: FALSE | AW39: N/A | AX39: =IF(AND(AV39=TRUE,ISNUMBER(AW39)),MAX(0,AW39-SUMIFS($AM$3:$AM38,AV$3:AV38,TRUE)),IF(AND(AV39=TRUE,ISNUMBER(AW39)=FALSE),"ERR","N/A")) -> N/A | AY39: N/A | AZ39: FALSE | BA39: N/A | BB39: =IF(AND(AZ39=TRUE,ISNUMBER(BA39)),MAX(0,BA39-SUMIFS($AM$3:$AM38,AZ$3:AZ38,TRUE)),IF(AND(AZ39=TRUE,ISNUMBER(BA39)=FALSE),"ERR","N/A")) -> N/A | BC39: N/A | BD39: FALSE | BE39: N/A | BF39: =IF(AND(BD39=TRUE,ISNUMBER(BE39)=TRUE),MAX(0,BE39-SUMIFS(AM$3:AM38,BD$3:BD38,TRUE,F$3:F38,F39)),IF(AND(BD39=TRUE,ISNUMBER(BE39)=FALSE),"ERR","N/A")) -> N/A | BG39: N/A | BH39: 0 | BI39: 0 | BJ39: N/A | BK39: 0 | BL39: FALSE | BM39: N/A | BN39: N/A | BO39: FALSE | BP39: N/A | BQ39: N/A | BR39: 0 | BS39: N/A | BT39: 0 | BU39: 0 | BV39: 0 | BW39: 61.22 | BX39: 0 | BY39: 0 | BZ39: 0 | CA39: 0 | CB39: TRUE
A40: 37 | B40: 2016-10-28 | C40: 10 | D40: 32 | E40: Office/Outpatient Visit Est | F40: Professional Services: Obstetric Care (Bundled) | G40: Not Covered | H40: 0 | I40: 0 | J40: 0 | K40: FALSE | L40: No | M40: . | N40: =IFERROR(IF(AND(L40="Yes",ISNUMBER(M40)),MAX(0,M40-SUMIFS(BU$3:BU39,L$3:L39,"Yes")),IF(OR(L40="No",M40="None"),"N/A","ERR")),"ERR") -> N/A | O40: FALSE | P40: =IF(O40,BENEFIT_PARAMETERS!$C$76,"N/A") -> N/A | Q40: =IF(P40="Yes", BENEFIT_PARAMETERS!$D$76,"N/A") -> N/A | R40: N/A | S40: 0 | T40: 0 | U40: FALSE | V40: =IF(O40,BENEFIT_PARAMETERS!$C$77,"N/A") -> N/A | W40: =IF(V40="Yes", BENEFIT_PARAMETERS!$D$77,"N/A") -> N/A | X40: =IF(O40,COUNTIF(Z$3:Z39,">0"),"N/A") -> N/A | Y40: N/A | Z40: N/A | AA40: 0 | AB40: N/A | AC40: 0 | AD40: FALSE | AE40: . | AF40: 1 | AG40: N/A | AH40: FALSE | AI40: . | AJ40: 8 | AK40: N/A | AL40: 0 | AM40: 0 | AN40: FALSE | AO40: N/A | AP40: =IF(AND(ISNUMBER(AO40),AN40=TRUE),MAX(0,AO40-SUMIFS($AM$3:$AM39,AN$3:AN39,TRUE)),IF(AND(AN40=TRUE,ISNUMBER(AO40)=FALSE),"ERR","N/A")) -> N/A | AQ40: N/A | AR40: FALSE | AS40: N/A | AT40: =IF(AND(AR40=TRUE,ISNUMBER(AS40)),MAX(0,AS40-SUMIFS($AM$3:$AM39,AR$3:AR39,TRUE)),IF(AND(AR40=TRUE,ISNUMBER(AS40)=FALSE),"ERR","N/A")) -> N/A | AU40: N/A | AV40: FALSE | AW40: N/A | AX40: =IF(AND(AV40=TRUE,ISNUMBER(AW40)),MAX(0,AW40-SUMIFS($AM$3:$AM39,AV$3:AV39,TRUE)),IF(AND(AV40=TRUE,ISNUMBER(AW40)=FALSE),"ERR","N/A")) -> N/A | AY40: N/A | AZ40: FALSE | BA40: N/A | BB40: =IF(AND(AZ40=TRUE,ISNUMBER(BA40)),MAX(0,BA40-SUMIFS($AM$3:$AM39,AZ$3:AZ39,TRUE)),IF(AND(AZ40=TRUE,ISNUMBER(BA40)=FALSE),"ERR","N/A")) -> N/A | BC40: N/A | BD40: FALSE | BE40: N/A | BF40: =IF(AND(BD40=TRUE,ISNUMBER(BE40)=TRUE),MAX(0,BE40-SUMIFS(AM$3:AM39,BD$3:BD39,TRUE,F$3:F39,F40)),IF(AND(BD40=TRUE,ISNUMBER(BE40)=FALSE),"ERR","N/A")) -> N/A | BG40: N/A | BH40: 0 | BI40: 0 | BJ40: N/A | BK40: 0 | BL40: FALSE | BM40: N/A | BN40: N/A | BO40: FALSE | BP40: N/A | BQ40: N/A | BR40: 0 | BS40: N/A | BT40: 0 | BU40: 0 | BV40: 0 | BW40: 0 | BX40: 0 | BY40: 0 | BZ40: 0 | CA40: 0 | CB40: TRUE
A41: 38 | B41: 2016-10-28 | C41: 10 | D41: 10 | E41: Immunization Admin | F41: Preventive Services & Vaccines | G41: Not Covered | H41: 28.56 | I41: 28.56 | J41: 0 | K41: FALSE | L41: No | M41: . | N41: =IFERROR(IF(AND(L41="Yes",ISNUMBER(M41)),MAX(0,M41-SUMIFS(BU$3:BU40,L$3:L40,"Yes")),IF(OR(L41="No",M41="None"),"N/A","ERR")),"ERR") -> N/A | O41: FALSE | P41: =IF(O41,BENEFIT_PARAMETERS!$C$76,"N/A") -> N/A | Q41: =IF(P41="Yes", BENEFIT_PARAMETERS!$D$76,"N/A") -> N/A | R41: N/A | S41: 0 | T41: 0 | U41: FALSE | V41: =IF(O41,BENEFIT_PARAMETERS!$C$77,"N/A") -> N/A | W41: =IF(V41="Yes", BENEFIT_PARAMETERS!$D$77,"N/A") -> N/A | X41: =IF(O41,COUNTIF(Z$3:Z40,">0"),"N/A") -> N/A | Y41: N/A | Z41: N/A | AA41: 0 | AB41: N/A | AC41: 0 | AD41: FALSE | AE41: . | AF41: 0 | AG41: N/A | AH41: FALSE | AI41: . | AJ41: 0 | AK41: N/A | AL41: 0 | AM41: 0 | AN41: FALSE | AO41: N/A | AP41: =IF(AND(ISNUMBER(AO41),AN41=TRUE),MAX(0,AO41-SUMIFS($AM$3:$AM40,AN$3:AN40,TRUE)),IF(AND(AN41=TRUE,ISNUMBER(AO41)=FALSE),"ERR","N/A")) -> N/A | AQ41: N/A | AR41: FALSE | AS41: N/A | AT41: =IF(AND(AR41=TRUE,ISNUMBER(AS41)),MAX(0,AS41-SUMIFS($AM$3:$AM40,AR$3:AR40,TRUE)),IF(AND(AR41=TRUE,ISNUMBER(AS41)=FALSE),"ERR","N/A")) -> N/A | AU41: N/A | AV41: FALSE | AW41: N/A | AX41: =IF(AND(AV41=TRUE,ISNUMBER(AW41)),MAX(0,AW41-SUMIFS($AM$3:$AM40,AV$3:AV40,TRUE)),IF(AND(AV41=TRUE,ISNUMBER(AW41)=FALSE),"ERR","N/A")) -> N/A | AY41: N/A | AZ41: FALSE | BA41: N/A | BB41: =IF(AND(AZ41=TRUE,ISNUMBER(BA41)),MAX(0,BA41-SUMIFS($AM$3:$AM40,AZ$3:AZ40,TRUE)),IF(AND(AZ41=TRUE,ISNUMBER(BA41)=FALSE),"ERR","N/A")) -> N/A | BC41: N/A | BD41: FALSE | BE41: N/A | BF41: =IF(AND(BD41=TRUE,ISNUMBER(BE41)=TRUE),MAX(0,BE41-SUMIFS(AM$3:AM40,BD$3:BD40,TRUE,F$3:F40,F41)),IF(AND(BD41=TRUE,ISNUMBER(BE41)=FALSE),"ERR","N/A")) -> N/A | BG41: N/A | BH41: 0 | BI41: 0 | BJ41: N/A | BK41: 0 | BL41: FALSE | BM41: N/A | BN41: N/A | BO41: FALSE | BP41: N/A | BQ41: N/A | BR41: 0 | BS41: N/A | BT41: 0 | BU41: 0 | BV41: 0 | BW41: 28.56 | BX41: 0 | BY41: 0 | BZ41: 0 | CA41: 0 | CB41: TRUE
A42: 39 | B42: 2016-10-28 | C42: 10 | D42: 11 | E42: Flu Vaccine N0 Preserv 3 & > | F42: Preventive Services & Vaccines | G42: Not Covered | H42: 20.2 | I42: 20.2 | J42: 0 | K42: FALSE | L42: No | M42: . | N42: =IFERROR(IF(AND(L42="Yes",ISNUMBER(M42)),MAX(0,M42-SUMIFS(BU$3:BU41,L$3:L41,"Yes")),IF(OR(L42="No",M42="None"),"N/A","ERR")),"ERR") -> N/A | O42: FALSE | P42: =IF(O42,BENEFIT_PARAMETERS!$C$76,"N/A") -> N/A | Q42: =IF(P42="Yes", BENEFIT_PARAMETERS!$D$76,"N/A") -> N/A | R42: N/A | S42: 0 | T42: 0 | U42: FALSE | V42: =IF(O42,BENEFIT_PARAMETERS!$C$77,"N/A") -> N/A | W42: =IF(V42="Yes", BENEFIT_PARAMETERS!$D$77,"N/A") -> N/A | X42: =IF(O42,COUNTIF(Z$3:Z41,">0"),"N/A") -> N/A | Y42: N/A | Z42: N/A | AA42: 0 | AB42: N/A | AC42: 0 | AD42: FALSE | AE42: . | AF42: 0 | AG42: N/A | AH42: FALSE | AI42: . | AJ42: 0 | AK42: N/A | AL42: 0 | AM42: 0 | AN42: FALSE | AO42: N/A | AP42: =IF(AND(ISNUMBER(AO42),AN42=TRUE),MAX(0,AO42-SUMIFS($AM$3:$AM41,AN$3:AN41,TRUE)),IF(AND(AN42=TRUE,ISNUMBER(AO42)=FALSE),"ERR","N/A")) -> N/A | AQ42: N/A | AR42: FALSE | AS42: N/A | AT42: =IF(AND(AR42=TRUE,ISNUMBER(AS42)),MAX(0,AS42-SUMIFS($AM$3:$AM41,AR$3:AR41,TRUE)),IF(AND(AR42=TRUE,ISNUMBER(AS42)=FALSE),"ERR","N/A")) -> N/A | AU42: N/A | AV42: FALSE | AW42: N/A | AX42: =IF(AND(AV42=TRUE,ISNUMBER(AW42)),MAX(0,AW42-SUMIFS($AM$3:$AM41,AV$3:AV41,TRUE)),IF(AND(AV42=TRUE,ISNUMBER(AW42)=FALSE),"ERR","N/A")) -> N/A | AY42: N/A | AZ42: FALSE | BA42: N/A | BB42: =IF(AND(AZ42=TRUE,ISNUMBER(BA42)),MAX(0,BA42-SUMIFS($AM$3:$AM41,AZ$3:AZ41,TRUE)),IF(AND(AZ42=TRUE,ISNUMBER(BA42)=FALSE),"ERR","N/A")) -> N/A | BC42: N/A | BD42: FALSE | BE42: N/A | BF42: =IF(AND(BD42=TRUE,ISNUMBER(BE42)=TRUE),MAX(0,BE42-SUMIFS(AM$3:AM41,BD$3:BD41,TRUE,F$3:F41,F42)),IF(AND(BD42=TRUE,ISNUMBER(BE42)=FALSE),"ERR","N/A")) -> N/A | BG42: N/A | BH42: 0 | BI42: 0 | BJ42: N/A | BK42: 0 | BL42: FALSE | BM42: N/A | BN42: N/A | BO42: FALSE | BP42: N/A | BQ42: N/A | BR42: 0 | BS42: N/A | BT42: 0 | BU42: 0 | BV42: 0 | BW42: 20.2 | BX42: 0 | BY42: 0 | BZ42: 0 | CA42: 0 | CB42: TRUE
A43: 40 | B43: 2016-11-11 | C43: 11 | D43: 32 | E43: Office/Outpatient Visit Est | F43: Professional Services: Obstetric Care (Bundled) | G43: Not Covered | H43: 0 | I43: 0 | J43: 0 | K43: FALSE | L43: No | M43: . | N43: =IFERROR(IF(AND(L43="Yes",ISNUMBER(M43)),MAX(0,M43-SUMIFS(BU$3:BU42,L$3:L42,"Yes")),IF(OR(L43="No",M43="None"),"N/A","ERR")),"ERR") -> N/A | O43: FALSE | P43: =IF(O43,BENEFIT_PARAMETERS!$C$76,"N/A") -> N/A | Q43: =IF(P43="Yes", BENEFIT_PARAMETERS!$D$76,"N/A") -> N/A | R43: N/A | S43: 0 | T43: 0 | U43: FALSE | V43: =IF(O43,BENEFIT_PARAMETERS!$C$77,"N/A") -> N/A | W43: =IF(V43="Yes", BENEFIT_PARAMETERS!$D$77,"N/A") -> N/A | X43: =IF(O43,COUNTIF(Z$3:Z42,">0"),"N/A") -> N/A | Y43: N/A | Z43: N/A | AA43: 0 | AB43: N/A | AC43: 0 | AD43: FALSE | AE43: . | AF43: 0 | AG43: N/A | AH43: FALSE | AI43: . | AJ43: 9 | AK43: N/A | AL43: 0 | AM43: 0 | AN43: FALSE | AO43: N/A | AP43: =IF(AND(ISNUMBER(AO43),AN43=TRUE),MAX(0,AO43-SUMIFS($AM$3:$AM42,AN$3:AN42,TRUE)),IF(AND(AN43=TRUE,ISNUMBER(AO43)=FALSE),"ERR","N/A")) -> N/A | AQ43: N/A | AR43: FALSE | AS43: N/A | AT43: =IF(AND(AR43=TRUE,ISNUMBER(AS43)),MAX(0,AS43-SUMIFS($AM$3:$AM42,AR$3:AR42,TRUE)),IF(AND(AR43=TRUE,ISNUMBER(AS43)=FALSE),"ERR","N/A")) -> N/A | AU43: N/A | AV43: FALSE | AW43: N/A | AX43: =IF(AND(AV43=TRUE,ISNUMBER(AW43)),MAX(0,AW43-SUMIFS($AM$3:$AM42,AV$3:AV42,TRUE)),IF(AND(AV43=TRUE,ISNUMBER(AW43)=FALSE),"ERR","N/A")) -> N/A | AY43: N/A | AZ43: FALSE | BA43: N/A | BB43: =IF(AND(AZ43=TRUE,ISNUMBER(BA43)),MAX(0,BA43-SUMIFS($AM$3:$AM42,AZ$3:AZ42,TRUE)),IF(AND(AZ43=TRUE,ISNUMBER(BA43)=FALSE),"ERR","N/A")) -> N/A | BC43: N/A | BD43: FALSE | BE43: N/A | BF43: =IF(AND(BD43=TRUE,ISNUMBER(BE43)=TRUE),MAX(0,BE43-SUMIFS(AM$3:AM42,BD$3:BD42,TRUE,F$3:F42,F43)),IF(AND(BD43=TRUE,ISNUMBER(BE43)=FALSE),"ERR","N/A")) -> N/A | BG43: N/A | BH43: 0 | BI43: 0 | BJ43: N/A | BK43: 0 | BL43: FALSE | BM43: N/A | BN43: N/A | BO43: FALSE | BP43: N/A | BQ43: N/A | BR43: 0 | BS43: N/A | BT43: 0 | BU43: 0 | BV43: 0 | BW43: 0 | BX43: 0 | BY43: 0 | BZ43: 0 | CA43: 0 | CB43: TRUE
A44: 41 | B44: 2016-11-18 | C44: 11 | D44: 32 | E44: Office/Outpatient Visit Est | F44: Professional Services: Obstetric Care (Bundled) | G44: Not Covered | H44: 0 | I44: 0 | J44: 0 | K44: FALSE | L44: No | M44: . | N44: =IFERROR(IF(AND(L44="Yes",ISNUMBER(M44)),MAX(0,M44-SUMIFS(BU$3:BU43,L$3:L43,"Yes")),IF(OR(L44="No",M44="None"),"N/A","ERR")),"ERR") -> N/A | O44: FALSE | P44: =IF(O44,BENEFIT_PARAMETERS!$C$76,"N/A") -> N/A | Q44: =IF(P44="Yes", BENEFIT_PARAMETERS!$D$76,"N/A") -> N/A | R44: N/A | S44: 0 | T44: 0 | U44: FALSE | V44: =IF(O44,BENEFIT_PARAMETERS!$C$77,"N/A") -> N/A | W44: =IF(V44="Yes", BENEFIT_PARAMETERS!$D$77,"N/A") -> N/A | X44: =IF(O44,COUNTIF(Z$3:Z43,">0"),"N/A") -> N/A | Y44: N/A | Z44: N/A | AA44: 0 | AB44: N/A | AC44: 0 | AD44: FALSE | AE44: . | AF44: 1 | AG44: N/A | AH44: FALSE | AI44: . | AJ44: 10 | AK44: N/A | AL44: 0 | AM44: 0 | AN44: FALSE | AO44: N/A | AP44: =IF(AND(ISNUMBER(AO44),AN44=TRUE),MAX(0,AO44-SUMIFS($AM$3:$AM43,AN$3:AN43,TRUE)),IF(AND(AN44=TRUE,ISNUMBER(AO44)=FALSE),"ERR","N/A")) -> N/A | AQ44: N/A | AR44: FALSE | AS44: N/A | AT44: =IF(AND(AR44=TRUE,ISNUMBER(AS44)),MAX(0,AS44-SUMIFS($AM$3:$AM43,AR$3:AR43,TRUE)),IF(AND(AR44=TRUE,ISNUMBER(AS44)=FALSE),"ERR","N/A")) -> N/A | AU44: N/A | AV44: FALSE | AW44: N/A | AX44: =IF(AND(AV44=TRUE,ISNUMBER(AW44)),MAX(0,AW44-SUMIFS($AM$3:$AM43,AV$3:AV43,TRUE)),IF(AND(AV44=TRUE,ISNUMBER(AW44)=FALSE),"ERR","N/A")) -> N/A | AY44: N/A | AZ44: FALSE | BA44: N/A | BB44: =IF(AND(AZ44=TRUE,ISNUMBER(BA44)),MAX(0,BA44-SUMIFS($AM$3:$AM43,AZ$3:AZ43,TRUE)),IF(AND(AZ44=TRUE,ISNUMBER(BA44)=FALSE),"ERR","N/A")) -> N/A | BC44: N/A | BD44: FALSE | BE44: N/A | BF44: =IF(AND(BD44=TRUE,ISNUMBER(BE44)=TRUE),MAX(0,BE44-SUMIFS(AM$3:AM43,BD$3:BD43,TRUE,F$3:F43,F44)),IF(AND(BD44=TRUE,ISNUMBER(BE44)=FALSE),"ERR","N/A")) -> N/A | BG44: N/A | BH44: 0 | BI44: 0 | BJ44: N/A | BK44: 0 | BL44: FALSE | BM44: N/A | BN44: N/A | BO44: FALSE | BP44: N/A | BQ44: N/A | BR44: 0 | BS44: N/A | BT44: 0 | BU44: 0 | BV44: 0 | BW44: 0 | BX44: 0 | BY44: 0 | BZ44: 0 | CA44: 0 | CB44: TRUE
A45: 42 | B45: 2016-11-25 | C45: 11 | D45: 32 | E45: Office/Outpatient Visit Est | F45: Professional Services: Obstetric Care (Bundled) | G45: Not Covered | H45: 0 | I45: 0 | J45: 0 | K45: FALSE | L45: No | M45: . | N45: =IFERROR(IF(AND(L45="Yes",ISNUMBER(M45)),MAX(0,M45-SUMIFS(BU$3:BU44,L$3:L44,"Yes")),IF(OR(L45="No",M45="None"),"N/A","ERR")),"ERR") -> N/A | O45: FALSE | P45: =IF(O45,BENEFIT_PARAMETERS!$C$76,"N/A") -> N/A | Q45: =IF(P45="Yes", BENEFIT_PARAMETERS!$D$76,"N/A") -> N/A | R45: N/A | S45: 0 | T45: 0 | U45: FALSE | V45: =IF(O45,BENEFIT_PARAMETERS!$C$77,"N/A") -> N/A | W45: =IF(V45="Yes", BENEFIT_PARAMETERS!$D$77,"N/A") -> N/A | X45: =IF(O45,COUNTIF(Z$3:Z44,">0"),"N/A") -> N/A | Y45: N/A | Z45: N/A | AA45: 0 | AB45: N/A | AC45: 0 | AD45: FALSE | AE45: . | AF45: 2 | AG45: N/A | AH45: FALSE | AI45: . | AJ45: 11 | AK45: N/A | AL45: 0 | AM45: 0 | AN45: FALSE | AO45: N/A | AP45: =IF(AND(ISNUMBER(AO45),AN45=TRUE),MAX(0,AO45-SUMIFS($AM$3:$AM44,AN$3:AN44,TRUE)),IF(AND(AN45=TRUE,ISNUMBER(AO45)=FALSE),"ERR","N/A")) -> N/A | AQ45: N/A | AR45: FALSE | AS45: N/A | AT45: =IF(AND(AR45=TRUE,ISNUMBER(AS45)),MAX(0,AS45-SUMIFS($AM$3:$AM44,AR$3:AR44,TRUE)),IF(AND(AR45=TRUE,ISNUMBER(AS45)=FALSE),"ERR","N/A")) -> N/A | AU45: N/A | AV45: FALSE | AW45: N/A | AX45: =IF(AND(AV45=TRUE,ISNUMBER(AW45)),MAX(0,AW45-SUMIFS($AM$3:$AM44,AV$3:AV44,TRUE)),IF(AND(AV45=TRUE,ISNUMBER(AW45)=FALSE),"ERR","N/A")) -> N/A | AY45: N/A | AZ45: FALSE | BA45: N/A | BB45: =IF(AND(AZ45=TRUE,ISNUMBER(BA45)),MAX(0,BA45-SUMIFS($AM$3:$AM44,AZ$3:AZ44,TRUE)),IF(AND(AZ45=TRUE,ISNUMBER(BA45)=FALSE),"ERR","N/A")) -> N/A | BC45: N/A | BD45: FALSE | BE45: N/A | BF45: =IF(AND(BD45=TRUE,ISNUMBER(BE45)=TRUE),MAX(0,BE45-SUMIFS(AM$3:AM44,BD$3:BD44,TRUE,F$3:F44,F45)),IF(AND(BD45=TRUE,ISNUMBER(BE45)=FALSE),"ERR","N/A")) -> N/A | BG45: N/A | BH45: 0 | BI45: 0 | BJ45: N/A | BK45: 0 | BL45: FALSE | BM45: N/A | BN45: N/A | BO45: FALSE | BP45: N/A | BQ45: N/A | BR45: 0 | BS45: N/A | BT45: 0 | BU45: 0 | BV45: 0 | BW45: 0 | BX45: 0 | BY45: 0 | BZ45: 0 | CA45: 0 | CB45: TRUE
A46: 43 | B46: 2016-12-02 | C46: 12 | D46: 32 | E46: Office/Outpatient Visit Est | F46: Professional Services: Obstetric Care (Bundled) | G46: Not Covered | H46: 0 | I46: 0 | J46: 0 | K46: FALSE | L46: No | M46: . | N46: =IFERROR(IF(AND(L46="Yes",ISNUMBER(M46)),MAX(0,M46-SUMIFS(BU$3:BU45,L$3:L45,"Yes")),IF(OR(L46="No",M46="None"),"N/A","ERR")),"ERR") -> N/A | O46: FALSE | P46: =IF(O46,BENEFIT_PARAMETERS!$C$76,"N/A") -> N/A | Q46: =IF(P46="Yes", BENEFIT_PARAMETERS!$D$76,"N/A") -> N/A | R46: N/A | S46: 0 | T46: 0 | U46: FALSE | V46: =IF(O46,BENEFIT_PARAMETERS!$C$77,"N/A") -> N/A | W46: =IF(V46="Yes", BENEFIT_PARAMETERS!$D$77,"N/A") -> N/A | X46: =IF(O46,COUNTIF(Z$3:Z45,">0"),"N/A") -> N/A | Y46: N/A | Z46: N/A | AA46: 0 | AB46: N/A | AC46: 0 | AD46: FALSE | AE46: . | AF46: 0 | AG46: N/A | AH46: FALSE | AI46: . | AJ46: 12 | AK46: N/A | AL46: 0 | AM46: 0 | AN46: FALSE | AO46: N/A | AP46: =IF(AND(ISNUMBER(AO46),AN46=TRUE),MAX(0,AO46-SUMIFS($AM$3:$AM45,AN$3:AN45,TRUE)),IF(AND(AN46=TRUE,ISNUMBER(AO46)=FALSE),"ERR","N/A")) -> N/A | AQ46: N/A | AR46: FALSE | AS46: N/A | AT46: =IF(AND(AR46=TRUE,ISNUMBER(AS46)),MAX(0,AS46-SUMIFS($AM$3:$AM45,AR$3:AR45,TRUE)),IF(AND(AR46=TRUE,ISNUMBER(AS46)=FALSE),"ERR","N/A")) -> N/A | AU46: N/A | AV46: FALSE | AW46: N/A | AX46: =IF(AND(AV46=TRUE,ISNUMBER(AW46)),MAX(0,AW46-SUMIFS($AM$3:$AM45,AV$3:AV45,TRUE)),IF(AND(AV46=TRUE,ISNUMBER(AW46)=FALSE),"ERR","N/A")) -> N/A | AY46: N/A | AZ46: FALSE | BA46: N/A | BB46: =IF(AND(AZ46=TRUE,ISNUMBER(BA46)),MAX(0,BA46-SUMIFS($AM$3:$AM45,AZ$3:AZ45,TRUE)),IF(AND(AZ46=TRUE,ISNUMBER(BA46)=FALSE),"ERR","N/A")) -> N/A | BC46: N/A | BD46: FALSE | BE46: N/A | BF46: =IF(AND(BD46=TRUE,ISNUMBER(BE46)=TRUE),MAX(0,BE46-SUMIFS(AM$3:AM45,BD$3:BD45,TRUE,F$3:F45,F46)),IF(AND(BD46=TRUE,ISNUMBER(BE46)=FALSE),"ERR","N/A")) -> N/A | BG46: N/A | BH46: 0 | BI46: 0 | BJ46: N/A | BK46: 0 | BL46: FALSE | BM46: N/A | BN46: N/A | BO46: FALSE | BP46: N/A | BQ46: N/A | BR46: 0 | BS46: N/A | BT46: 0 | BU46: 0 | BV46: 0 | BW46: 0 | BX46: 0 | BY46: 0 | BZ46: 0 | CA46: 0 | CB46: TRUE
A47: 44 | B47: 2016-12-09 | C47: 12 | D47: 5 | E47: Anesth/analg vag delivery | F47: Professional Services: Inpatient | G47: Not Covered | H47: =VLOOKUP(D47,MaternityFeeSchedule,7,FALSE) -> 1399.34 | I47: =IF(G47="Not Covered",H47,0) -> 1399.34 | J47: =H47-I47 -> 0 | K47: =VLOOKUP(F47,nrCoverageTable,COLUMN(nrOOPLimitValid),FALSE) -> FALSE | L47: =IF(K47,VLOOKUP(F47,BenefitDesignTable,COLUMN(BenefitOOPLimitApplies),FALSE),"No") -> No | M47: =VLOOKUP(F47,BenefitDesignTable,COLUMN(OPLimit),FALSE) -> . | N47: =IFERROR(IF(AND(L47="Yes",ISNUMBER(M47)),MAX(0,M47-SUMIFS(BU$3:BU46,L$3:L46,"Yes")),IF(OR(L47="No",M47="None"),"N/A","ERR")),"ERR") -> N/A | O47: FALSE | P47: =IF(O47,BENEFIT_PARAMETERS!$C$76,"N/A") -> N/A | Q47: =IF(P47="Yes", BENEFIT_PARAMETERS!$D$76,"N/A") -> N/A | R47: N/A | S47: =IF(P47="Yes",IF(R47<Q47,MIN(J47,N47),0),0) -> 0 | T47: =J47-S47 -> 0 | U47: FALSE | V47: =IF(O47,BENEFIT_PARAMETERS!$C$77,"N/A") -> N/A | W47: =IF(V47="Yes", BENEFIT_PARAMETERS!$D$77,"N/A") -> N/A | X47: =IF(O47,COUNTIF(Z$3:Z46,">0"),"N/A") -> N/A | Y47: =IF(V47="Yes",VLOOKUP("Professional Services: Primary Care",BenefitDesignTable,COLUMN(BenefitCopay),FALSE),"N/A") -> N/A | Z47: =IF(AND(V47="Yes",U47=TRUE,X47<W47), MIN(Y47,T47,N47),"N/A") -> N/A | AA47: =IF(Z47="N/A",0,T47-Z47) -> 0 | AB47: =IF(L47="Yes",IF(Z47="N/A",N47,N47-Z47),"N/A") -> N/A | AC47: =IF(Z47="N/A",T47,0) -> 0 | AD47: =VLOOKUP(F47,nrCoverageTable,COLUMN(nrMonthlyLimitValid),FALSE) -> FALSE | AE47: =IF(AD47,VLOOKUP(F47,BenefitDesignTable,COLUMN(BenefitLimithMonth),FALSE),".") -> . | AF47: =COUNTIFS(ServiceCode,D47,ClaimMonth,C47,ClaimNumber,"<"&A47) -> 0 | AG47: =IF(AD47,IF(OR(AE47="None",ISNUMBER(AE47)),IF(AF47>=AE47,H47,0),"ERR"),"N/A") -> N/A | AH47: =VLOOKUP(F47,nrCoverageTable,COLUMN(nrAnnualLimitValid),FALSE) -> FALSE | AI47: =IF(AH47,VLOOKUP(F47,BenefitDesignTable,COLUMN(BenefitLimitAnnual),FALSE),".") -> . | AJ47: =COUNTIFS(ServiceCode,D47,ClaimNumber,"<"&A47) -> 0 | AK47: =IF(AH47,IF(OR(AI47="None",ISNUMBER(AI47)),IF(AJ47>=AI47,H47,0),"ERR"),"N/A") -> N/A | AL47: =IF(OR(AG47="ERR",AK47="ERR"),"ERR",MAX(AG47,AK47)) -> 0 | AM47: =IFERROR(AC47-AL47,"ERR") -> 0 | AN47: =VLOOKUP(F47,nrCoverageTable,COLUMN(nrUsesPlanDeduct),FALSE) -> FALSE | AO47: =IF(AN47,VLOOKUP(F47,BenefitDesignTable,COLUMN(PlanDeductible),FALSE),"N/A") -> N/A | AP47: =IF(AND(ISNUMBER(AO47),AN47=TRUE),MAX(0,AO47-SUMIFS($AM$3:$AM46,AN$3:AN46,TRUE)),IF(AND(AN47=TRUE,ISNUMBER(AO47)=FALSE),"ERR","N/A")) -> N/A | AQ47: =IF(ISNUMBER(AP47),MIN($AM47,AP47),"N/A") -> N/A | AR47: =VLOOKUP(F47,nrCoverageTable,COLUMN(nrUsesRxDeduct),FALSE) -> FALSE | AS47: =IF(AR47,VLOOKUP(F47,BenefitDesignTable,COLUMN(RxDeductible),FALSE),"N/A") -> N/A | AT47: =IF(AND(AR47=TRUE,ISNUMBER(AS47)),MAX(0,AS47-SUMIFS($AM$3:$AM46,AR$3:AR46,TRUE)),IF(AND(AR47=TRUE,ISNUMBER(AS47)=FALSE),"ERR","N/A")) -> N/A | AU47: =IF(ISNUMBER(AT47),MIN($AM47,AT47),"N/A") -> N/A | AV47: =VLOOKUP(F47,nrCoverageTable,COLUMN(nrUsesDeductC),FALSE) -> FALSE | AW47: =IF(AV47,VLOOKUP(F47,BenefitDesignTable,COLUMN(OptDeductibleC),FALSE),"N/A") -> N/A | AX47: =IF(AND(AV47=TRUE,ISNUMBER(AW47)),MAX(0,AW47-SUMIFS($AM$3:$AM46,AV$3:AV46,TRUE)),IF(AND(AV47=TRUE,ISNUMBER(AW47)=FALSE),"ERR","N/A")) -> N/A | AY47: =IF(ISNUMBER(AX47),MIN($AM47,AX47),"N/A") -> N/A | AZ47: =VLOOKUP(F47,nrCoverageTable,COLUMN(nrUsesDeductD),FALSE) -> FALSE | BA47: =IF(AZ47,VLOOKUP(F47,BenefitDesignTable,COLUMN(OptDeductibleD),FALSE),"N/A") -> N/A | BB47: =IF(AND(AZ47=TRUE,ISNUMBER(BA47)),MAX(0,BA47-SUMIFS($AM$3:$AM46,AZ$3:AZ46,TRUE)),IF(AND(AZ47=TRUE,ISNUMBER(BA47)=FALSE),"ERR","N/A")) -> N/A | BC47: =IF(ISNUMBER(BB47),MIN($AM47,BB47),"N/A") -> N/A | BD47: =VLOOKUP(F47,nrCoverageTable,COLUMN(nrUsesBenDeduct),FALSE) -> FALSE | BE47: =IF(BD47,VLOOKUP(F47,BenefitDesignTable,COLUMN(BenefitDeductible),FALSE),"N/A") -> N/A | BF47: =IF(AND(BD47=TRUE,ISNUMBER(BE47)=TRUE),MAX(0,BE47-SUMIFS(AM$3:AM46,BD$3:BD46,TRUE,F$3:F46,F47)),IF(AND(BD47=TRUE,ISNUMBER(BE47)=FALSE),"ERR","N/A")) -> N/A | BG47: =IF(ISNUMBER(BF47),MIN($AM47,BF47),"N/A") -> N/A | BH47: =SUM(AQ47,AU47,AY47,BC47,BG47) -> 0 | BI47: =IF(OR(AB47="ERR",BH47="ERR"),"ERR",MIN(BH47,AB47)) -> 0 | BJ47: =IF(AND(L47="Yes",ISNUMBER(M47)),IF(OR(BI47="ERR",AB47="ERR"),"ERR",MAX($AB47-BI47,0)),"N/A") -> N/A | BK47: =IF(OR(BI47="ERR",AM47="ERR"),"ERR",MAX(0,AM47-BI47)) -> 0 | BL47: =VLOOKUP(F47,nrCoverageTable,COLUMN(nrUsesCopay),FALSE) -> FALSE | BM47: =IF(BL47,VLOOKUP(F47,BenefitDesignTable,COLUMN(BenefitCopay),FALSE),"N/A") -> N/A | BN47: =IF(BK47="ERR","ERR",IF(AND(BL47=TRUE,ISNUMBER(BM47)),MIN(BK47,BM47,BJ47),IF(AND(BL47=TRUE,ISNUMBER(BM47)=FALSE),"ERR","N/A"))) -> N/A | BO47: =VLOOKUP(F47,nrCoverageTable,COLUMN(nrUsesCoins),FALSE) -> FALSE | BP47: =IF(BO47,VLOOKUP(F47,BenefitDesignTable,COLUMN(BenefitCoins),FALSE),"N/A") -> N/A | BQ47: =IF(BK47="ERR","ERR",IF(AND(BO47=TRUE,ISNUMBER(BP47)=TRUE),MIN(BJ47,BK47*BP47),IF(AND(BO47=TRUE,ISNUMBER(BP47)=FALSE),"ERR","N/A"))) -> N/A | BR47: =IF(OR(BJ47="ERR",BN47="ERR",BQ47="ERR"),"ERR",MIN(BJ47,SUM(BN47,BQ47))) -> 0 | BS47: =IF(AND(L47="Yes",ISNUMBER(M47)),IF(OR(BJ47="ERR",BR47="ERR"),"ERR",MAX(BJ47-BR47,0)),"N/A") -> N/A | BT47: =IF(OR(BK47="ERR",BR47="ERR"),"ERR",MAX(BK47-BR47,0)) -> 0 | BU47: 0 | BV47: 0 | BW47: =I47 -> 1399.34 | BX47: =IF(OR(AG47="ERR",AK47="ERR"),"ERR",SUM(AG47,AK47)) -> 0 | BY47: =BI47 -> 0 | BZ47: =IF(V47="Yes",IF(Z47="N/A",0,Z47),0)+IF(BL47,BN47,0) -> 0 | CA47: =IF(BO47,BQ47,0) -> 0 | CB47: =SUM(BV47:CA47)=H47 -> TRUE
A48: 45 | B48: 2016-12-09 | C48: 12 | D48: 34 | E48: Vaginal delivery w/o complicating diagnoses | F48: Inpatient Hospital Care (Facility) | G48: Not Covered | H48: 7060.58 | I48: 7060.58 | J48: 0 | K48: FALSE | L48: No | M48: . | N48: =IFERROR(IF(AND(L48="Yes",ISNUMBER(M48)),MAX(0,M48-SUMIFS(BU$3:BU47,L$3:L47,"Yes")),IF(OR(L48="No",M48="None"),"N/A","ERR")),"ERR") -> N/A | O48: FALSE | P48: =IF(O48,BENEFIT_PARAMETERS!$C$76,"N/A") -> N/A | Q48: =IF(P48="Yes", BENEFIT_PARAMETERS!$D$76,"N/A") -> N/A | R48: N/A | S48: 0 | T48: 0 | U48: FALSE | V48: =IF(O48,BENEFIT_PARAMETERS!$C$77,"N/A") -> N/A | W48: =IF(V48="Yes", BENEFIT_PARAMETERS!$D$77,"N/A") -> N/A | X48: =IF(O48,COUNTIF(Z$3:Z47,">0"),"N/A") -> N/A | Y48: N/A | Z48: N/A | AA48: 0 | AB48: N/A | AC48: 0 | AD48: FALSE | AE48: . | AF48: 0 | AG48: N/A | AH48: FALSE | AI48: . | AJ48: 0 | AK48: N/A | AL48: 0 | AM48: 0 | AN48: FALSE | AO48: N/A | AP48: =IF(AND(ISNUMBER(AO48),AN48=TRUE),MAX(0,AO48-SUMIFS($AM$3:$AM47,AN$3:AN47,TRUE)),IF(AND(AN48=TRUE,ISNUMBER(AO48)=FALSE),"ERR","N/A")) -> N/A | AQ48: N/A | AR48: FALSE | AS48: N/A | AT48: =IF(AND(AR48=TRUE,ISNUMBER(AS48)),MAX(0,AS48-SUMIFS($AM$3:$AM47,AR$3:AR47,TRUE)),IF(AND(AR48=TRUE,ISNUMBER(AS48)=FALSE),"ERR","N/A")) -> N/A | AU48: N/A | AV48: FALSE | AW48: N/A | AX48: =IF(AND(AV48=TRUE,ISNUMBER(AW48)),MAX(0,AW48-SUMIFS($AM$3:$AM47,AV$3:AV47,TRUE)),IF(AND(AV48=TRUE,ISNUMBER(AW48)=FALSE),"ERR","N/A")) -> N/A | AY48: N/A | AZ48: FALSE | BA48: N/A | BB48: =IF(AND(AZ48=TRUE,ISNUMBER(BA48)),MAX(0,BA48-SUMIFS($AM$3:$AM47,AZ$3:AZ47,TRUE)),IF(AND(AZ48=TRUE,ISNUMBER(BA48)=FALSE),"ERR","N/A")) -> N/A | BC48: N/A | BD48: FALSE | BE48: N/A | BF48: =IF(AND(BD48=TRUE,ISNUMBER(BE48)=TRUE),MAX(0,BE48-SUMIFS(AM$3:AM47,BD$3:BD47,TRUE,F$3:F47,F48)),IF(AND(BD48=TRUE,ISNUMBER(BE48)=FALSE),"ERR","N/A")) -> N/A | BG48: N/A | BH48: 0 | BI48: 0 | BJ48: N/A | BK48: 0 | BL48: FALSE | BM48: N/A | BN48: N/A | BO48: FALSE | BP48: N/A | BQ48: N/A | BR48: 0 | BS48: N/A | BT48: 0 | BU48: 0 | BV48: 0 | BW48: 7060.58 | BX48: 0 | BY48: 0 | BZ48: 0 | CA48: 0 | CB48: TRUE
A49: 46 | B49: 2016-12-09 | C49: 12 | D49: 32 | E49: Office/Outpatient Visit Est | F49: Professional Services: Obstetric Care (Bundled) | G49: Not Covered | H49: 0 | I49: 0 | J49: 0 | K49: FALSE | L49: No | M49: . | N49: =IFERROR(IF(AND(L49="Yes",ISNUMBER(M49)),MAX(0,M49-SUMIFS(BU$3:BU48,L$3:L48,"Yes")),IF(OR(L49="No",M49="None"),"N/A","ERR")),"ERR") -> N/A | O49: FALSE | P49: =IF(O49,BENEFIT_PARAMETERS!$C$76,"N/A") -> N/A | Q49: =IF(P49="Yes", BENEFIT_PARAMETERS!$D$76,"N/A") -> N/A | R49: N/A | S49: 0 | T49: 0 | U49: FALSE | V49: =IF(O49,BENEFIT_PARAMETERS!$C$77,"N/A") -> N/A | W49: =IF(V49="Yes", BENEFIT_PARAMETERS!$D$77,"N/A") -> N/A | X49: =IF(O49,COUNTIF(Z$3:Z48,">0"),"N/A") -> N/A | Y49: N/A | Z49: N/A | AA49: 0 | AB49: N/A | AC49: 0 | AD49: FALSE | AE49: . | AF49: 1 | AG49: N/A | AH49: FALSE | AI49: . | AJ49: 13 | AK49: N/A | AL49: 0 | AM49: 0 | AN49: FALSE | AO49: N/A | AP49: =IF(AND(ISNUMBER(AO49),AN49=TRUE),MAX(0,AO49-SUMIFS($AM$3:$AM48,AN$3:AN48,TRUE)),IF(AND(AN49=TRUE,ISNUMBER(AO49)=FALSE),"ERR","N/A")) -> N/A | AQ49: N/A | AR49: FALSE | AS49: N/A | AT49: =IF(AND(AR49=TRUE,ISNUMBER(AS49)),MAX(0,AS49-SUMIFS($AM$3:$AM48,AR$3:AR48,TRUE)),IF(AND(AR49=TRUE,ISNUMBER(AS49)=FALSE),"ERR","N/A")) -> N/A | AU49: N/A | AV49: FALSE | AW49: N/A | AX49: =IF(AND(AV49=TRUE,ISNUMBER(AW49)),MAX(0,AW49-SUMIFS($AM$3:$AM48,AV$3:AV48,TRUE)),IF(AND(AV49=TRUE,ISNUMBER(AW49)=FALSE),"ERR","N/A")) -> N/A | AY49: N/A | AZ49: FALSE | BA49: N/A | BB49: =IF(AND(AZ49=TRUE,ISNUMBER(BA49)),MAX(0,BA49-SUMIFS($AM$3:$AM48,AZ$3:AZ48,TRUE)),IF(AND(AZ49=TRUE,ISNUMBER(BA49)=FALSE),"ERR","N/A")) -> N/A | BC49: N/A | BD49: FALSE | BE49: N/A | BF49: =IF(AND(BD49=TRUE,ISNUMBER(BE49)=TRUE),MAX(0,BE49-SUMIFS(AM$3:AM48,BD$3:BD48,TRUE,F$3:F48,F49)),IF(AND(BD49=TRUE,ISNUMBER(BE49)=FALSE),"ERR","N/A")) -> N/A | BG49: N/A | BH49: 0 | BI49: 0 | BJ49: N/A | BK49: 0 | BL49: FALSE | BM49: N/A | BN49: N/A | BO49: FALSE | BP49: N/A | BQ49: N/A | BR49: 0 | BS49: N/A | BT49: 0 | BU49: 0 | BV49: 0 | BW49: 0 | BX49: 0 | BY49: 0 | BZ49: 0 | CA49: 0 | CB49: TRUE
A50: 47 | B50: 2016-12-11 | C50: 12 | D50: 7 | E50: Polyethylene Glycol 3350 [1 dose / 17 GM daily] | F50: Over-the-counter Drugs | G50: Not Covered | H50: 15.1 | I50: 15.1 | J50: 0 | K50: FALSE | L50: No | M50: . | N50: =IFERROR(IF(AND(L50="Yes",ISNUMBER(M50)),MAX(0,M50-SUMIFS(BU$3:BU49,L$3:L49,"Yes")),IF(OR(L50="No",M50="None"),"N/A","ERR")),"ERR") -> N/A | O50: FALSE | P50: =IF(O50,BENEFIT_PARAMETERS!$C$76,"N/A") -> N/A | Q50: =IF(P50="Yes", BENEFIT_PARAMETERS!$D$76,"N/A") -> N/A | R50: N/A | S50: 0 | T50: 0 | U50: FALSE | V50: =IF(O50,BENEFIT_PARAMETERS!$C$77,"N/A") -> N/A | W50: =IF(V50="Yes", BENEFIT_PARAMETERS!$D$77,"N/A") -> N/A | X50: =IF(O50,COUNTIF(Z$3:Z49,">0"),"N/A") -> N/A | Y50: N/A | Z50: N/A | AA50: 0 | AB50: N/A | AC50: 0 | AD50: FALSE | AE50: . | AF50: 0 | AG50: N/A | AH50: FALSE | AI50: . | AJ50: 0 | AK50: N/A | AL50: 0 | AM50: 0 | AN50: FALSE | AO50: N/A | AP50: =IF(AND(ISNUMBER(AO50),AN50=TRUE),MAX(0,AO50-SUMIFS($AM$3:$AM49,AN$3:AN49,TRUE)),IF(AND(AN50=TRUE,ISNUMBER(AO50)=FALSE),"ERR","N/A")) -> N/A | AQ50: N/A | AR50: FALSE | AS50: N/A | AT50: =IF(AND(AR50=TRUE,ISNUMBER(AS50)),MAX(0,AS50-SUMIFS($AM$3:$AM49,AR$3:AR49,TRUE)),IF(AND(AR50=TRUE,ISNUMBER(AS50)=FALSE),"ERR","N/A")) -> N/A | AU50: N/A | AV50: FALSE | AW50: N/A | AX50: =IF(AND(AV50=TRUE,ISNUMBER(AW50)),MAX(0,AW50-SUMIFS($AM$3:$AM49,AV$3:AV49,TRUE)),IF(AND(AV50=TRUE,ISNUMBER(AW50)=FALSE),"ERR","N/A")) -> N/A | AY50: N/A | AZ50: FALSE | BA50: N/A | BB50: =IF(AND(AZ50=TRUE,ISNUMBER(BA50)),MAX(0,BA50-SUMIFS($AM$3:$AM49,AZ$3:AZ49,TRUE)),IF(AND(AZ50=TRUE,ISNUMBER(BA50)=FALSE),"ERR","N/A")) -> N/A | BC50: N/A | BD50: FALSE | BE50: N/A | BF50: =IF(AND(BD50=TRUE,ISNUMBER(BE50)=TRUE),MAX(0,BE50-SUMIFS(AM$3:AM49,BD$3:BD49,TRUE,F$3:F49,F50)),IF(AND(BD50=TRUE,ISNUMBER(BE50)=FALSE),"ERR","N/A")) -> N/A | BG50: N/A | BH50: 0 | BI50: 0 | BJ50: N/A | BK50: 0 | BL50: FALSE | BM50: N/A | BN50: N/A | BO50: FALSE | BP50: N/A | BQ50: N/A | BR50: 0 | BS50: N/A | BT50: 0 | BU50: 0 | BV50: 0 | BW50: 15.1 | BX50: 0 | BY50: 0 | BZ50: 0 | CA50: 0 | CB50: TRUE
A51: 48 | B51: 2016-12-11 | C51: 12 | D51: 2 | E51: Ibuprofen 800mg (Rx) [1 pill Q8H PRN; 30 pills] | F51: Prescription Drugs: Generic | G51: Not Covered | H51: =VLOOKUP(D51,MaternityFeeSchedule,7,FALSE) -> 3.77 | I51: =IF(G51="Not Covered",H51,0) -> 3.77 | J51: =H51-I51 -> 0 | K51: =VLOOKUP(F51,nrCoverageTable,COLUMN(nrOOPLimitValid),FALSE) -> FALSE | L51: =IF(K51,VLOOKUP(F51,BenefitDesignTable,COLUMN(BenefitOOPLimitApplies),FALSE),"No") -> No | M51: =VLOOKUP(F51,BenefitDesignTable,COLUMN(OPLimit),FALSE) -> . | N51: =IFERROR(IF(AND(L51="Yes",ISNUMBER(M51)),MAX(0,M51-SUMIFS(BU$3:BU50,L$3:L50,"Yes")),IF(OR(L51="No",M51="None"),"N/A","ERR")),"ERR") -> N/A | O51: =IF(F51="Professional Services: Primary Care",TRUE, FALSE) -> FALSE | P51: =IF(O51,BENEFIT_PARAMETERS!$C$76,"N/A") -> N/A | Q51: =IF(P51="Yes", BENEFIT_PARAMETERS!$D$76,"N/A") -> N/A | R51: =IF(O51,COUNTIFS(BenefitCategory,"Professional Services: Primary Care",ClaimNumber,"<"&A51),"N/A") -> N/A | S51: =IF(P51="Yes",IF(R51<Q51,MIN(J51,N51),0),0) -> 0 | T51: =J51-S51 -> 0 | U51: =IF(F51="Professional Services: Primary Care",TRUE, FALSE) -> FALSE | V51: =IF(O51,BENEFIT_PARAMETERS!$C$77,"N/A") -> N/A | W51: =IF(V51="Yes", BENEFIT_PARAMETERS!$D$77,"N/A") -> N/A | X51: =IF(O51,COUNTIF(Z$3:Z50,">0"),"N/A") -> N/A | Y51: =IF(V51="Yes",VLOOKUP("Professional Services: Primary Care",BenefitDesignTable,COLUMN(BenefitCopay),FALSE),"N/A") -> N/A | Z51: =IF(AND(V51="Yes",U51=TRUE,X51<W51), MIN(Y51,T51,N51),"N/A") -> N/A | AA51: =IF(Z51="N/A",0,T51-Z51) -> 0 | AB51: =IF(L51="Yes",IF(Z51="N/A",N51,N51-Z51),"N/A") -> N/A | AC51: =IF(Z51="N/A",T51,0) -> 0 | AD51: =VLOOKUP(F51,nrCoverageTable,COLUMN(nrMonthlyLimitValid),FALSE) -> FALSE | AE51: =IF(AD51,VLOOKUP(F51,BenefitDesignTable,COLUMN(BenefitLimithMonth),FALSE),".") -> . | AF51: =COUNTIFS(ServiceCode,D51,ClaimMonth,C51,ClaimNumber,"<"&A51) -> 0 | AG51: =IF(AD51,IF(OR(AE51="None",ISNUMBER(AE51)),IF(AF51>=AE51,H51,0),"ERR"),"N/A") -> N/A | AH51: =VLOOKUP(F51,nrCoverageTable,COLUMN(nrAnnualLimitValid),FALSE) -> FALSE | AI51: =IF(AH51,VLOOKUP(F51,BenefitDesignTable,COLUMN(BenefitLimitAnnual),FALSE),".") -> . | AJ51: =COUNTIFS(ServiceCode,D51,ClaimNumber,"<"&A51) -> 0 | AK51: =IF(AH51,IF(OR(AI51="None",ISNUMBER(AI51)),IF(AJ51>=AI51,H51,0),"ERR"),"N/A") -> N/A | AL51: =IF(OR(AG51="ERR",AK51="ERR"),"ERR",MAX(AG51,AK51)) -> 0 | AM51: =IFERROR(AC51-AL51,"ERR") -> 0 | AN51: =VLOOKUP(F51,nrCoverageTable,COLUMN(nrUsesPlanDeduct),FALSE) -> FALSE | AO51: =IF(AN51,VLOOKUP(F51,BenefitDesignTable,COLUMN(PlanDeductible),FALSE),"N/A") -> N/A | AP51: =IF(AND(ISNUMBER(AO51),AN51=TRUE),MAX(0,AO51-SUMIFS($AM$3:$AM50,AN$3:AN50,TRUE)),IF(AND(AN51=TRUE,ISNUMBER(AO51)=FALSE),"ERR","N/A")) -> N/A | AQ51: =IF(ISNUMBER(AP51),MIN($AM51,AP51),"N/A") -> N/A | AR51: =VLOOKUP(F51,nrCoverageTable,COLUMN(nrUsesRxDeduct),FALSE) -> FALSE | AS51: =IF(AR51,VLOOKUP(F51,BenefitDesignTable,COLUMN(RxDeductible),FALSE),"N/A") -> N/A | AT51: =IF(AND(AR51=TRUE,ISNUMBER(AS51)),MAX(0,AS51-SUMIFS($AM$3:$AM50,AR$3:AR50,TRUE)),IF(AND(AR51=TRUE,ISNUMBER(AS51)=FALSE),"ERR","N/A")) -> N/A | AU51: =IF(ISNUMBER(AT51),MIN($AM51,AT51),"N/A") -> N/A | AV51: =VLOOKUP(F51,nrCoverageTable,COLUMN(nrUsesDeductC),FALSE) -> FALSE | AW51: =IF(AV51,VLOOKUP(F51,BenefitDesignTable,COLUMN(OptDeductibleC),FALSE),"N/A") -> N/A | AX51: =IF(AND(AV51=TRUE,ISNUMBER(AW51)),MAX(0,AW51-SUMIFS($AM$3:$AM50,AV$3:AV50,TRUE)),IF(AND(AV51=TRUE,ISNUMBER(AW51)=FALSE),"ERR","N/A")) -> N/A | AY51: =IF(ISNUMBER(AX51),MIN($AM51,AX51),"N/A") -> N/A | AZ51: =VLOOKUP(F51,nrCoverageTable,COLUMN(nrUsesDeductD),FALSE) -> FALSE | BA51: =IF(AZ51,VLOOKUP(F51,BenefitDesignTable,COLUMN(OptDeductibleD),FALSE),"N/A") -> N/A | BB51: =IF(AND(AZ51=TRUE,ISNUMBER(BA51)),MAX(0,BA51-SUMIFS($AM$3:$AM50,AZ$3:AZ50,TRUE)),IF(AND(AZ51=TRUE,ISNUMBER(BA51)=FALSE),"ERR","N/A")) -> N/A | BC51: =IF(ISNUMBER(BB51),MIN($AM51,BB51),"N/A") -> N/A | BD51: =VLOOKUP(F51,nrCoverageTable,COLUMN(nrUsesBenDeduct),FALSE) -> FALSE | BE51: =IF(BD51,VLOOKUP(F51,BenefitDesignTable,COLUMN(BenefitDeductible),FALSE),"N/A") -> N/A | BF51: =IF(AND(BD51=TRUE,ISNUMBER(BE51)=TRUE),MAX(0,BE51-SUMIFS(AM$3:AM50,BD$3:BD50,TRUE,F$3:F50,F51)),IF(AND(BD51=TRUE,ISNUMBER(BE51)=FALSE),"ERR","N/A")) -> N/A | BG51: =IF(ISNUMBER(BF51),MIN($AM51,BF51),"N/A") -> N/A | BH51: =SUM(AQ51,AU51,AY51,BC51,BG51) -> 0 | BI51: =IF(OR(AB51="ERR",BH51="ERR"),"ERR",MIN(BH51,AB51)) -> 0 | BJ51: =IF(AND(L51="Yes",ISNUMBER(M51)),IF(OR(BI51="ERR",AB51="ERR"),"ERR",MAX($AB51-BI51,0)),"N/A") -> N/A | BK51: =IF(OR(BI51="ERR",AM51="ERR"),"ERR",MAX(0,AM51-BI51)) -> 0 | BL51: =VLOOKUP(F51,nrCoverageTable,COLUMN(nrUsesCopay),FALSE) -> FALSE | BM51: =IF(BL51,VLOOKUP(F51,BenefitDesignTable,COLUMN(BenefitCopay),FALSE),"N/A") -> N/A | BN51: =IF(BK51="ERR","ERR",IF(AND(BL51=TRUE,ISNUMBER(BM51)),MIN(BK51,BM51,BJ51),IF(AND(BL51=TRUE,ISNUMBER(BM51)=FALSE),"ERR","N/A"))) -> N/A | BO51: =VLOOKUP(F51,nrCoverageTable,COLUMN(nrUsesCoins),FALSE) -> FALSE | BP51: =IF(BO51,VLOOKUP(F51,BenefitDesignTable,COLUMN(BenefitCoins),FALSE),"N/A") -> N/A | BQ51: =IF(BK51="ERR","ERR",IF(AND(BO51=TRUE,ISNUMBER(BP51)=TRUE),MIN(BJ51,BK51*BP51),IF(AND(BO51=TRUE,ISNUMBER(BP51)=FALSE),"ERR","N/A"))) -> N/A | BR51: =IF(OR(BJ51="ERR",BN51="ERR",BQ51="ERR"),"ERR",MIN(BJ51,SUM(BN51,BQ51))) -> 0 | BS51: =IF(AND(L51="Yes",ISNUMBER(M51)),IF(OR(BJ51="ERR",BR51="ERR"),"ERR",MAX(BJ51-BR51,0)),"N/A") -> N/A | BT51: =IF(OR(BK51="ERR",BR51="ERR"),"ERR",MAX(BK51-BR51,0)) -> 0 | BU51: 0 | BV51: 0 | BW51: =I51 -> 3.77 | BX51: =IF(OR(AG51="ERR",AK51="ERR"),"ERR",SUM(AG51,AK51)) -> 0 | BY51: =BI51 -> 0 | BZ51: =IF(V51="Yes",IF(Z51="N/A",0,Z51),0)+IF(BL51,BN51,0) -> 0 | CA51: =IF(BO51,BQ51,0) -> 0 | CB51: =SUM(BV51:CA51)=H51 -> TRUE
A52: 49 | B52: 2016-12-11 | C52: 12 | D52: 1 | E52: Oxycodone/APAP 5mg/325mg (Rx) [1 pill Q6H PRN; 30 pills] | F52: Prescription Drugs: Generic | G52: Not Covered | H52: 6.8 | I52: 6.8 | J52: 0 | K52: FALSE | L52: No | M52: . | N52: =IFERROR(IF(AND(L52="Yes",ISNUMBER(M52)),MAX(0,M52-SUMIFS(BU$3:BU51,L$3:L51,"Yes")),IF(OR(L52="No",M52="None"),"N/A","ERR")),"ERR") -> N/A | O52: FALSE | P52: =IF(O52,BENEFIT_PARAMETERS!$C$76,"N/A") -> N/A | Q52: =IF(P52="Yes", BENEFIT_PARAMETERS!$D$76,"N/A") -> N/A | R52: N/A | S52: 0 | T52: 0 | U52: FALSE | V52: =IF(O52,BENEFIT_PARAMETERS!$C$77,"N/A") -> N/A | W52: =IF(V52="Yes", BENEFIT_PARAMETERS!$D$77,"N/A") -> N/A | X52: =IF(O52,COUNTIF(Z$3:Z51,">0"),"N/A") -> N/A | Y52: N/A | Z52: N/A | AA52: 0 | AB52: N/A | AC52: 0 | AD52: FALSE | AE52: . | AF52: 0 | AG52: N/A | AH52: FALSE | AI52: . | AJ52: 0 | AK52: N/A | AL52: 0 | AM52: 0 | AN52: FALSE | AO52: N/A | AP52: =IF(AND(ISNUMBER(AO52),AN52=TRUE),MAX(0,AO52-SUMIFS($AM$3:$AM51,AN$3:AN51,TRUE)),IF(AND(AN52=TRUE,ISNUMBER(AO52)=FALSE),"ERR","N/A")) -> N/A | AQ52: N/A | AR52: FALSE | AS52: N/A | AT52: =IF(AND(AR52=TRUE,ISNUMBER(AS52)),MAX(0,AS52-SUMIFS($AM$3:$AM51,AR$3:AR51,TRUE)),IF(AND(AR52=TRUE,ISNUMBER(AS52)=FALSE),"ERR","N/A")) -> N/A | AU52: N/A | AV52: FALSE | AW52: N/A | AX52: =IF(AND(AV52=TRUE,ISNUMBER(AW52)),MAX(0,AW52-SUMIFS($AM$3:$AM51,AV$3:AV51,TRUE)),IF(AND(AV52=TRUE,ISNUMBER(AW52)=FALSE),"ERR","N/A")) -> N/A | AY52: N/A | AZ52: FALSE | BA52: N/A | BB52: =IF(AND(AZ52=TRUE,ISNUMBER(BA52)),MAX(0,BA52-SUMIFS($AM$3:$AM51,AZ$3:AZ51,TRUE)),IF(AND(AZ52=TRUE,ISNUMBER(BA52)=FALSE),"ERR","N/A")) -> N/A | BC52: N/A | BD52: FALSE | BE52: N/A | BF52: =IF(AND(BD52=TRUE,ISNUMBER(BE52)=TRUE),MAX(0,BE52-SUMIFS(AM$3:AM51,BD$3:BD51,TRUE,F$3:F51,F52)),IF(AND(BD52=TRUE,ISNUMBER(BE52)=FALSE),"ERR","N/A")) -> N/A | BG52: N/A | BH52: 0 | BI52: 0 | BJ52: N/A | BK52: 0 | BL52: FALSE | BM52: N/A | BN52: N/A | BO52: FALSE | BP52: N/A | BQ52: N/A | BR52: 0 | BS52: N/A | BT52: 0 | BU52: 0 | BV52: 0 | BW52: 6.8 | BX52: 0 | BY52: 0 | BZ52: 0 | CA52: 0 | CB52: TRUE
A53: 50 | B53: 2016-12-23 | C53: 12 | D53: 33 | E53: Office/Outpatient Visit Est | F53: Professional Services: Obstetric Care (Bundled) | G53: Not Covered | H53: 0 | I53: 0 | J53: 0 | K53: FALSE | L53: No | M53: . | N53: =IFERROR(IF(AND(L53="Yes",ISNUMBER(M53)),MAX(0,M53-SUMIFS(BU$3:BU52,L$3:L52,"Yes")),IF(OR(L53="No",M53="None"),"N/A","ERR")),"ERR") -> N/A | O53: FALSE | P53: =IF(O53,BENEFIT_PARAMETERS!$C$76,"N/A") -> N/A | Q53: =IF(P53="Yes", BENEFIT_PARAMETERS!$D$76,"N/A") -> N/A | R53: N/A | S53: 0 | T53: 0 | U53: FALSE | V53: =IF(O53,BENEFIT_PARAMETERS!$C$77,"N/A") -> N/A | W53: =IF(V53="Yes", BENEFIT_PARAMETERS!$D$77,"N/A") -> N/A | X53: =IF(O53,COUNTIF(Z$3:Z52,">0"),"N/A") -> N/A | Y53: N/A | Z53: N/A | AA53: 0 | AB53: N/A | AC53: 0 | AD53: FALSE | AE53: . | AF53: 0 | AG53: N/A | AH53: FALSE | AI53: . | AJ53: 0 | AK53: N/A | AL53: 0 | AM53: 0 | AN53: FALSE | AO53: N/A | AP53: =IF(AND(ISNUMBER(AO53),AN53=TRUE),MAX(0,AO53-SUMIFS($AM$3:$AM52,AN$3:AN52,TRUE)),IF(AND(AN53=TRUE,ISNUMBER(AO53)=FALSE),"ERR","N/A")) -> N/A | AQ53: N/A | AR53: FALSE | AS53: N/A | AT53: =IF(AND(AR53=TRUE,ISNUMBER(AS53)),MAX(0,AS53-SUMIFS($AM$3:$AM52,AR$3:AR52,TRUE)),IF(AND(AR53=TRUE,ISNUMBER(AS53)=FALSE),"ERR","N/A")) -> N/A | AU53: N/A | AV53: FALSE | AW53: N/A | AX53: =IF(AND(AV53=TRUE,ISNUMBER(AW53)),MAX(0,AW53-SUMIFS($AM$3:$AM52,AV$3:AV52,TRUE)),IF(AND(AV53=TRUE,ISNUMBER(AW53)=FALSE),"ERR","N/A")) -> N/A | AY53: N/A | AZ53: FALSE | BA53: N/A | BB53: =IF(AND(AZ53=TRUE,ISNUMBER(BA53)),MAX(0,BA53-SUMIFS($AM$3:$AM52,AZ$3:AZ52,TRUE)),IF(AND(AZ53=TRUE,ISNUMBER(BA53)=FALSE),"ERR","N/A")) -> N/A | BC53: N/A | BD53: FALSE | BE53: N/A | BF53: =IF(AND(BD53=TRUE,ISNUMBER(BE53)=TRUE),MAX(0,BE53-SUMIFS(AM$3:AM52,BD$3:BD52,TRUE,F$3:F52,F53)),IF(AND(BD53=TRUE,ISNUMBER(BE53)=FALSE),"ERR","N/A")) -> N/A | BG53: N/A | BH53: 0 | BI53: 0 | BJ53: N/A | BK53: 0 | BL53: FALSE | BM53: N/A | BN53: N/A | BO53: FALSE | BP53: N/A | BQ53: N/A | BR53: 0 | BS53: N/A | BT53: 0 | BU53: 0 | BV53: 0 | BW53: 0 | BX53: 0 | BY53: 0 | BZ53: 0 | CA53: 0 | CB53: TRUE

Sheet DIABETES_TIMELINE (hidden)
CB1: =COUNTIF(CB4:CB100,FALSE)=0 -> TRUE
H2: Phase 1: Determine Covered Amount | K2: Phase 2: Apply OOP Limit | O2: Phase 3a: Apply Special cost sharing - Begin Primary Care cost-sharing after a set number of visits? | U2: Phase 3b: Apply special cost sharing: Begin primary care cost sharing deductible or coinsurance after a set number of copays? | AD2: Phase 4: Apply monthly/annual limit | AN2: Phase 5: Plan deductible | AR2: Phase 5: Rx deductible | AV2: Phase 5: Optional deductible C | AZ2: Phase 5: Optional deductible D | BD2: Phase 5: Benefit deductible | BH2: Phase 5 Summary | BJ2: Phase 6: Apply copay and coinsurance | BS2: Phase 7: Calculate total subscriber pays | BV2: Phase 8: Summarize payments by payer and phase category
A3: Claim number | B3: Date | C3: Calendar Month | D3: Item or Service Code | E3: Description | F3: Benefit Category | G3: Cost-sharing type | H3: Allowed amount | I3: Service Not covered | J3: Remaining Covered Amount | K3: OPL Valid? | L3: OPL applies | M3: OPL | N3: Remaining OPL after previous subscriber payments | O3: Primary Care Visit? | P3: Begin Primary Care Cost-Sharing After A Set Number of Visits? | Q3: # Visits | R3: Primary Care Prior Use | S3: Visit Covered at 100% by plan | T3: Remaining Covered Amount | U3: Primary Care Visit? | V3: Begin Primary Care Cost-Sharing Deductible or Coinsurance After a Set Number of Copays? | W3: # Visits | X3: Primary Care Prior Copay Paid | Y3: Copay Value | Z3: Subscriber-Paid Copay | AA3: Plan Paid | AB3: Remaining OPL | AC3: Remaining Covered Amount | AD3: Monthly Limit Valid? | AE3: Monthly limit | AF3: Prior use (month) | AG3: Not Covered because monthly limit exceeded | AH3: Annual Limit Valid? | AI3: Annual limit | AJ3: Prior use (annual) | AK3: Not Covered because use limit exceeded | AL3: Total Not Covered because use limit exceeded | AM3: Covered amount | AN3: Uses Plan deductible? | AO3: Plan Deductible | AP3: Remaining plan deductible after previous subscriber payments | AQ3: subscriber pays toward plan deductible | AR3: Uses rx deductible? | AS3: Rx Deductible | AT3: Remaining Rx deductible after previous subscriber payments | AU3: subscriber pays toward Rx deductible | AV3: Uses deductible C? | AW3: Deductible C | AX3: Remaining deductible C after previous subscriber payments | AY3: subscriber pays toward deductible C | AZ3: Uses deductible D? | BA3: Deductible D | BB3: Remaining deductible D after previous subscriber payments | BC3: subscriber pays toward deductible D | BD3: Uses benefit deductible? | BE3: Benefit deductible | BF3: Remaining benefit deductible after previous subcriber payments | BG3: subscriber pays toward benefit deductible | BH3: subscriber pays toward any deductible | BI3: Subscriber-paid deductible after applying OPL | BJ3: Remaining OPL | BK3: Covered amount remaining after deductibles | BL3: Uses Copay? | BM3: Copay Value | BN3: Copay Paid | BO3: Uses Coinsurance? | BP3: Coinsurance Value | BQ3: Coinsurance Paid | BR3: Subscriber-paid costsharing after OPL | BS3: Remaining OPL | BT3: Allowed amount after copayment or coinsurance | BU3: Total subscriber payment After OPL | BV3: plan payment | BW3: Service Not covered | BX3: Exclusions | BY3: Subscriber-paid deductible | BZ3: Subscriber-paid copayment | CA3: Subscriber-paid coinsurance | CB3: Allowable Charge ChkSum
A4: 1 | B4: 2016-01-03 | C4: 1 | D4: 14 | E4: =VLOOKUP(ServiceCode,DiabetesFeeSchedule,6,FALSE) -> BD Ultrafine Insulin Syringes / 30G/ 0.5cc [usage = 30 syringes per month] | F4: =VLOOKUP(D4,DiabetesFeeSchedule,5,FALSE) -> Medical Supplies | G4: =VLOOKUP(F4,BenefitDesignTable,COLUMN(BenefitCostSharing),FALSE) -> Not Covered | H4: =VLOOKUP(D4,DiabetesFeeSchedule,7,FALSE) -> 20.62 | I4: =IF(G4="Not Covered",H4,0) -> 20.62 | J4: =H4-I4 -> 0 | K4: =VLOOKUP(F4,nrCoverageTable,COLUMN(nrOOPLimitValid),FALSE) -> FALSE | L4: =IF(K4,VLOOKUP(F4,BenefitDesignTable,COLUMN(BenefitOOPLimitApplies),FALSE),"No") -> No | M4: =VLOOKUP(F4,BenefitDesignTable,COLUMN(OPLimit),FALSE) -> . | N4: =IFERROR(IF(AND(L4="Yes",ISNUMBER(M4)),MAX(0,M4-SUMIFS(BU$3:BU3,L$3:L3,"Yes")),IF(OR(L4="No",M4="None"),"N/A","ERR")),"ERR") -> N/A | O4: =IF(F4="Professional Services: Primary Care",TRUE, FALSE) -> FALSE | P4: =IF(O4,BENEFIT_PARAMETERS!$C$76,"N/A") -> N/A | Q4: =IF(P4="Yes", BENEFIT_PARAMETERS!$D$76,"N/A") -> N/A | R4: =IF(O4,COUNTIFS(BenefitCategory,"Professional Services: Primary Care",ClaimNumber,"<"&A4),"N/A") -> N/A | S4: =IF(P4="Yes",IF(R4<Q4,MIN(J4,N4),0),0) -> 0 | T4: =J4-S4 -> 0 | U4: =IF(F4="Professional Services: Primary Care",TRUE, FALSE) -> FALSE | V4: =IF(O4,BENEFIT_PARAMETERS!$C$77,"N/A") -> N/A | W4: =IF(V4="Yes", BENEFIT_PARAMETERS!$D$77,"N/A") -> N/A | X4: =IF(O4,COUNTIF(Z$3:Z3,">0"),"N/A") -> N/A | Y4: =IF(V4="Yes",VLOOKUP("Professional Services: Primary Care",BenefitDesignTable,COLUMN(BenefitCopay),FALSE),"N/A") -> N/A | Z4: =IF(AND(V4="Yes",U4=TRUE,X4<W4), MIN(Y4,T4,N4),"N/A") -> N/A | AA4: =IF(Z4="N/A",0,T4-Z4) -> 0 | AB4: =IF(L4="Yes",IF(Z4="N/A",N4,N4-Z4),"N/A") -> N/A | AC4: =IF(Z4="N/A",T4,0) -> 0 | AD4: =VLOOKUP(F4,nrCoverageTable,COLUMN(nrMonthlyLimitValid),FALSE) -> FALSE | AE4: =IF(AD4,VLOOKUP(F4,BenefitDesignTable,COLUMN(BenefitLimithMonth),FALSE),".") -> . | AF4: =COUNTIFS(ServiceCode,D4,ClaimMonth,C4,ClaimNumber,"<"&A4) -> 0 | AG4: =IF(AD4,IF(OR(AE4="None",ISNUMBER(AE4)),IF(AF4>=AE4,H4,0),"ERR"),"N/A") -> N/A | AH4: =VLOOKUP(F4,nrCoverageTable,COLUMN(nrAnnualLimitValid),FALSE) -> FALSE | AI4: =IF(AH4,VLOOKUP(F4,BenefitDesignTable,COLUMN(BenefitLimitAnnual),FALSE),".") -> . | AJ4: =COUNTIFS(ServiceCode,D4,ClaimNumber,"<"&A4) -> 0 | AK4: =IF(AH4,IF(OR(AI4="None",ISNUMBER(AI4)),IF(AJ4>=AI4,H4,0),"ERR"),"N/A") -> N/A | AL4: =IF(OR(AG4="ERR",AK4="ERR"),"ERR",MAX(AG4,AK4)) -> 0 | AM4: =IFERROR(AC4-AL4,"ERR") -> 0 | AN4: =VLOOKUP(F4,nrCoverageTable,COLUMN(nrUsesPlanDeduct),FALSE) -> FALSE | AO4: =IF(AN4,VLOOKUP(F4,BenefitDesignTable,COLUMN(PlanDeductible),FALSE),"N/A") -> N/A | AP4: =IF(AND(ISNUMBER(AO4),AN4=TRUE),MAX(0,AO4-SUMIFS($AM$3:$AM3,AN$3:AN3,TRUE)),IF(AND(AN4=TRUE,ISNUMBER(AO4)=FALSE),"ERR","N/A")) -> N/A | AQ4: =IF(ISNUMBER(AP4),MIN($AM4,AP4),"N/A") -> N/A | AR4: =VLOOKUP(F4,nrCoverageTable,COLUMN(nrUsesRxDeduct),FALSE) -> FALSE | AS4: =IF(AR4,VLOOKUP(F4,BenefitDesignTable,COLUMN(RxDeductible),FALSE),"N/A") -> N/A | AT4: =IF(AND(AR4=TRUE,ISNUMBER(AS4)),MAX(0,AS4-SUMIFS($AM$3:$AM3,AR$3:AR3,TRUE)),IF(AND(AR4=TRUE,ISNUMBER(AS4)=FALSE),"ERR","N/A")) -> N/A | AU4: =IF(ISNUMBER(AT4),MIN($AM4,AT4),"N/A") -> N/A | AV4: =VLOOKUP(F4,nrCoverageTable,COLUMN(nrUsesDeductC),FALSE) -> FALSE | AW4: =IF(AV4,VLOOKUP(F4,BenefitDesignTable,COLUMN(OptDeductibleC),FALSE),"N/A") -> N/A | AX4: =IF(AND(AV4=TRUE,ISNUMBER(AW4)),MAX(0,AW4-SUMIFS($AM$3:$AM3,AV$3:AV3,TRUE)),IF(AND(AV4=TRUE,ISNUMBER(AW4)=FALSE),"ERR","N/A")) -> N/A | AY4: =IF(ISNUMBER(AX4),MIN($AM4,AX4),"N/A") -> N/A | AZ4: =VLOOKUP(F4,nrCoverageTable,COLUMN(nrUsesDeductD),FALSE) -> FALSE | BA4: =IF(AZ4,VLOOKUP(F4,BenefitDesignTable,COLUMN(OptDeductibleD),FALSE),"N/A") -> N/A | BB4: =IF(AND(AZ4=TRUE,ISNUMBER(BA4)),MAX(0,BA4-SUMIFS($AM$3:$AM3,AZ$3:AZ3,TRUE)),IF(AND(AZ4=TRUE,ISNUMBER(BA4)=FALSE),"ERR","N/A")) -> N/A | BC4: =IF(ISNUMBER(BB4),MIN($AM4,BB4),"N/A") -> N/A | BD4: =VLOOKUP(F4,nrCoverageTable,COLUMN(nrUsesBenDeduct),FALSE) -> FALSE | BE4: =IF(BD4,VLOOKUP(F4,BenefitDesignTable,COLUMN(BenefitDeductible),FALSE),"N/A") -> N/A | BF4: =IF(AND(BD4=TRUE,ISNUMBER(BE4)=TRUE),MAX(0,BE4-SUMIFS(AM$3:AM3,BD$3:BD3,TRUE,F$3:F3,F4)),IF(AND(BD4=TRUE,ISNUMBER(BE4)=FALSE),"ERR","N/A")) -> N/A | BG4: =IF(ISNUMBER(BF4),MIN($AM4,BF4),"N/A") -> N/A | BH4: =SUM(AQ4,AU4,AY4,BC4,BG4) -> 0 | BI4: =IF(OR(AB4="ERR",BH4="ERR"),"ERR",MIN(BH4,AB4)) -> 0 | BJ4: =IF(AND(L4="Yes",ISNUMBER(M4)),IF(OR(BI4="ERR",AB4="ERR"),"ERR",MAX($AB4-BI4,0)),"N/A") -> N/A | BK4: =IF(OR(BI4="ERR",AM4="ERR"),"ERR",MAX(0,AM4-BI4)) -> 0 | BL4: =VLOOKUP(F4,nrCoverageTable,COLUMN(nrUsesCopay),FALSE) -> FALSE | BM4: =IF(BL4,VLOOKUP(F4,BenefitDesignTable,COLUMN(BenefitCopay),FALSE),"N/A") -> N/A | BN4: =IF(BK4="ERR","ERR",IF(AND(BL4=TRUE,ISNUMBER(BM4)),MIN(BK4,BM4,BJ4),IF(AND(BL4=TRUE,ISNUMBER(BM4)=FALSE),"ERR","N/A"))) -> N/A | BO4: =VLOOKUP(F4,nrCoverageTable,COLUMN(nrUsesCoins),FALSE) -> FALSE | BP4: =IF(BO4,VLOOKUP(F4,BenefitDesignTable,COLUMN(BenefitCoins),FALSE),"N/A") -> N/A | BQ4: =IF(BK4="ERR","ERR",IF(AND(BO4=TRUE,ISNUMBER(BP4)=TRUE),MIN(BJ4,BK4*BP4),IF(AND(BO4=TRUE,ISNUMBER(BP4)=FALSE),"ERR","N/A"))) -> N/A | BR4: =IF(OR(BJ4="ERR",BN4="ERR",BQ4="ERR"),"ERR",MIN(BJ4,SUM(BN4,BQ4))) -> 0 | BS4: =IF(AND(L4="Yes",ISNUMBER(M4)),IF(OR(BJ4="ERR",BR4="ERR"),"ERR",MAX(BJ4-BR4,0)),"N/A") -> N/A | BT4: =IF(OR(BK4="ERR",BR4="ERR"),"ERR",MAX(BK4-BR4,0)) -> 0 | BU4: =IF(OR(BI4="ERR",BR4="ERR"),"ERR",SUM(BI4,BR4,Z4)) -> 0 | BV4: =IF(OR(AM4="ERR",BU4="ERR"),"ERR",MAX(S4+AA4+AM4-BI4-BR4,0)) -> 0 | BW4: =I4 -> 20.62 | BX4: =IF(OR(AG4="ERR",AK4="ERR"),"ERR",SUM(AG4,AK4)) -> 0 | BY4: =BI4 -> 0 | BZ4: =IF(V4="Yes",IF(Z4="N/A",0,Z4),0)+IF(BL4,BN4,0) -> 0 | CA4: =IF(BO4,BQ4,0) -> 0 | CB4: =SUM(BV4:CA4)=H4 -> TRUE
A5: 2 | B5: 2016-01-03 | C5: 1 | D5: 5 | E5: OneTouch Delica Lancets (100 per box) [usage = 60 lancets per month] | F5: =VLOOKUP(ServiceCode,DiabetesFeeSchedule,5,FALSE) -> Medical Supplies | G5: =VLOOKUP(BenefitCategory,BenefitDesignTable,COLUMN(BenefitCostSharing),FALSE) -> Not Covered | H5: 8.73 | I5: 8.73 | J5: 0 | K5: FALSE | L5: No | M5: . | N5: =IFERROR(IF(AND(L5="Yes",ISNUMBER(M5)),MAX(0,M5-SUMIFS(BU$3:BU4,L$3:L4,"Yes")),IF(OR(L5="No",M5="None"),"N/A","ERR")),"ERR") -> N/A | O5: =IF(F5="Professional Services: Primary Care",TRUE, FALSE) -> FALSE | P5: =IF(O5,BENEFIT_PARAMETERS!$C$76,"N/A") -> N/A | Q5: =IF(P5="Yes", BENEFIT_PARAMETERS!$D$76,"N/A") -> N/A | R5: N/A | S5: =IF(P5="Yes",IF(R5<Q5,MIN(J5,N5),0),0) -> 0 | T5: 0 | U5: =IF(F5="Professional Services: Primary Care",TRUE, FALSE) -> FALSE | V5: =IF(O5,BENEFIT_PARAMETERS!$C$77,"N/A") -> N/A | W5: =IF(V5="Yes", BENEFIT_PARAMETERS!$D$77,"N/A") -> N/A | X5: =IF(O5,COUNTIF(Z$3:Z4,">0"),"N/A") -> N/A | Y5: N/A | Z5: =IF(AND(V5="Yes",U5=TRUE,X5<W5), MIN(Y5,T5,N5),"N/A") -> N/A | AA5: =IF(Z5="N/A",0,T5-Z5) -> 0 | AB5: N/A | AC5: =IF(Z5="N/A",T5,0) -> 0 | AD5: FALSE | AE5: . | AF5: 0 | AG5: N/A | AH5: FALSE | AI5: . | AJ5: 0 | AK5: N/A | AL5: =IF(OR(AG5="ERR",AK5="ERR"),"ERR",MAX(AG5,AK5)) -> 0 | AM5: =IFERROR(AC5-AL5,"ERR") -> 0 | AN5: FALSE | AO5: N/A | AP5: =IF(AND(ISNUMBER(AO5),AN5=TRUE),MAX(0,AO5-SUMIFS($AM$3:$AM4,AN$3:AN4,TRUE)),IF(AND(AN5=TRUE,ISNUMBER(AO5)=FALSE),"ERR","N/A")) -> N/A | AQ5: N/A | AR5: FALSE | AS5: N/A | AT5: =IF(AND(AR5=TRUE,ISNUMBER(AS5)),MAX(0,AS5-SUMIFS($AM$3:$AM4,AR$3:AR4,TRUE)),IF(AND(AR5=TRUE,ISNUMBER(AS5)=FALSE),"ERR","N/A")) -> N/A | AU5: N/A | AV5: FALSE | AW5: N/A | AX5: =IF(AND(AV5=TRUE,ISNUMBER(AW5)),MAX(0,AW5-SUMIFS($AM$3:$AM4,AV$3:AV4,TRUE)),IF(AND(AV5=TRUE,ISNUMBER(AW5)=FALSE),"ERR","N/A")) -> N/A | AY5: N/A | AZ5: FALSE | BA5: N/A | BB5: =IF(AND(AZ5=TRUE,ISNUMBER(BA5)),MAX(0,BA5-SUMIFS($AM$3:$AM4,AZ$3:AZ4,TRUE)),IF(AND(AZ5=TRUE,ISNUMBER(BA5)=FALSE),"ERR","N/A")) -> N/A | BC5: N/A | BD5: FALSE | BE5: N/A | BF5: =IF(AND(BD5=TRUE,ISNUMBER(BE5)=TRUE),MAX(0,BE5-SUMIFS(AM$3:AM4,BD$3:BD4,TRUE,F$3:F4,F5)),IF(AND(BD5=TRUE,ISNUMBER(BE5)=FALSE),"ERR","N/A")) -> N/A | BG5: N/A | BH5: 0 | BI5: =IF(OR(AB5="ERR",BH5="ERR"),"ERR",MIN(BH5,AB5)) -> 0 | BJ5: =IF(AND(L5="Yes",ISNUMBER(M5)),IF(OR(BI5="ERR",AB5="ERR"),"ERR",MAX($AB5-BI5,0)),"N/A") -> N/A | BK5: 0 | BL5: FALSE | BM5: N/A | BN5: =IF(BK5="ERR","ERR",IF(AND(BL5=TRUE,ISNUMBER(BM5)),MIN(BK5,BM5,BJ5),IF(AND(BL5=TRUE,ISNUMBER(BM5)=FALSE),"ERR","N/A"))) -> N/A | BO5: FALSE | BP5: N/A | BQ5: =IF(BK5="ERR","ERR",IF(AND(BO5=TRUE,ISNUMBER(BP5)=TRUE),MIN(BJ5,BK5*BP5),IF(AND(BO5=TRUE,ISNUMBER(BP5)=FALSE),"ERR","N/A"))) -> N/A | BR5: =IF(OR(BJ5="ERR",BN5="ERR",BQ5="ERR"),"ERR",MIN(BJ5,SUM(BN5,BQ5))) -> 0 | BS5: =IF(AND(L5="Yes",ISNUMBER(M5)),IF(OR(BJ5="ERR",BR5="ERR"),"ERR",MAX(BJ5-BR5,0)),"N/A") -> N/A | BT5: =IF(OR(BK5="ERR",BR5="ERR"),"ERR",MAX(BK5-BR5,0)) -> 0 | BU5: =IF(OR(BI5="ERR",BR5="ERR"),"ERR",SUM(BI5,BR5,Z5)) -> 0 | BV5: =IF(OR(AM5="ERR",BU5="ERR"),"ERR",MAX(S5+AA5+AM5-BI5-BR5,0)) -> 0 | BW5: 8.73 | BX5: 0 | BY5: =BI5 -> 0 | BZ5: 0 | CA5: =IF(BO5,BQ5,0) -> 0 | CB5: TRUE
A6: 3 | B6: 2016-01-03 | C6: 1 | D6: 3 | E6: OneTouch Delica Lancing Device | F6: Medical Supplies | G6: Not Covered | H6: 14.33 | I6: 14.33 | J6: 0 | K6: FALSE | L6: No | M6: . | N6: =IFERROR(IF(AND(L6="Yes",ISNUMBER(M6)),MAX(0,M6-SUMIFS(BU$3:BU5,L$3:L5,"Yes")),IF(OR(L6="No",M6="None"),"N/A","ERR")),"ERR") -> N/A | O6: FALSE | P6: =IF(O6,BENEFIT_PARAMETERS!$C$76,"N/A") -> N/A | Q6: =IF(P6="Yes", BENEFIT_PARAMETERS!$D$76,"N/A") -> N/A | R6: N/A | S6: 0 | T6: 0 | U6: FALSE | V6: =IF(O6,BENEFIT_PARAMETERS!$C$77,"N/A") -> N/A | W6: =IF(V6="Yes", BENEFIT_PARAMETERS!$D$77,"N/A") -> N/A | X6: =IF(O6,COUNTIF(Z$3:Z5,">0"),"N/A") -> N/A | Y6: N/A | Z6: N/A | AA6: 0 | AB6: N/A | AC6: 0 | AD6: FALSE | AE6: . | AF6: 0 | AG6: N/A | AH6: FALSE | AI6: . | AJ6: 0 | AK6: N/A | AL6: 0 | AM6: 0 | AN6: FALSE | AO6: N/A | AP6: =IF(AND(ISNUMBER(AO6),AN6=TRUE),MAX(0,AO6-SUMIFS($AM$3:$AM5,AN$3:AN5,TRUE)),IF(AND(AN6=TRUE,ISNUMBER(AO6)=FALSE),"ERR","N/A")) -> N/A | AQ6: N/A | AR6: FALSE | AS6: N/A | AT6: =IF(AND(AR6=TRUE,ISNUMBER(AS6)),MAX(0,AS6-SUMIFS($AM$3:$AM5,AR$3:AR5,TRUE)),IF(AND(AR6=TRUE,ISNUMBER(AS6)=FALSE),"ERR","N/A")) -> N/A | AU6: N/A | AV6: FALSE | AW6: N/A | AX6: =IF(AND(AV6=TRUE,ISNUMBER(AW6)),MAX(0,AW6-SUMIFS($AM$3:$AM5,AV$3:AV5,TRUE)),IF(AND(AV6=TRUE,ISNUMBER(AW6)=FALSE),"ERR","N/A")) -> N/A | AY6: N/A | AZ6: FALSE | BA6: N/A | BB6: =IF(AND(AZ6=TRUE,ISNUMBER(BA6)),MAX(0,BA6-SUMIFS($AM$3:$AM5,AZ$3:AZ5,TRUE)),IF(AND(AZ6=TRUE,ISNUMBER(BA6)=FALSE),"ERR","N/A")) -> N/A | BC6: N/A | BD6: FALSE | BE6: N/A | BF6: =IF(AND(BD6=TRUE,ISNUMBER(BE6)=TRUE),MAX(0,BE6-SUMIFS(AM$3:AM5,BD$3:BD5,TRUE,F$3:F5,F6)),IF(AND(BD6=TRUE,ISNUMBER(BE6)=FALSE),"ERR","N/A")) -> N/A | BG6: N/A | BH6: 0 | BI6: 0 | BJ6: N/A | BK6: 0 | BL6: FALSE | BM6: N/A | BN6: N/A | BO6: FALSE | BP6: N/A | BQ6: N/A | BR6: 0 | BS6: N/A | BT6: 0 | BU6: 0 | BV6: 0 | BW6: 14.33 | BX6: 0 | BY6: 0 | BZ6: 0 | CA6: 0 | CB6: TRUE
A7: 4 | B7: 2016-01-03 | C7: 1 | D7: 7 | E7: OneTouch Ultra 2 Blood Glucose Meter Kit | F7: Medical Supplies | G7: Not Covered | H7: 14.7 | I7: 14.7 | J7: 0 | K7: FALSE | L7: No | M7: . | N7: =IFERROR(IF(AND(L7="Yes",ISNUMBER(M7)),MAX(0,M7-SUMIFS(BU$3:BU6,L$3:L6,"Yes")),IF(OR(L7="No",M7="None"),"N/A","ERR")),"ERR") -> N/A | O7: FALSE | P7: =IF(O7,BENEFIT_PARAMETERS!$C$76,"N/A") -> N/A | Q7: =IF(P7="Yes", BENEFIT_PARAMETERS!$D$76,"N/A") -> N/A | R7: N/A | S7: 0 | T7: 0 | U7: FALSE | V7: =IF(O7,BENEFIT_PARAMETERS!$C$77,"N/A") -> N/A | W7: =IF(V7="Yes", BENEFIT_PARAMETERS!$D$77,"N/A") -> N/A | X7: =IF(O7,COUNTIF(Z$3:Z6,">0"),"N/A") -> N/A | Y7: N/A | Z7: N/A | AA7: 0 | AB7: N/A | AC7: 0 | AD7: FALSE | AE7: . | AF7: 0 | AG7: N/A | AH7: FALSE | AI7: . | AJ7: 0 | AK7: N/A | AL7: 0 | AM7: 0 | AN7: FALSE | AO7: N/A | AP7: =IF(AND(ISNUMBER(AO7),AN7=TRUE),MAX(0,AO7-SUMIFS($AM$3:$AM6,AN$3:AN6,TRUE)),IF(AND(AN7=TRUE,ISNUMBER(AO7)=FALSE),"ERR","N/A")) -> N/A | AQ7: N/A | AR7: FALSE | AS7: N/A | AT7: =IF(AND(AR7=TRUE,ISNUMBER(AS7)),MAX(0,AS7-SUMIFS($AM$3:$AM6,AR$3:AR6,TRUE)),IF(AND(AR7=TRUE,ISNUMBER(AS7)=FALSE),"ERR","N/A")) -> N/A | AU7: N/A | AV7: FALSE | AW7: N/A | AX7: =IF(AND(AV7=TRUE,ISNUMBER(AW7)),MAX(0,AW7-SUMIFS($AM$3:$AM6,AV$3:AV6,TRUE)),IF(AND(AV7=TRUE,ISNUMBER(AW7)=FALSE),"ERR","N/A")) -> N/A | AY7: N/A | AZ7: FALSE | BA7: N/A | BB7: =IF(AND(AZ7=TRUE,ISNUMBER(BA7)),MAX(0,BA7-SUMIFS($AM$3:$AM6,AZ$3:AZ6,TRUE)),IF(AND(AZ7=TRUE,ISNUMBER(BA7)=FALSE),"ERR","N/A")) -> N/A | BC7: N/A | BD7: FALSE | BE7: N/A | BF7: =IF(AND(BD7=TRUE,ISNUMBER(BE7)=TRUE),MAX(0,BE7-SUMIFS(AM$3:AM6,BD$3:BD6,TRUE,F$3:F6,F7)),IF(AND(BD7=TRUE,ISNUMBER(BE7)=FALSE),"ERR","N/A")) -> N/A | BG7: N/A | BH7: 0 | BI7: 0 | BJ7: N/A | BK7: 0 | BL7: FALSE | BM7: N/A | BN7: N/A | BO7: FALSE | BP7: N/A | BQ7: N/A | BR7: 0 | BS7: N/A | BT7: 0 | BU7: 0 | BV7: 0 | BW7: 14.7 | BX7: 0 | BY7: 0 | BZ7: 0 | CA7: 0 | CB7: TRUE
A8: 5 | B8: 2016-01-03 | C8: 1 | D8: 4 | E8: OneTouch Ultra Blue Test Strips (Rx - box of 100) [usage = 2 strips/day; 60 per month] | F8: Medical Supplies | G8: Not Covered | H8: 109.61 | I8: 109.61 | J8: 0 | K8: FALSE | L8: No | M8: . | N8: =IFERROR(IF(AND(L8="Yes",ISNUMBER(M8)),MAX(0,M8-SUMIFS(BU$3:BU7,L$3:L7,"Yes")),IF(OR(L8="No",M8="None"),"N/A","ERR")),"ERR") -> N/A | O8: FALSE | P8: =IF(O8,BENEFIT_PARAMETERS!$C$76,"N/A") -> N/A | Q8: =IF(P8="Yes", BENEFIT_PARAMETERS!$D$76,"N/A") -> N/A | R8: N/A | S8: 0 | T8: 0 | U8: FALSE | V8: =IF(O8,BENEFIT_PARAMETERS!$C$77,"N/A") -> N/A | W8: =IF(V8="Yes", BENEFIT_PARAMETERS!$D$77,"N/A") -> N/A | X8: =IF(O8,COUNTIF(Z$3:Z7,">0"),"N/A") -> N/A | Y8: N/A | Z8: N/A | AA8: 0 | AB8: N/A | AC8: 0 | AD8: FALSE | AE8: . | AF8: 0 | AG8: N/A | AH8: FALSE | AI8: . | AJ8: 0 | AK8: N/A | AL8: 0 | AM8: 0 | AN8: FALSE | AO8: N/A | AP8: =IF(AND(ISNUMBER(AO8),AN8=TRUE),MAX(0,AO8-SUMIFS($AM$3:$AM7,AN$3:AN7,TRUE)),IF(AND(AN8=TRUE,ISNUMBER(AO8)=FALSE),"ERR","N/A")) -> N/A | AQ8: N/A | AR8: FALSE | AS8: N/A | AT8: =IF(AND(AR8=TRUE,ISNUMBER(AS8)),MAX(0,AS8-SUMIFS($AM$3:$AM7,AR$3:AR7,TRUE)),IF(AND(AR8=TRUE,ISNUMBER(AS8)=FALSE),"ERR","N/A")) -> N/A | AU8: N/A | AV8: FALSE | AW8: N/A | AX8: =IF(AND(AV8=TRUE,ISNUMBER(AW8)),MAX(0,AW8-SUMIFS($AM$3:$AM7,AV$3:AV7,TRUE)),IF(AND(AV8=TRUE,ISNUMBER(AW8)=FALSE),"ERR","N/A")) -> N/A | AY8: N/A | AZ8: FALSE | BA8: N/A | BB8: =IF(AND(AZ8=TRUE,ISNUMBER(BA8)),MAX(0,BA8-SUMIFS($AM$3:$AM7,AZ$3:AZ7,TRUE)),IF(AND(AZ8=TRUE,ISNUMBER(BA8)=FALSE),"ERR","N/A")) -> N/A | BC8: N/A | BD8: FALSE | BE8: N/A | BF8: =IF(AND(BD8=TRUE,ISNUMBER(BE8)=TRUE),MAX(0,BE8-SUMIFS(AM$3:AM7,BD$3:BD7,TRUE,F$3:F7,F8)),IF(AND(BD8=TRUE,ISNUMBER(BE8)=FALSE),"ERR","N/A")) -> N/A | BG8: N/A | BH8: 0 | BI8: 0 | BJ8: N/A | BK8: 0 | BL8: FALSE | BM8: N/A | BN8: N/A | BO8: FALSE | BP8: N/A | BQ8: N/A | BR8: 0 | BS8: N/A | BT8: 0 | BU8: 0 | BV8: 0 | BW8: 109.61 | BX8: 0 | BY8: 0 | BZ8: 0 | CA8: 0 | CB8: TRUE
A9: 6 | B9: 2016-01-03 | C9: 1 | D9: 6 | E9: OneTouch Ultra Control Solution (2 vials/box) | F9: Medical Supplies | G9: Not Covered | H9: 6.63 | I9: 6.63 | J9: 0 | K9: FALSE | L9: No | M9: . | N9: =IFERROR(IF(AND(L9="Yes",ISNUMBER(M9)),MAX(0,M9-SUMIFS(BU$3:BU8,L$3:L8,"Yes")),IF(OR(L9="No",M9="None"),"N/A","ERR")),"ERR") -> N/A | O9: FALSE | P9: =IF(O9,BENEFIT_PARAMETERS!$C$76,"N/A") -> N/A | Q9: =IF(P9="Yes", BENEFIT_PARAMETERS!$D$76,"N/A") -> N/A | R9: N/A | S9: 0 | T9: 0 | U9: FALSE | V9: =IF(O9,BENEFIT_PARAMETERS!$C$77,"N/A") -> N/A | W9: =IF(V9="Yes", BENEFIT_PARAMETERS!$D$77,"N/A") -> N/A | X9: =IF(O9,COUNTIF(Z$3:Z8,">0"),"N/A") -> N/A | Y9: N/A | Z9: N/A | AA9: 0 | AB9: N/A | AC9: 0 | AD9: FALSE | AE9: . | AF9: 0 | AG9: N/A | AH9: FALSE | AI9: . | AJ9: 0 | AK9: N/A | AL9: 0 | AM9: 0 | AN9: FALSE | AO9: N/A | AP9: =IF(AND(ISNUMBER(AO9),AN9=TRUE),MAX(0,AO9-SUMIFS($AM$3:$AM8,AN$3:AN8,TRUE)),IF(AND(AN9=TRUE,ISNUMBER(AO9)=FALSE),"ERR","N/A")) -> N/A | AQ9: N/A | AR9: FALSE | AS9: N/A | AT9: =IF(AND(AR9=TRUE,ISNUMBER(AS9)),MAX(0,AS9-SUMIFS($AM$3:$AM8,AR$3:AR8,TRUE)),IF(AND(AR9=TRUE,ISNUMBER(AS9)=FALSE),"ERR","N/A")) -> N/A | AU9: N/A | AV9: FALSE | AW9: N/A | AX9: =IF(AND(AV9=TRUE,ISNUMBER(AW9)),MAX(0,AW9-SUMIFS($AM$3:$AM8,AV$3:AV8,TRUE)),IF(AND(AV9=TRUE,ISNUMBER(AW9)=FALSE),"ERR","N/A")) -> N/A | AY9: N/A | AZ9: FALSE | BA9: N/A | BB9: =IF(AND(AZ9=TRUE,ISNUMBER(BA9)),MAX(0,BA9-SUMIFS($AM$3:$AM8,AZ$3:AZ8,TRUE)),IF(AND(AZ9=TRUE,ISNUMBER(BA9)=FALSE),"ERR","N/A")) -> N/A | BC9: N/A | BD9: FALSE | BE9: N/A | BF9: =IF(AND(BD9=TRUE,ISNUMBER(BE9)=TRUE),MAX(0,BE9-SUMIFS(AM$3:AM8,BD$3:BD8,TRUE,F$3:F8,F9)),IF(AND(BD9=TRUE,ISNUMBER(BE9)=FALSE),"ERR","N/A")) -> N/A | BG9: N/A | BH9: 0 | BI9: 0 | BJ9: N/A | BK9: 0 | BL9: FALSE | BM9: N/A | BN9: N/A | BO9: FALSE | BP9: N/A | BQ9: N/A | BR9: 0 | BS9: N/A | BT9: 0 | BU9: 0 | BV9: 0 | BW9: 6.63 | BX9: 0 | BY9: 0 | BZ9: 0 | CA9: 0 | CB9: TRUE
A10: 7 | B10: 2016-01-03 | C10: 1 | D10: 26 | E10: Aspirin 81mg (OTC - bottle 100) [usage = 1 QD; #30 pills per month] | F10: Over-the-counter Drugs | G10: Not Covered | H10: 4.47 | I10: 4.47 | J10: 0 | K10: FALSE | L10: No | M10: . | N10: =IFERROR(IF(AND(L10="Yes",ISNUMBER(M10)),MAX(0,M10-SUMIFS(BU$3:BU9,L$3:L9,"Yes")),IF(OR(L10="No",M10="None"),"N/A","ERR")),"ERR") -> N/A | O10: FALSE | P10: =IF(O10,BENEFIT_PARAMETERS!$C$76,"N/A") -> N/A | Q10: =IF(P10="Yes", BENEFIT_PARAMETERS!$D$76,"N/A") -> N/A | R10: N/A | S10: 0 | T10: 0 | U10: FALSE | V10: =IF(O10,BENEFIT_PARAMETERS!$C$77,"N/A") -> N/A | W10: =IF(V10="Yes", BENEFIT_PARAMETERS!$D$77,"N/A") -> N/A | X10: =IF(O10,COUNTIF(Z$3:Z9,">0"),"N/A") -> N/A | Y10: N/A | Z10: N/A | AA10: 0 | AB10: N/A | AC10: 0 | AD10: FALSE | AE10: . | AF10: 0 | AG10: N/A | AH10: FALSE | AI10: . | AJ10: 0 | AK10: N/A | AL10: 0 | AM10: 0 | AN10: FALSE | AO10: N/A | AP10: =IF(AND(ISNUMBER(AO10),AN10=TRUE),MAX(0,AO10-SUMIFS($AM$3:$AM9,AN$3:AN9,TRUE)),IF(AND(AN10=TRUE,ISNUMBER(AO10)=FALSE),"ERR","N/A")) -> N/A | AQ10: N/A | AR10: FALSE | AS10: N/A | AT10: =IF(AND(AR10=TRUE,ISNUMBER(AS10)),MAX(0,AS10-SUMIFS($AM$3:$AM9,AR$3:AR9,TRUE)),IF(AND(AR10=TRUE,ISNUMBER(AS10)=FALSE),"ERR","N/A")) -> N/A | AU10: N/A | AV10: FALSE | AW10: N/A | AX10: =IF(AND(AV10=TRUE,ISNUMBER(AW10)),MAX(0,AW10-SUMIFS($AM$3:$AM9,AV$3:AV9,TRUE)),IF(AND(AV10=TRUE,ISNUMBER(AW10)=FALSE),"ERR","N/A")) -> N/A | AY10: N/A | AZ10: FALSE | BA10: N/A | BB10: =IF(AND(AZ10=TRUE,ISNUMBER(BA10)),MAX(0,BA10-SUMIFS($AM$3:$AM9,AZ$3:AZ9,TRUE)),IF(AND(AZ10=TRUE,ISNUMBER(BA10)=FALSE),"ERR","N/A")) -> N/A | BC10: N/A | BD10: FALSE | BE10: N/A | BF10: =IF(AND(BD10=TRUE,ISNUMBER(BE10)=TRUE),MAX(0,BE10-SUMIFS(AM$3:AM9,BD$3:BD9,TRUE,F$3:F9,F10)),IF(AND(BD10=TRUE,ISNUMBER(BE10)=FALSE),"ERR","N/A")) -> N/A | BG10: N/A | BH10: 0 | BI10: 0 | BJ10: N/A | BK10: 0 | BL10: FALSE | BM10: N/A | BN10: N/A | BO10: FALSE | BP10: N/A | BQ10: N/A | BR10: 0 | BS10: N/A | BT10: 0 | BU10: 0 | BV10: 0 | BW10: 4.47 | BX10: 0 | BY10: 0 | BZ10: 0 | CA10: 0 | CB10: TRUE
A11: 8 | B11: 2016-01-03 | C11: 1 | D11: 1 | E11: Glucagon Emergency Kit | F11: Prescription Drugs: Generic | G11: Not Covered | H11: 241.05 | I11: 241.05 | J11: 0 | K11: FALSE | L11: No | M11: . | N11: =IFERROR(IF(AND(L11="Yes",ISNUMBER(M11)),MAX(0,M11-SUMIFS(BU$3:BU10,L$3:L10,"Yes")),IF(OR(L11="No",M11="None"),"N/A","ERR")),"ERR") -> N/A | O11: FALSE | P11: =IF(O11,BENEFIT_PARAMETERS!$C$76,"N/A") -> N/A | Q11: =IF(P11="Yes", BENEFIT_PARAMETERS!$D$76,"N/A") -> N/A | R11: N/A | S11: 0 | T11: 0 | U11: FALSE | V11: =IF(O11,BENEFIT_PARAMETERS!$C$77,"N/A") -> N/A | W11: =IF(V11="Yes", BENEFIT_PARAMETERS!$D$77,"N/A") -> N/A | X11: =IF(O11,COUNTIF(Z$3:Z10,">0"),"N/A") -> N/A | Y11: N/A | Z11: N/A | AA11: 0 | AB11: N/A | AC11: 0 | AD11: FALSE | AE11: . | AF11: 0 | AG11: N/A | AH11: FALSE | AI11: . | AJ11: 0 | AK11: N/A | AL11: 0 | AM11: 0 | AN11: FALSE | AO11: N/A | AP11: =IF(AND(ISNUMBER(AO11),AN11=TRUE),MAX(0,AO11-SUMIFS($AM$3:$AM10,AN$3:AN10,TRUE)),IF(AND(AN11=TRUE,ISNUMBER(AO11)=FALSE),"ERR","N/A")) -> N/A | AQ11: N/A | AR11: FALSE | AS11: N/A | AT11: =IF(AND(AR11=TRUE,ISNUMBER(AS11)),MAX(0,AS11-SUMIFS($AM$3:$AM10,AR$3:AR10,TRUE)),IF(AND(AR11=TRUE,ISNUMBER(AS11)=FALSE),"ERR","N/A")) -> N/A | AU11: N/A | AV11: FALSE | AW11: N/A | AX11: =IF(AND(AV11=TRUE,ISNUMBER(AW11)),MAX(0,AW11-SUMIFS($AM$3:$AM10,AV$3:AV10,TRUE)),IF(AND(AV11=TRUE,ISNUMBER(AW11)=FALSE),"ERR","N/A")) -> N/A | AY11: N/A | AZ11: FALSE | BA11: N/A | BB11: =IF(AND(AZ11=TRUE,ISNUMBER(BA11)),MAX(0,BA11-SUMIFS($AM$3:$AM10,AZ$3:AZ10,TRUE)),IF(AND(AZ11=TRUE,ISNUMBER(BA11)=FALSE),"ERR","N/A")) -> N/A | BC11: N/A | BD11: FALSE | BE11: N/A | BF11: =IF(AND(BD11=TRUE,ISNUMBER(BE11)=TRUE),MAX(0,BE11-SUMIFS(AM$3:AM10,BD$3:BD10,TRUE,F$3:F10,F11)),IF(AND(BD11=TRUE,ISNUMBER(BE11)=FALSE),"ERR","N/A")) -> N/A | BG11: N/A | BH11: 0 | BI11: 0 | BJ11: N/A | BK11: 0 | BL11: FALSE | BM11: N/A | BN11: N/A | BO11: FALSE | BP11: N/A | BQ11: N/A | BR11: 0 | BS11: N/A | BT11: 0 | BU11: 0 | BV11: 0 | BW11: 241.05 | BX11: 0 | BY11: 0 | BZ11: 0 | CA11: 0 | CB11: TRUE
A12: 9 | B12: 2016-01-03 | C12: 1 | D12: 17 | E12: Insulin glargine 100 unit/ml injectable solution (Rx - 10ml vial) [20 units QD; expires 28 days after first use] | F12: Prescription Drugs: Insulin | G12: Not Covered | H12: 240.37 | I12: 240.37 | J12: 0 | K12: FALSE | L12: No | M12: . | N12: =IFERROR(IF(AND(L12="Yes",ISNUMBER(M12)),MAX(0,M12-SUMIFS(BU$3:BU11,L$3:L11,"Yes")),IF(OR(L12="No",M12="None"),"N/A","ERR")),"ERR") -> N/A | O12: FALSE | P12: =IF(O12,BENEFIT_PARAMETERS!$C$76,"N/A") -> N/A | Q12: =IF(P12="Yes", BENEFIT_PARAMETERS!$D$76,"N/A") -> N/A | R12: N/A | S12: 0 | T12: 0 | U12: FALSE | V12: =IF(O12,BENEFIT_PARAMETERS!$C$77,"N/A") -> N/A | W12: =IF(V12="Yes", BENEFIT_PARAMETERS!$D$77,"N/A") -> N/A | X12: =IF(O12,COUNTIF(Z$3:Z11,">0"),"N/A") -> N/A | Y12: N/A | Z12: N/A | AA12: 0 | AB12: N/A | AC12: 0 | AD12: FALSE | AE12: . | AF12: 0 | AG12: N/A | AH12: FALSE | AI12: . | AJ12: 0 | AK12: N/A | AL12: 0 | AM12: 0 | AN12: FALSE | AO12: N/A | AP12: =IF(AND(ISNUMBER(AO12),AN12=TRUE),MAX(0,AO12-SUMIFS($AM$3:$AM11,AN$3:AN11,TRUE)),IF(AND(AN12=TRUE,ISNUMBER(AO12)=FALSE),"ERR","N/A")) -> N/A | AQ12: N/A | AR12: FALSE | AS12: N/A | AT12: =IF(AND(AR12=TRUE,ISNUMBER(AS12)),MAX(0,AS12-SUMIFS($AM$3:$AM11,AR$3:AR11,TRUE)),IF(AND(AR12=TRUE,ISNUMBER(AS12)=FALSE),"ERR","N/A")) -> N/A | AU12: N/A | AV12: FALSE | AW12: N/A | AX12: =IF(AND(AV12=TRUE,ISNUMBER(AW12)),MAX(0,AW12-SUMIFS($AM$3:$AM11,AV$3:AV11,TRUE)),IF(AND(AV12=TRUE,ISNUMBER(AW12)=FALSE),"ERR","N/A")) -> N/A | AY12: N/A | AZ12: FALSE | BA12: N/A | BB12: =IF(AND(AZ12=TRUE,ISNUMBER(BA12)),MAX(0,BA12-SUMIFS($AM$3:$AM11,AZ$3:AZ11,TRUE)),IF(AND(AZ12=TRUE,ISNUMBER(BA12)=FALSE),"ERR","N/A")) -> N/A | BC12: N/A | BD12: FALSE | BE12: N/A | BF12: =IF(AND(BD12=TRUE,ISNUMBER(BE12)=TRUE),MAX(0,BE12-SUMIFS(AM$3:AM11,BD$3:BD11,TRUE,F$3:F11,F12)),IF(AND(BD12=TRUE,ISNUMBER(BE12)=FALSE),"ERR","N/A")) -> N/A | BG12: N/A | BH12: 0 | BI12: 0 | BJ12: N/A | BK12: 0 | BL12: FALSE | BM12: N/A | BN12: N/A | BO12: FALSE | BP12: N/A | BQ12: N/A | BR12: 0 | BS12: N/A | BT12: 0 | BU12: 0 | BV12: 0 | BW12: 240.37 | BX12: 0 | BY12: 0 | BZ12: 0 | CA12: 0 | CB12: TRUE
A13: 10 | B13: 2016-01-03 | C13: 1 | D13: 32 | E13: Metformin Hydrochloride 500 MG TABLET [ #60 pills/month] | F13: Prescription Drugs: Generic | G13: Not Covered | H13: 3.21 | I13: 3.21 | J13: 0 | K13: FALSE | L13: No | M13: . | N13: =IFERROR(IF(AND(L13="Yes",ISNUMBER(M13)),MAX(0,M13-SUMIFS(BU$3:BU12,L$3:L12,"Yes")),IF(OR(L13="No",M13="None"),"N/A","ERR")),"ERR") -> N/A | O13: FALSE | P13: =IF(O13,BENEFIT_PARAMETERS!$C$76,"N/A") -> N/A | Q13: =IF(P13="Yes", BENEFIT_PARAMETERS!$D$76,"N/A") -> N/A | R13: N/A | S13: 0 | T13: 0 | U13: FALSE | V13: =IF(O13,BENEFIT_PARAMETERS!$C$77,"N/A") -> N/A | W13: =IF(V13="Yes", BENEFIT_PARAMETERS!$D$77,"N/A") -> N/A | X13: =IF(O13,COUNTIF(Z$3:Z12,">0"),"N/A") -> N/A | Y13: N/A | Z13: N/A | AA13: 0 | AB13: N/A | AC13: 0 | AD13: FALSE | AE13: . | AF13: 0 | AG13: N/A | AH13: FALSE | AI13: . | AJ13: 0 | AK13: N/A | AL13: 0 | AM13: 0 | AN13: FALSE | AO13: N/A | AP13: =IF(AND(ISNUMBER(AO13),AN13=TRUE),MAX(0,AO13-SUMIFS($AM$3:$AM12,AN$3:AN12,TRUE)),IF(AND(AN13=TRUE,ISNUMBER(AO13)=FALSE),"ERR","N/A")) -> N/A | AQ13: N/A | AR13: FALSE | AS13: N/A | AT13: =IF(AND(AR13=TRUE,ISNUMBER(AS13)),MAX(0,AS13-SUMIFS($AM$3:$AM12,AR$3:AR12,TRUE)),IF(AND(AR13=TRUE,ISNUMBER(AS13)=FALSE),"ERR","N/A")) -> N/A | AU13: N/A | AV13: FALSE | AW13: N/A | AX13: =IF(AND(AV13=TRUE,ISNUMBER(AW13)),MAX(0,AW13-SUMIFS($AM$3:$AM12,AV$3:AV12,TRUE)),IF(AND(AV13=TRUE,ISNUMBER(AW13)=FALSE),"ERR","N/A")) -> N/A | AY13: N/A | AZ13: FALSE | BA13: N/A | BB13: =IF(AND(AZ13=TRUE,ISNUMBER(BA13)),MAX(0,BA13-SUMIFS($AM$3:$AM12,AZ$3:AZ12,TRUE)),IF(AND(AZ13=TRUE,ISNUMBER(BA13)=FALSE),"ERR","N/A")) -> N/A | BC13: N/A | BD13: FALSE | BE13: N/A | BF13: =IF(AND(BD13=TRUE,ISNUMBER(BE13)=TRUE),MAX(0,BE13-SUMIFS(AM$3:AM12,BD$3:BD12,TRUE,F$3:F12,F13)),IF(AND(BD13=TRUE,ISNUMBER(BE13)=FALSE),"ERR","N/A")) -> N/A | BG13: N/A | BH13: 0 | BI13: 0 | BJ13: N/A | BK13: 0 | BL13: FALSE | BM13: N/A | BN13: N/A | BO13: FALSE | BP13: N/A | BQ13: N/A | BR13: 0 | BS13: N/A | BT13: 0 | BU13: 0 | BV13: 0 | BW13: 3.21 | BX13: 0 | BY13: 0 | BZ13: 0 | CA13: 0 | CB13: TRUE
A14: 11 | B14: 2016-01-03 | C14: 1 | D14: 19 | E14: Lisinopril 20mg (Rx) [1 QD; #30 pills/month] | F14: Prescription Drugs: Generic | G14: Not Covered | H14: 3.38 | I14: 3.38 | J14: 0 | K14: FALSE | L14: No | M14: . | N14: =IFERROR(IF(AND(L14="Yes",ISNUMBER(M14)),MAX(0,M14-SUMIFS(BU$3:BU13,L$3:L13,"Yes")),IF(OR(L14="No",M14="None"),"N/A","ERR")),"ERR") -> N/A | O14: FALSE | P14: =IF(O14,BENEFIT_PARAMETERS!$C$76,"N/A") -> N/A | Q14: =IF(P14="Yes", BENEFIT_PARAMETERS!$D$76,"N/A") -> N/A | R14: N/A | S14: 0 | T14: 0 | U14: FALSE | V14: =IF(O14,BENEFIT_PARAMETERS!$C$77,"N/A") -> N/A | W14: =IF(V14="Yes", BENEFIT_PARAMETERS!$D$77,"N/A") -> N/A | X14: =IF(O14,COUNTIF(Z$3:Z13,">0"),"N/A") -> N/A | Y14: N/A | Z14: N/A | AA14: 0 | AB14: N/A | AC14: 0 | AD14: FALSE | AE14: . | AF14: 0 | AG14: N/A | AH14: FALSE | AI14: . | AJ14: 0 | AK14: N/A | AL14: 0 | AM14: 0 | AN14: FALSE | AO14: N/A | AP14: =IF(AND(ISNUMBER(AO14),AN14=TRUE),MAX(0,AO14-SUMIFS($AM$3:$AM13,AN$3:AN13,TRUE)),IF(AND(AN14=TRUE,ISNUMBER(AO14)=FALSE),"ERR","N/A")) -> N/A | AQ14: N/A | AR14: FALSE | AS14: N/A | AT14: =IF(AND(AR14=TRUE,ISNUMBER(AS14)),MAX(0,AS14-SUMIFS($AM$3:$AM13,AR$3:AR13,TRUE)),IF(AND(AR14=TRUE,ISNUMBER(AS14)=FALSE),"ERR","N/A")) -> N/A | AU14: N/A | AV14: FALSE | AW14: N/A | AX14: =IF(AND(AV14=TRUE,ISNUMBER(AW14)),MAX(0,AW14-SUMIFS($AM$3:$AM13,AV$3:AV13,TRUE)),IF(AND(AV14=TRUE,ISNUMBER(AW14)=FALSE),"ERR","N/A")) -> N/A | AY14: N/A | AZ14: FALSE | BA14: N/A | BB14: =IF(AND(AZ14=TRUE,ISNUMBER(BA14)),MAX(0,BA14-SUMIFS($AM$3:$AM13,AZ$3:AZ13,TRUE)),IF(AND(AZ14=TRUE,ISNUMBER(BA14)=FALSE),"ERR","N/A")) -> N/A | BC14: N/A | BD14: FALSE | BE14: N/A | BF14: =IF(AND(BD14=TRUE,ISNUMBER(BE14)=TRUE),MAX(0,BE14-SUMIFS(AM$3:AM13,BD$3:BD13,TRUE,F$3:F13,F14)),IF(AND(BD14=TRUE,ISNUMBER(BE14)=FALSE),"ERR","N/A")) -> N/A | BG14: N/A | BH14: 0 | BI14: 0 | BJ14: N/A | BK14: 0 | BL14: FALSE | BM14: N/A | BN14: N/A | BO14: FALSE | BP14: N/A | BQ14: N/A | BR14: 0 | BS14: N/A | BT14: 0 | BU14: 0 | BV14: 0 | BW14: 3.38 | BX14: 0 | BY14: 0 | BZ14: 0 | CA14: 0 | CB14: TRUE
A15: 12 | B15: 2016-01-03 | C15: 1 | D15: 33 | E15: Atorvastatin 40 MG tablet 90 CT [ #30 pills/month] | F15: Prescription Drugs: Generic | G15: Not Covered | H15: 9.66 | I15: 9.66 | J15: 0 | K15: FALSE | L15: No | M15: . | N15: =IFERROR(IF(AND(L15="Yes",ISNUMBER(M15)),MAX(0,M15-SUMIFS(BU$3:BU14,L$3:L14,"Yes")),IF(OR(L15="No",M15="None"),"N/A","ERR")),"ERR") -> N/A | O15: FALSE | P15: =IF(O15,BENEFIT_PARAMETERS!$C$76,"N/A") -> N/A | Q15: =IF(P15="Yes", BENEFIT_PARAMETERS!$D$76,"N/A") -> N/A | R15: N/A | S15: 0 | T15: 0 | U15: FALSE | V15: =IF(O15,BENEFIT_PARAMETERS!$C$77,"N/A") -> N/A | W15: =IF(V15="Yes", BENEFIT_PARAMETERS!$D$77,"N/A") -> N/A | X15: =IF(O15,COUNTIF(Z$3:Z14,">0"),"N/A") -> N/A | Y15: N/A | Z15: N/A | AA15: 0 | AB15: N/A | AC15: 0 | AD15: FALSE | AE15: . | AF15: 0 | AG15: N/A | AH15: FALSE | AI15: . | AJ15: 0 | AK15: N/A | AL15: 0 | AM15: 0 | AN15: FALSE | AO15: N/A | AP15: =IF(AND(ISNUMBER(AO15),AN15=TRUE),MAX(0,AO15-SUMIFS($AM$3:$AM14,AN$3:AN14,TRUE)),IF(AND(AN15=TRUE,ISNUMBER(AO15)=FALSE),"ERR","N/A")) -> N/A | AQ15: N/A | AR15: FALSE | AS15: N/A | AT15: =IF(AND(AR15=TRUE,ISNUMBER(AS15)),MAX(0,AS15-SUMIFS($AM$3:$AM14,AR$3:AR14,TRUE)),IF(AND(AR15=TRUE,ISNUMBER(AS15)=FALSE),"ERR","N/A")) -> N/A | AU15: N/A | AV15: FALSE | AW15: N/A | AX15: =IF(AND(AV15=TRUE,ISNUMBER(AW15)),MAX(0,AW15-SUMIFS($AM$3:$AM14,AV$3:AV14,TRUE)),IF(AND(AV15=TRUE,ISNUMBER(AW15)=FALSE),"ERR","N/A")) -> N/A | AY15: N/A | AZ15: FALSE | BA15: N/A | BB15: =IF(AND(AZ15=TRUE,ISNUMBER(BA15)),MAX(0,BA15-SUMIFS($AM$3:$AM14,AZ$3:AZ14,TRUE)),IF(AND(AZ15=TRUE,ISNUMBER(BA15)=FALSE),"ERR","N/A")) -> N/A | BC15: N/A | BD15: FALSE | BE15: N/A | BF15: =IF(AND(BD15=TRUE,ISNUMBER(BE15)=TRUE),MAX(0,BE15-SUMIFS(AM$3:AM14,BD$3:BD14,TRUE,F$3:F14,F15)),IF(AND(BD15=TRUE,ISNUMBER(BE15)=FALSE),"ERR","N/A")) -> N/A | BG15: N/A | BH15: 0 | BI15: 0 | BJ15: N/A | BK15: 0 | BL15: FALSE | BM15: N/A | BN15: N/A | BO15: FALSE | BP15: N/A | BQ15: N/A | BR15: 0 | BS15: N/A | BT15: 0 | BU15: 0 | BV15: 0 | BW15: 9.66 | BX15: 0 | BY15: 0 | BZ15: 0 | CA15: 0 | CB15: TRUE
A16: 13 | B16: 2016-01-03 | C16: 1 | D16: 13 | E16: Assay of Urine Creatinine | F16: Diagnostic Services: Laboratory | G16: Not Covered | H16: 9.53 | I16: 9.53 | J16: 0 | K16: FALSE | L16: No | M16: . | N16: =IFERROR(IF(AND(L16="Yes",ISNUMBER(M16)),MAX(0,M16-SUMIFS(BU$3:BU15,L$3:L15,"Yes")),IF(OR(L16="No",M16="None"),"N/A","ERR")),"ERR") -> N/A | O16: FALSE | P16: =IF(O16,BENEFIT_PARAMETERS!$C$76,"N/A") -> N/A | Q16: =IF(P16="Yes", BENEFIT_PARAMETERS!$D$76,"N/A") -> N/A | R16: N/A | S16: 0 | T16: 0 | U16: FALSE | V16: =IF(O16,BENEFIT_PARAMETERS!$C$77,"N/A") -> N/A | W16: =IF(V16="Yes", BENEFIT_PARAMETERS!$D$77,"N/A") -> N/A | X16: =IF(O16,COUNTIF(Z$3:Z15,">0"),"N/A") -> N/A | Y16: N/A | Z16: N/A | AA16: 0 | AB16: N/A | AC16: 0 | AD16: FALSE | AE16: . | AF16: 0 | AG16: N/A | AH16: FALSE | AI16: . | AJ16: 0 | AK16: N/A | AL16: 0 | AM16: 0 | AN16: FALSE | AO16: N/A | AP16: =IF(AND(ISNUMBER(AO16),AN16=TRUE),MAX(0,AO16-SUMIFS($AM$3:$AM15,AN$3:AN15,TRUE)),IF(AND(AN16=TRUE,ISNUMBER(AO16)=FALSE),"ERR","N/A")) -> N/A | AQ16: N/A | AR16: FALSE | AS16: N/A | AT16: =IF(AND(AR16=TRUE,ISNUMBER(AS16)),MAX(0,AS16-SUMIFS($AM$3:$AM15,AR$3:AR15,TRUE)),IF(AND(AR16=TRUE,ISNUMBER(AS16)=FALSE),"ERR","N/A")) -> N/A | AU16: N/A | AV16: FALSE | AW16: N/A | AX16: =IF(AND(AV16=TRUE,ISNUMBER(AW16)),MAX(0,AW16-SUMIFS($AM$3:$AM15,AV$3:AV15,TRUE)),IF(AND(AV16=TRUE,ISNUMBER(AW16)=FALSE),"ERR","N/A")) -> N/A | AY16: N/A | AZ16: FALSE | BA16: N/A | BB16: =IF(AND(AZ16=TRUE,ISNUMBER(BA16)),MAX(0,BA16-SUMIFS($AM$3:$AM15,AZ$3:AZ15,TRUE)),IF(AND(AZ16=TRUE,ISNUMBER(BA16)=FALSE),"ERR","N/A")) -> N/A | BC16: N/A | BD16: FALSE | BE16: N/A | BF16: =IF(AND(BD16=TRUE,ISNUMBER(BE16)=TRUE),MAX(0,BE16-SUMIFS(AM$3:AM15,BD$3:BD15,TRUE,F$3:F15,F16)),IF(AND(BD16=TRUE,ISNUMBER(BE16)=FALSE),"ERR","N/A")) -> N/A | BG16: N/A | BH16: 0 | BI16: 0 | BJ16: N/A | BK16: 0 | BL16: FALSE | BM16: N/A | BN16: N/A | BO16: FALSE | BP16: N/A | BQ16: N/A | BR16: 0 | BS16: N/A | BT16: 0 | BU16: 0 | BV16: 0 | BW16: 9.53 | BX16: 0 | BY16: 0 | BZ16: 0 | CA16: 0 | CB16: TRUE
A17: 14 | B17: 2016-01-03 | C17: 1 | D17: 8 | E17: Comprehen Metabolic Panel | F17: Diagnostic Services: Laboratory | G17: Not Covered | H17: 29.63 | I17: 29.63 | J17: 0 | K17: FALSE | L17: No | M17: . | N17: =IFERROR(IF(AND(L17="Yes",ISNUMBER(M17)),MAX(0,M17-SUMIFS(BU$3:BU16,L$3:L16,"Yes")),IF(OR(L17="No",M17="None"),"N/A","ERR")),"ERR") -> N/A | O17: FALSE | P17: =IF(O17,BENEFIT_PARAMETERS!$C$76,"N/A") -> N/A | Q17: =IF(P17="Yes", BENEFIT_PARAMETERS!$D$76,"N/A") -> N/A | R17: N/A | S17: 0 | T17: 0 | U17: FALSE | V17: =IF(O17,BENEFIT_PARAMETERS!$C$77,"N/A") -> N/A | W17: =IF(V17="Yes", BENEFIT_PARAMETERS!$D$77,"N/A") -> N/A | X17: =IF(O17,COUNTIF(Z$3:Z16,">0"),"N/A") -> N/A | Y17: N/A | Z17: N/A | AA17: 0 | AB17: N/A | AC17: 0 | AD17: FALSE | AE17: . | AF17: 0 | AG17: N/A | AH17: FALSE | AI17: . | AJ17: 0 | AK17: N/A | AL17: 0 | AM17: 0 | AN17: FALSE | AO17: N/A | AP17: =IF(AND(ISNUMBER(AO17),AN17=TRUE),MAX(0,AO17-SUMIFS($AM$3:$AM16,AN$3:AN16,TRUE)),IF(AND(AN17=TRUE,ISNUMBER(AO17)=FALSE),"ERR","N/A")) -> N/A | AQ17: N/A | AR17: FALSE | AS17: N/A | AT17: =IF(AND(AR17=TRUE,ISNUMBER(AS17)),MAX(0,AS17-SUMIFS($AM$3:$AM16,AR$3:AR16,TRUE)),IF(AND(AR17=TRUE,ISNUMBER(AS17)=FALSE),"ERR","N/A")) -> N/A | AU17: N/A | AV17: FALSE | AW17: N/A | AX17: =IF(AND(AV17=TRUE,ISNUMBER(AW17)),MAX(0,AW17-SUMIFS($AM$3:$AM16,AV$3:AV16,TRUE)),IF(AND(AV17=TRUE,ISNUMBER(AW17)=FALSE),"ERR","N/A")) -> N/A | AY17: N/A | AZ17: FALSE | BA17: N/A | BB17: =IF(AND(AZ17=TRUE,ISNUMBER(BA17)),MAX(0,BA17-SUMIFS($AM$3:$AM16,AZ$3:AZ16,TRUE)),IF(AND(AZ17=TRUE,ISNUMBER(BA17)=FALSE),"ERR","N/A")) -> N/A | BC17: N/A | BD17: FALSE | BE17: N/A | BF17: =IF(AND(BD17=TRUE,ISNUMBER(BE17)=TRUE),MAX(0,BE17-SUMIFS(AM$3:AM16,BD$3:BD16,TRUE,F$3:F16,F17)),IF(AND(BD17=TRUE,ISNUMBER(BE17)=FALSE),"ERR","N/A")) -> N/A | BG17: N/A | BH17: 0 | BI17: 0 | BJ17: N/A | BK17: 0 | BL17: FALSE | BM17: N/A | BN17: N/A | BO17: FALSE | BP17: N/A | BQ17: N/A | BR17: 0 | BS17: N/A | BT17: 0 | BU17: 0 | BV17: 0 | BW17: 29.63 | BX17: 0 | BY17: 0 | BZ17: 0 | CA17: 0 | CB17: TRUE
A18: 15 | B18: 2016-01-03 | C18: 1 | D18: 16 | E18: Glycosylated Hemoglobin Test | F18: Diagnostic Services: Laboratory | G18: Not Covered | H18: 16.98 | I18: 16.98 | J18: 0 | K18: FALSE | L18: No | M18: . | N18: =IFERROR(IF(AND(L18="Yes",ISNUMBER(M18)),MAX(0,M18-SUMIFS(BU$3:BU17,L$3:L17,"Yes")),IF(OR(L18="No",M18="None"),"N/A","ERR")),"ERR") -> N/A | O18: FALSE | P18: =IF(O18,BENEFIT_PARAMETERS!$C$76,"N/A") -> N/A | Q18: =IF(P18="Yes", BENEFIT_PARAMETERS!$D$76,"N/A") -> N/A | R18: N/A | S18: 0 | T18: 0 | U18: FALSE | V18: =IF(O18,BENEFIT_PARAMETERS!$C$77,"N/A") -> N/A | W18: =IF(V18="Yes", BENEFIT_PARAMETERS!$D$77,"N/A") -> N/A | X18: =IF(O18,COUNTIF(Z$3:Z17,">0"),"N/A") -> N/A | Y18: N/A | Z18: N/A | AA18: 0 | AB18: N/A | AC18: 0 | AD18: FALSE | AE18: . | AF18: 0 | AG18: N/A | AH18: FALSE | AI18: . | AJ18: 0 | AK18: N/A | AL18: 0 | AM18: 0 | AN18: FALSE | AO18: N/A | AP18: =IF(AND(ISNUMBER(AO18),AN18=TRUE),MAX(0,AO18-SUMIFS($AM$3:$AM17,AN$3:AN17,TRUE)),IF(AND(AN18=TRUE,ISNUMBER(AO18)=FALSE),"ERR","N/A")) -> N/A | AQ18: N/A | AR18: FALSE | AS18: N/A | AT18: =IF(AND(AR18=TRUE,ISNUMBER(AS18)),MAX(0,AS18-SUMIFS($AM$3:$AM17,AR$3:AR17,TRUE)),IF(AND(AR18=TRUE,ISNUMBER(AS18)=FALSE),"ERR","N/A")) -> N/A | AU18: N/A | AV18: FALSE | AW18: N/A | AX18: =IF(AND(AV18=TRUE,ISNUMBER(AW18)),MAX(0,AW18-SUMIFS($AM$3:$AM17,AV$3:AV17,TRUE)),IF(AND(AV18=TRUE,ISNUMBER(AW18)=FALSE),"ERR","N/A")) -> N/A | AY18: N/A | AZ18: FALSE | BA18: N/A | BB18: =IF(AND(AZ18=TRUE,ISNUMBER(BA18)),MAX(0,BA18-SUMIFS($AM$3:$AM17,AZ$3:AZ17,TRUE)),IF(AND(AZ18=TRUE,ISNUMBER(BA18)=FALSE),"ERR","N/A")) -> N/A | BC18: N/A | BD18: FALSE | BE18: N/A | BF18: =IF(AND(BD18=TRUE,ISNUMBER(BE18)=TRUE),MAX(0,BE18-SUMIFS(AM$3:AM17,BD$3:BD17,TRUE,F$3:F17,F18)),IF(AND(BD18=TRUE,ISNUMBER(BE18)=FALSE),"ERR","N/A")) -> N/A | BG18: N/A | BH18: 0 | BI18: 0 | BJ18: N/A | BK18: 0 | BL18: FALSE | BM18: N/A | BN18: N/A | BO18: FALSE | BP18: N/A | BQ18: N/A | BR18: 0 | BS18: N/A | BT18: 0 | BU18: 0 | BV18: 0 | BW18: 16.98 | BX18: 0 | BY18: 0 | BZ18: 0 | CA18: 0 | CB18: TRUE
A19: 16 | B19: 2016-01-03 | C19: 1 | D19: 9 | E19: Lipid panel | F19: Diagnostic Services: Laboratory | G19: Not Covered | H19: 23.4 | I19: 23.4 | J19: 0 | K19: FALSE | L19: No | M19: . | N19: =IFERROR(IF(AND(L19="Yes",ISNUMBER(M19)),MAX(0,M19-SUMIFS(BU$3:BU18,L$3:L18,"Yes")),IF(OR(L19="No",M19="None"),"N/A","ERR")),"ERR") -> N/A | O19: FALSE | P19: =IF(O19,BENEFIT_PARAMETERS!$C$76,"N/A") -> N/A | Q19: =IF(P19="Yes", BENEFIT_PARAMETERS!$D$76,"N/A") -> N/A | R19: N/A | S19: 0 | T19: 0 | U19: FALSE | V19: =IF(O19,BENEFIT_PARAMETERS!$C$77,"N/A") -> N/A | W19: =IF(V19="Yes", BENEFIT_PARAMETERS!$D$77,"N/A") -> N/A | X19: =IF(O19,COUNTIF(Z$3:Z18,">0"),"N/A") -> N/A | Y19: N/A | Z19: N/A | AA19: 0 | AB19: N/A | AC19: 0 | AD19: FALSE | AE19: . | AF19: 0 | AG19: N/A | AH19: FALSE | AI19: . | AJ19: 0 | AK19: N/A | AL19: 0 | AM19: 0 | AN19: FALSE | AO19: N/A | AP19: =IF(AND(ISNUMBER(AO19),AN19=TRUE),MAX(0,AO19-SUMIFS($AM$3:$AM18,AN$3:AN18,TRUE)),IF(AND(AN19=TRUE,ISNUMBER(AO19)=FALSE),"ERR","N/A")) -> N/A | AQ19: N/A | AR19: FALSE | AS19: N/A | AT19: =IF(AND(AR19=TRUE,ISNUMBER(AS19)),MAX(0,AS19-SUMIFS($AM$3:$AM18,AR$3:AR18,TRUE)),IF(AND(AR19=TRUE,ISNUMBER(AS19)=FALSE),"ERR","N/A")) -> N/A | AU19: N/A | AV19: FALSE | AW19: N/A | AX19: =IF(AND(AV19=TRUE,ISNUMBER(AW19)),MAX(0,AW19-SUMIFS($AM$3:$AM18,AV$3:AV18,TRUE)),IF(AND(AV19=TRUE,ISNUMBER(AW19)=FALSE),"ERR","N/A")) -> N/A | AY19: N/A | AZ19: FALSE | BA19: N/A | BB19: =IF(AND(AZ19=TRUE,ISNUMBER(BA19)),MAX(0,BA19-SUMIFS($AM$3:$AM18,AZ$3:AZ18,TRUE)),IF(AND(AZ19=TRUE,ISNUMBER(BA19)=FALSE),"ERR","N/A")) -> N/A | BC19: N/A | BD19: FALSE | BE19: N/A | BF19: =IF(AND(BD19=TRUE,ISNUMBER(BE19)=TRUE),MAX(0,BE19-SUMIFS(AM$3:AM18,BD$3:BD18,TRUE,F$3:F18,F19)),IF(AND(BD19=TRUE,ISNUMBER(BE19)=FALSE),"ERR","N/A")) -> N/A | BG19: N/A | BH19: 0 | BI19: 0 | BJ19: N/A | BK19: 0 | BL19: FALSE | BM19: N/A | BN19: N/A | BO19: FALSE | BP19: N/A | BQ19: N/A | BR19: 0 | BS19: N/A | BT19: 0 | BU19: 0 | BV19: 0 | BW19: 23.4 | BX19: 0 | BY19: 0 | BZ19: 0 | CA19: 0 | CB19: TRUE
